Workbook

Sheet PPNE1
B2: Servicio Nacional de Salud
B3: Dirección de Planificación y Desarrollo | K3: 2022 | L3: 2023 | M3: 2024
B4: Programación Insumos por Producto Nivel Especializado | K4: Metropolitano | L4: Valdesia | M4: Norcentral | N4: Nordeste | O4: Enriquillo | P4: Este | Q4: El Valle | R4: Cibao Occidental | S4: Cibao Central
B5: Año | C5: 2022
A6: Servicio Regional de Salud: | B6: Metropolitano
A7: CEAS | B7: HOSPITAL PEDIÁTRICO DR. HUGO MENDOZA
A8: Productos Terminales | B8: Unidad de Medida | C8: Meta Lograda Año 2020 | D8: Meta Proyectada a Lograr Año 2021 | E8: Meta Proyectada Año 2022 | F8: Programación Trimestral | K8: Meta Lograda actual periodo Año 2021
F9: 1er. Trimestre | G9: 2do. Trimestre | H9: 3er. Trimestre | I9: 4to. Trimestre
A10: Servicio de Consulta Externa | B10: Consultas | C10: =SUM(C11:C12) -> 35755 | D10: =SUM(D11:D12) -> 133,521 | E10: 544,253 | F10: 232,941 | G10: 15,961 | H10: 89,533 | I10: 213,214 | K10: =SUM(K11:K12) -> 26,226
A11: Primera Vez | B11: Consultas | C11: 16349 | D11: 81177 | E11: =IF(C11="",0,(D11/C11)*D11) -> 403065 | F11: 161285.0625 | G11: 12672.04557 | H11: 70238.63392 | I11: 166265.1271 | K11: 12435
A12: Subsecuente | B12: Consultas | C12: 19406 | D12: 52344 | E12: =IF(C12="",0,(D12/C12)*D12) -> 141188 | F12: 71,656 | G12: 3,289 | H12: 19,295 | I12: 46,949 | K12: 13,791
A13: Servicio de Emergencia | B13: Consultas | C13: =SUM(C14) -> 36309 | D13: =D14 -> 72,821 | E13: 146,049 | F13: 51,491 | G13: 25,788 | H13: 30,498 | I13: 38,273 | K13: 20,813
A14: Emergencias | C14: 36309 | D14: 72821 | E14: =IF(C14="",0,(D14/C14)*D14) -> 146049 | F14: 51,491 | G14: 25,788 | H14: 30,498 | I14: 38,273 | K14: 20,813
A15: Servicio Hospitalización | B15: Egresos | C15: =SUM(C16:C23) -> 7913 | D15: =SUM(D16:D23) -> 24,545 | E15: 76,135 | F15: 25,757 | G15: 12,123 | H15: 14,981 | I15: 23,274 | K15: =SUM(K16:K23) -> 5,668
A16: Servicio de Medicina General | D16: =(K16/5)*12 -> 0 | E16: =IF(C16="",0,(D16/C16)*D16) -> 0
A17: Servicio de Cirugia | D17: =(K17/5)*12 -> 0 | E17: 0
A18: Servicio de Ginecobstetricia | D18: 0 | E18: 0
A19: Servicio de Pediatria | B19: Egresos | C19: 7913 | D19: 24545 | E19: 76135 | F19: 25,757 | G19: 12,123 | H19: 14,981 | I19: 23,274 | K19: 5,668
A20: Servicio de Cardiologia | D20: 0 | E20: 0
A21: Servicio de Gastroenterologia | D21: 0 | E21: 0
A22: Servicio de Endocrinologia | D22: 0 | E22: 0
A23: Otros | D23: 0 | E23: 0
A24: Servicios de Apoyo Diagnóstico | C24: =SUM(C25:C26) -> 173999 | D24: =SUM(D25:D26) -> 289,452 | E24: 481,574 | F24: 142,930 | G24: 65,489 | H24: 111,462 | I24: 161,693 | K24: =SUM(K25:K26) -> 120,605
A25: Análisis de Laboratorio | B25: Muestras | C25: 138067 | D25: 231014.4 | E25: 386534 | F25: 117,805 | G25: 54,867 | H25: 85,721 | I25: 128,141 | K25: 96,256
A26: Servicio de Imágenes | B26: Imágenes | C26: 35932 | D26: 58437.6 | E26: 95039 | F26: 25,125 | G26: 10,622 | H26: 25,741 | I26: 33,552 | K26: 24,349
A27: Indicadores de Producción
A28: Años | B28: Camas Disponibles | C28: Giro de Cama | D28: Día Cama Disponibles | E28: Dias Pacientes | F28: Promedio Días Estada | G28: Porcentaje Ocupacional | H28: Índice de mortalidad materna intrahospitalaria | I28: Porcentaje de cesárea
A29: 2019 | B29: 131 | C29: 7.70 | D29: 47,785 | E29: 42,362 | F29: 3.50 | G29: 88.65%
A30: 2020 | B30: 131 | C30: 5.03 | D30: 51,739 | E30: 34,821 | F30: 4.40 | G30: 67.30%
A31: 2021 | B31: 131 | C31: 7.21 | D31: 23,711 | E31: 21,451 | F31: 3.78 | G31: 90.47%

Sheet PPNE2
A1: Prioridades Directivas | B1: Resultados Esperados | C1: Productos | D1: Código | E1: Actividades Programables Presupuestables | F1: Ene | G1: Feb | H1: Mar | I1: Abr | J1: May | K1: Jun | L1: Jul | M1: Ago | N1: Sep | O1: Oct | P1: Nov | Q1: Dic | R1: Total de Acciones | S1: Medio de Verificación 1 | T1: Medio de Verificación 2 | U1: Medio de Verificación 3 | V1: Observaciones y/o Responsable
A2: Humanización y Calidad de la Atención | B2: 1.1.1. Redes de servicios integradas y con mayor resolución para coordinar la prestación de servicios integrales de promoción de la salud, prevención de la enfermedad, diagnóstico, tratamiento, rehabilitación y cuidados paliativos; condicionada a la necesidades de salud y características de la población, con miras hacia la consecución progresiva del acceso universal a la salud y la cobertura universal de salud | C2: 1.1.1.6 Fortalecimiento de la gestión de los servicios Hospitalarios | D2: 1.1.1.6.01 | E2: Autoevaluación en la metodologia de la Gestion Productiva de los Servicios de Salud | I2: 1 | R2: =SUM(F2:Q2) -> 1 | S2: Informe
A3: Humanización y Calidad de la Atención | B3: 1.1.1. Redes de servicios integradas y con mayor resolución para coordinar la prestación de servicios integrales de promoción de la salud, prevención de la enfermedad, diagnóstico, tratamiento, rehabilitación y cuidados paliativos; condicionada a la necesidades de salud y características de la población, con miras hacia la consecución progresiva del acceso universal a la salud y la cobertura universal de salud | C3: 1.1.1.6 Fortalecimiento de la gestión de los servicios Hospitalarios | D3: 1.1.1.6.02 | E3: Elaboración de planes de mejora con la Metodologia de Gestión Productiva | J3: 1 | R3: 1 | S3: Plan | T3: Listado de participación
A4: Humanización y Calidad de la Atención | B4: 1.1.1. Redes de servicios integradas y con mayor resolución para coordinar la prestación de servicios integrales de promoción de la salud, prevención de la enfermedad, diagnóstico, tratamiento, rehabilitación y cuidados paliativos; condicionada a la necesidades de salud y características de la población, con miras hacia la consecución progresiva del acceso universal a la salud y la cobertura universal de salud | C4: 1.1.1.6 Fortalecimiento de la gestión de los servicios Hospitalarios | D4: 1.1.1.6.03 | E4: Ejecución de planes de mejora con la Metodologia de Gestión Productiva | K4: 1 | N4: 1 | Q4: 1 | R4: 3 | S4: Informe | T4: Listado de participación
A5: Sistema de Emergencias Médicas | B5: 1.1.5. Incrementada la capacidad de respuesta que favorezca a disminuir la morbi-mortalidad resultantes de las emergencias y desastres, mediante la detección, preparación y mitigación de los eventos que suponen riesgos y amenazas, bajo un enfoque multisectorial que contribuya a la salud y seguridad de las personas | C5: 1.1.5.1 Fortalecimiento de los Servicios de Emergencias Médicas Hospitalarias para la asistencia eficiente, humanizada y de calidad | D5: 1.1.5.1.01 | E5: Implementación del Modelo hospitalario y flujos de Asistencia Emergencias y Urgencias | H5: 1 | R5: 1 | S5: Reporte
A6: Sistema de Emergencias Médicas | B6: 1.1.5. Incrementada la capacidad de respuesta que favorezca a disminuir la morbi-mortalidad resultantes de las emergencias y desastres, mediante la detección, preparación y mitigación de los eventos que suponen riesgos y amenazas, bajo un enfoque multisectorial que contribuya a la salud y seguridad de las personas | C6: 1.1.5.1 Fortalecimiento de los Servicios de Emergencias Médicas Hospitalarias para la asistencia eficiente, humanizada y de calidad | D6: 1.1.5.1.02 | E6: Implementación del RAC-Triaje de pacientes en las Salas de Emergencias | H6: 1 | K6: 1 | N6: 1 | P6: 1 | R6: 4 | S6: Reporte
A7: Sistema de Emergencias Médicas | B7: 1.1.5. Incrementada la capacidad de respuesta que favorezca a disminuir la morbi-mortalidad resultantes de las emergencias y desastres, mediante la detección, preparación y mitigación de los eventos que suponen riesgos y amenazas, bajo un enfoque multisectorial que contribuya a la salud y seguridad de las personas | C7: 1.1.5.1 Fortalecimiento de los Servicios de Emergencias Médicas Hospitalarias para la asistencia eficiente, humanizada y de calidad | D7: 1.1.5.1.03 | E7: Llenado y registro de Formulario RAC -Triaje de pacientes en las Salas de Emergencias | H7: 1 | K7: 1 | R7: 2 | S7: Reporte
A8: Sistema de Emergencias Médicas | B8: 1.1.5. Incrementada la capacidad de respuesta que favorezca a disminuir la morbi-mortalidad resultantes de las emergencias y desastres, mediante la detección, preparación y mitigación de los eventos que suponen riesgos y amenazas, bajo un enfoque multisectorial que contribuya a la salud y seguridad de las personas | C8: 1.1.5.1 Fortalecimiento de los Servicios de Emergencias Médicas Hospitalarias para la asistencia eficiente, humanizada y de calidad | D8: 1.1.5.1.04 | E8: Certificación en Soporte Vital Avanzado del personal asistencial de salas de emergencias | G8: 1 | J8: 1 | M8: 1 | P8: 1 | R8: 4 | S8: Reporte
A9: Sistema de Emergencias Médicas | B9: 1.1.5. Incrementada la capacidad de respuesta que favorezca a disminuir la morbi-mortalidad resultantes de las emergencias y desastres, mediante la detección, preparación y mitigación de los eventos que suponen riesgos y amenazas, bajo un enfoque multisectorial que contribuya a la salud y seguridad de las personas | C9: 1.1.5.1 Fortalecimiento de los Servicios de Emergencias Médicas Hospitalarias para la asistencia eficiente, humanizada y de calidad | D9: 1.1.5.1.05 | E9: Implementación del procedimiento para la entrega, recibo y reposicion de carro de paro | H9: 1 | K9: 1 | N9: 1 | Q9: 1 | R9: 4 | S9: Reporte carro de paro | T9: Listado de participación
A10: Sistema de Emergencias Médicas | B10: 1.1.5. Incrementada la capacidad de respuesta que favorezca a disminuir la morbi-mortalidad resultantes de las emergencias y desastres, mediante la detección, preparación y mitigación de los eventos que suponen riesgos y amenazas, bajo un enfoque multisectorial que contribuya a la salud y seguridad de las personas | C10: 1.1.5.1 Fortalecimiento de los Servicios de Emergencias Médicas Hospitalarias para la asistencia eficiente, humanizada y de calidad | D10: 1.1.5.1.06 | E10: Registros en el tablero de Indicadores de Gestión de las Salas de Emergencias de los Centros de Salud. | F10: 1 | G10: 1 | H10: 1 | I10: 1 | J10: 1 | K10: 1 | L10: 1 | M10: 1 | N10: 1 | O10: 1 | P10: 1 | Q10: 1 | R10: 12 | S10: Reporte
A11: Sistema de Emergencias Médicas | B11: 1.1.5. Incrementada la capacidad de respuesta que favorezca a disminuir la morbi-mortalidad resultantes de las emergencias y desastres, mediante la detección, preparación y mitigación de los eventos que suponen riesgos y amenazas, bajo un enfoque multisectorial que contribuya a la salud y seguridad de las personas | C11: 1.1.5.1 Fortalecimiento de los Servicios de Emergencias Médicas Hospitalarias para la asistencia eficiente, humanizada y de calidad | D11: 1.1.5.1.07 | E11: Designación de flota telefónica número único para sala de emergencias centros hospitalario responsables (médico de servicio) | F11: 1 | R11: 1 | S11: Reporte
A12: Sistema de Emergencias Médicas | B12: 1.1.5. Incrementada la capacidad de respuesta que favorezca a disminuir la morbi-mortalidad resultantes de las emergencias y desastres, mediante la detección, preparación y mitigación de los eventos que suponen riesgos y amenazas, bajo un enfoque multisectorial que contribuya a la salud y seguridad de las personas | C12: 1.1.5.1 Fortalecimiento de los Servicios de Emergencias Médicas Hospitalarias para la asistencia eficiente, humanizada y de calidad | D12: 1.1.5.1.08 | E12: Atención a los llamados por radio del sistema 911 (registros) | F12: 1 | G12: 1 | H12: 1 | I12: 1 | J12: 1 | K12: 1 | L12: 1 | M12: 1 | N12: 1 | O12: 1 | P12: 1 | Q12: 1 | R12: 12 | S12: Reporte
A13: Sistema de Emergencias Médicas | B13: 1.1.5. Incrementada la capacidad de respuesta que favorezca a disminuir la morbi-mortalidad resultantes de las emergencias y desastres, mediante la detección, preparación y mitigación de los eventos que suponen riesgos y amenazas, bajo un enfoque multisectorial que contribuya a la salud y seguridad de las personas | C13: 1.1.5.2 Redes de Servicios de Salud Resilientes a Emergencias de Salud Pública y Desastres Naturales mediante la Preparación y Respuesta de los Establecimientos. | D13: 1.1.5.2.01 | E13: Elaboración y/o actualización de los Planes de Emergencias y Desastres Hospitalarios | F13: 1 | R13: 1 | S13: Plan
A14: Sistema de Emergencias Médicas | B14: 1.1.5. Incrementada la capacidad de respuesta que favorezca a disminuir la morbi-mortalidad resultantes de las emergencias y desastres, mediante la detección, preparación y mitigación de los eventos que suponen riesgos y amenazas, bajo un enfoque multisectorial que contribuya a la salud y seguridad de las personas | C14: 1.1.5.2 Redes de Servicios de Salud Resilientes a Emergencias de Salud Pública y Desastres Naturales mediante la Preparación y Respuesta de los Establecimientos. | D14: 1.1.5.2.02 | E14: Reuniones de Coordinación plan Hospitalarios Emergencias de salud publica y desastres naturales con jefes y encargados comité de emeregncias. | H14: 1 | K14: 1 | N14: 1 | Q14: 1 | R14: 4 | S14: Listado de participación | T14: Minuta
A15: Sistema de Emergencias Médicas | B15: 1.1.5. Incrementada la capacidad de respuesta que favorezca a disminuir la morbi-mortalidad resultantes de las emergencias y desastres, mediante la detección, preparación y mitigación de los eventos que suponen riesgos y amenazas, bajo un enfoque multisectorial que contribuya a la salud y seguridad de las personas | C15: 1.1.5.2 Redes de Servicios de Salud Resilientes a Emergencias de Salud Pública y Desastres Naturales mediante la Preparación y Respuesta de los Establecimientos. | D15: 1.1.5.2.03 | E15: Simulacro para probar la funcionabilidad de los Planes de Emergencias y Desastres Hospitalarios. | L15: 1 | R15: 1 | S15: Informe | T15: Fotos
A16: Sistema de Emergencias Médicas | B16: 1.1.5. Incrementada la capacidad de respuesta que favorezca a disminuir la morbi-mortalidad resultantes de las emergencias y desastres, mediante la detección, preparación y mitigación de los eventos que suponen riesgos y amenazas, bajo un enfoque multisectorial que contribuya a la salud y seguridad de las personas | C16: 1.1.5.2 Redes de Servicios de Salud Resilientes a Emergencias de Salud Pública y Desastres Naturales mediante la Preparación y Respuesta de los Establecimientos. | D16: 1.1.5.2.04 | E16: Reunión con el Comite Hospitalario de Emergencias y Desastres para preparar el Operativo de Navidad y Año Nuevo comité de emergencias | Q16: 1 | R16: 1 | S16: Listado de participación | T16: Minuta
A17: Sistema de Emergencias Médicas | B17: 1.1.5. Incrementada la capacidad de respuesta que favorezca a disminuir la morbi-mortalidad resultantes de las emergencias y desastres, mediante la detección, preparación y mitigación de los eventos que suponen riesgos y amenazas, bajo un enfoque multisectorial que contribuya a la salud y seguridad de las personas | C17: 1.1.5.2 Redes de Servicios de Salud Resilientes a Emergencias de Salud Pública y Desastres Naturales mediante la Preparación y Respuesta de los Establecimientos. | D17: 1.1.5.2.05 | E17: Reunión con el Comite Hospitalario de Emergencias y Desastres para preparar el Operativo de Semana Santa comité de emergencias | I17: 1 | R17: 1 | S17: Listado de participación | T17: Minuta
A18: Sistema de Emergencias Médicas | B18: 1.1.5. Incrementada la capacidad de respuesta que favorezca a disminuir la morbi-mortalidad resultantes de las emergencias y desastres, mediante la detección, preparación y mitigación de los eventos que suponen riesgos y amenazas, bajo un enfoque multisectorial que contribuya a la salud y seguridad de las personas | C18: 1.1.5.2 Redes de Servicios de Salud Resilientes a Emergencias de Salud Pública y Desastres Naturales mediante la Preparación y Respuesta de los Establecimientos. | D18: 1.1.5.2.06 | E18: Reunión con el Comite Hospitalario de Emergencias y Desastres para respuesta a Temporada Ciclonica y Eventos Hidrometeorologicos comité de emergencias | K18: 1 | R18: 1 | S18: Listado de participación | T18: Minuta
A19: Sistema de Emergencias Médicas | B19: 1.1.5. Incrementada la capacidad de respuesta que favorezca a disminuir la morbi-mortalidad resultantes de las emergencias y desastres, mediante la detección, preparación y mitigación de los eventos que suponen riesgos y amenazas, bajo un enfoque multisectorial que contribuya a la salud y seguridad de las personas | C19: 1.1.5.2 Redes de Servicios de Salud Resilientes a Emergencias de Salud Pública y Desastres Naturales mediante la Preparación y Respuesta de los Establecimientos. | D19: 1.1.5.2.07 | E19: Reunión con el Comite Hospitalario de Emergencias y Desastres para respuesta a alta demanda asistencial comité de emergencias | F19: 1 | R19: 1 | S19: Listado de participación | T19: Minuta
A20: Sistema de Emergencias Médicas | B20: 1.1.5. Incrementada la capacidad de respuesta que favorezca a disminuir la morbi-mortalidad resultantes de las emergencias y desastres, mediante la detección, preparación y mitigación de los eventos que suponen riesgos y amenazas, bajo un enfoque multisectorial que contribuya a la salud y seguridad de las personas | C20: 1.1.5.2 Redes de Servicios de Salud Resilientes a Emergencias de Salud Pública y Desastres Naturales mediante la Preparación y Respuesta de los Establecimientos. | D20: 1.1.5.2.08 | E20: Reunión de preparacion y respuesta Epidemiológicos Covid-19 y otras epidemias comité de emergencias | F20: 1 | R20: 1 | S20: Listado de participación | T20: Minuta
A21: Sistema de Emergencias Médicas | B21: 1.1.5. Incrementada la capacidad de respuesta que favorezca a disminuir la morbi-mortalidad resultantes de las emergencias y desastres, mediante la detección, preparación y mitigación de los eventos que suponen riesgos y amenazas, bajo un enfoque multisectorial que contribuya a la salud y seguridad de las personas | C21: 1.1.5.2 Redes de Servicios de Salud Resilientes a Emergencias de Salud Pública y Desastres Naturales mediante la Preparación y Respuesta de los Establecimientos. | D21: 1.1.5.2.09 | E21: Reforzamiento y capacitación control de infecciones y manejo clínico COVID-19 para epidemiólogos facilitadores de los centros de salud a nivel nacional. | G21: 1 | K21: 1 | R21: 2 | S21: Listado de participación | T21: Reporte
A22: Sistema de Emergencias Médicas | B22: 1.1.5. Incrementada la capacidad de respuesta que favorezca a disminuir la morbi-mortalidad resultantes de las emergencias y desastres, mediante la detección, preparación y mitigación de los eventos que suponen riesgos y amenazas, bajo un enfoque multisectorial que contribuya a la salud y seguridad de las personas | C22: 1.1.5.2 Redes de Servicios de Salud Resilientes a Emergencias de Salud Pública y Desastres Naturales mediante la Preparación y Respuesta de los Establecimientos. | D22: 1.1.5.2.10 | E22: Socialización del procedimiento de notificación y traslado de casos sospechosos y confirmados COVID-19. | H22: 1 | J22: 1 | R22: 2 | S22: Listado de participación | T22: Minuta
B23: 1.2.1. Desarrollo y mantenimiento de un modelo de evaluación de la entrega de servicios sanitarios con carácter igualitario y libre de discriminación, que promueva mediante la continua retroalimentación, la generación de mejores resultados en materia de salud lo que se traduzca en el aumento de la satisfacción de las personas con respecto a los servicios públicos de salud | C23: 1.2.1.2 Programa de Gestión de Citas | D23: 1.2.1.2.01 | E23: Organización de las citas a consultas externas para que todos los usuarios que lleguen con una consulta programada | F23: 1 | G23: 1 | H23: 1 | I23: 1 | J23: 1 | K23: 1 | L23: 1 | M23: 1 | N23: 1 | O23: 1 | P23: 1 | Q23: 1 | R23: 12 | S23: Reporte
A24: Humanización y Calidad de la Atención | B24: 1.2.1. Desarrollo y mantenimiento de un modelo de evaluación de la entrega de servicios sanitarios con carácter igualitario y libre de discriminación, que promueva mediante la continua retroalimentación, la generación de mejores resultados en materia de salud lo que se traduzca en el aumento de la satisfacción de las personas con respecto a los servicios públicos de salud | C24: 1.2.1.3 Implementación del Programa de Gestión de usuarios para adhesión a una cultura institucional de servicio | D24: 1.2.1.3.01 | E24: Encuestas diarias de satisfacción de usuarios en la plataforma digital | F24: 1 | G24: 1 | H24: 1 | I24: 1 | J24: 1 | K24: 1 | L24: 1 | M24: 1 | N24: 1 | O24: 1 | P24: 1 | Q24: 1 | R24: 12 | S24: Reporte
A25: Humanización y Calidad de la Atención | B25: 1.2.1. Desarrollo y mantenimiento de un modelo de evaluación de la entrega de servicios sanitarios con carácter igualitario y libre de discriminación, que promueva mediante la continua retroalimentación, la generación de mejores resultados en materia de salud lo que se traduzca en el aumento de la satisfacción de las personas con respecto a los servicios públicos de salud | C25: 1.2.1.3 Implementación del Programa de Gestión de usuarios para adhesión a una cultura institucional de servicio | D25: 1.2.1.3.02 | E25: Elaboración de los planes de mejora en base a los resultados obtenidos en la encuesta de satisfacción | K25: 1 | R25: 1 | S25: Plan
A26: Humanización y Calidad de la Atención | B26: 1.2.1. Desarrollo y mantenimiento de un modelo de evaluación de la entrega de servicios sanitarios con carácter igualitario y libre de discriminación, que promueva mediante la continua retroalimentación, la generación de mejores resultados en materia de salud lo que se traduzca en el aumento de la satisfacción de las personas con respecto a los servicios públicos de salud | C26: 1.2.1.3 Implementación del Programa de Gestión de usuarios para adhesión a una cultura institucional de servicio | D26: 1.2.1.3.03 | E26: Seguimiento a la implementación de los planes de mejora | N26: 1 | Q26: 1 | R26: 2 | S26: Informe | T26: Listado de participación
A27: Humanización y Calidad de la Atención | B27: 1.2.1. Desarrollo y mantenimiento de un modelo de evaluación de la entrega de servicios sanitarios con carácter igualitario y libre de discriminación, que promueva mediante la continua retroalimentación, la generación de mejores resultados en materia de salud lo que se traduzca en el aumento de la satisfacción de las personas con respecto a los servicios públicos de salud | C27: 1.2.1.3 Implementación del Programa de Gestión de usuarios para adhesión a una cultura institucional de servicio | D27: 1.2.1.3.04 | E27: Implementación de grupos focales para determinar la calidad percibida del servicio | H27: 1 | K27: 2 | N27: 1 | Q27: 1 | R27: 5 | S27: Listado de participación | T27: Informe
A28: Humanización y Calidad de la Atención | B28: 1.2.2. Fortalecida la calidad de la atención en salud como resultado del seguimiento a los aspectos técnicos y no técnicos de la atención, que disminuya el riesgo de la seguridad del paciente y de los resultados esperados de salud | C28: 1.2.2.1 Fortalecimiento de bioseguridad hospitalaria | D28: 1.2.2.1.01 | E28: Reuniones de trabajo para la vigilancia y control de las IAAS | H28: 1 | K28: 1 | N28: 1 | Q28: 1 | R28: 4 | S28: Listado de participación | T28: Minuta
A29: Humanización y Calidad de la Atención | B29: 1.2.2. Fortalecida la calidad de la atención en salud como resultado del seguimiento a los aspectos técnicos y no técnicos de la atención, que disminuya el riesgo de la seguridad del paciente y de los resultados esperados de salud | C29: 1.2.2.1 Fortalecimiento de bioseguridad hospitalaria | D29: 1.2.2.1.02 | E29: Implementacion del formulario de evaluacion de procesos de bioseguridad hospitalaria | H29: 1 | K29: 1 | N29: 1 | Q29: 1 | R29: 4 | S29: Reporte
A30: Humanización y Calidad de la Atención | B30: 1.2.2. Fortalecida la calidad de la atención en salud como resultado del seguimiento a los aspectos técnicos y no técnicos de la atención, que disminuya el riesgo de la seguridad del paciente y de los resultados esperados de salud | C30: 1.2.2.1 Fortalecimiento de bioseguridad hospitalaria | D30: 1.2.2.1.03 | E30: Elaboracion de planes de mejora para la bioseguridad hospitalaria. | I30: 1 | L30: 1 | O30: 1 | R30: 3 | S30: Plan | T30: Listado de participación
A31: Humanización y Calidad de la Atención | B31: 1.2.2. Fortalecida la calidad de la atención en salud como resultado del seguimiento a los aspectos técnicos y no técnicos de la atención, que disminuya el riesgo de la seguridad del paciente y de los resultados esperados de salud | C31: 1.2.2.1 Fortalecimiento de bioseguridad hospitalaria | D31: 1.2.2.1.04 | E31: Evaluacion de la ejecución de los planes de mejora bioseguridad hospitalaria | J31: 1 | M31: 1 | P31: 1 | R31: 3 | S31: Informe | T31: Listado de participación
A32: Humanización y Calidad de la Atención | B32: 1.2.2. Fortalecida la calidad de la atención en salud como resultado del seguimiento a los aspectos técnicos y no técnicos de la atención, que disminuya el riesgo de la seguridad del paciente y de los resultados esperados de salud | C32: 1.2.2.2 Monitoreo de la Calidad de los Servicios de Salud ofertados en la Red | D32: 1.2.2.7.01 | E32: Implementación de los planes de mejora elaborados acorde al monitoreo de todas las áreas incluidas en el informe | H32: 1 | K32: 1 | N32: 1 | Q32: 1 | R32: 4 | S32: Informe | T32: Listado de participación
A33: Humanización y Calidad de la Atención | B33: 1.2.2. Fortalecida la calidad de la atención en salud como resultado del seguimiento a los aspectos técnicos y no técnicos de la atención, que disminuya el riesgo de la seguridad del paciente y de los resultados esperados de salud | C33: 1.2.2.2 Monitoreo de la Calidad de los Servicios de Salud ofertados en la Red | D33: 1.2.2.7.02 | E33: Seguimiento del comité de calidad y seguridad del paciente en el EESS | K33: 1 | Q33: 1 | R33: 2 | S33: Acta de conformación
A34: Humanización y Calidad de la Atención | B34: 1.2.2. Fortalecida la calidad de la atención en salud como resultado del seguimiento a los aspectos técnicos y no técnicos de la atención, que disminuya el riesgo de la seguridad del paciente y de los resultados esperados de salud | C34: 1.2.2.2 Monitoreo de la Calidad de los Servicios de Salud ofertados en la Red | D34: 1.2.2.7.03 | E34: Supervisión del cumplimiento de los protocolos durante la atención clínica y quirúrgica a los usuarios de los servicios | H34: 1 | K34: 1 | N34: 1 | Q34: 1 | R34: 4 | S34: Informe | T34: Listado de participación
A35: Humanización y Calidad de la Atención | B35: 1.2.2. Fortalecida la calidad de la atención en salud como resultado del seguimiento a los aspectos técnicos y no técnicos de la atención, que disminuya el riesgo de la seguridad del paciente y de los resultados esperados de salud | C35: 1.2.2.4 Fortalecimiento de los servicios de hostelería | D35: 1.2.2.4.01 | E35: Diagnóstico situacional de proceso de hosteleria | G35: 1 | R35: 1 | S35: Reporte
A36: Humanización y Calidad de la Atención | B36: 1.2.2. Fortalecida la calidad de la atención en salud como resultado del seguimiento a los aspectos técnicos y no técnicos de la atención, que disminuya el riesgo de la seguridad del paciente y de los resultados esperados de salud | C36: 1.2.2.4 Fortalecimiento de los servicios de hostelería | D36: 1.2.2.4.02 | E36: Implementación del manual de procedimiento de hosteleria hospitalaria | F36: 1 | R36: 1 | S36: Informe
A37: Humanización y Calidad de la Atención | B37: 1.2.2. Fortalecida la calidad de la atención en salud como resultado del seguimiento a los aspectos técnicos y no técnicos de la atención, que disminuya el riesgo de la seguridad del paciente y de los resultados esperados de salud | C37: 1.2.2.4 Fortalecimiento de los servicios de hostelería | D37: 1.2.2.4.03 | E37: Elaboración de planes de mejora de hosteleria | H37: 1 | R37: 1 | S37: Plan
A38: Humanización y Calidad de la Atención | B38: 1.2.2. Fortalecida la calidad de la atención en salud como resultado del seguimiento a los aspectos técnicos y no técnicos de la atención, que disminuya el riesgo de la seguridad del paciente y de los resultados esperados de salud | C38: 1.2.2.4 Fortalecimiento de los servicios de hostelería | D38: 1.2.2.4.04 | E38: Evaluación de la ejecución de los planes de mejora de hosteleria | J38: 1 | M38: 1 | P38: 1 | R38: 3 | S38: Informe | T38: Listado de participación
A39: Humanización y Calidad de la Atención | B39: 1.2.2. Fortalecida la calidad de la atención en salud como resultado del seguimiento a los aspectos técnicos y no técnicos de la atención, que disminuya el riesgo de la seguridad del paciente y de los resultados esperados de salud | C39: 1.2.2.5 Seguimiento y evaluacion del Módulo de Incidentes | D39: 1.2.2.5.01 | E39: Seguimiento a la nortificacion oportuna de los incidentes en el modulo definido para los fines | F39: 1 | G39: 1 | H39: 1 | I39: 1 | J39: 1 | K39: 1 | L39: 1 | M39: 1 | N39: 1 | O39: 1 | P39: 1 | Q39: 1 | R39: 12 | S39: Reporte
A40: Humanización y Calidad de la Atención | B40: 1.2.2. Fortalecida la calidad de la atención en salud como resultado del seguimiento a los aspectos técnicos y no técnicos de la atención, que disminuya el riesgo de la seguridad del paciente y de los resultados esperados de salud | C40: 1.2.2.6 Fortalecimiento de la vigilancia epidemiologica | D40: 1.2.2.4.01 | E40: Notificacion oportuna de las enfermedades bajo vigilancia epidemiologica | F40: 1 | G40: 1 | H40: 1 | I40: 1 | J40: 1 | K40: 1 | L40: 1 | M40: 1 | N40: 1 | O40: 1 | P40: 1 | Q40: 1 | R40: 12 | S40: Reporte
A41: Estrategia de Atención Primaria de Salud | B41: 2.2.1. Garantizada la atención integral con calidad y oportunidad, mediante la coordinación clínica y asistencial de los servicios de salud | C41: 2.2.1.1 Conectividad de la Red de Establecimientos del Primer Nivel con el Especializado | D41: 2.2.1.1.01 | E41: Gestión de los buzones de sugerencias | F41: 1 | G41: 1 | H41: 1 | I41: 1 | J41: 1 | K41: 1 | L41: 1 | M41: 1 | N41: 1 | O41: 1 | P41: 1 | Q41: 1 | R41: 12 | S41: Informe
A42: Estrategia de Atención Primaria de Salud | B42: 2.2.1. Garantizada la atención integral con calidad y oportunidad, mediante la coordinación clínica y asistencial de los servicios de salud | C42: 2.1.1.1 Conectividad de la Red de Establecimientos del Primer Nivel con el Especializado | D42: 2.2.1.1.02 | E42: Gestionar las QDSR de los usuarios, canalizando hasta dar respuesta al mismo. | F42: 1 | G42: 1 | H42: 1 | I42: 1 | J42: 1 | K42: 1 | L42: 1 | M42: 1 | N42: 1 | O42: 1 | P42: 1 | Q42: 1 | R42: 12 | S42: Informe
A43: Estrategia de Atención Primaria de Salud | B43: 2.2.1. Garantizada la atención integral con calidad y oportunidad, mediante la coordinación clínica y asistencial de los servicios de salud | C43: 2.1.1.1 Conectividad de la Red de Establecimientos del Primer Nivel con el Especializado | D43: 2.2.1.1.03 | E43: Seguimiento a la actualización de la cartera de servicios del establecimiento | F43: 1 | G43: 1 | H43: 1 | I43: 1 | J43: 1 | K43: 1 | L43: 1 | M43: 1 | N43: 1 | O43: 1 | P43: 1 | Q43: 1 | R43: 12 | S43: Informe
A44: Humanización y Calidad de la Atención | B44: 2.2.2. Gestión integrada y articulada de las redes públicas de servicios de salud, con actores involucrados en la organización, gestión y atención de servicios de salud con enfoque y participación intra e intersectorial y participación social fortalecida, que promueva un ambiente favorable para la cobertura y acceso a los servicios de salud | C44: 2.2.2.2 Estructuración Comités priorizados de Salud | D44: 2.2.2.2.01 | E44: Conformacion y/o restructuracion de los Comites Hospitalarios | H44: 1 | K44: 1 | N44: 1 | Q44: 1 | R44: 4 | S44: Actas de conformación
A45: Humanización y Calidad de la Atención | B45: 2.2.3 Aumentada la eficacia, eficiencia y equidad de la prestación de los servicios de salud a través de la reorganización y transformación de las estructuras de redes de servicios | C45: 2.2.3.1 Gestión de la habilitación de los establecimientos de salud de la Red SNS | D45: 2.2.3..1.01 | E45: Gestión de la habilitación de todos los servicios que ofertan en el EESS | H45: 1 | K45: 1 | N45: 1 | Q45: 1 | R45: 4 | S45: Reporte
A46: Desarrollo del Talento Humano | B46: 3.2.1. Incrementada las competencias y resolución de los colaboradores, de acuerdo a la complejidad de sus funciones, las necesidades de salud de la población y los compromisos del sector | C46: 3.2.1.1 Ejecución del Programa de formación y Capacitación continua de los RRHH de la Red | D46: 3.2.1.1.01 | E46: Ejecución Plan de Capacitación -2022 | H46: 1 | I46: 1 | J46: 1 | K46: 1 | L46: 1 | M46: 1 | N46: 1 | O46: 1 | P46: 1 | R46: 9 | S46: Listado de participación
A47: Desarrollo del Talento Humano | B47: 3.2.1. Incrementada las competencias y resolución de los colaboradores, de acuerdo a la complejidad de sus funciones, las necesidades de salud de la población y los compromisos del sector | C47: 3.2.1.1 Programa de capacitación del CEAS | D47: 3.2.1.1.02 | E47: Seguimiento ejecución plan capacitación 2022 | H47: 1 | K47: 1 | N47: 1 | Q47: 1 | R47: 4 | S47: Reporte
A48: Desarrollo del Talento Humano | B48: 3.2.1. Incrementada las competencias y resolución de los colaboradores, de acuerdo a la complejidad de sus funciones, las necesidades de salud de la población y los compromisos del sector | C48: 3.2.1.1 Programa de capacitación del CEAS | D48: 3.2.1.1.03 | E48: Detección necesidades capacitación por departamento -Plan 2023. | N48: 1 | R48: 1 | S48: Reporte
A49: Desarrollo del Talento Humano | B49: 3.2.1. Incrementada las competencias y resolución de los colaboradores, de acuerdo a la complejidad de sus funciones, las necesidades de salud de la población y los compromisos del sector | C49: 3.2.1.1 Programa de capacitación del CEAS | D49: 3.2.1.1.04 | E49: Elaboración del Plan de Capacitación -2023 | O49: 1 | R49: 1 | S49: Plan
A50: Desarrollo del Talento Humano | B50: 3.2.2 Personal trabaja bajo un clima de satisfacción, realización personal y sentido de pertenencia hacia la institución | C50: 3.2.2.3 Implementación del Plan de Mejora Encuesta de Clima laboral | D50: 3.2.2.3.01 | E50: Encuesta de clima laboral | L50: 1 | R50: =SUM(F50:Q50) -> 1 | S50: Informe
A51: Desarrollo del Talento Humano | B51: 3.2.2. Personal trabaja bajo un clima de satisfacción, realización personal y sentido de pertenencia hacia la institución | C51: 3.2.2.3 Implementación del Plan de Mejora Encuesta de Clima laboral | D51: 3.2.2.3.02 | E51: Elaboración plan de mejora encuesta de clima laboral | M51: 1 | R51: 1 | S51: Plan
A52: Desarrollo del Talento Humano | B52: 3.2.2. Personal trabaja bajo un clima de satisfacción, realización personal y sentido de pertenencia hacia la institución | C52: 3.2.2.3 Implementación del Plan de Mejora Encuesta de Clima laboral | D52: 3.2.2.3.03 | E52: Implementación plan de mejora encuesta de clima laboral | N52: 1 | R52: 1 | S52: Informe
A53: Desarrollo del Talento Humano | B53: 3.2.2. Personal trabaja bajo un clima de satisfacción, realización personal y sentido de pertenencia hacia la institución | C53: 3.2.2.3 Implementación del Plan de Mejora Encuesta de Clima laboral | D53: 3.2.2.3.04 | E53: Elaboración acuerdos de desempeño | F53: 1 | R53: 1 | S53: Reporte
A54: Desarrollo del Talento Humano | B54: 3.2.2. Personal trabaja bajo un clima de satisfacción, realización personal y sentido de pertenencia hacia la institución | C54: 3.2.2.3 Implementación del Plan de Mejora Encuesta de Clima laboral | D54: 3.2.2.3.05 | E54: Evaluacion desempeño personal | P54: 1 | R54: 1 | S54: Reporte
A55: Desarrollo del Talento Humano | B55: 3.2.3. Desarrollados e implementados los aspectos de gestión relacionados con seguridad y salud en el trabajo | C55: 3.2.3.1 Ejecución del Plan de Seguridad y Salud ocupacional y Plan de gestion de Riesgos | D55: 3.2.3.1.01 | E55: Implementación del Proceso de Auditoría Médica | H55: 1 | K55: 1 | N55: 1 | Q55: 1 | R55: =SUM(F55:Q55) -> 4 | S55: Reporte
A56: Desarrollo del Talento Humano | B56: 3.2.3. Desarrollados e implementados los aspectos de gestión relacionados con seguridad y salud en el trabajo | C56: 3.2.3.1 Ejecución del Plan de Seguridad y Salud ocupacional y Plan de gestion de Riesgos | D56: 3.2.3.1.02 | E56: Elaboración de reporte y seguimiento del personal pasivo por enfermedad. | H56: 1 | K56: 1 | N56: 1 | Q56: 1 | R56: =SUM(F56:Q56) -> 4 | S56: Reporte
A57: Automatización de la Gestión Institucional | B57: 4.1.1. Fortalecida la capacidad institucional mediante la optimización de los procesos, empoderamiento del talento humano, articulación interna, tecnologías de la información y la comunicación, la infraestructura física con el fin de mejorar la oferta institucional a la población en términos de calidad y eficiencia. | C57: 4.1.1.3 Fortalecimiento de la Gestión de Cooperación Internacional y Alianzas Público Privadas | D57: 4.1.1.3.01 | E57: Levantamiento de los Proyectos de Cooperacion finalizados en el 2021 y en ejecución 22 y futuros 2023. | G57: 1 | R57: 1 | S57: Reporte | T57: Formulario de proyecto y donaciones
A58: Automatización de la Gestión Institucional | B58: 4.1.1. Fortalecida la capacidad institucional mediante la optimización de los procesos, empoderamiento del talento humano, articulación interna, tecnologías de la información y la comunicación, la infraestructura física con el fin de mejorar la oferta institucional a la población en términos de calidad y eficiencia. | C58: 4.1.1.5. Despliegue del Sistema de gestión documental Red SNS | D58: 4.1.1.5.01 | E58: Ejecución de las sesiones del Comité de Calidad del CEAS | I58: 1 | M58: 1 | Q58: 2 | R58: =SUM(F58:Q58) -> 4 | S58: Lista de asistencia | T58: Acta de reunión
A59: Automatización de la Gestión Institucional | B59: 4.1.1. Fortalecida la capacidad institucional mediante la optimización de los procesos, empoderamiento del talento humano, articulación interna, tecnologías de la información y la comunicación, la infraestructura física con el fin de mejorar la oferta institucional a la población en términos de calidad y eficiencia. | C59: 4.1.1.5. Despliegue del Sistema de gestión documental Red SNS | D59: 4.1.1.5.02 | E59: Implementación de los lineamientos de Gestión documental en CEAS (Hugo Mendoza) | K59: 1 | N59: 1 | R59: =SUM(F59:Q59) -> 2 | S59: Informe
A60: Automatización de la Gestión Institucional | B60: 4.1.1. Fortalecida la capacidad institucional mediante la optimización de los procesos, empoderamiento del talento humano, articulación interna, tecnologías de la información y la comunicación, la infraestructura física con el fin de mejorar la oferta institucional a la población en términos de calidad y eficiencia. | C60: 4.1.1.5. Despliegue del Sistema de gestión documental Red SNS | D60: 4.1.1.5.03 | E60: Seguimiento a la implementación de la organización de expedientes y documentos en los archivos clínicos | M60: 1 | P60: 1 | R60: 2 | S60: Reporte
A61: Automatización de la Gestión Institucional | B61: 4.1.1. Fortalecida la capacidad institucional mediante la optimización de los procesos, empoderamiento del talento humano, articulación interna, tecnologías de la información y la comunicación, la infraestructura física con el fin de mejorar la oferta institucional a la población en términos de calidad y eficiencia. | C61: 4.1.1.6 Plan de Mantenimiento preventivo de infraestuctura y equipos | D61: 4.1.1.6.01 | E61: Elaboración del Plan de Mantenimiento de infraestructura y equipos | F61: 1 | R61: =SUM(F61:Q61) -> 1 | S61: Plan
A62: Automatización de la Gestión Institucional | B62: 4.1.1. Fortalecida la capacidad institucional mediante la optimización de los procesos, empoderamiento del talento humano, articulación interna, tecnologías de la información y la comunicación, la infraestructura física con el fin de mejorar la oferta institucional a la población en términos de calidad y eficiencia. | C62: 4.1.1.6 Plan de Mantenimiento preventivo de infraestuctura y equipos | D62: 4.1.1.6.02 | E62: Seguimiento a la ejecución del plan de mantenimiento de infraestructura y equipos | I62: 1 | M62: 1 | Q62: 1 | R62: =SUM(F62:Q62) -> 3 | S62: Informe | T62: Listado de participación
A63: Automatización de la Gestión Institucional | B63: 4.1.1. Fortalecida la capacidad institucional mediante la optimización de los procesos, empoderamiento del talento humano, articulación interna, tecnologías de la información y la comunicación, la infraestructura física con el fin de mejorar la oferta institucional a la población en términos de calidad y eficiencia. | C63: 4.1.1.7 Estandarizacion Sub-portales de Transparencia | D63: 4.1.1.7.01 | E63: Actualizacion Subportales de Transparencia | F63: 1 | G63: 1 | H63: 1 | I63: 1 | J63: 1 | K63: 1 | L63: 1 | M63: 1 | N63: 1 | O63: 1 | P63: 1 | Q63: 1 | R63: =SUM(F63:Q63) -> 12 | S63: Reporte
A64: Automatización de la Gestión Institucional | B64: 4.1.1. Fortalecida la capacidad institucional mediante la optimización de los procesos, empoderamiento del talento humano, articulación interna, tecnologías de la información y la comunicación, la infraestructura física con el fin de mejorar la oferta institucional a la población en términos de calidad y eficiencia. | C64: 4.1.1.7 Estandarizacion Sub-portales de Transparencia | D64: 4.1.1.7.02 | E64: Informe quejas y solicitudes de Informacion | F64: 1 | G64: 1 | H64: 1 | I64: 1 | J64: 1 | K64: 1 | L64: 1 | M64: 1 | N64: 1 | O64: 1 | P64: 1 | Q64: 1 | R64: =SUM(F64:Q64) -> 12 | S64: Informe
A65: Automatización de la Gestión Institucional | B65: 4.1.1. Fortalecida la capacidad institucional mediante la optimización de los procesos, empoderamiento del talento humano, articulación interna, tecnologías de la información y la comunicación, la infraestructura física con el fin de mejorar la oferta institucional a la población en términos de calidad y eficiencia. | C65: 4.1.1.7 Estandarizacion Sub-portales de Transparencia | D65: 4.1.1.7.03 | E65: Conformacion Comite vinculados a la OAI | I65: 1 | R65: 1 | S65: Resolución de aprobación
A66: Fortalecimiento Institucional | B66: 4.1.1. Fortalecida la capacidad institucional mediante la optimización de los procesos, empoderamiento del talento humano, articulación interna, tecnologías de la información y la comunicación, la infraestructura física con el fin de mejorar la oferta institucional a la población en términos de calidad y eficiencia. | C66: 4.1.1.11 Ejecución del Programa de Auditoria de Calidad del Dato | D66: 4.1.1.11.01 | E66: Autoevaluación de los datos de producción de servicios | F66: 1 | G66: 1 | H66: 1 | I66: 1 | J66: 1 | K66: 1 | L66: 1 | M66: 1 | N66: 1 | O66: 1 | P66: 1 | Q66: 1 | R66: =SUM(F66:Q66) -> 12 | S66: Reporte
A67: Fortalecimiento Institucional | B67: 4.1.1. Fortalecida la capacidad institucional mediante la optimización de los procesos, empoderamiento del talento humano, articulación interna, tecnologías de la información y la comunicación, la infraestructura física con el fin de mejorar la oferta institucional a la población en términos de calidad y eficiencia. | C67: 4.1.1.12 Fortalecimiento de la gestión de los sistemas de información de la Red | D67: 4.1.1.12.01 | E67: Reporte de producción de servicios | F67: 1 | G67: 1 | H67: 1 | I67: 1 | J67: 1 | K67: 1 | L67: 1 | M67: 1 | N67: 1 | O67: 1 | P67: 1 | Q67: 1 | R67: =SUM(F67:Q67) -> 12 | S67: Registro Digital
A68: Automatización de la Gestión Institucional | B68: 4.1.1. Fortalecida la capacidad institucional mediante la optimización de los procesos, empoderamiento del talento humano, articulación interna, tecnologías de la información y la comunicación, la infraestructura física con el fin de mejorar la oferta institucional a la población en términos de calidad y eficiencia. | C68: 4.1.1.18 Despliegue del Manual de Señalética e Identidad Hospitalaria | D68: 4.1.1.18.01 | E68: Seguimiento a la implementación del Manual de Identidad Hospitalaria | I68: 1 | M68: 1 | Q68: 1 | R68: =SUM(F68:Q68) -> 3 | S68: Reporte
A69: Automatización de la Gestión Institucional | B69: 4.1.1. Fortalecida la capacidad institucional mediante la optimización de los procesos, empoderamiento del talento humano, articulación interna, tecnologías de la información y la comunicación, la infraestructura física con el fin de mejorar la oferta institucional a la población en términos de calidad y eficiencia. | C69: 4.1.1.19. Implementación del modelo de gestión y monitoreo de la Calidad Institucional | D69: 4.1.1.19.01 | E69: Implementación de CCC (si está priorizado) | M69: 1 | R69: =SUM(F69:Q69) -> 1 | S69: Resolución aprobatoria
A70: Automatización de la Gestión Institucional | B70: 4.1.1. Fortalecida la capacidad institucional mediante la optimización de los procesos, empoderamiento del talento humano, articulación interna, tecnologías de la información y la comunicación, la infraestructura física con el fin de mejorar la oferta institucional a la población en términos de calidad y eficiencia. | C70: 4.1.1.19. Implementación del modelo de gestión y monitoreo de la Calidad Institucional | D70: 4.1.1.19.02 | E70: Seguimiento a los indicadores comprometidos en la CCC | H70: 1 | K70: 1 | N70: 1 | Q70: 3 | R70: 6 | S70: Reporte de monitoreo indicadores CCC (plantilla de excel)
A71: Automatización de la Gestión Institucional | B71: 4.1.1. Fortalecida la capacidad institucional mediante la optimización de los procesos, empoderamiento del talento humano, articulación interna, tecnologías de la información y la comunicación, la infraestructura física con el fin de mejorar la oferta institucional a la población en términos de calidad y eficiencia. | C71: 4.1.1.19. Implementación del modelo de gestión y monitoreo de la Calidad Institucional | D71: 4.1.1.19.03 | E71: Elaboración/actualización de autodiagnóstico CAF en el SRS | H71: 1 | R71: 1 | S71: Autodiagnóstico
A72: Automatización de la Gestión Institucional | B72: 4.1.1. Fortalecida la capacidad institucional mediante la optimización de los procesos, empoderamiento del talento humano, articulación interna, tecnologías de la información y la comunicación, la infraestructura física con el fin de mejorar la oferta institucional a la población en términos de calidad y eficiencia. | C72: 4.1.1.19. Implementación del modelo de gestión y monitoreo de la Calidad Institucional | D72: 4.1.1.19.04 | E72: Elaboración de plan de mejora CAF. | I72: 1 | Q72: 1 | R72: 2 | S72: Plan de Mejora
A73: Automatización de la Gestión Institucional | B73: 4.1.1. Fortalecida la capacidad institucional mediante la optimización de los procesos, empoderamiento del talento humano, articulación interna, tecnologías de la información y la comunicación, la infraestructura física con el fin de mejorar la oferta institucional a la población en términos de calidad y eficiencia. | C73: 4.1.1.19. Implementación del modelo de gestión y monitoreo de la Calidad Institucional | D73: 4.1.1.19.05 | E73: Seguimiento al plan de mejora CAF. | K73: 1 | M73: 1 | O73: 1 | Q73: 3 | R73: 6 | S73: Informe de seguimiento
A74: Automatización de la Gestión Institucional | B74: 4.1.1. Fortalecida la capacidad institucional mediante la optimización de los procesos, empoderamiento del talento humano, articulación interna, tecnologías de la información y la comunicación, la infraestructura física con el fin de mejorar la oferta institucional a la población en términos de calidad y eficiencia. | C74: 4.1.1.19. Implementación del modelo de gestión y monitoreo de la Calidad Institucional | D74: 4.1.1.19.06 | E74: Elaboración de Acuerdo de Evaluación Desempeño Institucional, alineado al plan de mejora CAF. | J74: 1 | R74: 1 | S74: EDI
A75: Automatización de la Gestión Institucional | B75: 4.1.1. Fortalecida la capacidad institucional mediante la optimización de los procesos, empoderamiento del talento humano, articulación interna, tecnologías de la información y la comunicación, la infraestructura física con el fin de mejorar la oferta institucional a la población en términos de calidad y eficiencia. | C75: 4.1.1.20. Implementación programas desempeño hospitalario (ranking hospitalario y Sismap Salud) | D75: 4.1.1.20.01 | E75: Seguimiento a la Implementación de Sismap Salud | K75: 1 | M75: 1 | O75: 1 | Q75: 3 | R75: 6 | S75: Listas de asistencia de reuniones | T75: correos de seguimiento donde se impulse la carga de evidencias | U75: Informe
A76: Automatización de la Gestión Institucional | B76: 4.1.1. Fortalecida la capacidad institucional mediante la optimización de los procesos, empoderamiento del talento humano, articulación interna, tecnologías de la información y la comunicación, la infraestructura física con el fin de mejorar la oferta institucional a la población en términos de calidad y eficiencia. | C76: 4.1.1.20. Implementación programas desempeño hospitalario (ranking hospitalario y Sismap Salud) | D76: 4.1.1.20.02 | E76: Cumplimiento mínimo en los indicadores del ranking hospitalarios | L76: 1 | R76: 1 | S76: Listas de asistencia de reuniones | T76: Correos de seguimiento para logro o mejora de los resultados
A77: Automatización de la Gestión Institucional | B77: 4.1.1. Fortalecida la capacidad institucional mediante la optimización de los procesos, empoderamiento del talento humano, articulación interna, tecnologías de la información y la comunicación, la infraestructura física con el fin de mejorar la oferta institucional a la población en términos de calidad y eficiencia. | C77: 4.1.1.22 Fortalecimiento de la Planificación Institucional,Monitoreo y Evaluacón | D77: 4.1.1.22.01 | E77: Elaboración del Plan Operativo Anual y Presupuesto Institucional | L77: 1 | R77: 1 | S77: Plan
A78: Automatización de la Gestión Institucional | B78: 4.1.1. Fortalecida la capacidad institucional mediante la optimización de los procesos, empoderamiento del talento humano, articulación interna, tecnologías de la información y la comunicación, la infraestructura física con el fin de mejorar la oferta institucional a la población en términos de calidad y eficiencia. | C78: 4.1.1.22 Fortalecimiento de la Planificación Institucional,Monitoreo y Evaluacón | D78: 4.1.1.22.02 | E78: Elaboración del Plan Anual de Compras y Contrataciones | L78: 1 | R78: 1 | S78: Plan
A79: Automatización de la Gestión Institucional | B79: 4.1.1. Fortalecida la capacidad institucional mediante la optimización de los procesos, empoderamiento del talento humano, articulación interna, tecnologías de la información y la comunicación, la infraestructura física con el fin de mejorar la oferta institucional a la población en términos de calidad y eficiencia. | C79: 4.1.1.22 Fortalecimiento de la Planificación Institucional,Monitoreo y Evaluacón | D79: 4.1.1.22.03 | E79: Monitoreo del POA 2022 | F79: 1 | G79: 1 | H79: 1 | I79: 1 | J79: 1 | K79: 1 | L79: 1 | M79: 1 | N79: 1 | O79: 1 | P79: 1 | Q79: 1 | R79: 12 | S79: Informe | T79: Listado de participación | U79: Matriz de Monitoreo interno
A80: Automatización de la Gestión Institucional | B80: 4.1.2 Mejorada la sostenibilidad financiera de la Red SNS mediante el control de gastos, saneamiento de las deudas e incremento de las distintas fuentes de financiamiento con el fin de garantizar la prestación de servicios en salud con oportunidad y eficiencia | C80: 4.1.2.1 Gestión Financiera de la Red | D80: 4.1.2.1.01 | E80: Elaboración de los estados financieros y sus notas de referencia | F80: 1 | G80: 1 | H80: 1 | I80: 1 | J80: 1 | K80: 1 | L80: 1 | M80: 1 | N80: 1 | O80: 1 | P80: 1 | Q80: 1 | R80: =SUM(F80:Q80) -> 12 | S80: Estados Financieros y notas de referencia
A81: Automatización de la Gestión Institucional | B81: 4.1.2 Mejorada la sostenibilidad financiera de la Red SNS mediante el control de gastos, saneamiento de las deudas e incremento de las distintas fuentes de financiamiento con el fin de garantizar la prestación de servicios en salud con oportunidad y eficiencia | C81: 4.1.2.1 Gestión Financiera de la Red | D81: 4.1.2.1.02 | E81: Análisis comportamiento pago | F81: 1 | G81: 1 | H81: 1 | I81: 1 | J81: 1 | K81: 1 | L81: 1 | M81: 1 | N81: 1 | O81: 1 | P81: 1 | Q81: 1 | R81: =SUM(F81:Q81) -> 12 | S81: Informe
A82: Automatización de la Gestión Institucional | B82: 4.1.2 Mejorada la sostenibilidad financiera de la Red SNS mediante el control de gastos, saneamiento de las deudas e incremento de las distintas fuentes de financiamiento con el fin de garantizar la prestación de servicios en salud con oportunidad y eficiencia | C82: 4.1.2.1 Gestión Financiera de la Red | D82: 4.1.2.1.03 | E82: Análisis de Gestión de Tesorería | F82: 1 | G82: 1 | H82: 1 | I82: 1 | J82: 1 | K82: 1 | L82: 1 | M82: 1 | N82: 1 | O82: 1 | P82: 1 | Q82: 1 | R82: =SUM(F82:Q82) -> 12 | S82: Informe
A83: Automatización de la Gestión Institucional | B83: 4.1.2 Mejorada la sostenibilidad financiera de la Red SNS mediante el control de gastos, saneamiento de las deudas e incremento de las distintas fuentes de financiamiento con el fin de garantizar la prestación de servicios en salud con oportunidad y eficiencia | C83: 4.1.2.1 Gestión Financiera de la Red | D83: 4.1.2.1.04 | E83: Seguimiento al cumplimiento del Sub-Indicador de Correcta Publicación Presupuestaria (IGP) en los CEAS de Autogestión | H83: 1 | K83: 1 | N83: 1 | Q83: 1 | R83: =SUM(F83:Q83) -> 4 | S83: Reporte
A84: Automatización de la Gestión Institucional | B84: 4.1.2. Mejorada la sostenibilidad financiera de la Red SNS mediante el control de gastos, saneamiento de las deudas e incremento de las distintas fuentes de financiamiento con el fin de garantizar la prestación de servicios en salud con oportunidad y eficiencia | C84: 4.1.2.3 (Fortalecimiento de los peocesos de Facturación de la Red del SNS) Fortalecimiento de los procesos de captación de recursos por venta de servicios a las ARS | D84: 4.1.2.3.01 | E84: Auditoría de los expedientes clínicos | F84: 1 | G84: 1 | H84: 1 | I84: 1 | J84: 1 | K84: 1 | L84: 1 | M84: 1 | N84: 1 | O84: 1 | P84: 1 | Q84: 1 | R84: =SUM(F84:Q84) -> 12 | S84: Informe | T84: Listado de participación
A85: Automatización de la Gestión Institucional | B85: 4.1.2. Mejorada la sostenibilidad financiera de la Red SNS mediante el control de gastos, saneamiento de las deudas e incremento de las distintas fuentes de financiamiento con el fin de garantizar la prestación de servicios en salud con oportunidad y eficiencia | C85: 4.1.2.3 (Fortalecimiento de los peocesos de Facturación de la Red del SNS) Fortalecimiento de los procesos de captación de recursos por venta de servicios a las ARS | D85: 4.1.2.3.02 | E85: Socialización de los principales hallazgos de las auditoría y reportes de glosas | F85: 1 | G85: 1 | H85: 1 | I85: 1 | J85: 1 | K85: 1 | L85: 1 | M85: 1 | N85: 1 | O85: 1 | P85: 1 | Q85: 1 | R85: 12 | S85: Listado de participación | T85: Minuta
A86: Automatización de la Gestión Institucional | B86: 4.1.2. Mejorada la sostenibilidad financiera de la Red SNS mediante el control de gastos, saneamiento de las deudas e incremento de las distintas fuentes de financiamiento con el fin de garantizar la prestación de servicios en salud con oportunidad y eficiencia | C86: 4.1.2.3 (Fortalecimiento de los peocesos de Facturación de la Red del SNS) Fortalecimiento de los procesos de captación de recursos por venta de servicios a las ARS | D86: 4.1.2.3.03 | E86: Elaboración de acuerdos con acciones de mejora a partir de los hallazgos de las glosas para disminucion de objeciones médicas y administrativas | F86: 1 | G86: 1 | H86: 1 | I86: 1 | J86: 1 | K86: 1 | L86: 1 | M86: 1 | N86: 1 | O86: 1 | P86: 1 | Q86: 1 | R86: 12 | S86: Acuerdos | T86: Listado de participación
A87: Automatización de la Gestión Institucional | B87: 4.1.2. Mejorada la sostenibilidad financiera de la Red SNS mediante el control de gastos, saneamiento de las deudas e incremento de las distintas fuentes de financiamiento con el fin de garantizar la prestación de servicios en salud con oportunidad y eficiencia | C87: 4.1.2.3 (Fortalecimiento de los peocesos de Facturación de la Red del SNS) Fortalecimiento de los procesos de captación de recursos por venta de servicios a las ARS | D87: 4.1.2.3.04 | E87: Seguimiento a la ejecución de las acciones de mejora | F87: 1 | G87: 1 | H87: 1 | I87: 1 | J87: 1 | K87: 1 | L87: 1 | M87: 1 | N87: 1 | O87: 1 | P87: 1 | Q87: 1 | R87: 12 | S87: Reporte
A88: Automatización de la Gestión Institucional | B88: 4.1.2. Mejorada la sostenibilidad financiera de la Red SNS mediante el control de gastos, saneamiento de las deudas e incremento de las distintas fuentes de financiamiento con el fin de garantizar la prestación de servicios en salud con oportunidad y eficiencia | C88: 4.1.2.3 (Fortalecimiento de los peocesos de Facturación de la Red del SNS) Fortalecimiento de los procesos de captación de recursos por venta de servicios a las ARS | D88: 4.1.2.3.05 | E88: Analisis del comportamiento de la facturación | F88: 1 | G88: 1 | H88: 1 | I88: 1 | J88: 1 | K88: 1 | L88: 1 | M88: 1 | N88: 1 | O88: 1 | P88: 1 | Q88: 1 | R88: 12 | S88: Reporte
A89: Automatización de la Gestión Institucional | B89: 4.1.2 Mejorada la sostenibilidad financiera de la Red SNS mediante el control de gastos, saneamiento de las deudas e incremento de las distintas fuentes de financiamiento con el fin de garantizar la prestación de servicios en salud con oportunidad y eficiencia | C89: 4.1.2.4 Implementación del Sistema de Administracion de Bienes | D89: 4.1.2.4.01 | E89: Actualización de inventarios | K89: 1 | Q89: 1 | R89: 2 | S89: Informe | T89: Registro Digital
A90: Automatización de la Gestión Institucional | B90: 4.1.2 Mejorada la sostenibilidad financiera de la Red SNS mediante el control de gastos, saneamiento de las deudas e incremento de las distintas fuentes de financiamiento con el fin de garantizar la prestación de servicios en salud con oportunidad y eficiencia | C90: 4.1.2.4 Implementación del Sistema de Administracion de Bienes | D90: 4.1.2.4.02 | E90: Auditoria de cumplimiento de las politicas de administración de bienes en el EESS | H90: 1 | K90: 1 | N90: 1 | Q90: 1 | R90: 4 | S90: Informe | T90: Listado de participación
A91: Automatización de la Gestión Institucional | B91: 4.1.2 Mejorada la sostenibilidad financiera de la Red SNS mediante el control de gastos, saneamiento de las deudas e incremento de las distintas fuentes de financiamiento con el fin de garantizar la prestación de servicios en salud con oportunidad y eficiencia | C91: 4.1.2.4 Implementación del Sistema de Administracion de Bienes | D91: 4.1.2.4.03 | E91: Elaboracion de plan de levantamiento y/o actualización de inventarios (cronograma 2023) | Q91: 1 | R91: 1 | S91: Plan | T91: Listado de participación
A92: Automatización de la Gestión Institucional | B92: 4.1.2 Mejorada la sostenibilidad financiera de la Red SNS mediante el control de gastos, saneamiento de las deudas e incremento de las distintas fuentes de financiamiento con el fin de garantizar la prestación de servicios en salud con oportunidad y eficiencia | C92: 4.1.2.6 Despiegue del Sistema demanejo y Control Interno | D92: 4.1.2.6.01 | E92: Reporte Opotuno de la liquidación de fondos y rendición de cuentas | H92: 1 | I92: 1 | J92: 1 | K92: 1 | L92: 1 | M92: 1 | N92: 1 | O92: 1 | P92: 1 | Q92: 1 | R92: 10 | S92: Reporte
A93: Automatización de la Gestión Institucional | B93: 4.1.2. Mejorada la sostenibilidad financiera de la Red SNS mediante el control de gastos, saneamiento de las deudas e incremento de las distintas fuentes de financiamiento con el fin de garantizar la prestación de servicios en salud con oportunidad y eficiencia | C93: 4.1.2.7 Planes y presupuesto articulados según las necesidades institucionales | D93: 4.1.2.7.01 | E93: Elaboración de Memoria Institucional | P93: 1 | R93: =SUM(F93:Q93) -> 1 | S93: Memoria
A94: Automatización de la Gestión Institucional | B94: 4.1.3. Aumentada la conexión del SNS con los medios informativos y la población, manteniendo con ellos una comunicación ágil, fluida y de calidad; que nos permita satisfacer con rapidez las peticiones y necesidades de información sobre la institución y los servicios ofrecidos | C94: 4.1.3.2 Despliegue del Manual de Señalética e Identidad Hospitalaria | D94: 4.1.3.2.01 | E94: Seguimiento a la implementación del Manual de Identidad Hospitalaria | I94: 1 | M94: 1 | Q94: 1 | R94: =SUM(F94:Q94) -> 3 | S94: Reporte
A95: Automatización de la Gestión Institucional | B95: 4.1.3. Aumentada la conexión del SNS con los medios informativos y la población, manteniendo con ellos una comunicación ágil, fluida y de calidad; que nos permita satisfacer con rapidez las peticiones y necesidades de información sobre la institución y los servicios ofrecidos | C95: 4.1.3.3 Despliegue Plan de Responsabilidad Social Institucional SNS | D95: 4.1.3.3.01 | E95: Campaña de protección del Medio Ambiente (interna y externa) | H95: 1 | K95: 1 | N95: 1 | Q95: 1 | R95: =SUM(F95:Q95) -> 4 | S95: Reporte | T95: Fotos
F96: =SUM(F2:F95) -> 29 | G96: 26 | H96: 46 | I96: 33 | J96: 30 | K96: 52 | L96: 30 | M96: 36 | N96: 46 | O96: 28 | P96: 31 | Q96: 59 | R96: 446

Sheet Sheet1 (hidden)
B2: Estrategia de Atención Primaria de Salud | E2: Informe | F2: 1.1.1. Redes de servicios integradas y con mayor resolución para coordinar la prestación de servicios integrales de promoción de la salud, prevención de la enfermedad, diagnóstico, tratamiento, rehabilitación y cuidados paliativos; condicionada a la necesidades de salud y características de la población, con miras hacia la consecución progresiva del acceso universal a la salud y la cobertura universal de salud
B3: Control y Prevención de las Enfermedades No Transmisibles | E3: Listado de participación | F3: 1.1.2. Disminuida la morbi-mortalidad materna, neonatal e infantil, mediante el fortalecimiento y la integración de los servicios de salud antes de la concepción, durante el embarazo, el parto y los primeros años de vida, garantizando la calidad de la atención.
B4: Mejora de la Salud Materna y Neonatal | E4: Fotos | F4: 1.1.3. Reducida la carga de las enfermedades crónicas incluidos los diferentes tipos de cáncer, los trastornos de salud mental, así como ante discapacidad, violencia y traumatismos, a través de servicios de atención que faciliten la detección temprana y la continuidad de la atención, eliminando las brechas en el acceso y utilización de los servicios de salud.
B5: Humanización y Calidad de la Atención | E5: Agenda | F5: 1.1.4. Reducida la morbi-mortalidad de las enfermedades transmisibles, incluidas la infección por el VIH/SIDA, la Tuberculosis, las infecciones de transmisión sexual, las hepatitis virales, enfermedades transmitidas por vectores, enfermedades desatendidas, tropicales y zoonóticas, y las enfermedades prevenibles mediante vacunación; con especial atención en las poblaciones vulnerables
B6: Reforma de los Servicios de Laboratorios Clínicos e Imágenes | E6: Plan | F6: 1.1.5. Incrementada la capacidad de respuesta que favorezca a disminuir la morbi-mortalidad resultantes de las emergencias y desastres, mediante la detección, preparación y mitigación de los eventos que suponen riesgos y amenazas, bajo un enfoque multisectorial que contribuya a la salud y seguridad de las personas
B7: Veeduría Social | E7: Protocolo | F7: 1.2.1. Desarrollo y mantenimiento de un modelo de evaluación de la entrega de servicios sanitarios con carácter igualitario y libre de discriminación, que promueva mediante la continua retroalimentación, la generación de mejores resultados en materia de salud lo que se traduzca en el aumento de la satisfacción de las personas con respecto a los servicios públicos de salud
B8: Desarrollo del Talento Humano | E8: Manual | F8: 1.2.2. Fortalecida la calidad de la atención en salud como resultado del seguimiento a los aspectos técnicos y no técnicos de la atención, que disminuya el riesgo de la seguridad del paciente y de los resultados esperados de salud
B9: Automatización de la Gestión Institucional | E9: Resolución | F9: 2.1.1. Primer Nivel de Atención fortalecido y con alta resolución para garantizar la prestación de servicios integrales de promoción de la salud, prevención de la enfermedad, diagnóstico, tratamiento, rehabilitación y cuidados paliativos; condicionada a la necesidades de salud y características de la población
B10: Desarrollo e inversión de la Red de Servicios Públicos de Salud | E10: Boletin | F10: 2.1.2. Garantizado el cierre de brecha según cartera de servicios y Modelo de Atención en términos de recursos, a través del adecuado financiamiento del PN con las metas de la Red Pública
B11: Sistema de Emergencias Médicas | E11: Reporte | F11: 2.2.1. Garantizada la atención integral con calidad y oportunidad, mediante la coordinación clínica y asistencial de los servicios de salud
E12: Minuta | F12: 2.2.2. Gestión integrada y articulada de las redes públicas de servicios de salud, con actores involucrados en la organización, gestión y atención de servicios de salud con enfoque y participación intra e intersectorial y participación social fortalecida, que promueva un ambiente favorable para la cobertura y acceso a los servicios de salud
E13: Hoja de supervisión | F13: 2.2.3. Redes de servicios ofertando servicios de promoción de la salud y prevención de la enfermedad, que han integrado las intervenciones de salud pública y de carácter colectivo
E14: Inventario | F14: 2.2.4. Aumentada la eficacia, eficiencia y equidad de la prestación de los servicios de salud a través de la reorganización y transformación de las estructuras de redes de servicios
E15: Reglamento | F15: 3.1.1. Reducida las disparidades en la disponibilidad de personal médico especializado y personal licenciado en enfermería que existen los diferentes niveles
E16: Memoria | F16: 3.2.1. Incrementada las competencias y resolución de los colaboradores, de acuerdo a la complejidad de sus funciones, las necesidades de salud de la población y los compromisos del sector
E17: Encuesta | F17: 3.2.2. Personal trabaja bajo un clima de satisfacción, realización personal y sentido de pertenencia hacia la institución
E18: Registro Digital | F18: 3.2.3. Desarrollados e implementados los aspectos de gestión relacionados con seguridad y salud en el trabajo
E19: Base de datos | F19: 4.1.1. Fortalecida la capacidad institucional mediante la optimización de los procesos, empoderamiento del talento humano, articulación interna, tecnologías de la información y la comunicación, la infraestructura física con el fin de mejorar la oferta institucional a la población en términos de calidad y eficiencia.
E20: Otros | F20: 4.1.2. Mejorada la sostenibilidad financiera de la Red SNS mediante el control de gastos, saneamiento de las deudas e incremento de las distintas fuentes de financiamiento con el fin de garantizar la prestación de servicios en salud con oportunidad y eficiencia
F21: 4.1.3. Aumentada la conexión del SNS con los medios informativos y la población, manteniendo con ellos una comunicación ágil, fluida y de calidad; que nos permita satisfacer con rapidez las peticiones y necesidades de información sobre la institución y los servicios ofrecidos

Sheet PPNE2.1
O1: Venta Servicios
G2: Servicio Nacional de Salud | S2: Anticipo Financiero
G3: Dirección de Planificación y Desarrollo | S3: Venta de Servicios
G4: Programación de Insumos | S4: Donaciones
J5: =+PPNE1!C5 -> 2022
G6: CEAS | H6: =+PPNE1!B7 -> HOSPITAL PEDIÁTRICO DR. HUGO MENDOZA
B7: ID_Dependendencia | C7: POA | D7: SRS | E7: AREA | F7: TIPO | G7: Código_Actividad | H7: Insumos | I7: Unidad de Medida | J7: Cantidad de Insumos | K7: Precio Unitario | L7: Valor Total | M7: Código Presupuestario | N7: Fuente de Financiamiento
B8: =IF(Tabla1[[#This Row],[Código_Actividad]]="","",CONCATENATE(Tabla1[[#This Row],[POA]],".",Tabla1[[#This Row],[SRS]],".",Tabla1[[#This Row],[AREA]],".",Tabla1[[#This Row],[TIPO]])) ->  | C8: =IF(Tabla1[[#This Row],[Código_Actividad]]="","",'[3]Formulario PPGR1'!#REF!) ->  | D8: =IF(Tabla1[[#This Row],[Código_Actividad]]="","",'[3]Formulario PPGR1'!#REF!) ->  | E8: =IF(Tabla1[[#This Row],[Código_Actividad]]="","",'[3]Formulario PPGR1'!#REF!) ->  | F8: =IF(Tabla1[[#This Row],[Código_Actividad]]="","",'[3]Formulario PPGR1'!#REF!) ->  | L8: =+Tabla1[[#This Row],[Precio Unitario]]*Tabla1[[#This Row],[Cantidad de Insumos]] -> 0.00
B9: =IF(Tabla1[[#This Row],[Código_Actividad]]="","",CONCATENATE(Tabla1[[#This Row],[POA]],".",Tabla1[[#This Row],[SRS]],".",Tabla1[[#This Row],[AREA]],".",Tabla1[[#This Row],[TIPO]])) ->  | C9: =IF(Tabla1[[#This Row],[Código_Actividad]]="","",'[3]Formulario PPGR1'!#REF!) ->  | D9: =IF(Tabla1[[#This Row],[Código_Actividad]]="","",'[3]Formulario PPGR1'!#REF!) ->  | E9: =IF(Tabla1[[#This Row],[Código_Actividad]]="","",'[3]Formulario PPGR1'!#REF!) ->  | F9: =IF(Tabla1[[#This Row],[Código_Actividad]]="","",'[3]Formulario PPGR1'!#REF!) ->  | L9: =+Tabla1[[#This Row],[Precio Unitario]]*Tabla1[[#This Row],[Cantidad de Insumos]] -> 0.00
B10: =IF(Tabla1[[#This Row],[Código_Actividad]]="","",CONCATENATE(Tabla1[[#This Row],[POA]],".",Tabla1[[#This Row],[SRS]],".",Tabla1[[#This Row],[AREA]],".",Tabla1[[#This Row],[TIPO]])) ->  | C10: =IF(Tabla1[[#This Row],[Código_Actividad]]="","",'[3]Formulario PPGR1'!#REF!) ->  | D10: =IF(Tabla1[[#This Row],[Código_Actividad]]="","",'[3]Formulario PPGR1'!#REF!) ->  | E10: =IF(Tabla1[[#This Row],[Código_Actividad]]="","",'[3]Formulario PPGR1'!#REF!) ->  | F10: =IF(Tabla1[[#This Row],[Código_Actividad]]="","",'[3]Formulario PPGR1'!#REF!) ->  | L10: =+Tabla1[[#This Row],[Precio Unitario]]*Tabla1[[#This Row],[Cantidad de Insumos]] -> 0.00
B11: =IF(Tabla1[[#This Row],[Código_Actividad]]="","",CONCATENATE(Tabla1[[#This Row],[POA]],".",Tabla1[[#This Row],[SRS]],".",Tabla1[[#This Row],[AREA]],".",Tabla1[[#This Row],[TIPO]])) ->  | C11: =IF(Tabla1[[#This Row],[Código_Actividad]]="","",'[3]Formulario PPGR1'!#REF!) ->  | D11: =IF(Tabla1[[#This Row],[Código_Actividad]]="","",'[3]Formulario PPGR1'!#REF!) ->  | E11: =IF(Tabla1[[#This Row],[Código_Actividad]]="","",'[3]Formulario PPGR1'!#REF!) ->  | F11: =IF(Tabla1[[#This Row],[Código_Actividad]]="","",'[3]Formulario PPGR1'!#REF!) ->  | L11: =+Tabla1[[#This Row],[Precio Unitario]]*Tabla1[[#This Row],[Cantidad de Insumos]] -> 0.00
B12: =IF(Tabla1[[#This Row],[Código_Actividad]]="","",CONCATENATE(Tabla1[[#This Row],[POA]],".",Tabla1[[#This Row],[SRS]],".",Tabla1[[#This Row],[AREA]],".",Tabla1[[#This Row],[TIPO]])) ->  | C12: =IF(Tabla1[[#This Row],[Código_Actividad]]="","",'[3]Formulario PPGR1'!#REF!) ->  | D12: =IF(Tabla1[[#This Row],[Código_Actividad]]="","",'[3]Formulario PPGR1'!#REF!) ->  | E12: =IF(Tabla1[[#This Row],[Código_Actividad]]="","",'[3]Formulario PPGR1'!#REF!) ->  | F12: =IF(Tabla1[[#This Row],[Código_Actividad]]="","",'[3]Formulario PPGR1'!#REF!) ->  | L12: =+Tabla1[[#This Row],[Precio Unitario]]*Tabla1[[#This Row],[Cantidad de Insumos]] -> 0.00
B13: =IF(Tabla1[[#This Row],[Código_Actividad]]="","",CONCATENATE(Tabla1[[#This Row],[POA]],".",Tabla1[[#This Row],[SRS]],".",Tabla1[[#This Row],[AREA]],".",Tabla1[[#This Row],[TIPO]])) ->  | C13: =IF(Tabla1[[#This Row],[Código_Actividad]]="","",'[3]Formulario PPGR1'!#REF!) ->  | D13: =IF(Tabla1[[#This Row],[Código_Actividad]]="","",'[3]Formulario PPGR1'!#REF!) ->  | E13: =IF(Tabla1[[#This Row],[Código_Actividad]]="","",'[3]Formulario PPGR1'!#REF!) ->  | F13: =IF(Tabla1[[#This Row],[Código_Actividad]]="","",'[3]Formulario PPGR1'!#REF!) ->  | L13: =+Tabla1[[#This Row],[Precio Unitario]]*Tabla1[[#This Row],[Cantidad de Insumos]] -> 0.00
B14: =IF(Tabla1[[#This Row],[Código_Actividad]]="","",CONCATENATE(Tabla1[[#This Row],[POA]],".",Tabla1[[#This Row],[SRS]],".",Tabla1[[#This Row],[AREA]],".",Tabla1[[#This Row],[TIPO]])) ->  | C14: =IF(Tabla1[[#This Row],[Código_Actividad]]="","",'[3]Formulario PPGR1'!#REF!) ->  | D14: =IF(Tabla1[[#This Row],[Código_Actividad]]="","",'[3]Formulario PPGR1'!#REF!) ->  | E14: =IF(Tabla1[[#This Row],[Código_Actividad]]="","",'[3]Formulario PPGR1'!#REF!) ->  | F14: =IF(Tabla1[[#This Row],[Código_Actividad]]="","",'[3]Formulario PPGR1'!#REF!) ->  | L14: =+Tabla1[[#This Row],[Precio Unitario]]*Tabla1[[#This Row],[Cantidad de Insumos]] -> 0.00
B15: =IF(Tabla1[[#This Row],[Código_Actividad]]="","",CONCATENATE(Tabla1[[#This Row],[POA]],".",Tabla1[[#This Row],[SRS]],".",Tabla1[[#This Row],[AREA]],".",Tabla1[[#This Row],[TIPO]])) ->  | C15: =IF(Tabla1[[#This Row],[Código_Actividad]]="","",'[3]Formulario PPGR1'!#REF!) ->  | D15: =IF(Tabla1[[#This Row],[Código_Actividad]]="","",'[3]Formulario PPGR1'!#REF!) ->  | E15: =IF(Tabla1[[#This Row],[Código_Actividad]]="","",'[3]Formulario PPGR1'!#REF!) ->  | F15: =IF(Tabla1[[#This Row],[Código_Actividad]]="","",'[3]Formulario PPGR1'!#REF!) ->  | L15: =+Tabla1[[#This Row],[Precio Unitario]]*Tabla1[[#This Row],[Cantidad de Insumos]] -> 0.00
B16: =IF(Tabla1[[#This Row],[Código_Actividad]]="","",CONCATENATE(Tabla1[[#This Row],[POA]],".",Tabla1[[#This Row],[SRS]],".",Tabla1[[#This Row],[AREA]],".",Tabla1[[#This Row],[TIPO]])) ->  | C16: =IF(Tabla1[[#This Row],[Código_Actividad]]="","",'[3]Formulario PPGR1'!#REF!) ->  | D16: =IF(Tabla1[[#This Row],[Código_Actividad]]="","",'[3]Formulario PPGR1'!#REF!) ->  | E16: =IF(Tabla1[[#This Row],[Código_Actividad]]="","",'[3]Formulario PPGR1'!#REF!) ->  | F16: =IF(Tabla1[[#This Row],[Código_Actividad]]="","",'[3]Formulario PPGR1'!#REF!) ->  | L16: =+Tabla1[[#This Row],[Precio Unitario]]*Tabla1[[#This Row],[Cantidad de Insumos]] -> 0.00
B17: =IF(Tabla1[[#This Row],[Código_Actividad]]="","",CONCATENATE(Tabla1[[#This Row],[POA]],".",Tabla1[[#This Row],[SRS]],".",Tabla1[[#This Row],[AREA]],".",Tabla1[[#This Row],[TIPO]])) ->  | C17: =IF(Tabla1[[#This Row],[Código_Actividad]]="","",'[3]Formulario PPGR1'!#REF!) ->  | D17: =IF(Tabla1[[#This Row],[Código_Actividad]]="","",'[3]Formulario PPGR1'!#REF!) ->  | E17: =IF(Tabla1[[#This Row],[Código_Actividad]]="","",'[3]Formulario PPGR1'!#REF!) ->  | F17: =IF(Tabla1[[#This Row],[Código_Actividad]]="","",'[3]Formulario PPGR1'!#REF!) ->  | L17: =+Tabla1[[#This Row],[Precio Unitario]]*Tabla1[[#This Row],[Cantidad de Insumos]] -> 0.00
B18: =IF(Tabla1[[#This Row],[Código_Actividad]]="","",CONCATENATE(Tabla1[[#This Row],[POA]],".",Tabla1[[#This Row],[SRS]],".",Tabla1[[#This Row],[AREA]],".",Tabla1[[#This Row],[TIPO]])) ->  | C18: =IF(Tabla1[[#This Row],[Código_Actividad]]="","",'[3]Formulario PPGR1'!#REF!) ->  | D18: =IF(Tabla1[[#This Row],[Código_Actividad]]="","",'[3]Formulario PPGR1'!#REF!) ->  | E18: =IF(Tabla1[[#This Row],[Código_Actividad]]="","",'[3]Formulario PPGR1'!#REF!) ->  | F18: =IF(Tabla1[[#This Row],[Código_Actividad]]="","",'[3]Formulario PPGR1'!#REF!) ->  | L18: =+Tabla1[[#This Row],[Precio Unitario]]*Tabla1[[#This Row],[Cantidad de Insumos]] -> 0.00
B19: =IF(Tabla1[[#This Row],[Código_Actividad]]="","",CONCATENATE(Tabla1[[#This Row],[POA]],".",Tabla1[[#This Row],[SRS]],".",Tabla1[[#This Row],[AREA]],".",Tabla1[[#This Row],[TIPO]])) ->  | C19: =IF(Tabla1[[#This Row],[Código_Actividad]]="","",'[3]Formulario PPGR1'!#REF!) ->  | D19: =IF(Tabla1[[#This Row],[Código_Actividad]]="","",'[3]Formulario PPGR1'!#REF!) ->  | E19: =IF(Tabla1[[#This Row],[Código_Actividad]]="","",'[3]Formulario PPGR1'!#REF!) ->  | F19: =IF(Tabla1[[#This Row],[Código_Actividad]]="","",'[3]Formulario PPGR1'!#REF!) ->  | L19: =+Tabla1[[#This Row],[Precio Unitario]]*Tabla1[[#This Row],[Cantidad de Insumos]] -> 0.00
B20: =IF(Tabla1[[#This Row],[Código_Actividad]]="","",CONCATENATE(Tabla1[[#This Row],[POA]],".",Tabla1[[#This Row],[SRS]],".",Tabla1[[#This Row],[AREA]],".",Tabla1[[#This Row],[TIPO]])) ->  | C20: =IF(Tabla1[[#This Row],[Código_Actividad]]="","",'[3]Formulario PPGR1'!#REF!) ->  | D20: =IF(Tabla1[[#This Row],[Código_Actividad]]="","",'[3]Formulario PPGR1'!#REF!) ->  | E20: =IF(Tabla1[[#This Row],[Código_Actividad]]="","",'[3]Formulario PPGR1'!#REF!) ->  | F20: =IF(Tabla1[[#This Row],[Código_Actividad]]="","",'[3]Formulario PPGR1'!#REF!) ->  | L20: =+Tabla1[[#This Row],[Precio Unitario]]*Tabla1[[#This Row],[Cantidad de Insumos]] -> 0.00
B21: =IF(Tabla1[[#This Row],[Código_Actividad]]="","",CONCATENATE(Tabla1[[#This Row],[POA]],".",Tabla1[[#This Row],[SRS]],".",Tabla1[[#This Row],[AREA]],".",Tabla1[[#This Row],[TIPO]])) ->  | C21: =IF(Tabla1[[#This Row],[Código_Actividad]]="","",'[3]Formulario PPGR1'!#REF!) ->  | D21: =IF(Tabla1[[#This Row],[Código_Actividad]]="","",'[3]Formulario PPGR1'!#REF!) ->  | E21: =IF(Tabla1[[#This Row],[Código_Actividad]]="","",'[3]Formulario PPGR1'!#REF!) ->  | F21: =IF(Tabla1[[#This Row],[Código_Actividad]]="","",'[3]Formulario PPGR1'!#REF!) ->  | L21: =+Tabla1[[#This Row],[Precio Unitario]]*Tabla1[[#This Row],[Cantidad de Insumos]] -> 0.00
B22: =IF(Tabla1[[#This Row],[Código_Actividad]]="","",CONCATENATE(Tabla1[[#This Row],[POA]],".",Tabla1[[#This Row],[SRS]],".",Tabla1[[#This Row],[AREA]],".",Tabla1[[#This Row],[TIPO]])) ->  | C22: =IF(Tabla1[[#This Row],[Código_Actividad]]="","",'[3]Formulario PPGR1'!#REF!) ->  | D22: =IF(Tabla1[[#This Row],[Código_Actividad]]="","",'[3]Formulario PPGR1'!#REF!) ->  | E22: =IF(Tabla1[[#This Row],[Código_Actividad]]="","",'[3]Formulario PPGR1'!#REF!) ->  | F22: =IF(Tabla1[[#This Row],[Código_Actividad]]="","",'[3]Formulario PPGR1'!#REF!) ->  | L22: =+Tabla1[[#This Row],[Precio Unitario]]*Tabla1[[#This Row],[Cantidad de Insumos]] -> 0.00
B23: =IF(Tabla1[[#This Row],[Código_Actividad]]="","",CONCATENATE(Tabla1[[#This Row],[POA]],".",Tabla1[[#This Row],[SRS]],".",Tabla1[[#This Row],[AREA]],".",Tabla1[[#This Row],[TIPO]])) ->  | C23: =IF(Tabla1[[#This Row],[Código_Actividad]]="","",'[3]Formulario PPGR1'!#REF!) ->  | D23: =IF(Tabla1[[#This Row],[Código_Actividad]]="","",'[3]Formulario PPGR1'!#REF!) ->  | E23: =IF(Tabla1[[#This Row],[Código_Actividad]]="","",'[3]Formulario PPGR1'!#REF!) ->  | F23: =IF(Tabla1[[#This Row],[Código_Actividad]]="","",'[3]Formulario PPGR1'!#REF!) ->  | L23: =+Tabla1[[#This Row],[Precio Unitario]]*Tabla1[[#This Row],[Cantidad de Insumos]] -> 0.00
B24: =IF(Tabla1[[#This Row],[Código_Actividad]]="","",CONCATENATE(Tabla1[[#This Row],[POA]],".",Tabla1[[#This Row],[SRS]],".",Tabla1[[#This Row],[AREA]],".",Tabla1[[#This Row],[TIPO]])) ->  | C24: =IF(Tabla1[[#This Row],[Código_Actividad]]="","",'[3]Formulario PPGR1'!#REF!) ->  | D24: =IF(Tabla1[[#This Row],[Código_Actividad]]="","",'[3]Formulario PPGR1'!#REF!) ->  | E24: =IF(Tabla1[[#This Row],[Código_Actividad]]="","",'[3]Formulario PPGR1'!#REF!) ->  | F24: =IF(Tabla1[[#This Row],[Código_Actividad]]="","",'[3]Formulario PPGR1'!#REF!) ->  | L24: =+Tabla1[[#This Row],[Precio Unitario]]*Tabla1[[#This Row],[Cantidad de Insumos]] -> 0.00
B25: =IF(Tabla1[[#This Row],[Código_Actividad]]="","",CONCATENATE(Tabla1[[#This Row],[POA]],".",Tabla1[[#This Row],[SRS]],".",Tabla1[[#This Row],[AREA]],".",Tabla1[[#This Row],[TIPO]])) ->  | C25: =IF(Tabla1[[#This Row],[Código_Actividad]]="","",'[3]Formulario PPGR1'!#REF!) ->  | D25: =IF(Tabla1[[#This Row],[Código_Actividad]]="","",'[3]Formulario PPGR1'!#REF!) ->  | E25: =IF(Tabla1[[#This Row],[Código_Actividad]]="","",'[3]Formulario PPGR1'!#REF!) ->  | F25: =IF(Tabla1[[#This Row],[Código_Actividad]]="","",'[3]Formulario PPGR1'!#REF!) ->  | L25: =+Tabla1[[#This Row],[Precio Unitario]]*Tabla1[[#This Row],[Cantidad de Insumos]] -> 0.00
B26: =IF(Tabla1[[#This Row],[Código_Actividad]]="","",CONCATENATE(Tabla1[[#This Row],[POA]],".",Tabla1[[#This Row],[SRS]],".",Tabla1[[#This Row],[AREA]],".",Tabla1[[#This Row],[TIPO]])) ->  | C26: =IF(Tabla1[[#This Row],[Código_Actividad]]="","",'[3]Formulario PPGR1'!#REF!) ->  | D26: =IF(Tabla1[[#This Row],[Código_Actividad]]="","",'[3]Formulario PPGR1'!#REF!) ->  | E26: =IF(Tabla1[[#This Row],[Código_Actividad]]="","",'[3]Formulario PPGR1'!#REF!) ->  | F26: =IF(Tabla1[[#This Row],[Código_Actividad]]="","",'[3]Formulario PPGR1'!#REF!) ->  | L26: =+Tabla1[[#This Row],[Precio Unitario]]*Tabla1[[#This Row],[Cantidad de Insumos]] -> 0.00
B27: =IF(Tabla1[[#This Row],[Código_Actividad]]="","",CONCATENATE(Tabla1[[#This Row],[POA]],".",Tabla1[[#This Row],[SRS]],".",Tabla1[[#This Row],[AREA]],".",Tabla1[[#This Row],[TIPO]])) ->  | C27: =IF(Tabla1[[#This Row],[Código_Actividad]]="","",'[3]Formulario PPGR1'!#REF!) ->  | D27: =IF(Tabla1[[#This Row],[Código_Actividad]]="","",'[3]Formulario PPGR1'!#REF!) ->  | E27: =IF(Tabla1[[#This Row],[Código_Actividad]]="","",'[3]Formulario PPGR1'!#REF!) ->  | F27: =IF(Tabla1[[#This Row],[Código_Actividad]]="","",'[3]Formulario PPGR1'!#REF!) ->  | L27: =+Tabla1[[#This Row],[Precio Unitario]]*Tabla1[[#This Row],[Cantidad de Insumos]] -> 0.00
B28: =IF(Tabla1[[#This Row],[Código_Actividad]]="","",CONCATENATE(Tabla1[[#This Row],[POA]],".",Tabla1[[#This Row],[SRS]],".",Tabla1[[#This Row],[AREA]],".",Tabla1[[#This Row],[TIPO]])) ->  | C28: =IF(Tabla1[[#This Row],[Código_Actividad]]="","",'[3]Formulario PPGR1'!#REF!) ->  | D28: =IF(Tabla1[[#This Row],[Código_Actividad]]="","",'[3]Formulario PPGR1'!#REF!) ->  | E28: =IF(Tabla1[[#This Row],[Código_Actividad]]="","",'[3]Formulario PPGR1'!#REF!) ->  | F28: =IF(Tabla1[[#This Row],[Código_Actividad]]="","",'[3]Formulario PPGR1'!#REF!) ->  | L28: =+Tabla1[[#This Row],[Precio Unitario]]*Tabla1[[#This Row],[Cantidad de Insumos]] -> 0.00
B29: =IF(Tabla1[[#This Row],[Código_Actividad]]="","",CONCATENATE(Tabla1[[#This Row],[POA]],".",Tabla1[[#This Row],[SRS]],".",Tabla1[[#This Row],[AREA]],".",Tabla1[[#This Row],[TIPO]])) ->  | C29: =IF(Tabla1[[#This Row],[Código_Actividad]]="","",'[3]Formulario PPGR1'!#REF!) ->  | D29: =IF(Tabla1[[#This Row],[Código_Actividad]]="","",'[3]Formulario PPGR1'!#REF!) ->  | E29: =IF(Tabla1[[#This Row],[Código_Actividad]]="","",'[3]Formulario PPGR1'!#REF!) ->  | F29: =IF(Tabla1[[#This Row],[Código_Actividad]]="","",'[3]Formulario PPGR1'!#REF!) ->  | L29: =+Tabla1[[#This Row],[Precio Unitario]]*Tabla1[[#This Row],[Cantidad de Insumos]] -> 0.00
B30: =IF(Tabla1[[#This Row],[Código_Actividad]]="","",CONCATENATE(Tabla1[[#This Row],[POA]],".",Tabla1[[#This Row],[SRS]],".",Tabla1[[#This Row],[AREA]],".",Tabla1[[#This Row],[TIPO]])) ->  | C30: =IF(Tabla1[[#This Row],[Código_Actividad]]="","",'[3]Formulario PPGR1'!#REF!) ->  | D30: =IF(Tabla1[[#This Row],[Código_Actividad]]="","",'[3]Formulario PPGR1'!#REF!) ->  | E30: =IF(Tabla1[[#This Row],[Código_Actividad]]="","",'[3]Formulario PPGR1'!#REF!) ->  | F30: =IF(Tabla1[[#This Row],[Código_Actividad]]="","",'[3]Formulario PPGR1'!#REF!) ->  | L30: =+Tabla1[[#This Row],[Precio Unitario]]*Tabla1[[#This Row],[Cantidad de Insumos]] -> 0.00
B31: =IF(Tabla1[[#This Row],[Código_Actividad]]="","",CONCATENATE(Tabla1[[#This Row],[POA]],".",Tabla1[[#This Row],[SRS]],".",Tabla1[[#This Row],[AREA]],".",Tabla1[[#This Row],[TIPO]])) ->  | C31: =IF(Tabla1[[#This Row],[Código_Actividad]]="","",'[3]Formulario PPGR1'!#REF!) ->  | D31: =IF(Tabla1[[#This Row],[Código_Actividad]]="","",'[3]Formulario PPGR1'!#REF!) ->  | E31: =IF(Tabla1[[#This Row],[Código_Actividad]]="","",'[3]Formulario PPGR1'!#REF!) ->  | F31: =IF(Tabla1[[#This Row],[Código_Actividad]]="","",'[3]Formulario PPGR1'!#REF!) ->  | L31: =+Tabla1[[#This Row],[Precio Unitario]]*Tabla1[[#This Row],[Cantidad de Insumos]] -> 0.00
B32: =IF(Tabla1[[#This Row],[Código_Actividad]]="","",CONCATENATE(Tabla1[[#This Row],[POA]],".",Tabla1[[#This Row],[SRS]],".",Tabla1[[#This Row],[AREA]],".",Tabla1[[#This Row],[TIPO]])) ->  | C32: =IF(Tabla1[[#This Row],[Código_Actividad]]="","",'[3]Formulario PPGR1'!#REF!) ->  | D32: =IF(Tabla1[[#This Row],[Código_Actividad]]="","",'[3]Formulario PPGR1'!#REF!) ->  | E32: =IF(Tabla1[[#This Row],[Código_Actividad]]="","",'[3]Formulario PPGR1'!#REF!) ->  | F32: =IF(Tabla1[[#This Row],[Código_Actividad]]="","",'[3]Formulario PPGR1'!#REF!) ->  | L32: =+Tabla1[[#This Row],[Precio Unitario]]*Tabla1[[#This Row],[Cantidad de Insumos]] -> 0.00
B33: =IF(Tabla1[[#This Row],[Código_Actividad]]="","",CONCATENATE(Tabla1[[#This Row],[POA]],".",Tabla1[[#This Row],[SRS]],".",Tabla1[[#This Row],[AREA]],".",Tabla1[[#This Row],[TIPO]])) ->  | C33: =IF(Tabla1[[#This Row],[Código_Actividad]]="","",'[3]Formulario PPGR1'!#REF!) ->  | D33: =IF(Tabla1[[#This Row],[Código_Actividad]]="","",'[3]Formulario PPGR1'!#REF!) ->  | E33: =IF(Tabla1[[#This Row],[Código_Actividad]]="","",'[3]Formulario PPGR1'!#REF!) ->  | F33: =IF(Tabla1[[#This Row],[Código_Actividad]]="","",'[3]Formulario PPGR1'!#REF!) ->  | L33: =+Tabla1[[#This Row],[Precio Unitario]]*Tabla1[[#This Row],[Cantidad de Insumos]] -> 0.00
B34: =IF(Tabla1[[#This Row],[Código_Actividad]]="","",CONCATENATE(Tabla1[[#This Row],[POA]],".",Tabla1[[#This Row],[SRS]],".",Tabla1[[#This Row],[AREA]],".",Tabla1[[#This Row],[TIPO]])) ->  | C34: =IF(Tabla1[[#This Row],[Código_Actividad]]="","",'[3]Formulario PPGR1'!#REF!) ->  | D34: =IF(Tabla1[[#This Row],[Código_Actividad]]="","",'[3]Formulario PPGR1'!#REF!) ->  | E34: =IF(Tabla1[[#This Row],[Código_Actividad]]="","",'[3]Formulario PPGR1'!#REF!) ->  | F34: =IF(Tabla1[[#This Row],[Código_Actividad]]="","",'[3]Formulario PPGR1'!#REF!) ->  | L34: =+Tabla1[[#This Row],[Precio Unitario]]*Tabla1[[#This Row],[Cantidad de Insumos]] -> 0.00
B35: =IF(Tabla1[[#This Row],[Código_Actividad]]="","",CONCATENATE(Tabla1[[#This Row],[POA]],".",Tabla1[[#This Row],[SRS]],".",Tabla1[[#This Row],[AREA]],".",Tabla1[[#This Row],[TIPO]])) ->  | C35: =IF(Tabla1[[#This Row],[Código_Actividad]]="","",'[3]Formulario PPGR1'!#REF!) ->  | D35: =IF(Tabla1[[#This Row],[Código_Actividad]]="","",'[3]Formulario PPGR1'!#REF!) ->  | E35: =IF(Tabla1[[#This Row],[Código_Actividad]]="","",'[3]Formulario PPGR1'!#REF!) ->  | F35: =IF(Tabla1[[#This Row],[Código_Actividad]]="","",'[3]Formulario PPGR1'!#REF!) ->  | L35: =+Tabla1[[#This Row],[Precio Unitario]]*Tabla1[[#This Row],[Cantidad de Insumos]] -> 0.00
B36: =IF(Tabla1[[#This Row],[Código_Actividad]]="","",CONCATENATE(Tabla1[[#This Row],[POA]],".",Tabla1[[#This Row],[SRS]],".",Tabla1[[#This Row],[AREA]],".",Tabla1[[#This Row],[TIPO]])) ->  | C36: =IF(Tabla1[[#This Row],[Código_Actividad]]="","",'[3]Formulario PPGR1'!#REF!) ->  | D36: =IF(Tabla1[[#This Row],[Código_Actividad]]="","",'[3]Formulario PPGR1'!#REF!) ->  | E36: =IF(Tabla1[[#This Row],[Código_Actividad]]="","",'[3]Formulario PPGR1'!#REF!) ->  | F36: =IF(Tabla1[[#This Row],[Código_Actividad]]="","",'[3]Formulario PPGR1'!#REF!) ->  | L36: =+Tabla1[[#This Row],[Precio Unitario]]*Tabla1[[#This Row],[Cantidad de Insumos]] -> 0.00
B37: =IF(Tabla1[[#This Row],[Código_Actividad]]="","",CONCATENATE(Tabla1[[#This Row],[POA]],".",Tabla1[[#This Row],[SRS]],".",Tabla1[[#This Row],[AREA]],".",Tabla1[[#This Row],[TIPO]])) ->  | C37: =IF(Tabla1[[#This Row],[Código_Actividad]]="","",'[3]Formulario PPGR1'!#REF!) ->  | D37: =IF(Tabla1[[#This Row],[Código_Actividad]]="","",'[3]Formulario PPGR1'!#REF!) ->  | E37: =IF(Tabla1[[#This Row],[Código_Actividad]]="","",'[3]Formulario PPGR1'!#REF!) ->  | F37: =IF(Tabla1[[#This Row],[Código_Actividad]]="","",'[3]Formulario PPGR1'!#REF!) ->  | L37: =+Tabla1[[#This Row],[Precio Unitario]]*Tabla1[[#This Row],[Cantidad de Insumos]] -> 0.00
B38: =IF(Tabla1[[#This Row],[Código_Actividad]]="","",CONCATENATE(Tabla1[[#This Row],[POA]],".",Tabla1[[#This Row],[SRS]],".",Tabla1[[#This Row],[AREA]],".",Tabla1[[#This Row],[TIPO]])) ->  | C38: =IF(Tabla1[[#This Row],[Código_Actividad]]="","",'[3]Formulario PPGR1'!#REF!) ->  | D38: =IF(Tabla1[[#This Row],[Código_Actividad]]="","",'[3]Formulario PPGR1'!#REF!) ->  | E38: =IF(Tabla1[[#This Row],[Código_Actividad]]="","",'[3]Formulario PPGR1'!#REF!) ->  | F38: =IF(Tabla1[[#This Row],[Código_Actividad]]="","",'[3]Formulario PPGR1'!#REF!) ->  | L38: =+Tabla1[[#This Row],[Precio Unitario]]*Tabla1[[#This Row],[Cantidad de Insumos]] -> 0.00
B39: =IF(Tabla1[[#This Row],[Código_Actividad]]="","",CONCATENATE(Tabla1[[#This Row],[POA]],".",Tabla1[[#This Row],[SRS]],".",Tabla1[[#This Row],[AREA]],".",Tabla1[[#This Row],[TIPO]])) ->  | C39: =IF(Tabla1[[#This Row],[Código_Actividad]]="","",'[3]Formulario PPGR1'!#REF!) ->  | D39: =IF(Tabla1[[#This Row],[Código_Actividad]]="","",'[3]Formulario PPGR1'!#REF!) ->  | E39: =IF(Tabla1[[#This Row],[Código_Actividad]]="","",'[3]Formulario PPGR1'!#REF!) ->  | F39: =IF(Tabla1[[#This Row],[Código_Actividad]]="","",'[3]Formulario PPGR1'!#REF!) ->  | L39: =+Tabla1[[#This Row],[Precio Unitario]]*Tabla1[[#This Row],[Cantidad de Insumos]] -> 0.00
B40: =IF(Tabla1[[#This Row],[Código_Actividad]]="","",CONCATENATE(Tabla1[[#This Row],[POA]],".",Tabla1[[#This Row],[SRS]],".",Tabla1[[#This Row],[AREA]],".",Tabla1[[#This Row],[TIPO]])) ->  | C40: =IF(Tabla1[[#This Row],[Código_Actividad]]="","",'[3]Formulario PPGR1'!#REF!) ->  | D40: =IF(Tabla1[[#This Row],[Código_Actividad]]="","",'[3]Formulario PPGR1'!#REF!) ->  | E40: =IF(Tabla1[[#This Row],[Código_Actividad]]="","",'[3]Formulario PPGR1'!#REF!) ->  | F40: =IF(Tabla1[[#This Row],[Código_Actividad]]="","",'[3]Formulario PPGR1'!#REF!) ->  | L40: =+Tabla1[[#This Row],[Precio Unitario]]*Tabla1[[#This Row],[Cantidad de Insumos]] -> 0.00
B41: =IF(Tabla1[[#This Row],[Código_Actividad]]="","",CONCATENATE(Tabla1[[#This Row],[POA]],".",Tabla1[[#This Row],[SRS]],".",Tabla1[[#This Row],[AREA]],".",Tabla1[[#This Row],[TIPO]])) ->  | C41: =IF(Tabla1[[#This Row],[Código_Actividad]]="","",'[3]Formulario PPGR1'!#REF!) ->  | D41: =IF(Tabla1[[#This Row],[Código_Actividad]]="","",'[3]Formulario PPGR1'!#REF!) ->  | E41: =IF(Tabla1[[#This Row],[Código_Actividad]]="","",'[3]Formulario PPGR1'!#REF!) ->  | F41: =IF(Tabla1[[#This Row],[Código_Actividad]]="","",'[3]Formulario PPGR1'!#REF!) ->  | L41: =+Tabla1[[#This Row],[Precio Unitario]]*Tabla1[[#This Row],[Cantidad de Insumos]] -> 0.00
B42: =IF(Tabla1[[#This Row],[Código_Actividad]]="","",CONCATENATE(Tabla1[[#This Row],[POA]],".",Tabla1[[#This Row],[SRS]],".",Tabla1[[#This Row],[AREA]],".",Tabla1[[#This Row],[TIPO]])) ->  | C42: =IF(Tabla1[[#This Row],[Código_Actividad]]="","",'[3]Formulario PPGR1'!#REF!) ->  | D42: =IF(Tabla1[[#This Row],[Código_Actividad]]="","",'[3]Formulario PPGR1'!#REF!) ->  | E42: =IF(Tabla1[[#This Row],[Código_Actividad]]="","",'[3]Formulario PPGR1'!#REF!) ->  | F42: =IF(Tabla1[[#This Row],[Código_Actividad]]="","",'[3]Formulario PPGR1'!#REF!) ->  | L42: =+Tabla1[[#This Row],[Precio Unitario]]*Tabla1[[#This Row],[Cantidad de Insumos]] -> 0.00
B43: =IF(Tabla1[[#This Row],[Código_Actividad]]="","",CONCATENATE(Tabla1[[#This Row],[POA]],".",Tabla1[[#This Row],[SRS]],".",Tabla1[[#This Row],[AREA]],".",Tabla1[[#This Row],[TIPO]])) ->  | C43: =IF(Tabla1[[#This Row],[Código_Actividad]]="","",'[3]Formulario PPGR1'!#REF!) ->  | D43: =IF(Tabla1[[#This Row],[Código_Actividad]]="","",'[3]Formulario PPGR1'!#REF!) ->  | E43: =IF(Tabla1[[#This Row],[Código_Actividad]]="","",'[3]Formulario PPGR1'!#REF!) ->  | F43: =IF(Tabla1[[#This Row],[Código_Actividad]]="","",'[3]Formulario PPGR1'!#REF!) ->  | L43: =+Tabla1[[#This Row],[Precio Unitario]]*Tabla1[[#This Row],[Cantidad de Insumos]] -> 0.00
B44: =IF(Tabla1[[#This Row],[Código_Actividad]]="","",CONCATENATE(Tabla1[[#This Row],[POA]],".",Tabla1[[#This Row],[SRS]],".",Tabla1[[#This Row],[AREA]],".",Tabla1[[#This Row],[TIPO]])) ->  | C44: =IF(Tabla1[[#This Row],[Código_Actividad]]="","",'[3]Formulario PPGR1'!#REF!) ->  | D44: =IF(Tabla1[[#This Row],[Código_Actividad]]="","",'[3]Formulario PPGR1'!#REF!) ->  | E44: =IF(Tabla1[[#This Row],[Código_Actividad]]="","",'[3]Formulario PPGR1'!#REF!) ->  | F44: =IF(Tabla1[[#This Row],[Código_Actividad]]="","",'[3]Formulario PPGR1'!#REF!) ->  | L44: =+Tabla1[[#This Row],[Precio Unitario]]*Tabla1[[#This Row],[Cantidad de Insumos]] -> 0.00
B45: =IF(Tabla1[[#This Row],[Código_Actividad]]="","",CONCATENATE(Tabla1[[#This Row],[POA]],".",Tabla1[[#This Row],[SRS]],".",Tabla1[[#This Row],[AREA]],".",Tabla1[[#This Row],[TIPO]])) ->  | C45: =IF(Tabla1[[#This Row],[Código_Actividad]]="","",'[3]Formulario PPGR1'!#REF!) ->  | D45: =IF(Tabla1[[#This Row],[Código_Actividad]]="","",'[3]Formulario PPGR1'!#REF!) ->  | E45: =IF(Tabla1[[#This Row],[Código_Actividad]]="","",'[3]Formulario PPGR1'!#REF!) ->  | F45: =IF(Tabla1[[#This Row],[Código_Actividad]]="","",'[3]Formulario PPGR1'!#REF!) ->  | L45: =+Tabla1[[#This Row],[Precio Unitario]]*Tabla1[[#This Row],[Cantidad de Insumos]] -> 0.00
B46: =IF(Tabla1[[#This Row],[Código_Actividad]]="","",CONCATENATE(Tabla1[[#This Row],[POA]],".",Tabla1[[#This Row],[SRS]],".",Tabla1[[#This Row],[AREA]],".",Tabla1[[#This Row],[TIPO]])) ->  | C46: =IF(Tabla1[[#This Row],[Código_Actividad]]="","",'[3]Formulario PPGR1'!#REF!) ->  | D46: =IF(Tabla1[[#This Row],[Código_Actividad]]="","",'[3]Formulario PPGR1'!#REF!) ->  | E46: =IF(Tabla1[[#This Row],[Código_Actividad]]="","",'[3]Formulario PPGR1'!#REF!) ->  | F46: =IF(Tabla1[[#This Row],[Código_Actividad]]="","",'[3]Formulario PPGR1'!#REF!) ->  | L46: =+Tabla1[[#This Row],[Precio Unitario]]*Tabla1[[#This Row],[Cantidad de Insumos]] -> 0.00
B47: =IF(Tabla1[[#This Row],[Código_Actividad]]="","",CONCATENATE(Tabla1[[#This Row],[POA]],".",Tabla1[[#This Row],[SRS]],".",Tabla1[[#This Row],[AREA]],".",Tabla1[[#This Row],[TIPO]])) ->  | C47: =IF(Tabla1[[#This Row],[Código_Actividad]]="","",'[3]Formulario PPGR1'!#REF!) ->  | D47: =IF(Tabla1[[#This Row],[Código_Actividad]]="","",'[3]Formulario PPGR1'!#REF!) ->  | E47: =IF(Tabla1[[#This Row],[Código_Actividad]]="","",'[3]Formulario PPGR1'!#REF!) ->  | F47: =IF(Tabla1[[#This Row],[Código_Actividad]]="","",'[3]Formulario PPGR1'!#REF!) ->  | L47: =+Tabla1[[#This Row],[Precio Unitario]]*Tabla1[[#This Row],[Cantidad de Insumos]] -> 0.00
B48: =IF(Tabla1[[#This Row],[Código_Actividad]]="","",CONCATENATE(Tabla1[[#This Row],[POA]],".",Tabla1[[#This Row],[SRS]],".",Tabla1[[#This Row],[AREA]],".",Tabla1[[#This Row],[TIPO]])) ->  | C48: =IF(Tabla1[[#This Row],[Código_Actividad]]="","",'[3]Formulario PPGR1'!#REF!) ->  | D48: =IF(Tabla1[[#This Row],[Código_Actividad]]="","",'[3]Formulario PPGR1'!#REF!) ->  | E48: =IF(Tabla1[[#This Row],[Código_Actividad]]="","",'[3]Formulario PPGR1'!#REF!) ->  | F48: =IF(Tabla1[[#This Row],[Código_Actividad]]="","",'[3]Formulario PPGR1'!#REF!) ->  | L48: =+Tabla1[[#This Row],[Precio Unitario]]*Tabla1[[#This Row],[Cantidad de Insumos]] -> 0.00
B49: =IF(Tabla1[[#This Row],[Código_Actividad]]="","",CONCATENATE(Tabla1[[#This Row],[POA]],".",Tabla1[[#This Row],[SRS]],".",Tabla1[[#This Row],[AREA]],".",Tabla1[[#This Row],[TIPO]])) ->  | C49: =IF(Tabla1[[#This Row],[Código_Actividad]]="","",'[3]Formulario PPGR1'!#REF!) ->  | D49: =IF(Tabla1[[#This Row],[Código_Actividad]]="","",'[3]Formulario PPGR1'!#REF!) ->  | E49: =IF(Tabla1[[#This Row],[Código_Actividad]]="","",'[3]Formulario PPGR1'!#REF!) ->  | F49: =IF(Tabla1[[#This Row],[Código_Actividad]]="","",'[3]Formulario PPGR1'!#REF!) ->  | L49: =+Tabla1[[#This Row],[Precio Unitario]]*Tabla1[[#This Row],[Cantidad de Insumos]] -> 0.00
B50: =IF(Tabla1[[#This Row],[Código_Actividad]]="","",CONCATENATE(Tabla1[[#This Row],[POA]],".",Tabla1[[#This Row],[SRS]],".",Tabla1[[#This Row],[AREA]],".",Tabla1[[#This Row],[TIPO]])) ->  | C50: =IF(Tabla1[[#This Row],[Código_Actividad]]="","",'[3]Formulario PPGR1'!#REF!) ->  | D50: =IF(Tabla1[[#This Row],[Código_Actividad]]="","",'[3]Formulario PPGR1'!#REF!) ->  | E50: =IF(Tabla1[[#This Row],[Código_Actividad]]="","",'[3]Formulario PPGR1'!#REF!) ->  | F50: =IF(Tabla1[[#This Row],[Código_Actividad]]="","",'[3]Formulario PPGR1'!#REF!) ->  | L50: =+Tabla1[[#This Row],[Precio Unitario]]*Tabla1[[#This Row],[Cantidad de Insumos]] -> 0.00
B51: =IF(Tabla1[[#This Row],[Código_Actividad]]="","",CONCATENATE(Tabla1[[#This Row],[POA]],".",Tabla1[[#This Row],[SRS]],".",Tabla1[[#This Row],[AREA]],".",Tabla1[[#This Row],[TIPO]])) ->  | C51: =IF(Tabla1[[#This Row],[Código_Actividad]]="","",'[3]Formulario PPGR1'!#REF!) ->  | D51: =IF(Tabla1[[#This Row],[Código_Actividad]]="","",'[3]Formulario PPGR1'!#REF!) ->  | E51: =IF(Tabla1[[#This Row],[Código_Actividad]]="","",'[3]Formulario PPGR1'!#REF!) ->  | F51: =IF(Tabla1[[#This Row],[Código_Actividad]]="","",'[3]Formulario PPGR1'!#REF!) ->  | L51: =+Tabla1[[#This Row],[Precio Unitario]]*Tabla1[[#This Row],[Cantidad de Insumos]] -> 0.00
B52: =IF(Tabla1[[#This Row],[Código_Actividad]]="","",CONCATENATE(Tabla1[[#This Row],[POA]],".",Tabla1[[#This Row],[SRS]],".",Tabla1[[#This Row],[AREA]],".",Tabla1[[#This Row],[TIPO]])) ->  | C52: =IF(Tabla1[[#This Row],[Código_Actividad]]="","",'[3]Formulario PPGR1'!#REF!) ->  | D52: =IF(Tabla1[[#This Row],[Código_Actividad]]="","",'[3]Formulario PPGR1'!#REF!) ->  | E52: =IF(Tabla1[[#This Row],[Código_Actividad]]="","",'[3]Formulario PPGR1'!#REF!) ->  | F52: =IF(Tabla1[[#This Row],[Código_Actividad]]="","",'[3]Formulario PPGR1'!#REF!) ->  | L52: =+Tabla1[[#This Row],[Precio Unitario]]*Tabla1[[#This Row],[Cantidad de Insumos]] -> 0.00
B53: =IF(Tabla1[[#This Row],[Código_Actividad]]="","",CONCATENATE(Tabla1[[#This Row],[POA]],".",Tabla1[[#This Row],[SRS]],".",Tabla1[[#This Row],[AREA]],".",Tabla1[[#This Row],[TIPO]])) ->  | C53: =IF(Tabla1[[#This Row],[Código_Actividad]]="","",'[3]Formulario PPGR1'!#REF!) ->  | D53: =IF(Tabla1[[#This Row],[Código_Actividad]]="","",'[3]Formulario PPGR1'!#REF!) ->  | E53: =IF(Tabla1[[#This Row],[Código_Actividad]]="","",'[3]Formulario PPGR1'!#REF!) ->  | F53: =IF(Tabla1[[#This Row],[Código_Actividad]]="","",'[3]Formulario PPGR1'!#REF!) ->  | L53: =+Tabla1[[#This Row],[Precio Unitario]]*Tabla1[[#This Row],[Cantidad de Insumos]] -> 0.00
B54: =IF(Tabla1[[#This Row],[Código_Actividad]]="","",CONCATENATE(Tabla1[[#This Row],[POA]],".",Tabla1[[#This Row],[SRS]],".",Tabla1[[#This Row],[AREA]],".",Tabla1[[#This Row],[TIPO]])) ->  | C54: =IF(Tabla1[[#This Row],[Código_Actividad]]="","",'[3]Formulario PPGR1'!#REF!) ->  | D54: =IF(Tabla1[[#This Row],[Código_Actividad]]="","",'[3]Formulario PPGR1'!#REF!) ->  | E54: =IF(Tabla1[[#This Row],[Código_Actividad]]="","",'[3]Formulario PPGR1'!#REF!) ->  | F54: =IF(Tabla1[[#This Row],[Código_Actividad]]="","",'[3]Formulario PPGR1'!#REF!) ->  | L54: =+Tabla1[[#This Row],[Precio Unitario]]*Tabla1[[#This Row],[Cantidad de Insumos]] -> 0.00
B55: =IF(Tabla1[[#This Row],[Código_Actividad]]="","",CONCATENATE(Tabla1[[#This Row],[POA]],".",Tabla1[[#This Row],[SRS]],".",Tabla1[[#This Row],[AREA]],".",Tabla1[[#This Row],[TIPO]])) ->  | C55: =IF(Tabla1[[#This Row],[Código_Actividad]]="","",'[3]Formulario PPGR1'!#REF!) ->  | D55: =IF(Tabla1[[#This Row],[Código_Actividad]]="","",'[3]Formulario PPGR1'!#REF!) ->  | E55: =IF(Tabla1[[#This Row],[Código_Actividad]]="","",'[3]Formulario PPGR1'!#REF!) ->  | F55: =IF(Tabla1[[#This Row],[Código_Actividad]]="","",'[3]Formulario PPGR1'!#REF!) ->  | L55: =+Tabla1[[#This Row],[Precio Unitario]]*Tabla1[[#This Row],[Cantidad de Insumos]] -> 0.00
B56: =IF(Tabla1[[#This Row],[Código_Actividad]]="","",CONCATENATE(Tabla1[[#This Row],[POA]],".",Tabla1[[#This Row],[SRS]],".",Tabla1[[#This Row],[AREA]],".",Tabla1[[#This Row],[TIPO]])) ->  | C56: =IF(Tabla1[[#This Row],[Código_Actividad]]="","",'[3]Formulario PPGR1'!#REF!) ->  | D56: =IF(Tabla1[[#This Row],[Código_Actividad]]="","",'[3]Formulario PPGR1'!#REF!) ->  | E56: =IF(Tabla1[[#This Row],[Código_Actividad]]="","",'[3]Formulario PPGR1'!#REF!) ->  | F56: =IF(Tabla1[[#This Row],[Código_Actividad]]="","",'[3]Formulario PPGR1'!#REF!) ->  | L56: =+Tabla1[[#This Row],[Precio Unitario]]*Tabla1[[#This Row],[Cantidad de Insumos]] -> 0.00
B57: =IF(Tabla1[[#This Row],[Código_Actividad]]="","",CONCATENATE(Tabla1[[#This Row],[POA]],".",Tabla1[[#This Row],[SRS]],".",Tabla1[[#This Row],[AREA]],".",Tabla1[[#This Row],[TIPO]])) ->  | C57: =IF(Tabla1[[#This Row],[Código_Actividad]]="","",'[3]Formulario PPGR1'!#REF!) ->  | D57: =IF(Tabla1[[#This Row],[Código_Actividad]]="","",'[3]Formulario PPGR1'!#REF!) ->  | E57: =IF(Tabla1[[#This Row],[Código_Actividad]]="","",'[3]Formulario PPGR1'!#REF!) ->  | F57: =IF(Tabla1[[#This Row],[Código_Actividad]]="","",'[3]Formulario PPGR1'!#REF!) ->  | L57: =+Tabla1[[#This Row],[Precio Unitario]]*Tabla1[[#This Row],[Cantidad de Insumos]] -> 0.00
B58: =IF(Tabla1[[#This Row],[Código_Actividad]]="","",CONCATENATE(Tabla1[[#This Row],[POA]],".",Tabla1[[#This Row],[SRS]],".",Tabla1[[#This Row],[AREA]],".",Tabla1[[#This Row],[TIPO]])) ->  | C58: =IF(Tabla1[[#This Row],[Código_Actividad]]="","",'[3]Formulario PPGR1'!#REF!) ->  | D58: =IF(Tabla1[[#This Row],[Código_Actividad]]="","",'[3]Formulario PPGR1'!#REF!) ->  | E58: =IF(Tabla1[[#This Row],[Código_Actividad]]="","",'[3]Formulario PPGR1'!#REF!) ->  | F58: =IF(Tabla1[[#This Row],[Código_Actividad]]="","",'[3]Formulario PPGR1'!#REF!) ->  | L58: =+Tabla1[[#This Row],[Precio Unitario]]*Tabla1[[#This Row],[Cantidad de Insumos]] -> 0.00
B59: =IF(Tabla1[[#This Row],[Código_Actividad]]="","",CONCATENATE(Tabla1[[#This Row],[POA]],".",Tabla1[[#This Row],[SRS]],".",Tabla1[[#This Row],[AREA]],".",Tabla1[[#This Row],[TIPO]])) ->  | C59: =IF(Tabla1[[#This Row],[Código_Actividad]]="","",'[3]Formulario PPGR1'!#REF!) ->  | D59: =IF(Tabla1[[#This Row],[Código_Actividad]]="","",'[3]Formulario PPGR1'!#REF!) ->  | E59: =IF(Tabla1[[#This Row],[Código_Actividad]]="","",'[3]Formulario PPGR1'!#REF!) ->  | F59: =IF(Tabla1[[#This Row],[Código_Actividad]]="","",'[3]Formulario PPGR1'!#REF!) ->  | L59: =+Tabla1[[#This Row],[Precio Unitario]]*Tabla1[[#This Row],[Cantidad de Insumos]] -> 0.00
B60: =IF(Tabla1[[#This Row],[Código_Actividad]]="","",CONCATENATE(Tabla1[[#This Row],[POA]],".",Tabla1[[#This Row],[SRS]],".",Tabla1[[#This Row],[AREA]],".",Tabla1[[#This Row],[TIPO]])) ->  | C60: =IF(Tabla1[[#This Row],[Código_Actividad]]="","",'[3]Formulario PPGR1'!#REF!) ->  | D60: =IF(Tabla1[[#This Row],[Código_Actividad]]="","",'[3]Formulario PPGR1'!#REF!) ->  | E60: =IF(Tabla1[[#This Row],[Código_Actividad]]="","",'[3]Formulario PPGR1'!#REF!) ->  | F60: =IF(Tabla1[[#This Row],[Código_Actividad]]="","",'[3]Formulario PPGR1'!#REF!) ->  | L60: =+Tabla1[[#This Row],[Precio Unitario]]*Tabla1[[#This Row],[Cantidad de Insumos]] -> 0.00
B61: =IF(Tabla1[[#This Row],[Código_Actividad]]="","",CONCATENATE(Tabla1[[#This Row],[POA]],".",Tabla1[[#This Row],[SRS]],".",Tabla1[[#This Row],[AREA]],".",Tabla1[[#This Row],[TIPO]])) ->  | C61: =IF(Tabla1[[#This Row],[Código_Actividad]]="","",'[3]Formulario PPGR1'!#REF!) ->  | D61: =IF(Tabla1[[#This Row],[Código_Actividad]]="","",'[3]Formulario PPGR1'!#REF!) ->  | E61: =IF(Tabla1[[#This Row],[Código_Actividad]]="","",'[3]Formulario PPGR1'!#REF!) ->  | F61: =IF(Tabla1[[#This Row],[Código_Actividad]]="","",'[3]Formulario PPGR1'!#REF!) ->  | L61: =+Tabla1[[#This Row],[Precio Unitario]]*Tabla1[[#This Row],[Cantidad de Insumos]] -> 0.00
B62: =IF(Tabla1[[#This Row],[Código_Actividad]]="","",CONCATENATE(Tabla1[[#This Row],[POA]],".",Tabla1[[#This Row],[SRS]],".",Tabla1[[#This Row],[AREA]],".",Tabla1[[#This Row],[TIPO]])) ->  | C62: =IF(Tabla1[[#This Row],[Código_Actividad]]="","",'[3]Formulario PPGR1'!#REF!) ->  | D62: =IF(Tabla1[[#This Row],[Código_Actividad]]="","",'[3]Formulario PPGR1'!#REF!) ->  | E62: =IF(Tabla1[[#This Row],[Código_Actividad]]="","",'[3]Formulario PPGR1'!#REF!) ->  | F62: =IF(Tabla1[[#This Row],[Código_Actividad]]="","",'[3]Formulario PPGR1'!#REF!) ->  | L62: =+Tabla1[[#This Row],[Precio Unitario]]*Tabla1[[#This Row],[Cantidad de Insumos]] -> 0.00
B63: =IF(Tabla1[[#This Row],[Código_Actividad]]="","",CONCATENATE(Tabla1[[#This Row],[POA]],".",Tabla1[[#This Row],[SRS]],".",Tabla1[[#This Row],[AREA]],".",Tabla1[[#This Row],[TIPO]])) ->  | C63: =IF(Tabla1[[#This Row],[Código_Actividad]]="","",'[3]Formulario PPGR1'!#REF!) ->  | D63: =IF(Tabla1[[#This Row],[Código_Actividad]]="","",'[3]Formulario PPGR1'!#REF!) ->  | E63: =IF(Tabla1[[#This Row],[Código_Actividad]]="","",'[3]Formulario PPGR1'!#REF!) ->  | F63: =IF(Tabla1[[#This Row],[Código_Actividad]]="","",'[3]Formulario PPGR1'!#REF!) ->  | L63: =+Tabla1[[#This Row],[Precio Unitario]]*Tabla1[[#This Row],[Cantidad de Insumos]] -> 0.00
B64: =IF(Tabla1[[#This Row],[Código_Actividad]]="","",CONCATENATE(Tabla1[[#This Row],[POA]],".",Tabla1[[#This Row],[SRS]],".",Tabla1[[#This Row],[AREA]],".",Tabla1[[#This Row],[TIPO]])) ->  | C64: =IF(Tabla1[[#This Row],[Código_Actividad]]="","",'[3]Formulario PPGR1'!#REF!) ->  | D64: =IF(Tabla1[[#This Row],[Código_Actividad]]="","",'[3]Formulario PPGR1'!#REF!) ->  | E64: =IF(Tabla1[[#This Row],[Código_Actividad]]="","",'[3]Formulario PPGR1'!#REF!) ->  | F64: =IF(Tabla1[[#This Row],[Código_Actividad]]="","",'[3]Formulario PPGR1'!#REF!) ->  | L64: =+Tabla1[[#This Row],[Precio Unitario]]*Tabla1[[#This Row],[Cantidad de Insumos]] -> 0.00
B65: =IF(Tabla1[[#This Row],[Código_Actividad]]="","",CONCATENATE(Tabla1[[#This Row],[POA]],".",Tabla1[[#This Row],[SRS]],".",Tabla1[[#This Row],[AREA]],".",Tabla1[[#This Row],[TIPO]])) ->  | C65: =IF(Tabla1[[#This Row],[Código_Actividad]]="","",'[3]Formulario PPGR1'!#REF!) ->  | D65: =IF(Tabla1[[#This Row],[Código_Actividad]]="","",'[3]Formulario PPGR1'!#REF!) ->  | E65: =IF(Tabla1[[#This Row],[Código_Actividad]]="","",'[3]Formulario PPGR1'!#REF!) ->  | F65: =IF(Tabla1[[#This Row],[Código_Actividad]]="","",'[3]Formulario PPGR1'!#REF!) ->  | L65: =+Tabla1[[#This Row],[Precio Unitario]]*Tabla1[[#This Row],[Cantidad de Insumos]] -> 0.00
B66: =IF(Tabla1[[#This Row],[Código_Actividad]]="","",CONCATENATE(Tabla1[[#This Row],[POA]],".",Tabla1[[#This Row],[SRS]],".",Tabla1[[#This Row],[AREA]],".",Tabla1[[#This Row],[TIPO]])) ->  | C66: =IF(Tabla1[[#This Row],[Código_Actividad]]="","",'[3]Formulario PPGR1'!#REF!) ->  | D66: =IF(Tabla1[[#This Row],[Código_Actividad]]="","",'[3]Formulario PPGR1'!#REF!) ->  | E66: =IF(Tabla1[[#This Row],[Código_Actividad]]="","",'[3]Formulario PPGR1'!#REF!) ->  | F66: =IF(Tabla1[[#This Row],[Código_Actividad]]="","",'[3]Formulario PPGR1'!#REF!) ->  | L66: =+Tabla1[[#This Row],[Precio Unitario]]*Tabla1[[#This Row],[Cantidad de Insumos]] -> 0.00
B67: =IF(Tabla1[[#This Row],[Código_Actividad]]="","",CONCATENATE(Tabla1[[#This Row],[POA]],".",Tabla1[[#This Row],[SRS]],".",Tabla1[[#This Row],[AREA]],".",Tabla1[[#This Row],[TIPO]])) ->  | C67: =IF(Tabla1[[#This Row],[Código_Actividad]]="","",'[3]Formulario PPGR1'!#REF!) ->  | D67: =IF(Tabla1[[#This Row],[Código_Actividad]]="","",'[3]Formulario PPGR1'!#REF!) ->  | E67: =IF(Tabla1[[#This Row],[Código_Actividad]]="","",'[3]Formulario PPGR1'!#REF!) ->  | F67: =IF(Tabla1[[#This Row],[Código_Actividad]]="","",'[3]Formulario PPGR1'!#REF!) ->  | L67: =+Tabla1[[#This Row],[Precio Unitario]]*Tabla1[[#This Row],[Cantidad de Insumos]] -> 0.00
B68: =IF(Tabla1[[#This Row],[Código_Actividad]]="","",CONCATENATE(Tabla1[[#This Row],[POA]],".",Tabla1[[#This Row],[SRS]],".",Tabla1[[#This Row],[AREA]],".",Tabla1[[#This Row],[TIPO]])) ->  | C68: =IF(Tabla1[[#This Row],[Código_Actividad]]="","",'[3]Formulario PPGR1'!#REF!) ->  | D68: =IF(Tabla1[[#This Row],[Código_Actividad]]="","",'[3]Formulario PPGR1'!#REF!) ->  | E68: =IF(Tabla1[[#This Row],[Código_Actividad]]="","",'[3]Formulario PPGR1'!#REF!) ->  | F68: =IF(Tabla1[[#This Row],[Código_Actividad]]="","",'[3]Formulario PPGR1'!#REF!) ->  | L68: =+Tabla1[[#This Row],[Precio Unitario]]*Tabla1[[#This Row],[Cantidad de Insumos]] -> 0.00
B69: =IF(Tabla1[[#This Row],[Código_Actividad]]="","",CONCATENATE(Tabla1[[#This Row],[POA]],".",Tabla1[[#This Row],[SRS]],".",Tabla1[[#This Row],[AREA]],".",Tabla1[[#This Row],[TIPO]])) ->  | C69: =IF(Tabla1[[#This Row],[Código_Actividad]]="","",'[3]Formulario PPGR1'!#REF!) ->  | D69: =IF(Tabla1[[#This Row],[Código_Actividad]]="","",'[3]Formulario PPGR1'!#REF!) ->  | E69: =IF(Tabla1[[#This Row],[Código_Actividad]]="","",'[3]Formulario PPGR1'!#REF!) ->  | F69: =IF(Tabla1[[#This Row],[Código_Actividad]]="","",'[3]Formulario PPGR1'!#REF!) ->  | L69: =+Tabla1[[#This Row],[Precio Unitario]]*Tabla1[[#This Row],[Cantidad de Insumos]] -> 0.00
B70: =IF(Tabla1[[#This Row],[Código_Actividad]]="","",CONCATENATE(Tabla1[[#This Row],[POA]],".",Tabla1[[#This Row],[SRS]],".",Tabla1[[#This Row],[AREA]],".",Tabla1[[#This Row],[TIPO]])) ->  | C70: =IF(Tabla1[[#This Row],[Código_Actividad]]="","",'[3]Formulario PPGR1'!#REF!) ->  | D70: =IF(Tabla1[[#This Row],[Código_Actividad]]="","",'[3]Formulario PPGR1'!#REF!) ->  | E70: =IF(Tabla1[[#This Row],[Código_Actividad]]="","",'[3]Formulario PPGR1'!#REF!) ->  | F70: =IF(Tabla1[[#This Row],[Código_Actividad]]="","",'[3]Formulario PPGR1'!#REF!) ->  | L70: =+Tabla1[[#This Row],[Precio Unitario]]*Tabla1[[#This Row],[Cantidad de Insumos]] -> 0.00
B71: =IF(Tabla1[[#This Row],[Código_Actividad]]="","",CONCATENATE(Tabla1[[#This Row],[POA]],".",Tabla1[[#This Row],[SRS]],".",Tabla1[[#This Row],[AREA]],".",Tabla1[[#This Row],[TIPO]])) ->  | C71: =IF(Tabla1[[#This Row],[Código_Actividad]]="","",'[3]Formulario PPGR1'!#REF!) ->  | D71: =IF(Tabla1[[#This Row],[Código_Actividad]]="","",'[3]Formulario PPGR1'!#REF!) ->  | E71: =IF(Tabla1[[#This Row],[Código_Actividad]]="","",'[3]Formulario PPGR1'!#REF!) ->  | F71: =IF(Tabla1[[#This Row],[Código_Actividad]]="","",'[3]Formulario PPGR1'!#REF!) ->  | L71: =+Tabla1[[#This Row],[Precio Unitario]]*Tabla1[[#This Row],[Cantidad de Insumos]] -> 0.00
B72: =IF(Tabla1[[#This Row],[Código_Actividad]]="","",CONCATENATE(Tabla1[[#This Row],[POA]],".",Tabla1[[#This Row],[SRS]],".",Tabla1[[#This Row],[AREA]],".",Tabla1[[#This Row],[TIPO]])) ->  | C72: =IF(Tabla1[[#This Row],[Código_Actividad]]="","",'[3]Formulario PPGR1'!#REF!) ->  | D72: =IF(Tabla1[[#This Row],[Código_Actividad]]="","",'[3]Formulario PPGR1'!#REF!) ->  | E72: =IF(Tabla1[[#This Row],[Código_Actividad]]="","",'[3]Formulario PPGR1'!#REF!) ->  | F72: =IF(Tabla1[[#This Row],[Código_Actividad]]="","",'[3]Formulario PPGR1'!#REF!) ->  | L72: =+Tabla1[[#This Row],[Precio Unitario]]*Tabla1[[#This Row],[Cantidad de Insumos]] -> 0.00
B73: =IF(Tabla1[[#This Row],[Código_Actividad]]="","",CONCATENATE(Tabla1[[#This Row],[POA]],".",Tabla1[[#This Row],[SRS]],".",Tabla1[[#This Row],[AREA]],".",Tabla1[[#This Row],[TIPO]])) ->  | C73: =IF(Tabla1[[#This Row],[Código_Actividad]]="","",'[3]Formulario PPGR1'!#REF!) ->  | D73: =IF(Tabla1[[#This Row],[Código_Actividad]]="","",'[3]Formulario PPGR1'!#REF!) ->  | E73: =IF(Tabla1[[#This Row],[Código_Actividad]]="","",'[3]Formulario PPGR1'!#REF!) ->  | F73: =IF(Tabla1[[#This Row],[Código_Actividad]]="","",'[3]Formulario PPGR1'!#REF!) ->  | L73: =+Tabla1[[#This Row],[Precio Unitario]]*Tabla1[[#This Row],[Cantidad de Insumos]] -> 0.00
B74: =IF(Tabla1[[#This Row],[Código_Actividad]]="","",CONCATENATE(Tabla1[[#This Row],[POA]],".",Tabla1[[#This Row],[SRS]],".",Tabla1[[#This Row],[AREA]],".",Tabla1[[#This Row],[TIPO]])) ->  | C74: =IF(Tabla1[[#This Row],[Código_Actividad]]="","",'[3]Formulario PPGR1'!#REF!) ->  | D74: =IF(Tabla1[[#This Row],[Código_Actividad]]="","",'[3]Formulario PPGR1'!#REF!) ->  | E74: =IF(Tabla1[[#This Row],[Código_Actividad]]="","",'[3]Formulario PPGR1'!#REF!) ->  | F74: =IF(Tabla1[[#This Row],[Código_Actividad]]="","",'[3]Formulario PPGR1'!#REF!) ->  | L74: =+Tabla1[[#This Row],[Precio Unitario]]*Tabla1[[#This Row],[Cantidad de Insumos]] -> 0.00
B75: =IF(Tabla1[[#This Row],[Código_Actividad]]="","",CONCATENATE(Tabla1[[#This Row],[POA]],".",Tabla1[[#This Row],[SRS]],".",Tabla1[[#This Row],[AREA]],".",Tabla1[[#This Row],[TIPO]])) ->  | C75: =IF(Tabla1[[#This Row],[Código_Actividad]]="","",'[3]Formulario PPGR1'!#REF!) ->  | D75: =IF(Tabla1[[#This Row],[Código_Actividad]]="","",'[3]Formulario PPGR1'!#REF!) ->  | E75: =IF(Tabla1[[#This Row],[Código_Actividad]]="","",'[3]Formulario PPGR1'!#REF!) ->  | F75: =IF(Tabla1[[#This Row],[Código_Actividad]]="","",'[3]Formulario PPGR1'!#REF!) ->  | L75: =+Tabla1[[#This Row],[Precio Unitario]]*Tabla1[[#This Row],[Cantidad de Insumos]] -> 0.00
B76: =IF(Tabla1[[#This Row],[Código_Actividad]]="","",CONCATENATE(Tabla1[[#This Row],[POA]],".",Tabla1[[#This Row],[SRS]],".",Tabla1[[#This Row],[AREA]],".",Tabla1[[#This Row],[TIPO]])) ->  | C76: =IF(Tabla1[[#This Row],[Código_Actividad]]="","",'[3]Formulario PPGR1'!#REF!) ->  | D76: =IF(Tabla1[[#This Row],[Código_Actividad]]="","",'[3]Formulario PPGR1'!#REF!) ->  | E76: =IF(Tabla1[[#This Row],[Código_Actividad]]="","",'[3]Formulario PPGR1'!#REF!) ->  | F76: =IF(Tabla1[[#This Row],[Código_Actividad]]="","",'[3]Formulario PPGR1'!#REF!) ->  | L76: =+Tabla1[[#This Row],[Precio Unitario]]*Tabla1[[#This Row],[Cantidad de Insumos]] -> 0.00
B77: =IF(Tabla1[[#This Row],[Código_Actividad]]="","",CONCATENATE(Tabla1[[#This Row],[POA]],".",Tabla1[[#This Row],[SRS]],".",Tabla1[[#This Row],[AREA]],".",Tabla1[[#This Row],[TIPO]])) ->  | C77: =IF(Tabla1[[#This Row],[Código_Actividad]]="","",'[3]Formulario PPGR1'!#REF!) ->  | D77: =IF(Tabla1[[#This Row],[Código_Actividad]]="","",'[3]Formulario PPGR1'!#REF!) ->  | E77: =IF(Tabla1[[#This Row],[Código_Actividad]]="","",'[3]Formulario PPGR1'!#REF!) ->  | F77: =IF(Tabla1[[#This Row],[Código_Actividad]]="","",'[3]Formulario PPGR1'!#REF!) ->  | L77: =+Tabla1[[#This Row],[Precio Unitario]]*Tabla1[[#This Row],[Cantidad de Insumos]] -> 0.00
B78: =IF(Tabla1[[#This Row],[Código_Actividad]]="","",CONCATENATE(Tabla1[[#This Row],[POA]],".",Tabla1[[#This Row],[SRS]],".",Tabla1[[#This Row],[AREA]],".",Tabla1[[#This Row],[TIPO]])) ->  | C78: =IF(Tabla1[[#This Row],[Código_Actividad]]="","",'[3]Formulario PPGR1'!#REF!) ->  | D78: =IF(Tabla1[[#This Row],[Código_Actividad]]="","",'[3]Formulario PPGR1'!#REF!) ->  | E78: =IF(Tabla1[[#This Row],[Código_Actividad]]="","",'[3]Formulario PPGR1'!#REF!) ->  | F78: =IF(Tabla1[[#This Row],[Código_Actividad]]="","",'[3]Formulario PPGR1'!#REF!) ->  | L78: =+Tabla1[[#This Row],[Precio Unitario]]*Tabla1[[#This Row],[Cantidad de Insumos]] -> 0.00
B79: =IF(Tabla1[[#This Row],[Código_Actividad]]="","",CONCATENATE(Tabla1[[#This Row],[POA]],".",Tabla1[[#This Row],[SRS]],".",Tabla1[[#This Row],[AREA]],".",Tabla1[[#This Row],[TIPO]])) ->  | C79: =IF(Tabla1[[#This Row],[Código_Actividad]]="","",'[3]Formulario PPGR1'!#REF!) ->  | D79: =IF(Tabla1[[#This Row],[Código_Actividad]]="","",'[3]Formulario PPGR1'!#REF!) ->  | E79: =IF(Tabla1[[#This Row],[Código_Actividad]]="","",'[3]Formulario PPGR1'!#REF!) ->  | F79: =IF(Tabla1[[#This Row],[Código_Actividad]]="","",'[3]Formulario PPGR1'!#REF!) ->  | L79: =+Tabla1[[#This Row],[Precio Unitario]]*Tabla1[[#This Row],[Cantidad de Insumos]] -> 0.00
B80: =IF(Tabla1[[#This Row],[Código_Actividad]]="","",CONCATENATE(Tabla1[[#This Row],[POA]],".",Tabla1[[#This Row],[SRS]],".",Tabla1[[#This Row],[AREA]],".",Tabla1[[#This Row],[TIPO]])) ->  | C80: =IF(Tabla1[[#This Row],[Código_Actividad]]="","",'[3]Formulario PPGR1'!#REF!) ->  | D80: =IF(Tabla1[[#This Row],[Código_Actividad]]="","",'[3]Formulario PPGR1'!#REF!) ->  | E80: =IF(Tabla1[[#This Row],[Código_Actividad]]="","",'[3]Formulario PPGR1'!#REF!) ->  | F80: =IF(Tabla1[[#This Row],[Código_Actividad]]="","",'[3]Formulario PPGR1'!#REF!) ->  | L80: =+Tabla1[[#This Row],[Precio Unitario]]*Tabla1[[#This Row],[Cantidad de Insumos]] -> 0.00
B81: =IF(Tabla1[[#This Row],[Código_Actividad]]="","",CONCATENATE(Tabla1[[#This Row],[POA]],".",Tabla1[[#This Row],[SRS]],".",Tabla1[[#This Row],[AREA]],".",Tabla1[[#This Row],[TIPO]])) ->  | C81: =IF(Tabla1[[#This Row],[Código_Actividad]]="","",'[3]Formulario PPGR1'!#REF!) ->  | D81: =IF(Tabla1[[#This Row],[Código_Actividad]]="","",'[3]Formulario PPGR1'!#REF!) ->  | E81: =IF(Tabla1[[#This Row],[Código_Actividad]]="","",'[3]Formulario PPGR1'!#REF!) ->  | F81: =IF(Tabla1[[#This Row],[Código_Actividad]]="","",'[3]Formulario PPGR1'!#REF!) ->  | L81: =+Tabla1[[#This Row],[Precio Unitario]]*Tabla1[[#This Row],[Cantidad de Insumos]] -> 0.00
B82: =IF(Tabla1[[#This Row],[Código_Actividad]]="","",CONCATENATE(Tabla1[[#This Row],[POA]],".",Tabla1[[#This Row],[SRS]],".",Tabla1[[#This Row],[AREA]],".",Tabla1[[#This Row],[TIPO]])) ->  | C82: =IF(Tabla1[[#This Row],[Código_Actividad]]="","",'[3]Formulario PPGR1'!#REF!) ->  | D82: =IF(Tabla1[[#This Row],[Código_Actividad]]="","",'[3]Formulario PPGR1'!#REF!) ->  | E82: =IF(Tabla1[[#This Row],[Código_Actividad]]="","",'[3]Formulario PPGR1'!#REF!) ->  | F82: =IF(Tabla1[[#This Row],[Código_Actividad]]="","",'[3]Formulario PPGR1'!#REF!) ->  | L82: =+Tabla1[[#This Row],[Precio Unitario]]*Tabla1[[#This Row],[Cantidad de Insumos]] -> 0.00
B83: =IF(Tabla1[[#This Row],[Código_Actividad]]="","",CONCATENATE(Tabla1[[#This Row],[POA]],".",Tabla1[[#This Row],[SRS]],".",Tabla1[[#This Row],[AREA]],".",Tabla1[[#This Row],[TIPO]])) ->  | C83: =IF(Tabla1[[#This Row],[Código_Actividad]]="","",'[3]Formulario PPGR1'!#REF!) ->  | D83: =IF(Tabla1[[#This Row],[Código_Actividad]]="","",'[3]Formulario PPGR1'!#REF!) ->  | E83: =IF(Tabla1[[#This Row],[Código_Actividad]]="","",'[3]Formulario PPGR1'!#REF!) ->  | F83: =IF(Tabla1[[#This Row],[Código_Actividad]]="","",'[3]Formulario PPGR1'!#REF!) ->  | L83: =+Tabla1[[#This Row],[Precio Unitario]]*Tabla1[[#This Row],[Cantidad de Insumos]] -> 0.00
B84: =IF(Tabla1[[#This Row],[Código_Actividad]]="","",CONCATENATE(Tabla1[[#This Row],[POA]],".",Tabla1[[#This Row],[SRS]],".",Tabla1[[#This Row],[AREA]],".",Tabla1[[#This Row],[TIPO]])) ->  | C84: =IF(Tabla1[[#This Row],[Código_Actividad]]="","",'[3]Formulario PPGR1'!#REF!) ->  | D84: =IF(Tabla1[[#This Row],[Código_Actividad]]="","",'[3]Formulario PPGR1'!#REF!) ->  | E84: =IF(Tabla1[[#This Row],[Código_Actividad]]="","",'[3]Formulario PPGR1'!#REF!) ->  | F84: =IF(Tabla1[[#This Row],[Código_Actividad]]="","",'[3]Formulario PPGR1'!#REF!) ->  | L84: =+Tabla1[[#This Row],[Precio Unitario]]*Tabla1[[#This Row],[Cantidad de Insumos]] -> 0.00
B85: =IF(Tabla1[[#This Row],[Código_Actividad]]="","",CONCATENATE(Tabla1[[#This Row],[POA]],".",Tabla1[[#This Row],[SRS]],".",Tabla1[[#This Row],[AREA]],".",Tabla1[[#This Row],[TIPO]])) ->  | C85: =IF(Tabla1[[#This Row],[Código_Actividad]]="","",'[3]Formulario PPGR1'!#REF!) ->  | D85: =IF(Tabla1[[#This Row],[Código_Actividad]]="","",'[3]Formulario PPGR1'!#REF!) ->  | E85: =IF(Tabla1[[#This Row],[Código_Actividad]]="","",'[3]Formulario PPGR1'!#REF!) ->  | F85: =IF(Tabla1[[#This Row],[Código_Actividad]]="","",'[3]Formulario PPGR1'!#REF!) ->  | L85: =+Tabla1[[#This Row],[Precio Unitario]]*Tabla1[[#This Row],[Cantidad de Insumos]] -> 0.00
B86: =IF(Tabla1[[#This Row],[Código_Actividad]]="","",CONCATENATE(Tabla1[[#This Row],[POA]],".",Tabla1[[#This Row],[SRS]],".",Tabla1[[#This Row],[AREA]],".",Tabla1[[#This Row],[TIPO]])) ->  | C86: =IF(Tabla1[[#This Row],[Código_Actividad]]="","",'[3]Formulario PPGR1'!#REF!) ->  | D86: =IF(Tabla1[[#This Row],[Código_Actividad]]="","",'[3]Formulario PPGR1'!#REF!) ->  | E86: =IF(Tabla1[[#This Row],[Código_Actividad]]="","",'[3]Formulario PPGR1'!#REF!) ->  | F86: =IF(Tabla1[[#This Row],[Código_Actividad]]="","",'[3]Formulario PPGR1'!#REF!) ->  | L86: =+Tabla1[[#This Row],[Precio Unitario]]*Tabla1[[#This Row],[Cantidad de Insumos]] -> 0.00
B87: =IF(Tabla1[[#This Row],[Código_Actividad]]="","",CONCATENATE(Tabla1[[#This Row],[POA]],".",Tabla1[[#This Row],[SRS]],".",Tabla1[[#This Row],[AREA]],".",Tabla1[[#This Row],[TIPO]])) ->  | C87: =IF(Tabla1[[#This Row],[Código_Actividad]]="","",'[3]Formulario PPGR1'!#REF!) ->  | D87: =IF(Tabla1[[#This Row],[Código_Actividad]]="","",'[3]Formulario PPGR1'!#REF!) ->  | E87: =IF(Tabla1[[#This Row],[Código_Actividad]]="","",'[3]Formulario PPGR1'!#REF!) ->  | F87: =IF(Tabla1[[#This Row],[Código_Actividad]]="","",'[3]Formulario PPGR1'!#REF!) ->  | L87: =+Tabla1[[#This Row],[Precio Unitario]]*Tabla1[[#This Row],[Cantidad de Insumos]] -> 0.00
B88: =IF(Tabla1[[#This Row],[Código_Actividad]]="","",CONCATENATE(Tabla1[[#This Row],[POA]],".",Tabla1[[#This Row],[SRS]],".",Tabla1[[#This Row],[AREA]],".",Tabla1[[#This Row],[TIPO]])) ->  | C88: =IF(Tabla1[[#This Row],[Código_Actividad]]="","",'[3]Formulario PPGR1'!#REF!) ->  | D88: =IF(Tabla1[[#This Row],[Código_Actividad]]="","",'[3]Formulario PPGR1'!#REF!) ->  | E88: =IF(Tabla1[[#This Row],[Código_Actividad]]="","",'[3]Formulario PPGR1'!#REF!) ->  | F88: =IF(Tabla1[[#This Row],[Código_Actividad]]="","",'[3]Formulario PPGR1'!#REF!) ->  | L88: =+Tabla1[[#This Row],[Precio Unitario]]*Tabla1[[#This Row],[Cantidad de Insumos]] -> 0.00
B89: =IF(Tabla1[[#This Row],[Código_Actividad]]="","",CONCATENATE(Tabla1[[#This Row],[POA]],".",Tabla1[[#This Row],[SRS]],".",Tabla1[[#This Row],[AREA]],".",Tabla1[[#This Row],[TIPO]])) ->  | C89: =IF(Tabla1[[#This Row],[Código_Actividad]]="","",'[3]Formulario PPGR1'!#REF!) ->  | D89: =IF(Tabla1[[#This Row],[Código_Actividad]]="","",'[3]Formulario PPGR1'!#REF!) ->  | E89: =IF(Tabla1[[#This Row],[Código_Actividad]]="","",'[3]Formulario PPGR1'!#REF!) ->  | F89: =IF(Tabla1[[#This Row],[Código_Actividad]]="","",'[3]Formulario PPGR1'!#REF!) ->  | L89: =+Tabla1[[#This Row],[Precio Unitario]]*Tabla1[[#This Row],[Cantidad de Insumos]] -> 0.00
B90: =IF(Tabla1[[#This Row],[Código_Actividad]]="","",CONCATENATE(Tabla1[[#This Row],[POA]],".",Tabla1[[#This Row],[SRS]],".",Tabla1[[#This Row],[AREA]],".",Tabla1[[#This Row],[TIPO]])) ->  | C90: =IF(Tabla1[[#This Row],[Código_Actividad]]="","",'[3]Formulario PPGR1'!#REF!) ->  | D90: =IF(Tabla1[[#This Row],[Código_Actividad]]="","",'[3]Formulario PPGR1'!#REF!) ->  | E90: =IF(Tabla1[[#This Row],[Código_Actividad]]="","",'[3]Formulario PPGR1'!#REF!) ->  | F90: =IF(Tabla1[[#This Row],[Código_Actividad]]="","",'[3]Formulario PPGR1'!#REF!) ->  | L90: =+Tabla1[[#This Row],[Precio Unitario]]*Tabla1[[#This Row],[Cantidad de Insumos]] -> 0.00
B91: =IF(Tabla1[[#This Row],[Código_Actividad]]="","",CONCATENATE(Tabla1[[#This Row],[POA]],".",Tabla1[[#This Row],[SRS]],".",Tabla1[[#This Row],[AREA]],".",Tabla1[[#This Row],[TIPO]])) ->  | C91: =IF(Tabla1[[#This Row],[Código_Actividad]]="","",'[3]Formulario PPGR1'!#REF!) ->  | D91: =IF(Tabla1[[#This Row],[Código_Actividad]]="","",'[3]Formulario PPGR1'!#REF!) ->  | E91: =IF(Tabla1[[#This Row],[Código_Actividad]]="","",'[3]Formulario PPGR1'!#REF!) ->  | F91: =IF(Tabla1[[#This Row],[Código_Actividad]]="","",'[3]Formulario PPGR1'!#REF!) ->  | L91: =+Tabla1[[#This Row],[Precio Unitario]]*Tabla1[[#This Row],[Cantidad de Insumos]] -> 0.00
B92: =IF(Tabla1[[#This Row],[Código_Actividad]]="","",CONCATENATE(Tabla1[[#This Row],[POA]],".",Tabla1[[#This Row],[SRS]],".",Tabla1[[#This Row],[AREA]],".",Tabla1[[#This Row],[TIPO]])) ->  | C92: =IF(Tabla1[[#This Row],[Código_Actividad]]="","",'[3]Formulario PPGR1'!#REF!) ->  | D92: =IF(Tabla1[[#This Row],[Código_Actividad]]="","",'[3]Formulario PPGR1'!#REF!) ->  | E92: =IF(Tabla1[[#This Row],[Código_Actividad]]="","",'[3]Formulario PPGR1'!#REF!) ->  | F92: =IF(Tabla1[[#This Row],[Código_Actividad]]="","",'[3]Formulario PPGR1'!#REF!) ->  | L92: =+Tabla1[[#This Row],[Precio Unitario]]*Tabla1[[#This Row],[Cantidad de Insumos]] -> 0.00
B93: =IF(Tabla1[[#This Row],[Código_Actividad]]="","",CONCATENATE(Tabla1[[#This Row],[POA]],".",Tabla1[[#This Row],[SRS]],".",Tabla1[[#This Row],[AREA]],".",Tabla1[[#This Row],[TIPO]])) ->  | C93: =IF(Tabla1[[#This Row],[Código_Actividad]]="","",'[3]Formulario PPGR1'!#REF!) ->  | D93: =IF(Tabla1[[#This Row],[Código_Actividad]]="","",'[3]Formulario PPGR1'!#REF!) ->  | E93: =IF(Tabla1[[#This Row],[Código_Actividad]]="","",'[3]Formulario PPGR1'!#REF!) ->  | F93: =IF(Tabla1[[#This Row],[Código_Actividad]]="","",'[3]Formulario PPGR1'!#REF!) ->  | L93: =+Tabla1[[#This Row],[Precio Unitario]]*Tabla1[[#This Row],[Cantidad de Insumos]] -> 0.00
B94: =IF(Tabla1[[#This Row],[Código_Actividad]]="","",CONCATENATE(Tabla1[[#This Row],[POA]],".",Tabla1[[#This Row],[SRS]],".",Tabla1[[#This Row],[AREA]],".",Tabla1[[#This Row],[TIPO]])) ->  | C94: =IF(Tabla1[[#This Row],[Código_Actividad]]="","",'[3]Formulario PPGR1'!#REF!) ->  | D94: =IF(Tabla1[[#This Row],[Código_Actividad]]="","",'[3]Formulario PPGR1'!#REF!) ->  | E94: =IF(Tabla1[[#This Row],[Código_Actividad]]="","",'[3]Formulario PPGR1'!#REF!) ->  | F94: =IF(Tabla1[[#This Row],[Código_Actividad]]="","",'[3]Formulario PPGR1'!#REF!) ->  | L94: =+Tabla1[[#This Row],[Precio Unitario]]*Tabla1[[#This Row],[Cantidad de Insumos]] -> 0.00
B95: =IF(Tabla1[[#This Row],[Código_Actividad]]="","",CONCATENATE(Tabla1[[#This Row],[POA]],".",Tabla1[[#This Row],[SRS]],".",Tabla1[[#This Row],[AREA]],".",Tabla1[[#This Row],[TIPO]])) ->  | C95: =IF(Tabla1[[#This Row],[Código_Actividad]]="","",'[3]Formulario PPGR1'!#REF!) ->  | D95: =IF(Tabla1[[#This Row],[Código_Actividad]]="","",'[3]Formulario PPGR1'!#REF!) ->  | E95: =IF(Tabla1[[#This Row],[Código_Actividad]]="","",'[3]Formulario PPGR1'!#REF!) ->  | F95: =IF(Tabla1[[#This Row],[Código_Actividad]]="","",'[3]Formulario PPGR1'!#REF!) ->  | L95: =+Tabla1[[#This Row],[Precio Unitario]]*Tabla1[[#This Row],[Cantidad de Insumos]] -> 0.00
B96: =IF(Tabla1[[#This Row],[Código_Actividad]]="","",CONCATENATE(Tabla1[[#This Row],[POA]],".",Tabla1[[#This Row],[SRS]],".",Tabla1[[#This Row],[AREA]],".",Tabla1[[#This Row],[TIPO]])) ->  | C96: =IF(Tabla1[[#This Row],[Código_Actividad]]="","",'[3]Formulario PPGR1'!#REF!) ->  | D96: =IF(Tabla1[[#This Row],[Código_Actividad]]="","",'[3]Formulario PPGR1'!#REF!) ->  | E96: =IF(Tabla1[[#This Row],[Código_Actividad]]="","",'[3]Formulario PPGR1'!#REF!) ->  | F96: =IF(Tabla1[[#This Row],[Código_Actividad]]="","",'[3]Formulario PPGR1'!#REF!) ->  | L96: =+Tabla1[[#This Row],[Precio Unitario]]*Tabla1[[#This Row],[Cantidad de Insumos]] -> 0.00
B97: =IF(Tabla1[[#This Row],[Código_Actividad]]="","",CONCATENATE(Tabla1[[#This Row],[POA]],".",Tabla1[[#This Row],[SRS]],".",Tabla1[[#This Row],[AREA]],".",Tabla1[[#This Row],[TIPO]])) ->  | C97: =IF(Tabla1[[#This Row],[Código_Actividad]]="","",'[3]Formulario PPGR1'!#REF!) ->  | D97: =IF(Tabla1[[#This Row],[Código_Actividad]]="","",'[3]Formulario PPGR1'!#REF!) ->  | E97: =IF(Tabla1[[#This Row],[Código_Actividad]]="","",'[3]Formulario PPGR1'!#REF!) ->  | F97: =IF(Tabla1[[#This Row],[Código_Actividad]]="","",'[3]Formulario PPGR1'!#REF!) ->  | L97: =+Tabla1[[#This Row],[Precio Unitario]]*Tabla1[[#This Row],[Cantidad de Insumos]] -> 0.00
B98: =IF(Tabla1[[#This Row],[Código_Actividad]]="","",CONCATENATE(Tabla1[[#This Row],[POA]],".",Tabla1[[#This Row],[SRS]],".",Tabla1[[#This Row],[AREA]],".",Tabla1[[#This Row],[TIPO]])) ->  | C98: =IF(Tabla1[[#This Row],[Código_Actividad]]="","",'[3]Formulario PPGR1'!#REF!) ->  | D98: =IF(Tabla1[[#This Row],[Código_Actividad]]="","",'[3]Formulario PPGR1'!#REF!) ->  | E98: =IF(Tabla1[[#This Row],[Código_Actividad]]="","",'[3]Formulario PPGR1'!#REF!) ->  | F98: =IF(Tabla1[[#This Row],[Código_Actividad]]="","",'[3]Formulario PPGR1'!#REF!) ->  | L98: =+Tabla1[[#This Row],[Precio Unitario]]*Tabla1[[#This Row],[Cantidad de Insumos]] -> 0.00
B99: =IF(Tabla1[[#This Row],[Código_Actividad]]="","",CONCATENATE(Tabla1[[#This Row],[POA]],".",Tabla1[[#This Row],[SRS]],".",Tabla1[[#This Row],[AREA]],".",Tabla1[[#This Row],[TIPO]])) ->  | C99: =IF(Tabla1[[#This Row],[Código_Actividad]]="","",'[3]Formulario PPGR1'!#REF!) ->  | D99: =IF(Tabla1[[#This Row],[Código_Actividad]]="","",'[3]Formulario PPGR1'!#REF!) ->  | E99: =IF(Tabla1[[#This Row],[Código_Actividad]]="","",'[3]Formulario PPGR1'!#REF!) ->  | F99: =IF(Tabla1[[#This Row],[Código_Actividad]]="","",'[3]Formulario PPGR1'!#REF!) ->  | L99: =+Tabla1[[#This Row],[Precio Unitario]]*Tabla1[[#This Row],[Cantidad de Insumos]] -> 0.00
B100: =IF(Tabla1[[#This Row],[Código_Actividad]]="","",CONCATENATE(Tabla1[[#This Row],[POA]],".",Tabla1[[#This Row],[SRS]],".",Tabla1[[#This Row],[AREA]],".",Tabla1[[#This Row],[TIPO]])) ->  | C100: =IF(Tabla1[[#This Row],[Código_Actividad]]="","",'[3]Formulario PPGR1'!#REF!) ->  | D100: =IF(Tabla1[[#This Row],[Código_Actividad]]="","",'[3]Formulario PPGR1'!#REF!) ->  | E100: =IF(Tabla1[[#This Row],[Código_Actividad]]="","",'[3]Formulario PPGR1'!#REF!) ->  | F100: =IF(Tabla1[[#This Row],[Código_Actividad]]="","",'[3]Formulario PPGR1'!#REF!) ->  | L100: =+Tabla1[[#This Row],[Precio Unitario]]*Tabla1[[#This Row],[Cantidad de Insumos]] -> 0.00
B101: =IF(Tabla1[[#This Row],[Código_Actividad]]="","",CONCATENATE(Tabla1[[#This Row],[POA]],".",Tabla1[[#This Row],[SRS]],".",Tabla1[[#This Row],[AREA]],".",Tabla1[[#This Row],[TIPO]])) ->  | C101: =IF(Tabla1[[#This Row],[Código_Actividad]]="","",'[3]Formulario PPGR1'!#REF!) ->  | D101: =IF(Tabla1[[#This Row],[Código_Actividad]]="","",'[3]Formulario PPGR1'!#REF!) ->  | E101: =IF(Tabla1[[#This Row],[Código_Actividad]]="","",'[3]Formulario PPGR1'!#REF!) ->  | F101: =IF(Tabla1[[#This Row],[Código_Actividad]]="","",'[3]Formulario PPGR1'!#REF!) ->  | L101: =+Tabla1[[#This Row],[Precio Unitario]]*Tabla1[[#This Row],[Cantidad de Insumos]] -> 0.00
B102: =IF(Tabla1[[#This Row],[Código_Actividad]]="","",CONCATENATE(Tabla1[[#This Row],[POA]],".",Tabla1[[#This Row],[SRS]],".",Tabla1[[#This Row],[AREA]],".",Tabla1[[#This Row],[TIPO]])) ->  | C102: =IF(Tabla1[[#This Row],[Código_Actividad]]="","",'[3]Formulario PPGR1'!#REF!) ->  | D102: =IF(Tabla1[[#This Row],[Código_Actividad]]="","",'[3]Formulario PPGR1'!#REF!) ->  | E102: =IF(Tabla1[[#This Row],[Código_Actividad]]="","",'[3]Formulario PPGR1'!#REF!) ->  | F102: =IF(Tabla1[[#This Row],[Código_Actividad]]="","",'[3]Formulario PPGR1'!#REF!) ->  | L102: =+Tabla1[[#This Row],[Precio Unitario]]*Tabla1[[#This Row],[Cantidad de Insumos]] -> 0.00
B103: =IF(Tabla1[[#This Row],[Código_Actividad]]="","",CONCATENATE(Tabla1[[#This Row],[POA]],".",Tabla1[[#This Row],[SRS]],".",Tabla1[[#This Row],[AREA]],".",Tabla1[[#This Row],[TIPO]])) ->  | C103: =IF(Tabla1[[#This Row],[Código_Actividad]]="","",'[3]Formulario PPGR1'!#REF!) ->  | D103: =IF(Tabla1[[#This Row],[Código_Actividad]]="","",'[3]Formulario PPGR1'!#REF!) ->  | E103: =IF(Tabla1[[#This Row],[Código_Actividad]]="","",'[3]Formulario PPGR1'!#REF!) ->  | F103: =IF(Tabla1[[#This Row],[Código_Actividad]]="","",'[3]Formulario PPGR1'!#REF!) ->  | L103: =+Tabla1[[#This Row],[Precio Unitario]]*Tabla1[[#This Row],[Cantidad de Insumos]] -> 0.00
B104: =IF(Tabla1[[#This Row],[Código_Actividad]]="","",CONCATENATE(Tabla1[[#This Row],[POA]],".",Tabla1[[#This Row],[SRS]],".",Tabla1[[#This Row],[AREA]],".",Tabla1[[#This Row],[TIPO]])) ->  | C104: =IF(Tabla1[[#This Row],[Código_Actividad]]="","",'[3]Formulario PPGR1'!#REF!) ->  | D104: =IF(Tabla1[[#This Row],[Código_Actividad]]="","",'[3]Formulario PPGR1'!#REF!) ->  | E104: =IF(Tabla1[[#This Row],[Código_Actividad]]="","",'[3]Formulario PPGR1'!#REF!) ->  | F104: =IF(Tabla1[[#This Row],[Código_Actividad]]="","",'[3]Formulario PPGR1'!#REF!) ->  | L104: =+Tabla1[[#This Row],[Precio Unitario]]*Tabla1[[#This Row],[Cantidad de Insumos]] -> 0.00
B105: =IF(Tabla1[[#This Row],[Código_Actividad]]="","",CONCATENATE(Tabla1[[#This Row],[POA]],".",Tabla1[[#This Row],[SRS]],".",Tabla1[[#This Row],[AREA]],".",Tabla1[[#This Row],[TIPO]])) ->  | C105: =IF(Tabla1[[#This Row],[Código_Actividad]]="","",'[3]Formulario PPGR1'!#REF!) ->  | D105: =IF(Tabla1[[#This Row],[Código_Actividad]]="","",'[3]Formulario PPGR1'!#REF!) ->  | E105: =IF(Tabla1[[#This Row],[Código_Actividad]]="","",'[3]Formulario PPGR1'!#REF!) ->  | F105: =IF(Tabla1[[#This Row],[Código_Actividad]]="","",'[3]Formulario PPGR1'!#REF!) ->  | L105: =+Tabla1[[#This Row],[Precio Unitario]]*Tabla1[[#This Row],[Cantidad de Insumos]] -> 0.00
B106: =IF(Tabla1[[#This Row],[Código_Actividad]]="","",CONCATENATE(Tabla1[[#This Row],[POA]],".",Tabla1[[#This Row],[SRS]],".",Tabla1[[#This Row],[AREA]],".",Tabla1[[#This Row],[TIPO]])) ->  | C106: =IF(Tabla1[[#This Row],[Código_Actividad]]="","",'[3]Formulario PPGR1'!#REF!) ->  | D106: =IF(Tabla1[[#This Row],[Código_Actividad]]="","",'[3]Formulario PPGR1'!#REF!) ->  | E106: =IF(Tabla1[[#This Row],[Código_Actividad]]="","",'[3]Formulario PPGR1'!#REF!) ->  | F106: =IF(Tabla1[[#This Row],[Código_Actividad]]="","",'[3]Formulario PPGR1'!#REF!) ->  | L106: =+Tabla1[[#This Row],[Precio Unitario]]*Tabla1[[#This Row],[Cantidad de Insumos]] -> 0.00
B107: =IF(Tabla1[[#This Row],[Código_Actividad]]="","",CONCATENATE(Tabla1[[#This Row],[POA]],".",Tabla1[[#This Row],[SRS]],".",Tabla1[[#This Row],[AREA]],".",Tabla1[[#This Row],[TIPO]])) ->  | C107: =IF(Tabla1[[#This Row],[Código_Actividad]]="","",'[3]Formulario PPGR1'!#REF!) ->  | D107: =IF(Tabla1[[#This Row],[Código_Actividad]]="","",'[3]Formulario PPGR1'!#REF!) ->  | E107: =IF(Tabla1[[#This Row],[Código_Actividad]]="","",'[3]Formulario PPGR1'!#REF!) ->  | F107: =IF(Tabla1[[#This Row],[Código_Actividad]]="","",'[3]Formulario PPGR1'!#REF!) ->  | L107: =+Tabla1[[#This Row],[Precio Unitario]]*Tabla1[[#This Row],[Cantidad de Insumos]] -> 0.00
B108: =IF(Tabla1[[#This Row],[Código_Actividad]]="","",CONCATENATE(Tabla1[[#This Row],[POA]],".",Tabla1[[#This Row],[SRS]],".",Tabla1[[#This Row],[AREA]],".",Tabla1[[#This Row],[TIPO]])) ->  | C108: =IF(Tabla1[[#This Row],[Código_Actividad]]="","",'[3]Formulario PPGR1'!#REF!) ->  | D108: =IF(Tabla1[[#This Row],[Código_Actividad]]="","",'[3]Formulario PPGR1'!#REF!) ->  | E108: =IF(Tabla1[[#This Row],[Código_Actividad]]="","",'[3]Formulario PPGR1'!#REF!) ->  | F108: =IF(Tabla1[[#This Row],[Código_Actividad]]="","",'[3]Formulario PPGR1'!#REF!) ->  | L108: =+Tabla1[[#This Row],[Precio Unitario]]*Tabla1[[#This Row],[Cantidad de Insumos]] -> 0.00
B109: =IF(Tabla1[[#This Row],[Código_Actividad]]="","",CONCATENATE(Tabla1[[#This Row],[POA]],".",Tabla1[[#This Row],[SRS]],".",Tabla1[[#This Row],[AREA]],".",Tabla1[[#This Row],[TIPO]])) ->  | C109: =IF(Tabla1[[#This Row],[Código_Actividad]]="","",'[3]Formulario PPGR1'!#REF!) ->  | D109: =IF(Tabla1[[#This Row],[Código_Actividad]]="","",'[3]Formulario PPGR1'!#REF!) ->  | E109: =IF(Tabla1[[#This Row],[Código_Actividad]]="","",'[3]Formulario PPGR1'!#REF!) ->  | F109: =IF(Tabla1[[#This Row],[Código_Actividad]]="","",'[3]Formulario PPGR1'!#REF!) ->  | L109: =+Tabla1[[#This Row],[Precio Unitario]]*Tabla1[[#This Row],[Cantidad de Insumos]] -> 0.00
B110: =IF(Tabla1[[#This Row],[Código_Actividad]]="","",CONCATENATE(Tabla1[[#This Row],[POA]],".",Tabla1[[#This Row],[SRS]],".",Tabla1[[#This Row],[AREA]],".",Tabla1[[#This Row],[TIPO]])) ->  | C110: =IF(Tabla1[[#This Row],[Código_Actividad]]="","",'[3]Formulario PPGR1'!#REF!) ->  | D110: =IF(Tabla1[[#This Row],[Código_Actividad]]="","",'[3]Formulario PPGR1'!#REF!) ->  | E110: =IF(Tabla1[[#This Row],[Código_Actividad]]="","",'[3]Formulario PPGR1'!#REF!) ->  | F110: =IF(Tabla1[[#This Row],[Código_Actividad]]="","",'[3]Formulario PPGR1'!#REF!) ->  | L110: =+Tabla1[[#This Row],[Precio Unitario]]*Tabla1[[#This Row],[Cantidad de Insumos]] -> 0.00
B111: =IF(Tabla1[[#This Row],[Código_Actividad]]="","",CONCATENATE(Tabla1[[#This Row],[POA]],".",Tabla1[[#This Row],[SRS]],".",Tabla1[[#This Row],[AREA]],".",Tabla1[[#This Row],[TIPO]])) ->  | C111: =IF(Tabla1[[#This Row],[Código_Actividad]]="","",'[3]Formulario PPGR1'!#REF!) ->  | D111: =IF(Tabla1[[#This Row],[Código_Actividad]]="","",'[3]Formulario PPGR1'!#REF!) ->  | E111: =IF(Tabla1[[#This Row],[Código_Actividad]]="","",'[3]Formulario PPGR1'!#REF!) ->  | F111: =IF(Tabla1[[#This Row],[Código_Actividad]]="","",'[3]Formulario PPGR1'!#REF!) ->  | L111: =+Tabla1[[#This Row],[Precio Unitario]]*Tabla1[[#This Row],[Cantidad de Insumos]] -> 0.00
B112: =IF(Tabla1[[#This Row],[Código_Actividad]]="","",CONCATENATE(Tabla1[[#This Row],[POA]],".",Tabla1[[#This Row],[SRS]],".",Tabla1[[#This Row],[AREA]],".",Tabla1[[#This Row],[TIPO]])) ->  | C112: =IF(Tabla1[[#This Row],[Código_Actividad]]="","",'[3]Formulario PPGR1'!#REF!) ->  | D112: =IF(Tabla1[[#This Row],[Código_Actividad]]="","",'[3]Formulario PPGR1'!#REF!) ->  | E112: =IF(Tabla1[[#This Row],[Código_Actividad]]="","",'[3]Formulario PPGR1'!#REF!) ->  | F112: =IF(Tabla1[[#This Row],[Código_Actividad]]="","",'[3]Formulario PPGR1'!#REF!) ->  | L112: =+Tabla1[[#This Row],[Precio Unitario]]*Tabla1[[#This Row],[Cantidad de Insumos]] -> 0.00
B113: =IF(Tabla1[[#This Row],[Código_Actividad]]="","",CONCATENATE(Tabla1[[#This Row],[POA]],".",Tabla1[[#This Row],[SRS]],".",Tabla1[[#This Row],[AREA]],".",Tabla1[[#This Row],[TIPO]])) ->  | C113: =IF(Tabla1[[#This Row],[Código_Actividad]]="","",'[3]Formulario PPGR1'!#REF!) ->  | D113: =IF(Tabla1[[#This Row],[Código_Actividad]]="","",'[3]Formulario PPGR1'!#REF!) ->  | E113: =IF(Tabla1[[#This Row],[Código_Actividad]]="","",'[3]Formulario PPGR1'!#REF!) ->  | F113: =IF(Tabla1[[#This Row],[Código_Actividad]]="","",'[3]Formulario PPGR1'!#REF!) ->  | L113: =+Tabla1[[#This Row],[Precio Unitario]]*Tabla1[[#This Row],[Cantidad de Insumos]] -> 0.00
B114: =IF(Tabla1[[#This Row],[Código_Actividad]]="","",CONCATENATE(Tabla1[[#This Row],[POA]],".",Tabla1[[#This Row],[SRS]],".",Tabla1[[#This Row],[AREA]],".",Tabla1[[#This Row],[TIPO]])) ->  | C114: =IF(Tabla1[[#This Row],[Código_Actividad]]="","",'[3]Formulario PPGR1'!#REF!) ->  | D114: =IF(Tabla1[[#This Row],[Código_Actividad]]="","",'[3]Formulario PPGR1'!#REF!) ->  | E114: =IF(Tabla1[[#This Row],[Código_Actividad]]="","",'[3]Formulario PPGR1'!#REF!) ->  | F114: =IF(Tabla1[[#This Row],[Código_Actividad]]="","",'[3]Formulario PPGR1'!#REF!) ->  | L114: =+Tabla1[[#This Row],[Precio Unitario]]*Tabla1[[#This Row],[Cantidad de Insumos]] -> 0.00
B115: =IF(Tabla1[[#This Row],[Código_Actividad]]="","",CONCATENATE(Tabla1[[#This Row],[POA]],".",Tabla1[[#This Row],[SRS]],".",Tabla1[[#This Row],[AREA]],".",Tabla1[[#This Row],[TIPO]])) ->  | C115: =IF(Tabla1[[#This Row],[Código_Actividad]]="","",'[3]Formulario PPGR1'!#REF!) ->  | D115: =IF(Tabla1[[#This Row],[Código_Actividad]]="","",'[3]Formulario PPGR1'!#REF!) ->  | E115: =IF(Tabla1[[#This Row],[Código_Actividad]]="","",'[3]Formulario PPGR1'!#REF!) ->  | F115: =IF(Tabla1[[#This Row],[Código_Actividad]]="","",'[3]Formulario PPGR1'!#REF!) ->  | L115: =+Tabla1[[#This Row],[Precio Unitario]]*Tabla1[[#This Row],[Cantidad de Insumos]] -> 0.00
B116: =IF(Tabla1[[#This Row],[Código_Actividad]]="","",CONCATENATE(Tabla1[[#This Row],[POA]],".",Tabla1[[#This Row],[SRS]],".",Tabla1[[#This Row],[AREA]],".",Tabla1[[#This Row],[TIPO]])) ->  | C116: =IF(Tabla1[[#This Row],[Código_Actividad]]="","",'[3]Formulario PPGR1'!#REF!) ->  | D116: =IF(Tabla1[[#This Row],[Código_Actividad]]="","",'[3]Formulario PPGR1'!#REF!) ->  | E116: =IF(Tabla1[[#This Row],[Código_Actividad]]="","",'[3]Formulario PPGR1'!#REF!) ->  | F116: =IF(Tabla1[[#This Row],[Código_Actividad]]="","",'[3]Formulario PPGR1'!#REF!) ->  | L116: =+Tabla1[[#This Row],[Precio Unitario]]*Tabla1[[#This Row],[Cantidad de Insumos]] -> 0.00
B117: =IF(Tabla1[[#This Row],[Código_Actividad]]="","",CONCATENATE(Tabla1[[#This Row],[POA]],".",Tabla1[[#This Row],[SRS]],".",Tabla1[[#This Row],[AREA]],".",Tabla1[[#This Row],[TIPO]])) ->  | C117: =IF(Tabla1[[#This Row],[Código_Actividad]]="","",'[3]Formulario PPGR1'!#REF!) ->  | D117: =IF(Tabla1[[#This Row],[Código_Actividad]]="","",'[3]Formulario PPGR1'!#REF!) ->  | E117: =IF(Tabla1[[#This Row],[Código_Actividad]]="","",'[3]Formulario PPGR1'!#REF!) ->  | F117: =IF(Tabla1[[#This Row],[Código_Actividad]]="","",'[3]Formulario PPGR1'!#REF!) ->  | L117: =+Tabla1[[#This Row],[Precio Unitario]]*Tabla1[[#This Row],[Cantidad de Insumos]] -> 0.00
B118: =IF(Tabla1[[#This Row],[Código_Actividad]]="","",CONCATENATE(Tabla1[[#This Row],[POA]],".",Tabla1[[#This Row],[SRS]],".",Tabla1[[#This Row],[AREA]],".",Tabla1[[#This Row],[TIPO]])) ->  | C118: =IF(Tabla1[[#This Row],[Código_Actividad]]="","",'[3]Formulario PPGR1'!#REF!) ->  | D118: =IF(Tabla1[[#This Row],[Código_Actividad]]="","",'[3]Formulario PPGR1'!#REF!) ->  | E118: =IF(Tabla1[[#This Row],[Código_Actividad]]="","",'[3]Formulario PPGR1'!#REF!) ->  | F118: =IF(Tabla1[[#This Row],[Código_Actividad]]="","",'[3]Formulario PPGR1'!#REF!) ->  | L118: =+Tabla1[[#This Row],[Precio Unitario]]*Tabla1[[#This Row],[Cantidad de Insumos]] -> 0.00
B119: =IF(Tabla1[[#This Row],[Código_Actividad]]="","",CONCATENATE(Tabla1[[#This Row],[POA]],".",Tabla1[[#This Row],[SRS]],".",Tabla1[[#This Row],[AREA]],".",Tabla1[[#This Row],[TIPO]])) ->  | C119: =IF(Tabla1[[#This Row],[Código_Actividad]]="","",'[3]Formulario PPGR1'!#REF!) ->  | D119: =IF(Tabla1[[#This Row],[Código_Actividad]]="","",'[3]Formulario PPGR1'!#REF!) ->  | E119: =IF(Tabla1[[#This Row],[Código_Actividad]]="","",'[3]Formulario PPGR1'!#REF!) ->  | F119: =IF(Tabla1[[#This Row],[Código_Actividad]]="","",'[3]Formulario PPGR1'!#REF!) ->  | L119: =+Tabla1[[#This Row],[Precio Unitario]]*Tabla1[[#This Row],[Cantidad de Insumos]] -> 0.00
B120: =IF(Tabla1[[#This Row],[Código_Actividad]]="","",CONCATENATE(Tabla1[[#This Row],[POA]],".",Tabla1[[#This Row],[SRS]],".",Tabla1[[#This Row],[AREA]],".",Tabla1[[#This Row],[TIPO]])) ->  | C120: =IF(Tabla1[[#This Row],[Código_Actividad]]="","",'[3]Formulario PPGR1'!#REF!) ->  | D120: =IF(Tabla1[[#This Row],[Código_Actividad]]="","",'[3]Formulario PPGR1'!#REF!) ->  | E120: =IF(Tabla1[[#This Row],[Código_Actividad]]="","",'[3]Formulario PPGR1'!#REF!) ->  | F120: =IF(Tabla1[[#This Row],[Código_Actividad]]="","",'[3]Formulario PPGR1'!#REF!) ->  | L120: =+Tabla1[[#This Row],[Precio Unitario]]*Tabla1[[#This Row],[Cantidad de Insumos]] -> 0.00
B121: =IF(Tabla1[[#This Row],[Código_Actividad]]="","",CONCATENATE(Tabla1[[#This Row],[POA]],".",Tabla1[[#This Row],[SRS]],".",Tabla1[[#This Row],[AREA]],".",Tabla1[[#This Row],[TIPO]])) ->  | C121: =IF(Tabla1[[#This Row],[Código_Actividad]]="","",'[3]Formulario PPGR1'!#REF!) ->  | D121: =IF(Tabla1[[#This Row],[Código_Actividad]]="","",'[3]Formulario PPGR1'!#REF!) ->  | E121: =IF(Tabla1[[#This Row],[Código_Actividad]]="","",'[3]Formulario PPGR1'!#REF!) ->  | F121: =IF(Tabla1[[#This Row],[Código_Actividad]]="","",'[3]Formulario PPGR1'!#REF!) ->  | L121: =+Tabla1[[#This Row],[Precio Unitario]]*Tabla1[[#This Row],[Cantidad de Insumos]] -> 0.00
B122: =IF(Tabla1[[#This Row],[Código_Actividad]]="","",CONCATENATE(Tabla1[[#This Row],[POA]],".",Tabla1[[#This Row],[SRS]],".",Tabla1[[#This Row],[AREA]],".",Tabla1[[#This Row],[TIPO]])) ->  | C122: =IF(Tabla1[[#This Row],[Código_Actividad]]="","",'[3]Formulario PPGR1'!#REF!) ->  | D122: =IF(Tabla1[[#This Row],[Código_Actividad]]="","",'[3]Formulario PPGR1'!#REF!) ->  | E122: =IF(Tabla1[[#This Row],[Código_Actividad]]="","",'[3]Formulario PPGR1'!#REF!) ->  | F122: =IF(Tabla1[[#This Row],[Código_Actividad]]="","",'[3]Formulario PPGR1'!#REF!) ->  | L122: =+Tabla1[[#This Row],[Precio Unitario]]*Tabla1[[#This Row],[Cantidad de Insumos]] -> 0.00
B123: =IF(Tabla1[[#This Row],[Código_Actividad]]="","",CONCATENATE(Tabla1[[#This Row],[POA]],".",Tabla1[[#This Row],[SRS]],".",Tabla1[[#This Row],[AREA]],".",Tabla1[[#This Row],[TIPO]])) ->  | C123: =IF(Tabla1[[#This Row],[Código_Actividad]]="","",'[3]Formulario PPGR1'!#REF!) ->  | D123: =IF(Tabla1[[#This Row],[Código_Actividad]]="","",'[3]Formulario PPGR1'!#REF!) ->  | E123: =IF(Tabla1[[#This Row],[Código_Actividad]]="","",'[3]Formulario PPGR1'!#REF!) ->  | F123: =IF(Tabla1[[#This Row],[Código_Actividad]]="","",'[3]Formulario PPGR1'!#REF!) ->  | L123: =+Tabla1[[#This Row],[Precio Unitario]]*Tabla1[[#This Row],[Cantidad de Insumos]] -> 0.00
B124: =IF(Tabla1[[#This Row],[Código_Actividad]]="","",CONCATENATE(Tabla1[[#This Row],[POA]],".",Tabla1[[#This Row],[SRS]],".",Tabla1[[#This Row],[AREA]],".",Tabla1[[#This Row],[TIPO]])) ->  | C124: =IF(Tabla1[[#This Row],[Código_Actividad]]="","",'[3]Formulario PPGR1'!#REF!) ->  | D124: =IF(Tabla1[[#This Row],[Código_Actividad]]="","",'[3]Formulario PPGR1'!#REF!) ->  | E124: =IF(Tabla1[[#This Row],[Código_Actividad]]="","",'[3]Formulario PPGR1'!#REF!) ->  | F124: =IF(Tabla1[[#This Row],[Código_Actividad]]="","",'[3]Formulario PPGR1'!#REF!) ->  | L124: =+Tabla1[[#This Row],[Precio Unitario]]*Tabla1[[#This Row],[Cantidad de Insumos]] -> 0.00
B125: =IF(Tabla1[[#This Row],[Código_Actividad]]="","",CONCATENATE(Tabla1[[#This Row],[POA]],".",Tabla1[[#This Row],[SRS]],".",Tabla1[[#This Row],[AREA]],".",Tabla1[[#This Row],[TIPO]])) ->  | C125: =IF(Tabla1[[#This Row],[Código_Actividad]]="","",'[3]Formulario PPGR1'!#REF!) ->  | D125: =IF(Tabla1[[#This Row],[Código_Actividad]]="","",'[3]Formulario PPGR1'!#REF!) ->  | E125: =IF(Tabla1[[#This Row],[Código_Actividad]]="","",'[3]Formulario PPGR1'!#REF!) ->  | F125: =IF(Tabla1[[#This Row],[Código_Actividad]]="","",'[3]Formulario PPGR1'!#REF!) ->  | L125: =+Tabla1[[#This Row],[Precio Unitario]]*Tabla1[[#This Row],[Cantidad de Insumos]] -> 0.00
B126: =IF(Tabla1[[#This Row],[Código_Actividad]]="","",CONCATENATE(Tabla1[[#This Row],[POA]],".",Tabla1[[#This Row],[SRS]],".",Tabla1[[#This Row],[AREA]],".",Tabla1[[#This Row],[TIPO]])) ->  | C126: =IF(Tabla1[[#This Row],[Código_Actividad]]="","",'[3]Formulario PPGR1'!#REF!) ->  | D126: =IF(Tabla1[[#This Row],[Código_Actividad]]="","",'[3]Formulario PPGR1'!#REF!) ->  | E126: =IF(Tabla1[[#This Row],[Código_Actividad]]="","",'[3]Formulario PPGR1'!#REF!) ->  | F126: =IF(Tabla1[[#This Row],[Código_Actividad]]="","",'[3]Formulario PPGR1'!#REF!) ->  | L126: =+Tabla1[[#This Row],[Precio Unitario]]*Tabla1[[#This Row],[Cantidad de Insumos]] -> 0.00
B127: =IF(Tabla1[[#This Row],[Código_Actividad]]="","",CONCATENATE(Tabla1[[#This Row],[POA]],".",Tabla1[[#This Row],[SRS]],".",Tabla1[[#This Row],[AREA]],".",Tabla1[[#This Row],[TIPO]])) ->  | C127: =IF(Tabla1[[#This Row],[Código_Actividad]]="","",'[3]Formulario PPGR1'!#REF!) ->  | D127: =IF(Tabla1[[#This Row],[Código_Actividad]]="","",'[3]Formulario PPGR1'!#REF!) ->  | E127: =IF(Tabla1[[#This Row],[Código_Actividad]]="","",'[3]Formulario PPGR1'!#REF!) ->  | F127: =IF(Tabla1[[#This Row],[Código_Actividad]]="","",'[3]Formulario PPGR1'!#REF!) ->  | L127: =+Tabla1[[#This Row],[Precio Unitario]]*Tabla1[[#This Row],[Cantidad de Insumos]] -> 0.00
B128: =IF(Tabla1[[#This Row],[Código_Actividad]]="","",CONCATENATE(Tabla1[[#This Row],[POA]],".",Tabla1[[#This Row],[SRS]],".",Tabla1[[#This Row],[AREA]],".",Tabla1[[#This Row],[TIPO]])) ->  | C128: =IF(Tabla1[[#This Row],[Código_Actividad]]="","",'[3]Formulario PPGR1'!#REF!) ->  | D128: =IF(Tabla1[[#This Row],[Código_Actividad]]="","",'[3]Formulario PPGR1'!#REF!) ->  | E128: =IF(Tabla1[[#This Row],[Código_Actividad]]="","",'[3]Formulario PPGR1'!#REF!) ->  | F128: =IF(Tabla1[[#This Row],[Código_Actividad]]="","",'[3]Formulario PPGR1'!#REF!) ->  | L128: =+Tabla1[[#This Row],[Precio Unitario]]*Tabla1[[#This Row],[Cantidad de Insumos]] -> 0.00
B129: =IF(Tabla1[[#This Row],[Código_Actividad]]="","",CONCATENATE(Tabla1[[#This Row],[POA]],".",Tabla1[[#This Row],[SRS]],".",Tabla1[[#This Row],[AREA]],".",Tabla1[[#This Row],[TIPO]])) ->  | C129: =IF(Tabla1[[#This Row],[Código_Actividad]]="","",'[3]Formulario PPGR1'!#REF!) ->  | D129: =IF(Tabla1[[#This Row],[Código_Actividad]]="","",'[3]Formulario PPGR1'!#REF!) ->  | E129: =IF(Tabla1[[#This Row],[Código_Actividad]]="","",'[3]Formulario PPGR1'!#REF!) ->  | F129: =IF(Tabla1[[#This Row],[Código_Actividad]]="","",'[3]Formulario PPGR1'!#REF!) ->  | L129: =+Tabla1[[#This Row],[Precio Unitario]]*Tabla1[[#This Row],[Cantidad de Insumos]] -> 0.00
B130: =IF(Tabla1[[#This Row],[Código_Actividad]]="","",CONCATENATE(Tabla1[[#This Row],[POA]],".",Tabla1[[#This Row],[SRS]],".",Tabla1[[#This Row],[AREA]],".",Tabla1[[#This Row],[TIPO]])) ->  | C130: =IF(Tabla1[[#This Row],[Código_Actividad]]="","",'[3]Formulario PPGR1'!#REF!) ->  | D130: =IF(Tabla1[[#This Row],[Código_Actividad]]="","",'[3]Formulario PPGR1'!#REF!) ->  | E130: =IF(Tabla1[[#This Row],[Código_Actividad]]="","",'[3]Formulario PPGR1'!#REF!) ->  | F130: =IF(Tabla1[[#This Row],[Código_Actividad]]="","",'[3]Formulario PPGR1'!#REF!) ->  | L130: =+Tabla1[[#This Row],[Precio Unitario]]*Tabla1[[#This Row],[Cantidad de Insumos]] -> 0.00
B131: =IF(Tabla1[[#This Row],[Código_Actividad]]="","",CONCATENATE(Tabla1[[#This Row],[POA]],".",Tabla1[[#This Row],[SRS]],".",Tabla1[[#This Row],[AREA]],".",Tabla1[[#This Row],[TIPO]])) ->  | C131: =IF(Tabla1[[#This Row],[Código_Actividad]]="","",'[3]Formulario PPGR1'!#REF!) ->  | D131: =IF(Tabla1[[#This Row],[Código_Actividad]]="","",'[3]Formulario PPGR1'!#REF!) ->  | E131: =IF(Tabla1[[#This Row],[Código_Actividad]]="","",'[3]Formulario PPGR1'!#REF!) ->  | F131: =IF(Tabla1[[#This Row],[Código_Actividad]]="","",'[3]Formulario PPGR1'!#REF!) ->  | L131: =+Tabla1[[#This Row],[Precio Unitario]]*Tabla1[[#This Row],[Cantidad de Insumos]] -> 0.00
B132: =IF(Tabla1[[#This Row],[Código_Actividad]]="","",CONCATENATE(Tabla1[[#This Row],[POA]],".",Tabla1[[#This Row],[SRS]],".",Tabla1[[#This Row],[AREA]],".",Tabla1[[#This Row],[TIPO]])) ->  | C132: =IF(Tabla1[[#This Row],[Código_Actividad]]="","",'[3]Formulario PPGR1'!#REF!) ->  | D132: =IF(Tabla1[[#This Row],[Código_Actividad]]="","",'[3]Formulario PPGR1'!#REF!) ->  | E132: =IF(Tabla1[[#This Row],[Código_Actividad]]="","",'[3]Formulario PPGR1'!#REF!) ->  | F132: =IF(Tabla1[[#This Row],[Código_Actividad]]="","",'[3]Formulario PPGR1'!#REF!) ->  | L132: =+Tabla1[[#This Row],[Precio Unitario]]*Tabla1[[#This Row],[Cantidad de Insumos]] -> 0.00
B133: =IF(Tabla1[[#This Row],[Código_Actividad]]="","",CONCATENATE(Tabla1[[#This Row],[POA]],".",Tabla1[[#This Row],[SRS]],".",Tabla1[[#This Row],[AREA]],".",Tabla1[[#This Row],[TIPO]])) ->  | C133: =IF(Tabla1[[#This Row],[Código_Actividad]]="","",'[3]Formulario PPGR1'!#REF!) ->  | D133: =IF(Tabla1[[#This Row],[Código_Actividad]]="","",'[3]Formulario PPGR1'!#REF!) ->  | E133: =IF(Tabla1[[#This Row],[Código_Actividad]]="","",'[3]Formulario PPGR1'!#REF!) ->  | F133: =IF(Tabla1[[#This Row],[Código_Actividad]]="","",'[3]Formulario PPGR1'!#REF!) ->  | L133: =+Tabla1[[#This Row],[Precio Unitario]]*Tabla1[[#This Row],[Cantidad de Insumos]] -> 0.00
B134: =IF(Tabla1[[#This Row],[Código_Actividad]]="","",CONCATENATE(Tabla1[[#This Row],[POA]],".",Tabla1[[#This Row],[SRS]],".",Tabla1[[#This Row],[AREA]],".",Tabla1[[#This Row],[TIPO]])) ->  | C134: =IF(Tabla1[[#This Row],[Código_Actividad]]="","",'[3]Formulario PPGR1'!#REF!) ->  | D134: =IF(Tabla1[[#This Row],[Código_Actividad]]="","",'[3]Formulario PPGR1'!#REF!) ->  | E134: =IF(Tabla1[[#This Row],[Código_Actividad]]="","",'[3]Formulario PPGR1'!#REF!) ->  | F134: =IF(Tabla1[[#This Row],[Código_Actividad]]="","",'[3]Formulario PPGR1'!#REF!) ->  | L134: =+Tabla1[[#This Row],[Precio Unitario]]*Tabla1[[#This Row],[Cantidad de Insumos]] -> 0.00
B135: =IF(Tabla1[[#This Row],[Código_Actividad]]="","",CONCATENATE(Tabla1[[#This Row],[POA]],".",Tabla1[[#This Row],[SRS]],".",Tabla1[[#This Row],[AREA]],".",Tabla1[[#This Row],[TIPO]])) ->  | C135: =IF(Tabla1[[#This Row],[Código_Actividad]]="","",'[3]Formulario PPGR1'!#REF!) ->  | D135: =IF(Tabla1[[#This Row],[Código_Actividad]]="","",'[3]Formulario PPGR1'!#REF!) ->  | E135: =IF(Tabla1[[#This Row],[Código_Actividad]]="","",'[3]Formulario PPGR1'!#REF!) ->  | F135: =IF(Tabla1[[#This Row],[Código_Actividad]]="","",'[3]Formulario PPGR1'!#REF!) ->  | L135: =+Tabla1[[#This Row],[Precio Unitario]]*Tabla1[[#This Row],[Cantidad de Insumos]] -> 0.00
B136: =IF(Tabla1[[#This Row],[Código_Actividad]]="","",CONCATENATE(Tabla1[[#This Row],[POA]],".",Tabla1[[#This Row],[SRS]],".",Tabla1[[#This Row],[AREA]],".",Tabla1[[#This Row],[TIPO]])) ->  | C136: =IF(Tabla1[[#This Row],[Código_Actividad]]="","",'[3]Formulario PPGR1'!#REF!) ->  | D136: =IF(Tabla1[[#This Row],[Código_Actividad]]="","",'[3]Formulario PPGR1'!#REF!) ->  | E136: =IF(Tabla1[[#This Row],[Código_Actividad]]="","",'[3]Formulario PPGR1'!#REF!) ->  | F136: =IF(Tabla1[[#This Row],[Código_Actividad]]="","",'[3]Formulario PPGR1'!#REF!) ->  | L136: =+Tabla1[[#This Row],[Precio Unitario]]*Tabla1[[#This Row],[Cantidad de Insumos]] -> 0.00
B137: =IF(Tabla1[[#This Row],[Código_Actividad]]="","",CONCATENATE(Tabla1[[#This Row],[POA]],".",Tabla1[[#This Row],[SRS]],".",Tabla1[[#This Row],[AREA]],".",Tabla1[[#This Row],[TIPO]])) ->  | C137: =IF(Tabla1[[#This Row],[Código_Actividad]]="","",'[3]Formulario PPGR1'!#REF!) ->  | D137: =IF(Tabla1[[#This Row],[Código_Actividad]]="","",'[3]Formulario PPGR1'!#REF!) ->  | E137: =IF(Tabla1[[#This Row],[Código_Actividad]]="","",'[3]Formulario PPGR1'!#REF!) ->  | F137: =IF(Tabla1[[#This Row],[Código_Actividad]]="","",'[3]Formulario PPGR1'!#REF!) ->  | L137: =+Tabla1[[#This Row],[Precio Unitario]]*Tabla1[[#This Row],[Cantidad de Insumos]] -> 0.00
B138: =IF(Tabla1[[#This Row],[Código_Actividad]]="","",CONCATENATE(Tabla1[[#This Row],[POA]],".",Tabla1[[#This Row],[SRS]],".",Tabla1[[#This Row],[AREA]],".",Tabla1[[#This Row],[TIPO]])) ->  | C138: =IF(Tabla1[[#This Row],[Código_Actividad]]="","",'[3]Formulario PPGR1'!#REF!) ->  | D138: =IF(Tabla1[[#This Row],[Código_Actividad]]="","",'[3]Formulario PPGR1'!#REF!) ->  | E138: =IF(Tabla1[[#This Row],[Código_Actividad]]="","",'[3]Formulario PPGR1'!#REF!) ->  | F138: =IF(Tabla1[[#This Row],[Código_Actividad]]="","",'[3]Formulario PPGR1'!#REF!) ->  | L138: =+Tabla1[[#This Row],[Precio Unitario]]*Tabla1[[#This Row],[Cantidad de Insumos]] -> 0.00
B139: =IF(Tabla1[[#This Row],[Código_Actividad]]="","",CONCATENATE(Tabla1[[#This Row],[POA]],".",Tabla1[[#This Row],[SRS]],".",Tabla1[[#This Row],[AREA]],".",Tabla1[[#This Row],[TIPO]])) ->  | C139: =IF(Tabla1[[#This Row],[Código_Actividad]]="","",'[3]Formulario PPGR1'!#REF!) ->  | D139: =IF(Tabla1[[#This Row],[Código_Actividad]]="","",'[3]Formulario PPGR1'!#REF!) ->  | E139: =IF(Tabla1[[#This Row],[Código_Actividad]]="","",'[3]Formulario PPGR1'!#REF!) ->  | F139: =IF(Tabla1[[#This Row],[Código_Actividad]]="","",'[3]Formulario PPGR1'!#REF!) ->  | L139: =+Tabla1[[#This Row],[Precio Unitario]]*Tabla1[[#This Row],[Cantidad de Insumos]] -> 0.00
B140: =IF(Tabla1[[#This Row],[Código_Actividad]]="","",CONCATENATE(Tabla1[[#This Row],[POA]],".",Tabla1[[#This Row],[SRS]],".",Tabla1[[#This Row],[AREA]],".",Tabla1[[#This Row],[TIPO]])) ->  | C140: =IF(Tabla1[[#This Row],[Código_Actividad]]="","",'[3]Formulario PPGR1'!#REF!) ->  | D140: =IF(Tabla1[[#This Row],[Código_Actividad]]="","",'[3]Formulario PPGR1'!#REF!) ->  | E140: =IF(Tabla1[[#This Row],[Código_Actividad]]="","",'[3]Formulario PPGR1'!#REF!) ->  | F140: =IF(Tabla1[[#This Row],[Código_Actividad]]="","",'[3]Formulario PPGR1'!#REF!) ->  | L140: =+Tabla1[[#This Row],[Precio Unitario]]*Tabla1[[#This Row],[Cantidad de Insumos]] -> 0.00
B141: =IF(Tabla1[[#This Row],[Código_Actividad]]="","",CONCATENATE(Tabla1[[#This Row],[POA]],".",Tabla1[[#This Row],[SRS]],".",Tabla1[[#This Row],[AREA]],".",Tabla1[[#This Row],[TIPO]])) ->  | C141: =IF(Tabla1[[#This Row],[Código_Actividad]]="","",'[3]Formulario PPGR1'!#REF!) ->  | D141: =IF(Tabla1[[#This Row],[Código_Actividad]]="","",'[3]Formulario PPGR1'!#REF!) ->  | E141: =IF(Tabla1[[#This Row],[Código_Actividad]]="","",'[3]Formulario PPGR1'!#REF!) ->  | F141: =IF(Tabla1[[#This Row],[Código_Actividad]]="","",'[3]Formulario PPGR1'!#REF!) ->  | L141: =+Tabla1[[#This Row],[Precio Unitario]]*Tabla1[[#This Row],[Cantidad de Insumos]] -> 0.00
B142: =IF(Tabla1[[#This Row],[Código_Actividad]]="","",CONCATENATE(Tabla1[[#This Row],[POA]],".",Tabla1[[#This Row],[SRS]],".",Tabla1[[#This Row],[AREA]],".",Tabla1[[#This Row],[TIPO]])) ->  | C142: =IF(Tabla1[[#This Row],[Código_Actividad]]="","",'[3]Formulario PPGR1'!#REF!) ->  | D142: =IF(Tabla1[[#This Row],[Código_Actividad]]="","",'[3]Formulario PPGR1'!#REF!) ->  | E142: =IF(Tabla1[[#This Row],[Código_Actividad]]="","",'[3]Formulario PPGR1'!#REF!) ->  | F142: =IF(Tabla1[[#This Row],[Código_Actividad]]="","",'[3]Formulario PPGR1'!#REF!) ->  | L142: =+Tabla1[[#This Row],[Precio Unitario]]*Tabla1[[#This Row],[Cantidad de Insumos]] -> 0.00
B143: =IF(Tabla1[[#This Row],[Código_Actividad]]="","",CONCATENATE(Tabla1[[#This Row],[POA]],".",Tabla1[[#This Row],[SRS]],".",Tabla1[[#This Row],[AREA]],".",Tabla1[[#This Row],[TIPO]])) ->  | C143: =IF(Tabla1[[#This Row],[Código_Actividad]]="","",'[3]Formulario PPGR1'!#REF!) ->  | D143: =IF(Tabla1[[#This Row],[Código_Actividad]]="","",'[3]Formulario PPGR1'!#REF!) ->  | E143: =IF(Tabla1[[#This Row],[Código_Actividad]]="","",'[3]Formulario PPGR1'!#REF!) ->  | F143: =IF(Tabla1[[#This Row],[Código_Actividad]]="","",'[3]Formulario PPGR1'!#REF!) ->  | L143: =+Tabla1[[#This Row],[Precio Unitario]]*Tabla1[[#This Row],[Cantidad de Insumos]] -> 0.00
B144: =IF(Tabla1[[#This Row],[Código_Actividad]]="","",CONCATENATE(Tabla1[[#This Row],[POA]],".",Tabla1[[#This Row],[SRS]],".",Tabla1[[#This Row],[AREA]],".",Tabla1[[#This Row],[TIPO]])) ->  | C144: =IF(Tabla1[[#This Row],[Código_Actividad]]="","",'[3]Formulario PPGR1'!#REF!) ->  | D144: =IF(Tabla1[[#This Row],[Código_Actividad]]="","",'[3]Formulario PPGR1'!#REF!) ->  | E144: =IF(Tabla1[[#This Row],[Código_Actividad]]="","",'[3]Formulario PPGR1'!#REF!) ->  | F144: =IF(Tabla1[[#This Row],[Código_Actividad]]="","",'[3]Formulario PPGR1'!#REF!) ->  | L144: =+Tabla1[[#This Row],[Precio Unitario]]*Tabla1[[#This Row],[Cantidad de Insumos]] -> 0.00
B145: =IF(Tabla1[[#This Row],[Código_Actividad]]="","",CONCATENATE(Tabla1[[#This Row],[POA]],".",Tabla1[[#This Row],[SRS]],".",Tabla1[[#This Row],[AREA]],".",Tabla1[[#This Row],[TIPO]])) ->  | C145: =IF(Tabla1[[#This Row],[Código_Actividad]]="","",'[3]Formulario PPGR1'!#REF!) ->  | D145: =IF(Tabla1[[#This Row],[Código_Actividad]]="","",'[3]Formulario PPGR1'!#REF!) ->  | E145: =IF(Tabla1[[#This Row],[Código_Actividad]]="","",'[3]Formulario PPGR1'!#REF!) ->  | F145: =IF(Tabla1[[#This Row],[Código_Actividad]]="","",'[3]Formulario PPGR1'!#REF!) ->  | L145: =+Tabla1[[#This Row],[Precio Unitario]]*Tabla1[[#This Row],[Cantidad de Insumos]] -> 0.00
B146: =IF(Tabla1[[#This Row],[Código_Actividad]]="","",CONCATENATE(Tabla1[[#This Row],[POA]],".",Tabla1[[#This Row],[SRS]],".",Tabla1[[#This Row],[AREA]],".",Tabla1[[#This Row],[TIPO]])) ->  | C146: =IF(Tabla1[[#This Row],[Código_Actividad]]="","",'[3]Formulario PPGR1'!#REF!) ->  | D146: =IF(Tabla1[[#This Row],[Código_Actividad]]="","",'[3]Formulario PPGR1'!#REF!) ->  | E146: =IF(Tabla1[[#This Row],[Código_Actividad]]="","",'[3]Formulario PPGR1'!#REF!) ->  | F146: =IF(Tabla1[[#This Row],[Código_Actividad]]="","",'[3]Formulario PPGR1'!#REF!) ->  | L146: =+Tabla1[[#This Row],[Precio Unitario]]*Tabla1[[#This Row],[Cantidad de Insumos]] -> 0.00
B147: =IF(Tabla1[[#This Row],[Código_Actividad]]="","",CONCATENATE(Tabla1[[#This Row],[POA]],".",Tabla1[[#This Row],[SRS]],".",Tabla1[[#This Row],[AREA]],".",Tabla1[[#This Row],[TIPO]])) ->  | C147: =IF(Tabla1[[#This Row],[Código_Actividad]]="","",'[3]Formulario PPGR1'!#REF!) ->  | D147: =IF(Tabla1[[#This Row],[Código_Actividad]]="","",'[3]Formulario PPGR1'!#REF!) ->  | E147: =IF(Tabla1[[#This Row],[Código_Actividad]]="","",'[3]Formulario PPGR1'!#REF!) ->  | F147: =IF(Tabla1[[#This Row],[Código_Actividad]]="","",'[3]Formulario PPGR1'!#REF!) ->  | L147: =+Tabla1[[#This Row],[Precio Unitario]]*Tabla1[[#This Row],[Cantidad de Insumos]] -> 0.00
B148: =IF(Tabla1[[#This Row],[Código_Actividad]]="","",CONCATENATE(Tabla1[[#This Row],[POA]],".",Tabla1[[#This Row],[SRS]],".",Tabla1[[#This Row],[AREA]],".",Tabla1[[#This Row],[TIPO]])) ->  | C148: =IF(Tabla1[[#This Row],[Código_Actividad]]="","",'[3]Formulario PPGR1'!#REF!) ->  | D148: =IF(Tabla1[[#This Row],[Código_Actividad]]="","",'[3]Formulario PPGR1'!#REF!) ->  | E148: =IF(Tabla1[[#This Row],[Código_Actividad]]="","",'[3]Formulario PPGR1'!#REF!) ->  | F148: =IF(Tabla1[[#This Row],[Código_Actividad]]="","",'[3]Formulario PPGR1'!#REF!) ->  | L148: =+Tabla1[[#This Row],[Precio Unitario]]*Tabla1[[#This Row],[Cantidad de Insumos]] -> 0.00
B149: =IF(Tabla1[[#This Row],[Código_Actividad]]="","",CONCATENATE(Tabla1[[#This Row],[POA]],".",Tabla1[[#This Row],[SRS]],".",Tabla1[[#This Row],[AREA]],".",Tabla1[[#This Row],[TIPO]])) ->  | C149: =IF(Tabla1[[#This Row],[Código_Actividad]]="","",'[3]Formulario PPGR1'!#REF!) ->  | D149: =IF(Tabla1[[#This Row],[Código_Actividad]]="","",'[3]Formulario PPGR1'!#REF!) ->  | E149: =IF(Tabla1[[#This Row],[Código_Actividad]]="","",'[3]Formulario PPGR1'!#REF!) ->  | F149: =IF(Tabla1[[#This Row],[Código_Actividad]]="","",'[3]Formulario PPGR1'!#REF!) ->  | L149: =+Tabla1[[#This Row],[Precio Unitario]]*Tabla1[[#This Row],[Cantidad de Insumos]] -> 0.00
B150: =IF(Tabla1[[#This Row],[Código_Actividad]]="","",CONCATENATE(Tabla1[[#This Row],[POA]],".",Tabla1[[#This Row],[SRS]],".",Tabla1[[#This Row],[AREA]],".",Tabla1[[#This Row],[TIPO]])) ->  | C150: =IF(Tabla1[[#This Row],[Código_Actividad]]="","",'[3]Formulario PPGR1'!#REF!) ->  | D150: =IF(Tabla1[[#This Row],[Código_Actividad]]="","",'[3]Formulario PPGR1'!#REF!) ->  | E150: =IF(Tabla1[[#This Row],[Código_Actividad]]="","",'[3]Formulario PPGR1'!#REF!) ->  | F150: =IF(Tabla1[[#This Row],[Código_Actividad]]="","",'[3]Formulario PPGR1'!#REF!) ->  | L150: =+Tabla1[[#This Row],[Precio Unitario]]*Tabla1[[#This Row],[Cantidad de Insumos]] -> 0.00
B151: =IF(Tabla1[[#This Row],[Código_Actividad]]="","",CONCATENATE(Tabla1[[#This Row],[POA]],".",Tabla1[[#This Row],[SRS]],".",Tabla1[[#This Row],[AREA]],".",Tabla1[[#This Row],[TIPO]])) ->  | C151: =IF(Tabla1[[#This Row],[Código_Actividad]]="","",'[3]Formulario PPGR1'!#REF!) ->  | D151: =IF(Tabla1[[#This Row],[Código_Actividad]]="","",'[3]Formulario PPGR1'!#REF!) ->  | E151: =IF(Tabla1[[#This Row],[Código_Actividad]]="","",'[3]Formulario PPGR1'!#REF!) ->  | F151: =IF(Tabla1[[#This Row],[Código_Actividad]]="","",'[3]Formulario PPGR1'!#REF!) ->  | L151: =+Tabla1[[#This Row],[Precio Unitario]]*Tabla1[[#This Row],[Cantidad de Insumos]] -> 0.00
B152: =IF(Tabla1[[#This Row],[Código_Actividad]]="","",CONCATENATE(Tabla1[[#This Row],[POA]],".",Tabla1[[#This Row],[SRS]],".",Tabla1[[#This Row],[AREA]],".",Tabla1[[#This Row],[TIPO]])) ->  | C152: =IF(Tabla1[[#This Row],[Código_Actividad]]="","",'[3]Formulario PPGR1'!#REF!) ->  | D152: =IF(Tabla1[[#This Row],[Código_Actividad]]="","",'[3]Formulario PPGR1'!#REF!) ->  | E152: =IF(Tabla1[[#This Row],[Código_Actividad]]="","",'[3]Formulario PPGR1'!#REF!) ->  | F152: =IF(Tabla1[[#This Row],[Código_Actividad]]="","",'[3]Formulario PPGR1'!#REF!) ->  | L152: =+Tabla1[[#This Row],[Precio Unitario]]*Tabla1[[#This Row],[Cantidad de Insumos]] -> 0.00
B153: =IF(Tabla1[[#This Row],[Código_Actividad]]="","",CONCATENATE(Tabla1[[#This Row],[POA]],".",Tabla1[[#This Row],[SRS]],".",Tabla1[[#This Row],[AREA]],".",Tabla1[[#This Row],[TIPO]])) ->  | C153: =IF(Tabla1[[#This Row],[Código_Actividad]]="","",'[3]Formulario PPGR1'!#REF!) ->  | D153: =IF(Tabla1[[#This Row],[Código_Actividad]]="","",'[3]Formulario PPGR1'!#REF!) ->  | E153: =IF(Tabla1[[#This Row],[Código_Actividad]]="","",'[3]Formulario PPGR1'!#REF!) ->  | F153: =IF(Tabla1[[#This Row],[Código_Actividad]]="","",'[3]Formulario PPGR1'!#REF!) ->  | L153: =+Tabla1[[#This Row],[Precio Unitario]]*Tabla1[[#This Row],[Cantidad de Insumos]] -> 0.00
B154: =IF(Tabla1[[#This Row],[Código_Actividad]]="","",CONCATENATE(Tabla1[[#This Row],[POA]],".",Tabla1[[#This Row],[SRS]],".",Tabla1[[#This Row],[AREA]],".",Tabla1[[#This Row],[TIPO]])) ->  | C154: =IF(Tabla1[[#This Row],[Código_Actividad]]="","",'[3]Formulario PPGR1'!#REF!) ->  | D154: =IF(Tabla1[[#This Row],[Código_Actividad]]="","",'[3]Formulario PPGR1'!#REF!) ->  | E154: =IF(Tabla1[[#This Row],[Código_Actividad]]="","",'[3]Formulario PPGR1'!#REF!) ->  | F154: =IF(Tabla1[[#This Row],[Código_Actividad]]="","",'[3]Formulario PPGR1'!#REF!) ->  | L154: =+Tabla1[[#This Row],[Precio Unitario]]*Tabla1[[#This Row],[Cantidad de Insumos]] -> 0.00
B155: =IF(Tabla1[[#This Row],[Código_Actividad]]="","",CONCATENATE(Tabla1[[#This Row],[POA]],".",Tabla1[[#This Row],[SRS]],".",Tabla1[[#This Row],[AREA]],".",Tabla1[[#This Row],[TIPO]])) ->  | C155: =IF(Tabla1[[#This Row],[Código_Actividad]]="","",'[3]Formulario PPGR1'!#REF!) ->  | D155: =IF(Tabla1[[#This Row],[Código_Actividad]]="","",'[3]Formulario PPGR1'!#REF!) ->  | E155: =IF(Tabla1[[#This Row],[Código_Actividad]]="","",'[3]Formulario PPGR1'!#REF!) ->  | F155: =IF(Tabla1[[#This Row],[Código_Actividad]]="","",'[3]Formulario PPGR1'!#REF!) ->  | L155: =+Tabla1[[#This Row],[Precio Unitario]]*Tabla1[[#This Row],[Cantidad de Insumos]] -> 0.00
B156: =IF(Tabla1[[#This Row],[Código_Actividad]]="","",CONCATENATE(Tabla1[[#This Row],[POA]],".",Tabla1[[#This Row],[SRS]],".",Tabla1[[#This Row],[AREA]],".",Tabla1[[#This Row],[TIPO]])) ->  | C156: =IF(Tabla1[[#This Row],[Código_Actividad]]="","",'[3]Formulario PPGR1'!#REF!) ->  | D156: =IF(Tabla1[[#This Row],[Código_Actividad]]="","",'[3]Formulario PPGR1'!#REF!) ->  | E156: =IF(Tabla1[[#This Row],[Código_Actividad]]="","",'[3]Formulario PPGR1'!#REF!) ->  | F156: =IF(Tabla1[[#This Row],[Código_Actividad]]="","",'[3]Formulario PPGR1'!#REF!) ->  | L156: =+Tabla1[[#This Row],[Precio Unitario]]*Tabla1[[#This Row],[Cantidad de Insumos]] -> 0.00
B157: =IF(Tabla1[[#This Row],[Código_Actividad]]="","",CONCATENATE(Tabla1[[#This Row],[POA]],".",Tabla1[[#This Row],[SRS]],".",Tabla1[[#This Row],[AREA]],".",Tabla1[[#This Row],[TIPO]])) ->  | C157: =IF(Tabla1[[#This Row],[Código_Actividad]]="","",'[3]Formulario PPGR1'!#REF!) ->  | D157: =IF(Tabla1[[#This Row],[Código_Actividad]]="","",'[3]Formulario PPGR1'!#REF!) ->  | E157: =IF(Tabla1[[#This Row],[Código_Actividad]]="","",'[3]Formulario PPGR1'!#REF!) ->  | F157: =IF(Tabla1[[#This Row],[Código_Actividad]]="","",'[3]Formulario PPGR1'!#REF!) ->  | L157: =+Tabla1[[#This Row],[Precio Unitario]]*Tabla1[[#This Row],[Cantidad de Insumos]] -> 0.00
B158: =IF(Tabla1[[#This Row],[Código_Actividad]]="","",CONCATENATE(Tabla1[[#This Row],[POA]],".",Tabla1[[#This Row],[SRS]],".",Tabla1[[#This Row],[AREA]],".",Tabla1[[#This Row],[TIPO]])) ->  | C158: =IF(Tabla1[[#This Row],[Código_Actividad]]="","",'[3]Formulario PPGR1'!#REF!) ->  | D158: =IF(Tabla1[[#This Row],[Código_Actividad]]="","",'[3]Formulario PPGR1'!#REF!) ->  | E158: =IF(Tabla1[[#This Row],[Código_Actividad]]="","",'[3]Formulario PPGR1'!#REF!) ->  | F158: =IF(Tabla1[[#This Row],[Código_Actividad]]="","",'[3]Formulario PPGR1'!#REF!) ->  | L158: =+Tabla1[[#This Row],[Precio Unitario]]*Tabla1[[#This Row],[Cantidad de Insumos]] -> 0.00
B159: =IF(Tabla1[[#This Row],[Código_Actividad]]="","",CONCATENATE(Tabla1[[#This Row],[POA]],".",Tabla1[[#This Row],[SRS]],".",Tabla1[[#This Row],[AREA]],".",Tabla1[[#This Row],[TIPO]])) ->  | C159: =IF(Tabla1[[#This Row],[Código_Actividad]]="","",'[3]Formulario PPGR1'!#REF!) ->  | D159: =IF(Tabla1[[#This Row],[Código_Actividad]]="","",'[3]Formulario PPGR1'!#REF!) ->  | E159: =IF(Tabla1[[#This Row],[Código_Actividad]]="","",'[3]Formulario PPGR1'!#REF!) ->  | F159: =IF(Tabla1[[#This Row],[Código_Actividad]]="","",'[3]Formulario PPGR1'!#REF!) ->  | L159: =+Tabla1[[#This Row],[Precio Unitario]]*Tabla1[[#This Row],[Cantidad de Insumos]] -> 0.00
B160: =IF(Tabla1[[#This Row],[Código_Actividad]]="","",CONCATENATE(Tabla1[[#This Row],[POA]],".",Tabla1[[#This Row],[SRS]],".",Tabla1[[#This Row],[AREA]],".",Tabla1[[#This Row],[TIPO]])) ->  | C160: =IF(Tabla1[[#This Row],[Código_Actividad]]="","",'[3]Formulario PPGR1'!#REF!) ->  | D160: =IF(Tabla1[[#This Row],[Código_Actividad]]="","",'[3]Formulario PPGR1'!#REF!) ->  | E160: =IF(Tabla1[[#This Row],[Código_Actividad]]="","",'[3]Formulario PPGR1'!#REF!) ->  | F160: =IF(Tabla1[[#This Row],[Código_Actividad]]="","",'[3]Formulario PPGR1'!#REF!) ->  | L160: =+Tabla1[[#This Row],[Precio Unitario]]*Tabla1[[#This Row],[Cantidad de Insumos]] -> 0.00
B161: =IF(Tabla1[[#This Row],[Código_Actividad]]="","",CONCATENATE(Tabla1[[#This Row],[POA]],".",Tabla1[[#This Row],[SRS]],".",Tabla1[[#This Row],[AREA]],".",Tabla1[[#This Row],[TIPO]])) ->  | C161: =IF(Tabla1[[#This Row],[Código_Actividad]]="","",'[3]Formulario PPGR1'!#REF!) ->  | D161: =IF(Tabla1[[#This Row],[Código_Actividad]]="","",'[3]Formulario PPGR1'!#REF!) ->  | E161: =IF(Tabla1[[#This Row],[Código_Actividad]]="","",'[3]Formulario PPGR1'!#REF!) ->  | F161: =IF(Tabla1[[#This Row],[Código_Actividad]]="","",'[3]Formulario PPGR1'!#REF!) ->  | L161: =+Tabla1[[#This Row],[Precio Unitario]]*Tabla1[[#This Row],[Cantidad de Insumos]] -> 0.00
B162: =IF(Tabla1[[#This Row],[Código_Actividad]]="","",CONCATENATE(Tabla1[[#This Row],[POA]],".",Tabla1[[#This Row],[SRS]],".",Tabla1[[#This Row],[AREA]],".",Tabla1[[#This Row],[TIPO]])) ->  | C162: =IF(Tabla1[[#This Row],[Código_Actividad]]="","",'[3]Formulario PPGR1'!#REF!) ->  | D162: =IF(Tabla1[[#This Row],[Código_Actividad]]="","",'[3]Formulario PPGR1'!#REF!) ->  | E162: =IF(Tabla1[[#This Row],[Código_Actividad]]="","",'[3]Formulario PPGR1'!#REF!) ->  | F162: =IF(Tabla1[[#This Row],[Código_Actividad]]="","",'[3]Formulario PPGR1'!#REF!) ->  | L162: =+Tabla1[[#This Row],[Precio Unitario]]*Tabla1[[#This Row],[Cantidad de Insumos]] -> 0.00
B163: =IF(Tabla1[[#This Row],[Código_Actividad]]="","",CONCATENATE(Tabla1[[#This Row],[POA]],".",Tabla1[[#This Row],[SRS]],".",Tabla1[[#This Row],[AREA]],".",Tabla1[[#This Row],[TIPO]])) ->  | C163: =IF(Tabla1[[#This Row],[Código_Actividad]]="","",'[3]Formulario PPGR1'!#REF!) ->  | D163: =IF(Tabla1[[#This Row],[Código_Actividad]]="","",'[3]Formulario PPGR1'!#REF!) ->  | E163: =IF(Tabla1[[#This Row],[Código_Actividad]]="","",'[3]Formulario PPGR1'!#REF!) ->  | F163: =IF(Tabla1[[#This Row],[Código_Actividad]]="","",'[3]Formulario PPGR1'!#REF!) ->  | L163: =+Tabla1[[#This Row],[Precio Unitario]]*Tabla1[[#This Row],[Cantidad de Insumos]] -> 0.00
B164: =IF(Tabla1[[#This Row],[Código_Actividad]]="","",CONCATENATE(Tabla1[[#This Row],[POA]],".",Tabla1[[#This Row],[SRS]],".",Tabla1[[#This Row],[AREA]],".",Tabla1[[#This Row],[TIPO]])) ->  | C164: =IF(Tabla1[[#This Row],[Código_Actividad]]="","",'[3]Formulario PPGR1'!#REF!) ->  | D164: =IF(Tabla1[[#This Row],[Código_Actividad]]="","",'[3]Formulario PPGR1'!#REF!) ->  | E164: =IF(Tabla1[[#This Row],[Código_Actividad]]="","",'[3]Formulario PPGR1'!#REF!) ->  | F164: =IF(Tabla1[[#This Row],[Código_Actividad]]="","",'[3]Formulario PPGR1'!#REF!) ->  | L164: =+Tabla1[[#This Row],[Precio Unitario]]*Tabla1[[#This Row],[Cantidad de Insumos]] -> 0.00
B165: =IF(Tabla1[[#This Row],[Código_Actividad]]="","",CONCATENATE(Tabla1[[#This Row],[POA]],".",Tabla1[[#This Row],[SRS]],".",Tabla1[[#This Row],[AREA]],".",Tabla1[[#This Row],[TIPO]])) ->  | C165: =IF(Tabla1[[#This Row],[Código_Actividad]]="","",'[3]Formulario PPGR1'!#REF!) ->  | D165: =IF(Tabla1[[#This Row],[Código_Actividad]]="","",'[3]Formulario PPGR1'!#REF!) ->  | E165: =IF(Tabla1[[#This Row],[Código_Actividad]]="","",'[3]Formulario PPGR1'!#REF!) ->  | F165: =IF(Tabla1[[#This Row],[Código_Actividad]]="","",'[3]Formulario PPGR1'!#REF!) ->  | L165: =+Tabla1[[#This Row],[Precio Unitario]]*Tabla1[[#This Row],[Cantidad de Insumos]] -> 0.00
B166: =IF(Tabla1[[#This Row],[Código_Actividad]]="","",CONCATENATE(Tabla1[[#This Row],[POA]],".",Tabla1[[#This Row],[SRS]],".",Tabla1[[#This Row],[AREA]],".",Tabla1[[#This Row],[TIPO]])) ->  | C166: =IF(Tabla1[[#This Row],[Código_Actividad]]="","",'[3]Formulario PPGR1'!#REF!) ->  | D166: =IF(Tabla1[[#This Row],[Código_Actividad]]="","",'[3]Formulario PPGR1'!#REF!) ->  | E166: =IF(Tabla1[[#This Row],[Código_Actividad]]="","",'[3]Formulario PPGR1'!#REF!) ->  | F166: =IF(Tabla1[[#This Row],[Código_Actividad]]="","",'[3]Formulario PPGR1'!#REF!) ->  | L166: =+Tabla1[[#This Row],[Precio Unitario]]*Tabla1[[#This Row],[Cantidad de Insumos]] -> 0.00
B167: =IF(Tabla1[[#This Row],[Código_Actividad]]="","",CONCATENATE(Tabla1[[#This Row],[POA]],".",Tabla1[[#This Row],[SRS]],".",Tabla1[[#This Row],[AREA]],".",Tabla1[[#This Row],[TIPO]])) ->  | C167: =IF(Tabla1[[#This Row],[Código_Actividad]]="","",'[3]Formulario PPGR1'!#REF!) ->  | D167: =IF(Tabla1[[#This Row],[Código_Actividad]]="","",'[3]Formulario PPGR1'!#REF!) ->  | E167: =IF(Tabla1[[#This Row],[Código_Actividad]]="","",'[3]Formulario PPGR1'!#REF!) ->  | F167: =IF(Tabla1[[#This Row],[Código_Actividad]]="","",'[3]Formulario PPGR1'!#REF!) ->  | L167: =+Tabla1[[#This Row],[Precio Unitario]]*Tabla1[[#This Row],[Cantidad de Insumos]] -> 0.00
B168: =IF(Tabla1[[#This Row],[Código_Actividad]]="","",CONCATENATE(Tabla1[[#This Row],[POA]],".",Tabla1[[#This Row],[SRS]],".",Tabla1[[#This Row],[AREA]],".",Tabla1[[#This Row],[TIPO]])) ->  | C168: =IF(Tabla1[[#This Row],[Código_Actividad]]="","",'[3]Formulario PPGR1'!#REF!) ->  | D168: =IF(Tabla1[[#This Row],[Código_Actividad]]="","",'[3]Formulario PPGR1'!#REF!) ->  | E168: =IF(Tabla1[[#This Row],[Código_Actividad]]="","",'[3]Formulario PPGR1'!#REF!) ->  | F168: =IF(Tabla1[[#This Row],[Código_Actividad]]="","",'[3]Formulario PPGR1'!#REF!) ->  | L168: =+Tabla1[[#This Row],[Precio Unitario]]*Tabla1[[#This Row],[Cantidad de Insumos]] -> 0.00
B169: =IF(Tabla1[[#This Row],[Código_Actividad]]="","",CONCATENATE(Tabla1[[#This Row],[POA]],".",Tabla1[[#This Row],[SRS]],".",Tabla1[[#This Row],[AREA]],".",Tabla1[[#This Row],[TIPO]])) ->  | C169: =IF(Tabla1[[#This Row],[Código_Actividad]]="","",'[3]Formulario PPGR1'!#REF!) ->  | D169: =IF(Tabla1[[#This Row],[Código_Actividad]]="","",'[3]Formulario PPGR1'!#REF!) ->  | E169: =IF(Tabla1[[#This Row],[Código_Actividad]]="","",'[3]Formulario PPGR1'!#REF!) ->  | F169: =IF(Tabla1[[#This Row],[Código_Actividad]]="","",'[3]Formulario PPGR1'!#REF!) ->  | L169: =+Tabla1[[#This Row],[Precio Unitario]]*Tabla1[[#This Row],[Cantidad de Insumos]] -> 0.00
B170: =IF(Tabla1[[#This Row],[Código_Actividad]]="","",CONCATENATE(Tabla1[[#This Row],[POA]],".",Tabla1[[#This Row],[SRS]],".",Tabla1[[#This Row],[AREA]],".",Tabla1[[#This Row],[TIPO]])) ->  | C170: =IF(Tabla1[[#This Row],[Código_Actividad]]="","",'[3]Formulario PPGR1'!#REF!) ->  | D170: =IF(Tabla1[[#This Row],[Código_Actividad]]="","",'[3]Formulario PPGR1'!#REF!) ->  | E170: =IF(Tabla1[[#This Row],[Código_Actividad]]="","",'[3]Formulario PPGR1'!#REF!) ->  | F170: =IF(Tabla1[[#This Row],[Código_Actividad]]="","",'[3]Formulario PPGR1'!#REF!) ->  | L170: =+Tabla1[[#This Row],[Precio Unitario]]*Tabla1[[#This Row],[Cantidad de Insumos]] -> 0.00
B171: =IF(Tabla1[[#This Row],[Código_Actividad]]="","",CONCATENATE(Tabla1[[#This Row],[POA]],".",Tabla1[[#This Row],[SRS]],".",Tabla1[[#This Row],[AREA]],".",Tabla1[[#This Row],[TIPO]])) ->  | C171: =IF(Tabla1[[#This Row],[Código_Actividad]]="","",'[3]Formulario PPGR1'!#REF!) ->  | D171: =IF(Tabla1[[#This Row],[Código_Actividad]]="","",'[3]Formulario PPGR1'!#REF!) ->  | E171: =IF(Tabla1[[#This Row],[Código_Actividad]]="","",'[3]Formulario PPGR1'!#REF!) ->  | F171: =IF(Tabla1[[#This Row],[Código_Actividad]]="","",'[3]Formulario PPGR1'!#REF!) ->  | L171: =+Tabla1[[#This Row],[Precio Unitario]]*Tabla1[[#This Row],[Cantidad de Insumos]] -> 0.00
B172: =IF(Tabla1[[#This Row],[Código_Actividad]]="","",CONCATENATE(Tabla1[[#This Row],[POA]],".",Tabla1[[#This Row],[SRS]],".",Tabla1[[#This Row],[AREA]],".",Tabla1[[#This Row],[TIPO]])) ->  | C172: =IF(Tabla1[[#This Row],[Código_Actividad]]="","",'[3]Formulario PPGR1'!#REF!) ->  | D172: =IF(Tabla1[[#This Row],[Código_Actividad]]="","",'[3]Formulario PPGR1'!#REF!) ->  | E172: =IF(Tabla1[[#This Row],[Código_Actividad]]="","",'[3]Formulario PPGR1'!#REF!) ->  | F172: =IF(Tabla1[[#This Row],[Código_Actividad]]="","",'[3]Formulario PPGR1'!#REF!) ->  | L172: =+Tabla1[[#This Row],[Precio Unitario]]*Tabla1[[#This Row],[Cantidad de Insumos]] -> 0.00
B173: =IF(Tabla1[[#This Row],[Código_Actividad]]="","",CONCATENATE(Tabla1[[#This Row],[POA]],".",Tabla1[[#This Row],[SRS]],".",Tabla1[[#This Row],[AREA]],".",Tabla1[[#This Row],[TIPO]])) ->  | C173: =IF(Tabla1[[#This Row],[Código_Actividad]]="","",'[3]Formulario PPGR1'!#REF!) ->  | D173: =IF(Tabla1[[#This Row],[Código_Actividad]]="","",'[3]Formulario PPGR1'!#REF!) ->  | E173: =IF(Tabla1[[#This Row],[Código_Actividad]]="","",'[3]Formulario PPGR1'!#REF!) ->  | F173: =IF(Tabla1[[#This Row],[Código_Actividad]]="","",'[3]Formulario PPGR1'!#REF!) ->  | L173: =+Tabla1[[#This Row],[Precio Unitario]]*Tabla1[[#This Row],[Cantidad de Insumos]] -> 0.00
B174: =IF(Tabla1[[#This Row],[Código_Actividad]]="","",CONCATENATE(Tabla1[[#This Row],[POA]],".",Tabla1[[#This Row],[SRS]],".",Tabla1[[#This Row],[AREA]],".",Tabla1[[#This Row],[TIPO]])) ->  | C174: =IF(Tabla1[[#This Row],[Código_Actividad]]="","",'[3]Formulario PPGR1'!#REF!) ->  | D174: =IF(Tabla1[[#This Row],[Código_Actividad]]="","",'[3]Formulario PPGR1'!#REF!) ->  | E174: =IF(Tabla1[[#This Row],[Código_Actividad]]="","",'[3]Formulario PPGR1'!#REF!) ->  | F174: =IF(Tabla1[[#This Row],[Código_Actividad]]="","",'[3]Formulario PPGR1'!#REF!) ->  | L174: =+Tabla1[[#This Row],[Precio Unitario]]*Tabla1[[#This Row],[Cantidad de Insumos]] -> 0.00
B175: =IF(Tabla1[[#This Row],[Código_Actividad]]="","",CONCATENATE(Tabla1[[#This Row],[POA]],".",Tabla1[[#This Row],[SRS]],".",Tabla1[[#This Row],[AREA]],".",Tabla1[[#This Row],[TIPO]])) ->  | C175: =IF(Tabla1[[#This Row],[Código_Actividad]]="","",'[3]Formulario PPGR1'!#REF!) ->  | D175: =IF(Tabla1[[#This Row],[Código_Actividad]]="","",'[3]Formulario PPGR1'!#REF!) ->  | E175: =IF(Tabla1[[#This Row],[Código_Actividad]]="","",'[3]Formulario PPGR1'!#REF!) ->  | F175: =IF(Tabla1[[#This Row],[Código_Actividad]]="","",'[3]Formulario PPGR1'!#REF!) ->  | L175: =+Tabla1[[#This Row],[Precio Unitario]]*Tabla1[[#This Row],[Cantidad de Insumos]] -> 0.00
B176: =IF(Tabla1[[#This Row],[Código_Actividad]]="","",CONCATENATE(Tabla1[[#This Row],[POA]],".",Tabla1[[#This Row],[SRS]],".",Tabla1[[#This Row],[AREA]],".",Tabla1[[#This Row],[TIPO]])) ->  | C176: =IF(Tabla1[[#This Row],[Código_Actividad]]="","",'[3]Formulario PPGR1'!#REF!) ->  | D176: =IF(Tabla1[[#This Row],[Código_Actividad]]="","",'[3]Formulario PPGR1'!#REF!) ->  | E176: =IF(Tabla1[[#This Row],[Código_Actividad]]="","",'[3]Formulario PPGR1'!#REF!) ->  | F176: =IF(Tabla1[[#This Row],[Código_Actividad]]="","",'[3]Formulario PPGR1'!#REF!) ->  | L176: =+Tabla1[[#This Row],[Precio Unitario]]*Tabla1[[#This Row],[Cantidad de Insumos]] -> 0.00
B177: =IF(Tabla1[[#This Row],[Código_Actividad]]="","",CONCATENATE(Tabla1[[#This Row],[POA]],".",Tabla1[[#This Row],[SRS]],".",Tabla1[[#This Row],[AREA]],".",Tabla1[[#This Row],[TIPO]])) ->  | C177: =IF(Tabla1[[#This Row],[Código_Actividad]]="","",'[3]Formulario PPGR1'!#REF!) ->  | D177: =IF(Tabla1[[#This Row],[Código_Actividad]]="","",'[3]Formulario PPGR1'!#REF!) ->  | E177: =IF(Tabla1[[#This Row],[Código_Actividad]]="","",'[3]Formulario PPGR1'!#REF!) ->  | F177: =IF(Tabla1[[#This Row],[Código_Actividad]]="","",'[3]Formulario PPGR1'!#REF!) ->  | L177: =+Tabla1[[#This Row],[Precio Unitario]]*Tabla1[[#This Row],[Cantidad de Insumos]] -> 0.00
B178: =IF(Tabla1[[#This Row],[Código_Actividad]]="","",CONCATENATE(Tabla1[[#This Row],[POA]],".",Tabla1[[#This Row],[SRS]],".",Tabla1[[#This Row],[AREA]],".",Tabla1[[#This Row],[TIPO]])) ->  | C178: =IF(Tabla1[[#This Row],[Código_Actividad]]="","",'[3]Formulario PPGR1'!#REF!) ->  | D178: =IF(Tabla1[[#This Row],[Código_Actividad]]="","",'[3]Formulario PPGR1'!#REF!) ->  | E178: =IF(Tabla1[[#This Row],[Código_Actividad]]="","",'[3]Formulario PPGR1'!#REF!) ->  | F178: =IF(Tabla1[[#This Row],[Código_Actividad]]="","",'[3]Formulario PPGR1'!#REF!) ->  | L178: =+Tabla1[[#This Row],[Precio Unitario]]*Tabla1[[#This Row],[Cantidad de Insumos]] -> 0.00
B179: =IF(Tabla1[[#This Row],[Código_Actividad]]="","",CONCATENATE(Tabla1[[#This Row],[POA]],".",Tabla1[[#This Row],[SRS]],".",Tabla1[[#This Row],[AREA]],".",Tabla1[[#This Row],[TIPO]])) ->  | C179: =IF(Tabla1[[#This Row],[Código_Actividad]]="","",'[3]Formulario PPGR1'!#REF!) ->  | D179: =IF(Tabla1[[#This Row],[Código_Actividad]]="","",'[3]Formulario PPGR1'!#REF!) ->  | E179: =IF(Tabla1[[#This Row],[Código_Actividad]]="","",'[3]Formulario PPGR1'!#REF!) ->  | F179: =IF(Tabla1[[#This Row],[Código_Actividad]]="","",'[3]Formulario PPGR1'!#REF!) ->  | L179: =+Tabla1[[#This Row],[Precio Unitario]]*Tabla1[[#This Row],[Cantidad de Insumos]] -> 0.00
B180: =IF(Tabla1[[#This Row],[Código_Actividad]]="","",CONCATENATE(Tabla1[[#This Row],[POA]],".",Tabla1[[#This Row],[SRS]],".",Tabla1[[#This Row],[AREA]],".",Tabla1[[#This Row],[TIPO]])) ->  | C180: =IF(Tabla1[[#This Row],[Código_Actividad]]="","",'[3]Formulario PPGR1'!#REF!) ->  | D180: =IF(Tabla1[[#This Row],[Código_Actividad]]="","",'[3]Formulario PPGR1'!#REF!) ->  | E180: =IF(Tabla1[[#This Row],[Código_Actividad]]="","",'[3]Formulario PPGR1'!#REF!) ->  | F180: =IF(Tabla1[[#This Row],[Código_Actividad]]="","",'[3]Formulario PPGR1'!#REF!) ->  | L180: =+Tabla1[[#This Row],[Precio Unitario]]*Tabla1[[#This Row],[Cantidad de Insumos]] -> 0.00
B181: =IF(Tabla1[[#This Row],[Código_Actividad]]="","",CONCATENATE(Tabla1[[#This Row],[POA]],".",Tabla1[[#This Row],[SRS]],".",Tabla1[[#This Row],[AREA]],".",Tabla1[[#This Row],[TIPO]])) ->  | C181: =IF(Tabla1[[#This Row],[Código_Actividad]]="","",'[3]Formulario PPGR1'!#REF!) ->  | D181: =IF(Tabla1[[#This Row],[Código_Actividad]]="","",'[3]Formulario PPGR1'!#REF!) ->  | E181: =IF(Tabla1[[#This Row],[Código_Actividad]]="","",'[3]Formulario PPGR1'!#REF!) ->  | F181: =IF(Tabla1[[#This Row],[Código_Actividad]]="","",'[3]Formulario PPGR1'!#REF!) ->  | L181: =+Tabla1[[#This Row],[Precio Unitario]]*Tabla1[[#This Row],[Cantidad de Insumos]] -> 0.00
B182: =IF(Tabla1[[#This Row],[Código_Actividad]]="","",CONCATENATE(Tabla1[[#This Row],[POA]],".",Tabla1[[#This Row],[SRS]],".",Tabla1[[#This Row],[AREA]],".",Tabla1[[#This Row],[TIPO]])) ->  | C182: =IF(Tabla1[[#This Row],[Código_Actividad]]="","",'[3]Formulario PPGR1'!#REF!) ->  | D182: =IF(Tabla1[[#This Row],[Código_Actividad]]="","",'[3]Formulario PPGR1'!#REF!) ->  | E182: =IF(Tabla1[[#This Row],[Código_Actividad]]="","",'[3]Formulario PPGR1'!#REF!) ->  | F182: =IF(Tabla1[[#This Row],[Código_Actividad]]="","",'[3]Formulario PPGR1'!#REF!) ->  | L182: =+Tabla1[[#This Row],[Precio Unitario]]*Tabla1[[#This Row],[Cantidad de Insumos]] -> 0.00
B183: =IF(Tabla1[[#This Row],[Código_Actividad]]="","",CONCATENATE(Tabla1[[#This Row],[POA]],".",Tabla1[[#This Row],[SRS]],".",Tabla1[[#This Row],[AREA]],".",Tabla1[[#This Row],[TIPO]])) ->  | C183: =IF(Tabla1[[#This Row],[Código_Actividad]]="","",'[3]Formulario PPGR1'!#REF!) ->  | D183: =IF(Tabla1[[#This Row],[Código_Actividad]]="","",'[3]Formulario PPGR1'!#REF!) ->  | E183: =IF(Tabla1[[#This Row],[Código_Actividad]]="","",'[3]Formulario PPGR1'!#REF!) ->  | F183: =IF(Tabla1[[#This Row],[Código_Actividad]]="","",'[3]Formulario PPGR1'!#REF!) ->  | L183: =+Tabla1[[#This Row],[Precio Unitario]]*Tabla1[[#This Row],[Cantidad de Insumos]] -> 0.00
B184: =IF(Tabla1[[#This Row],[Código_Actividad]]="","",CONCATENATE(Tabla1[[#This Row],[POA]],".",Tabla1[[#This Row],[SRS]],".",Tabla1[[#This Row],[AREA]],".",Tabla1[[#This Row],[TIPO]])) ->  | C184: =IF(Tabla1[[#This Row],[Código_Actividad]]="","",'[3]Formulario PPGR1'!#REF!) ->  | D184: =IF(Tabla1[[#This Row],[Código_Actividad]]="","",'[3]Formulario PPGR1'!#REF!) ->  | E184: =IF(Tabla1[[#This Row],[Código_Actividad]]="","",'[3]Formulario PPGR1'!#REF!) ->  | F184: =IF(Tabla1[[#This Row],[Código_Actividad]]="","",'[3]Formulario PPGR1'!#REF!) ->  | L184: =+Tabla1[[#This Row],[Precio Unitario]]*Tabla1[[#This Row],[Cantidad de Insumos]] -> 0.00
B185: =IF(Tabla1[[#This Row],[Código_Actividad]]="","",CONCATENATE(Tabla1[[#This Row],[POA]],".",Tabla1[[#This Row],[SRS]],".",Tabla1[[#This Row],[AREA]],".",Tabla1[[#This Row],[TIPO]])) ->  | C185: =IF(Tabla1[[#This Row],[Código_Actividad]]="","",'[3]Formulario PPGR1'!#REF!) ->  | D185: =IF(Tabla1[[#This Row],[Código_Actividad]]="","",'[3]Formulario PPGR1'!#REF!) ->  | E185: =IF(Tabla1[[#This Row],[Código_Actividad]]="","",'[3]Formulario PPGR1'!#REF!) ->  | F185: =IF(Tabla1[[#This Row],[Código_Actividad]]="","",'[3]Formulario PPGR1'!#REF!) ->  | L185: =+Tabla1[[#This Row],[Precio Unitario]]*Tabla1[[#This Row],[Cantidad de Insumos]] -> 0.00
B186: =IF(Tabla1[[#This Row],[Código_Actividad]]="","",CONCATENATE(Tabla1[[#This Row],[POA]],".",Tabla1[[#This Row],[SRS]],".",Tabla1[[#This Row],[AREA]],".",Tabla1[[#This Row],[TIPO]])) ->  | C186: =IF(Tabla1[[#This Row],[Código_Actividad]]="","",'[3]Formulario PPGR1'!#REF!) ->  | D186: =IF(Tabla1[[#This Row],[Código_Actividad]]="","",'[3]Formulario PPGR1'!#REF!) ->  | E186: =IF(Tabla1[[#This Row],[Código_Actividad]]="","",'[3]Formulario PPGR1'!#REF!) ->  | F186: =IF(Tabla1[[#This Row],[Código_Actividad]]="","",'[3]Formulario PPGR1'!#REF!) ->  | L186: =+Tabla1[[#This Row],[Precio Unitario]]*Tabla1[[#This Row],[Cantidad de Insumos]] -> 0.00
B187: =IF(Tabla1[[#This Row],[Código_Actividad]]="","",CONCATENATE(Tabla1[[#This Row],[POA]],".",Tabla1[[#This Row],[SRS]],".",Tabla1[[#This Row],[AREA]],".",Tabla1[[#This Row],[TIPO]])) ->  | C187: =IF(Tabla1[[#This Row],[Código_Actividad]]="","",'[3]Formulario PPGR1'!#REF!) ->  | D187: =IF(Tabla1[[#This Row],[Código_Actividad]]="","",'[3]Formulario PPGR1'!#REF!) ->  | E187: =IF(Tabla1[[#This Row],[Código_Actividad]]="","",'[3]Formulario PPGR1'!#REF!) ->  | F187: =IF(Tabla1[[#This Row],[Código_Actividad]]="","",'[3]Formulario PPGR1'!#REF!) ->  | L187: =+Tabla1[[#This Row],[Precio Unitario]]*Tabla1[[#This Row],[Cantidad de Insumos]] -> 0.00
B188: =IF(Tabla1[[#This Row],[Código_Actividad]]="","",CONCATENATE(Tabla1[[#This Row],[POA]],".",Tabla1[[#This Row],[SRS]],".",Tabla1[[#This Row],[AREA]],".",Tabla1[[#This Row],[TIPO]])) ->  | C188: =IF(Tabla1[[#This Row],[Código_Actividad]]="","",'[3]Formulario PPGR1'!#REF!) ->  | D188: =IF(Tabla1[[#This Row],[Código_Actividad]]="","",'[3]Formulario PPGR1'!#REF!) ->  | E188: =IF(Tabla1[[#This Row],[Código_Actividad]]="","",'[3]Formulario PPGR1'!#REF!) ->  | F188: =IF(Tabla1[[#This Row],[Código_Actividad]]="","",'[3]Formulario PPGR1'!#REF!) ->  | L188: =+Tabla1[[#This Row],[Precio Unitario]]*Tabla1[[#This Row],[Cantidad de Insumos]] -> 0.00
B189: =IF(Tabla1[[#This Row],[Código_Actividad]]="","",CONCATENATE(Tabla1[[#This Row],[POA]],".",Tabla1[[#This Row],[SRS]],".",Tabla1[[#This Row],[AREA]],".",Tabla1[[#This Row],[TIPO]])) ->  | C189: =IF(Tabla1[[#This Row],[Código_Actividad]]="","",'[3]Formulario PPGR1'!#REF!) ->  | D189: =IF(Tabla1[[#This Row],[Código_Actividad]]="","",'[3]Formulario PPGR1'!#REF!) ->  | E189: =IF(Tabla1[[#This Row],[Código_Actividad]]="","",'[3]Formulario PPGR1'!#REF!) ->  | F189: =IF(Tabla1[[#This Row],[Código_Actividad]]="","",'[3]Formulario PPGR1'!#REF!) ->  | L189: =+Tabla1[[#This Row],[Precio Unitario]]*Tabla1[[#This Row],[Cantidad de Insumos]] -> 0.00
B190: =IF(Tabla1[[#This Row],[Código_Actividad]]="","",CONCATENATE(Tabla1[[#This Row],[POA]],".",Tabla1[[#This Row],[SRS]],".",Tabla1[[#This Row],[AREA]],".",Tabla1[[#This Row],[TIPO]])) ->  | C190: =IF(Tabla1[[#This Row],[Código_Actividad]]="","",'[3]Formulario PPGR1'!#REF!) ->  | D190: =IF(Tabla1[[#This Row],[Código_Actividad]]="","",'[3]Formulario PPGR1'!#REF!) ->  | E190: =IF(Tabla1[[#This Row],[Código_Actividad]]="","",'[3]Formulario PPGR1'!#REF!) ->  | F190: =IF(Tabla1[[#This Row],[Código_Actividad]]="","",'[3]Formulario PPGR1'!#REF!) ->  | L190: =+Tabla1[[#This Row],[Precio Unitario]]*Tabla1[[#This Row],[Cantidad de Insumos]] -> 0.00
B191: =IF(Tabla1[[#This Row],[Código_Actividad]]="","",CONCATENATE(Tabla1[[#This Row],[POA]],".",Tabla1[[#This Row],[SRS]],".",Tabla1[[#This Row],[AREA]],".",Tabla1[[#This Row],[TIPO]])) ->  | C191: =IF(Tabla1[[#This Row],[Código_Actividad]]="","",'[3]Formulario PPGR1'!#REF!) ->  | D191: =IF(Tabla1[[#This Row],[Código_Actividad]]="","",'[3]Formulario PPGR1'!#REF!) ->  | E191: =IF(Tabla1[[#This Row],[Código_Actividad]]="","",'[3]Formulario PPGR1'!#REF!) ->  | F191: =IF(Tabla1[[#This Row],[Código_Actividad]]="","",'[3]Formulario PPGR1'!#REF!) ->  | L191: =+Tabla1[[#This Row],[Precio Unitario]]*Tabla1[[#This Row],[Cantidad de Insumos]] -> 0.00
B192: =IF(Tabla1[[#This Row],[Código_Actividad]]="","",CONCATENATE(Tabla1[[#This Row],[POA]],".",Tabla1[[#This Row],[SRS]],".",Tabla1[[#This Row],[AREA]],".",Tabla1[[#This Row],[TIPO]])) ->  | C192: =IF(Tabla1[[#This Row],[Código_Actividad]]="","",'[3]Formulario PPGR1'!#REF!) ->  | D192: =IF(Tabla1[[#This Row],[Código_Actividad]]="","",'[3]Formulario PPGR1'!#REF!) ->  | E192: =IF(Tabla1[[#This Row],[Código_Actividad]]="","",'[3]Formulario PPGR1'!#REF!) ->  | F192: =IF(Tabla1[[#This Row],[Código_Actividad]]="","",'[3]Formulario PPGR1'!#REF!) ->  | L192: =+Tabla1[[#This Row],[Precio Unitario]]*Tabla1[[#This Row],[Cantidad de Insumos]] -> 0.00
B193: =IF(Tabla1[[#This Row],[Código_Actividad]]="","",CONCATENATE(Tabla1[[#This Row],[POA]],".",Tabla1[[#This Row],[SRS]],".",Tabla1[[#This Row],[AREA]],".",Tabla1[[#This Row],[TIPO]])) ->  | C193: =IF(Tabla1[[#This Row],[Código_Actividad]]="","",'[3]Formulario PPGR1'!#REF!) ->  | D193: =IF(Tabla1[[#This Row],[Código_Actividad]]="","",'[3]Formulario PPGR1'!#REF!) ->  | E193: =IF(Tabla1[[#This Row],[Código_Actividad]]="","",'[3]Formulario PPGR1'!#REF!) ->  | F193: =IF(Tabla1[[#This Row],[Código_Actividad]]="","",'[3]Formulario PPGR1'!#REF!) ->  | L193: =+Tabla1[[#This Row],[Precio Unitario]]*Tabla1[[#This Row],[Cantidad de Insumos]] -> 0.00
B194: =IF(Tabla1[[#This Row],[Código_Actividad]]="","",CONCATENATE(Tabla1[[#This Row],[POA]],".",Tabla1[[#This Row],[SRS]],".",Tabla1[[#This Row],[AREA]],".",Tabla1[[#This Row],[TIPO]])) ->  | C194: =IF(Tabla1[[#This Row],[Código_Actividad]]="","",'[3]Formulario PPGR1'!#REF!) ->  | D194: =IF(Tabla1[[#This Row],[Código_Actividad]]="","",'[3]Formulario PPGR1'!#REF!) ->  | E194: =IF(Tabla1[[#This Row],[Código_Actividad]]="","",'[3]Formulario PPGR1'!#REF!) ->  | F194: =IF(Tabla1[[#This Row],[Código_Actividad]]="","",'[3]Formulario PPGR1'!#REF!) ->  | L194: =+Tabla1[[#This Row],[Precio Unitario]]*Tabla1[[#This Row],[Cantidad de Insumos]] -> 0.00
B195: =IF(Tabla1[[#This Row],[Código_Actividad]]="","",CONCATENATE(Tabla1[[#This Row],[POA]],".",Tabla1[[#This Row],[SRS]],".",Tabla1[[#This Row],[AREA]],".",Tabla1[[#This Row],[TIPO]])) ->  | C195: =IF(Tabla1[[#This Row],[Código_Actividad]]="","",'[3]Formulario PPGR1'!#REF!) ->  | D195: =IF(Tabla1[[#This Row],[Código_Actividad]]="","",'[3]Formulario PPGR1'!#REF!) ->  | E195: =IF(Tabla1[[#This Row],[Código_Actividad]]="","",'[3]Formulario PPGR1'!#REF!) ->  | F195: =IF(Tabla1[[#This Row],[Código_Actividad]]="","",'[3]Formulario PPGR1'!#REF!) ->  | L195: =+Tabla1[[#This Row],[Precio Unitario]]*Tabla1[[#This Row],[Cantidad de Insumos]] -> 0.00
B196: =IF(Tabla1[[#This Row],[Código_Actividad]]="","",CONCATENATE(Tabla1[[#This Row],[POA]],".",Tabla1[[#This Row],[SRS]],".",Tabla1[[#This Row],[AREA]],".",Tabla1[[#This Row],[TIPO]])) ->  | C196: =IF(Tabla1[[#This Row],[Código_Actividad]]="","",'[3]Formulario PPGR1'!#REF!) ->  | D196: =IF(Tabla1[[#This Row],[Código_Actividad]]="","",'[3]Formulario PPGR1'!#REF!) ->  | E196: =IF(Tabla1[[#This Row],[Código_Actividad]]="","",'[3]Formulario PPGR1'!#REF!) ->  | F196: =IF(Tabla1[[#This Row],[Código_Actividad]]="","",'[3]Formulario PPGR1'!#REF!) ->  | L196: =+Tabla1[[#This Row],[Precio Unitario]]*Tabla1[[#This Row],[Cantidad de Insumos]] -> 0.00
B197: =IF(Tabla1[[#This Row],[Código_Actividad]]="","",CONCATENATE(Tabla1[[#This Row],[POA]],".",Tabla1[[#This Row],[SRS]],".",Tabla1[[#This Row],[AREA]],".",Tabla1[[#This Row],[TIPO]])) ->  | C197: =IF(Tabla1[[#This Row],[Código_Actividad]]="","",'[3]Formulario PPGR1'!#REF!) ->  | D197: =IF(Tabla1[[#This Row],[Código_Actividad]]="","",'[3]Formulario PPGR1'!#REF!) ->  | E197: =IF(Tabla1[[#This Row],[Código_Actividad]]="","",'[3]Formulario PPGR1'!#REF!) ->  | F197: =IF(Tabla1[[#This Row],[Código_Actividad]]="","",'[3]Formulario PPGR1'!#REF!) ->  | L197: =+Tabla1[[#This Row],[Precio Unitario]]*Tabla1[[#This Row],[Cantidad de Insumos]] -> 0.00
B198: =IF(Tabla1[[#This Row],[Código_Actividad]]="","",CONCATENATE(Tabla1[[#This Row],[POA]],".",Tabla1[[#This Row],[SRS]],".",Tabla1[[#This Row],[AREA]],".",Tabla1[[#This Row],[TIPO]])) ->  | C198: =IF(Tabla1[[#This Row],[Código_Actividad]]="","",'[3]Formulario PPGR1'!#REF!) ->  | D198: =IF(Tabla1[[#This Row],[Código_Actividad]]="","",'[3]Formulario PPGR1'!#REF!) ->  | E198: =IF(Tabla1[[#This Row],[Código_Actividad]]="","",'[3]Formulario PPGR1'!#REF!) ->  | F198: =IF(Tabla1[[#This Row],[Código_Actividad]]="","",'[3]Formulario PPGR1'!#REF!) ->  | L198: =+Tabla1[[#This Row],[Precio Unitario]]*Tabla1[[#This Row],[Cantidad de Insumos]] -> 0.00
B199: =IF(Tabla1[[#This Row],[Código_Actividad]]="","",CONCATENATE(Tabla1[[#This Row],[POA]],".",Tabla1[[#This Row],[SRS]],".",Tabla1[[#This Row],[AREA]],".",Tabla1[[#This Row],[TIPO]])) ->  | C199: =IF(Tabla1[[#This Row],[Código_Actividad]]="","",'[3]Formulario PPGR1'!#REF!) ->  | D199: =IF(Tabla1[[#This Row],[Código_Actividad]]="","",'[3]Formulario PPGR1'!#REF!) ->  | E199: =IF(Tabla1[[#This Row],[Código_Actividad]]="","",'[3]Formulario PPGR1'!#REF!) ->  | F199: =IF(Tabla1[[#This Row],[Código_Actividad]]="","",'[3]Formulario PPGR1'!#REF!) ->  | L199: =+Tabla1[[#This Row],[Precio Unitario]]*Tabla1[[#This Row],[Cantidad de Insumos]] -> 0.00
B200: =IF(Tabla1[[#This Row],[Código_Actividad]]="","",CONCATENATE(Tabla1[[#This Row],[POA]],".",Tabla1[[#This Row],[SRS]],".",Tabla1[[#This Row],[AREA]],".",Tabla1[[#This Row],[TIPO]])) ->  | C200: =IF(Tabla1[[#This Row],[Código_Actividad]]="","",'[3]Formulario PPGR1'!#REF!) ->  | D200: =IF(Tabla1[[#This Row],[Código_Actividad]]="","",'[3]Formulario PPGR1'!#REF!) ->  | E200: =IF(Tabla1[[#This Row],[Código_Actividad]]="","",'[3]Formulario PPGR1'!#REF!) ->  | F200: =IF(Tabla1[[#This Row],[Código_Actividad]]="","",'[3]Formulario PPGR1'!#REF!) ->  | L200: =+Tabla1[[#This Row],[Precio Unitario]]*Tabla1[[#This Row],[Cantidad de Insumos]] -> 0.00
... 14 more rows

Sheet PPNE3
A1: =+PPNE1!B1 -> 0
A2: =+PPNE1!B2 -> Servicio Nacional de Salud
A3: =+PPNE1!B3 -> Dirección de Planificación y Desarrollo
A4: Estimación de Ingresos
A5: =+PPNE1!C5 -> 2022
A6: Servicio Regional de Salud: | E6: =+PPNE1!B6 -> Metropolitano
A7: CEAS: | E7: =+PPNE1!B7 -> HOSPITAL PEDIÁTRICO DR. HUGO MENDOZA
A8: Objeto | B8: Cuenta | C8: Sub-Cuenta | D8: Auxiliar | E8: Descripción Ingresos por Cuenta | F8: Valor RD$ | G8: %
A9: 3 | E9: Donaciones | F9: =+F10 -> 0.00 | G9: =G10 -> 0.00
B10: 31 | E10: Aportes y Donaciones | F10: =SUM(F11:F12) -> 0.00 | G10: =G11+G12 -> 0.00
C11: 311 | E11: Donaciones recibidas de otros Organismos | G11: =IFERROR(F11/$F$30*100,"0.00") -> 0.00
C12: 312 | E12: Aporte de los Hogares | G12: =IFERROR(F12/$F$30*100,"0.00") -> 0.00
A13: 4 | E13: Transferencias | F13: =+F14+F19 -> 430,303,037.19 | G13: =G14+G19 -> 52.03
B14: 41 | E14: Transferencias Corrientes de la Administración Central | F14: =SUM(F15:F18) -> 430,303,037.19 | G14: =SUM(G15:G18) -> 52.03
C15: 411 | E15: Aportes SNS Nomina | F15: 430,303,037.19 | G15: =IFERROR(F15/$F$30*100,"0.00") -> 52.03
C16: 412 | E16: Anticipos Financieros | G16: =IFERROR(F16/$F$30*100,"0.00") -> 0.00
C17: 413 | E17: Aportes SNS Medicamento | G17: =IFERROR(F17/$F$30*100,"0.00") -> 0.00
C18: 414 | E18: Transferencias Corrientes | G18: =IFERROR(F18/$F$30*100,"0.00") -> 0.00
B19: 42 | E19: Transferencia de Capital de la Administración Central | F19: =SUM(F20:F21) -> 0.00 | G19: =G20+G21 -> 0.00
C20: 421 | E20: Aportes SNS Equipamiento | G20: =IFERROR(F20/$F$30*100,"0.00") -> 0.00
C21: 422 | E21: Aportes para otros gastos de inversión del SNS | G21: =IFERROR(F21/$F$30*100,"0.00") -> 0.00
A22: 5 | E22: Otros Ingresos | F22: =+F23 -> 396,799,836.03 | G22: =G23 -> 47.97
B23: 52 | E23: Venta de Servicios | F23: =SUM(F24:F29) -> 396,799,836.03 | G23: =SUM(G24:G29) -> 47.97
C24: 521 | E24: Venta de Servicios a SENASA por afiliados regimen subsidiado | F24: 146,234,639.09 | G24: =IFERROR(F24/$F$30*100,"0.00") -> 17.68
C25: 522 | E25: Venta de Servicios a SENASA por afiliados regimen contributivo | F25: 87,564,861.42 | G25: 10.59
C26: 523 | E26: Venta de Servicios a otras ARS por atencion a Regimen contributivo | G26: 0.00
C27: 524 | E27: Venta de Servicios a ARL | G27: 0.00
C28: 525 | E28: Venta de Servicios a Compañias aseguradoras | F28: 95,986,573.29 | G28: 11.61
C29: 526 | E29: Venta de servicios a otros | F29: 67,013,762.23 | G29: 8.10
E30: Total Ingresos | F30: =+F22+F13+F9 -> 827,102,873.22 | G30: =+G22+G13+G9 -> 100.00

Sheet PPNE4
A1: =+PPNE1!B1 -> 0
A2: Servicio Nacional de Salud
A3: Dirección de Planificación y Desarrollo
A4: Consolidado Presupuesto Estimado de Ingresos y Gastos Nivel Especializado por Actividad Especifica
A5: =+PPNE1!C5 -> 2022
A6: Servicio Regional de Salud: | F6: =+PPNE1!B6 -> Metropolitano
A7: Establecimiento: | F7: =+PPNE1!B7 -> HOSPITAL PEDIÁTRICO DR. HUGO MENDOZA
A8: Estimación de Ingresos
A9: Anticipos Financieros | G9: =+PPNE3!F16 -> 0.00
A10: Venta de Servicios y Otros Ingresos | G10: =+PPNE3!F22 -> 396,799,836.03
A11: Aportes SNS Nómina | G11: =+PPNE3!F15 -> 430,303,037.19
A12: Otros Aportes | G12: =PPNE3!F11+PPNE3!F12+PPNE3!F17+PPNE3!F20+PPNE3!F21 -> 0.00
A13: Transferencias Corrientes | G13: =+PPNE3!F18 -> 0.00
A14: Total Ingresos RD$ | G14: =SUM(G9:G13) -> 827,102,873.22
A15: Estimación de Gastos
A16: Tipo | B16: Objeto | C16: Cuenta | D16: Sub-Cuenta | E16: Auxiliar | F16: Descripción Gasto por Cuenta | G16: Consultas Externa | H16: Emergencias | I16: Hospitalización | J16: Apoyo Diagnóstico | L16: Servicios de Apoyo | N16: Total RD$ | O16: %
J17: Servicios de Laboratorios y Banco de Sangre | K17: Servicios de Imágenes RX | L17: Gestión de Usuario y Educación para la Salud | M17: Gestión Técnica y Administrativa
A18: 2 | F18: Egresos | G18: =+G19+G88+G226+G349+G407+G414+G497 -> 202,085,274.03 | H18: 80,550,577.11 | I18: 153,207,572.05 | J18: 39,520,214.03 | K18: 32,069,948.84 | L18: 4,227,281.07 | M18: 309,236,643.29 | N18: 827,102,873.21 | O18: 98.37
A19: 2 | B19: 1 | F19: Servicios Personales | G19: =+G20+G48+G64+G71+G79 -> 156,790,315.55 | H19: 46,553,169.34 | I19: 104,422,075.08 | J19: 22,991,064.08 | K19: 17,253,582.71 | L19: 3,460,200.08 | M19: 252,831,574.65 | N19: 604,301,981.48 | O19: =+O20+O48+O64+O71+O79 -> 73.06
A20: 2 | B20: 1 | C20: 1 | F20: Remuneraciones | G20: =+G21+G28+G37+G39+G41+G46 -> 129,576,346.95 | H20: 37,850,415.44 | I20: 85,743,456.83 | J20: 19,095,021.96 | K20: 14,329,808.29 | L20: 2,801,677.93 | M20: 211,168,891.65 | N20: 500,565,619.03 | O20: =+O21+O28+O37+O39+O41+O46 -> 60.52
A21: 2 | B21: 1 | C21: 1 | D21: 1 | F21: Remuneraciones al personal fijo | G21: =SUM(G22:G27) -> 8,529,241.31 | H21: 3,174,820.62 | I21: 5,060,367.32 | J21: 1,126,941.09 | K21: 845,709.94 | L21: 190,479.38 | M21: 14,051,047.72 | N21: 32,978,607.38 | O21: =SUM(O22:O27) -> 3.99
A22: 2 | B22: 1 | C22: 1 | D22: 1 | E22: `01 | F22: Sueldos fijos | G22: 0.00 | H22: 0.00 | I22: 0.00 | J22: 0.00 | K22: 0.00 | L22: 0.00 | M22: 0.00 | N22: =SUBTOTAL(9,G22:M22) -> 0.00 | O22: =IFERROR(N22/$N$18*100,"0.00") -> 0.00
A23: 2 | B23: 1 | C23: 1 | D23: 1 | E23: `02 | F23: Sueldos a medicos | G23: 0.00 | H23: 0.00 | I23: 0.00 | J23: 0.00 | K23: 0.00 | L23: 0.00 | M23: 0.00 | N23: 0.00 | O23: 0.00
A24: 2 | B24: 1 | C24: 1 | D24: 1 | E24: `03 | F24: Ascenso a militires | G24: 0.00 | H24: 0.00 | I24: 0.00 | J24: 0.00 | K24: 0.00 | L24: 0.00 | M24: 0.00 | N24: 0.00 | O24: 0.00
A25: 2 | B25: 1 | C25: 1 | D25: 1 | E25: `04 | F25: Nuevas plazas maestros | G25: 0.00 | H25: 0.00 | I25: 0.00 | J25: 0.00 | K25: 0.00 | L25: 0.00 | M25: 0.00 | N25: 0.00 | O25: 0.00
A26: 2 | B26: 1 | C26: 1 | D26: 1 | E26: `05 | F26: Incentivos y escalafón | G26: 8,529,241.31 | H26: 3,174,820.62 | I26: 5,060,367.32 | J26: 1,126,941.09 | K26: 845,709.94 | L26: 190,479.38 | M26: 14,051,047.72 | N26: 32,978,607.38 | O26: 3.99
A27: 2 | B27: 1 | C27: 1 | D27: 1 | E27: `06 | F27: Nuevas plazas a medicos | G27: 0.00 | H27: 0.00 | I27: 0.00 | J27: 0.00 | K27: 0.00 | L27: 0.00 | M27: 0.00 | N27: 0.00 | O27: 0.00
A28: 2 | B28: 1 | C28: 1 | D28: 2 | F28: Remuneraciones al personal con carácter transitorio | G28: =SUM(G29:G36) -> 109,671,100.83 | H28: =SUM(H29:H36) -> 31,678,486.83 | I28: 73,709,425.95 | J28: 16,415,049.72 | K28: 12,318,630.27 | L28: 2,348,700.00 | M28: =SUM(M29:M36) -> 178,310,363.30 | N28: =SUM(N29:N36) -> 424,451,756.90 | O28: =SUM(O29:O36) -> 51.32
A29: 2 | B29: 1 | C29: 1 | D29: 2 | E29: `01 | F29: Sueldos al personal contratado y/o igualado | G29: 109,671,100.83 | H29: 31,678,486.83 | I29: 73,709,425.95 | J29: 16,415,049.72 | K29: 12,318,630.27 | M29: 178,310,363.30 | N29: =SUBTOTAL(9,G29:M29) -> 422,103,056.90 | O29: =IFERROR(N29/$N$18*100,"0.00") -> 51.03
A30: 2 | B30: 1 | C30: 1 | D30: 2 | E30: `02 | F30: Sueldos de personal nominal | G30: 0.00 | H30: 0.00 | I30: 0.00 | J30: 0.00 | K30: 0.00 | L30: 0.00 | M30: 0.00 | N30: 0.00 | O30: 0.00
A31: 2 | B31: 1 | C31: 1 | D31: 2 | E31: `03 | F31: Suplencias | G31: 0.00 | H31: 0.00 | I31: 0.00 | J31: 0.00 | K31: 0.00 | L31: 0.00 | M31: 0.00 | N31: 0.00 | O31: 0.00
A32: 2 | B32: 1 | C32: 1 | D32: 2 | E32: `04 | F32: Sueldos al personal por servicios especiales | G32: 0.00 | H32: 0.00 | I32: 0.00 | J32: 0.00 | K32: 0.00 | L32: 0.00 | M32: 0.00 | N32: 0.00 | O32: 0.00
A33: 2 | B33: 1 | C33: 1 | D33: 2 | E33: `05 | F33: Sueldo al personal nominal en período probatorio | G33: 0.00 | H33: 0.00 | I33: 0.00 | J33: 0.00 | K33: 0.00 | L33: 0.00 | M33: 0.00 | N33: 0.00 | O33: 0.00
A34: 2 | B34: 1 | C34: 1 | D34: 2 | E34: `06 | F34: Jornales | G34: 0.00 | H34: 0.00 | I34: 0.00 | J34: 0.00 | K34: 0.00 | L34: 0.00 | M34: 0.00 | N34: 0.00 | O34: 0.00
A35: 2 | B35: 1 | C35: 1 | D35: 2 | E35: `07 | F35: Sobrejornales | G35: 0.00 | H35: 0.00 | I35: 0.00 | J35: 0.00 | K35: 0.00 | L35: 0.00 | M35: 0.00 | N35: 0.00 | O35: 0.00
A36: 2 | B36: 1 | C36: 1 | D36: 2 | E36: `09 | F36: Personal de carácter eventual | G36: 0.00 | H36: 0.00 | I36: 0.00 | J36: 0.00 | K36: 0.00 | L36: 2,348,700.00 | M36: 0.00 | N36: =SUBTOTAL(9,G36:M36) -> 2,348,700.00 | O36: =IFERROR(N36/$N$18*100,"0.00") -> 0.28
A37: 2 | B37: 1 | C37: 1 | D37: 3 | F37: Sueldos al personal fijo en trámite de pensiones | G37: =G38 -> 0.00 | H37: 0.00 | I37: 0.00 | J37: 0.00 | K37: 0.00 | L37: 0.00 | M37: 1,200,000.00 | N37: 1,200,000.00 | O37: 0.15
A38: 2 | B38: 1 | C38: 1 | D38: 3 | E38: `01 | F38: Sueldos al personal fijo en trámite de pensiones | G38: 0.00 | H38: 0.00 | I38: 0.00 | J38: 0.00 | K38: 0.00 | L38: 0.00 | M38: 1,200,000.00 | N38: =SUBTOTAL(9,G38:M38) -> 1,200,000.00 | O38: =IFERROR(N38/$N$18*100,"0.00") -> 0.15
A39: 2 | B39: 1 | C39: 1 | D39: 4 | F39: Sueldo anual No. 13 | G39: =G40 -> 9,165,240.47 | H39: 2,647,378.82 | I39: 6,159,914.59 | J39: 1,371,809.68 | K39: 1,029,470.92 | L39: 231,867.89 | M39: =M40 -> 14,669,572.38 | N39: 35,275,254.75 | O39: 4.26
A40: 2 | B40: 1 | C40: 1 | D40: 4 | E40: `01 | F40: Sueldo anual No. 13 | G40: 9,165,240.47 | H40: 2,647,378.82 | I40: 6,159,914.59 | J40: 1,371,809.68 | K40: 1,029,470.92 | L40: 231,867.89 | M40: 14,669,572.38 | N40: =SUBTOTAL(9,G40:M40) -> 35,275,254.75 | O40: =IFERROR(N40/$N$18*100,"0.00") -> 4.26
A41: 2 | B41: 1 | C41: 1 | D41: 5 | F41: Prestacianes economicas | G41: =SUM(G42:G45) -> 2,210,764.34 | H41: 349,729.16 | I41: 813,748.96 | J41: 181,221.46 | K41: 135,997.16 | L41: 30,630.66 | M41: =SUM(M42:M45) -> 2,937,908.25 | N41: 6,660,000.00 | O41: =SUM(O42:O45) -> 0.81
A42: 2 | B42: 1 | C42: 1 | D42: 5 | E42: `01 | F42: Prestacianes economicas | G42: 1,103,928.27 | H42: 30,019.67 | I42: 69,849.70 | J42: 15,555.49 | K42: 11,673.58 | L42: 2,629.24 | M42: 1,166,344.06 | N42: =SUBTOTAL(9,G42:M42) -> 2,400,000.00 | O42: =IFERROR(N42/$N$18*100,"0.00") -> 0.29
A43: 2 | B43: 1 | C43: 1 | D43: 5 | E43: `02 | F43: Pago de porcentaje por desvinculación de cargo | G43: 0.00 | H43: 0.00 | I43: 0.00 | J43: 0.00 | K43: 0.00 | L43: 0.00 | M43: 0.00 | N43: =SUBTOTAL(9,G43:M43) -> 0.00 | O43: =IFERROR(N43/$N$18*100,"0.00") -> 0.00
A44: 2 | B44: 1 | C44: 1 | D44: 5 | E44: `03 | F44: Prestacion laboral por desvinculación | G44: 259,820.67 | H44: 75,049.18 | I44: 174,624.24 | J44: 38,888.73 | K44: 29,183.94 | L44: 6,573.10 | M44: 415,860.14 | N44: =SUBTOTAL(9,G44:M44) -> 1,000,000.00 | O44: =IFERROR(N44/$N$18*100,"0.00") -> 0.12
A45: 2 | B45: 1 | C45: 1 | D45: 5 | E45: `04 | F45: Proporción de vacaciones no disfrutadas | G45: 847,015.40 | H45: 244,660.32 | I45: 569,275.03 | J45: 126,777.24 | K45: 95,139.64 | L45: 21,428.32 | M45: 1,355,704.06 | N45: =SUBTOTAL(9,G45:M45) -> 3,260,000.00 | O45: =IFERROR(N45/$N$18*100,"0.00") -> 0.39
A46: 2 | B46: 1 | C46: 1 | D46: 6 | F46: Vacaciones | G46: =G47 -> 0.00 | H46: 0.00 | I46: 0.00 | J46: 0.00 | K46: 0.00 | L46: 0.00 | M46: 0.00 | N46: 0.00 | O46: 0.00
A47: 2 | B47: 1 | C47: 1 | D47: 6 | E47: `01 | F47: Vacaciones | N47: =SUBTOTAL(9,G47:M47) -> 0.00 | O47: =IFERROR(N47/$N$18*100,"0.00") -> 0.00
A48: 2 | B48: 1 | C48: 2 | F48: Sobresueldos | G48: =+G49+G51+G62 -> 10,349,240.47 | H48: 3,831,378.82 | I48: 7,343,914.59 | J48: 1,371,809.68 | K48: 1,029,470.92 | L48: 231,867.89 | M48: =+M49+M51+M62 -> 14,669,572.38 | N48: 38,827,254.75 | O48: =+O49+O51+O62 -> 4.69
A49: 2 | B49: 1 | C49: 2 | D49: 1 | F49: Primas por antigüedad | G49: =G50 -> 0.00 | H49: 0.00 | I49: 0.00 | J49: 0.00 | K49: 0.00 | L49: 0.00 | M49: 0.00 | N49: 0.00 | O49: 0.00
A50: 2 | B50: 1 | C50: 2 | D50: 1 | E50: `01 | F50: Primas por antigüedad | N50: =SUBTOTAL(9,G50:M50) -> 0.00 | O50: =IFERROR(N50/$N$18*100,"0.00") -> 0.00
A51: 2 | B51: 1 | C51: 2 | D51: 2 | F51: Compensación | G51: =SUM(G52:G61) -> 10,349,240.47 | H51: 3,831,378.82 | I51: 7,343,914.59 | J51: 1,371,809.68 | K51: 1,029,470.92 | L51: 231,867.89 | M51: 14,669,572.38 | N51: 38,827,254.75 | O51: =SUM(O52:O61) -> 4.69
A52: 2 | B52: 1 | C52: 2 | D52: 2 | E52: `01 | F52: Compensación por gastos de alimentación | G52: 0.00 | H52: 0.00 | I52: 0.00 | J52: 0.00 | K52: 0.00 | L52: 0.00 | M52: 0.00 | N52: =SUBTOTAL(9,G52:M52) -> 0.00 | O52: =IFERROR(N52/$N$18*100,"0.00") -> 0.00
A53: 2 | B53: 1 | C53: 2 | D53: 2 | E53: `02 | F53: Compensación por horas extraordinarias | G53: 0.00 | H53: 0.00 | I53: 0.00 | J53: 0.00 | K53: 0.00 | L53: 0.00 | M53: 0.00 | N53: 0.00 | O53: 0.00
A54: 2 | B54: 1 | C54: 2 | D54: 2 | E54: `03 | F54: Pago de horas extraordinarias, Horas extraordinarias fin de año (Reglamento 523-09) | G54: 0.00 | H54: 0.00 | I54: 0.00 | J54: 0.00 | K54: 0.00 | L54: 0.00 | M54: 0.00 | N54: 0.00 | O54: 0.00
A55: 2 | B55: 1 | C55: 2 | D55: 2 | E55: `04 | F55: Prima de transporte | G55: 0.00 | H55: 0.00 | I55: 0.00 | J55: 0.00 | K55: 0.00 | L55: 0.00 | M55: 0.00 | N55: 0.00 | O55: 0.00
A56: 2 | B56: 1 | C56: 2 | D56: 2 | E56: `05 | F56: Compensación servicios de Seguridad | G56: 1,184,000.00 | H56: 1,184,000.00 | I56: 1,184,000.00 | N56: 3,552,000.00 | O56: 0.43
A57: 2 | B57: 1 | C57: 2 | D57: 2 | E57: `06 | F57: Compensación por resultados | G57: 0.00 | H57: 0.00 | I57: 0.00 | J57: 0.00 | K57: 0.00 | L57: 0.00 | M57: 0.00 | N57: 0.00 | O57: 0.00
A58: 2 | B58: 1 | C58: 2 | D58: 2 | E58: `07 | F58: Compensación por distancia | G58: 0.00 | H58: 0.00 | I58: 0.00 | J58: 0.00 | K58: 0.00 | L58: 0.00 | M58: 0.00 | N58: 0.00 | O58: 0.00
A59: 2 | B59: 1 | C59: 2 | D59: 2 | E59: `08 | F59: Compensaciones especiales | G59: 0.00 | H59: 0.00 | I59: 0.00 | J59: 0.00 | K59: 0.00 | L59: 0.00 | M59: 0.00 | N59: 0.00 | O59: 0.00
A60: 2 | B60: 1 | C60: 2 | D60: 2 | E60: `09 | F60: Bono por desempeño | G60: 9,165,240.47 | H60: 2,647,378.82 | I60: 6,159,914.59 | J60: 1,371,809.68 | K60: 1,029,470.92 | L60: 231,867.89 | M60: 14,669,572.38 | N60: 35,275,254.75 | O60: 4.26
A61: 2 | B61: 1 | C61: 2 | D61: 2 | E61: `10 | F61: Beneficio , Acuerdo de desempeños institucionales (Reglamento 423-12) | G61: 0.00 | H61: 0.00 | I61: 0.00 | J61: 0.00 | K61: 0.00 | L61: 0.00 | M61: 0.00 | N61: 0.00 | O61: 0.00
A62: 2 | B62: 1 | C62: 2 | D62: 3 | F62: Especialismos | G62: =G63 -> 0.00 | H62: 0.00 | I62: 0.00 | J62: 0.00 | K62: 0.00 | L62: 0.00 | M62: 0.00 | N62: 0.00 | O62: 0.00
A63: 2 | B63: 1 | C63: 2 | D63: 3 | E63: `01 | F63: Especialismos | N63: =SUBTOTAL(9,G63:M63) -> 0.00 | O63: =IFERROR(N63/$N$18*100,"0.00") -> 0.00
A64: 2 | B64: 1 | C64: 3 | F64: Dietas y Gastos de Representación | G64: =G65+G68 -> 0.00 | H64: 0.00 | I64: 0.00 | J64: 0.00 | K64: 0.00 | L64: 0.00 | M64: 0.00 | N64: 0.00 | O64: =O65+O68 -> 0.00
A65: 2 | B65: 1 | C65: 3 | D65: 1 | F65: Dietas | G65: =SUM(G66:G67) -> 0.00 | H65: 0.00 | I65: 0.00 | J65: 0.00 | K65: 0.00 | L65: 0.00 | M65: 0.00 | N65: 0.00 | O65: =SUM(O66:O67) -> 0.00
A66: 2 | B66: 1 | C66: 3 | D66: 1 | E66: `01 | F66: Dietas en el país | N66: =SUBTOTAL(9,G66:M66) -> 0.00 | O66: =IFERROR(N66/$N$18*100,"0.00") -> 0.00
A67: 2 | B67: 1 | C67: 3 | D67: 1 | E67: `02 | F67: Dietas en el exterior | N67: =SUBTOTAL(9,G67:M67) -> 0.00 | O67: =IFERROR(N67/$N$18*100,"0.00") -> 0.00
A68: 2 | B68: 1 | C68: 3 | D68: 2 | F68: Gastos de representación | G68: =SUM(G69:G70) -> 0.00 | H68: 0.00 | I68: 0.00 | J68: 0.00 | K68: 0.00 | L68: 0.00 | M68: 0.00 | N68: 0.00 | O68: =SUM(O69:O70) -> 0.00
A69: 2 | B69: 1 | C69: 3 | D69: 2 | E69: `01 | F69: Gastos de representación en el país | N69: =SUBTOTAL(9,G69:M69) -> 0.00 | O69: =IFERROR(N69/$N$18*100,"0.00") -> 0.00
A70: 2 | B70: 1 | C70: 3 | D70: 2 | E70: `02 | F70: Gastos de representación en el exterior | N70: =SUBTOTAL(9,G70:M70) -> 0.00 | O70: =IFERROR(N70/$N$18*100,"0.00") -> 0.00
A71: 2 | B71: 1 | C71: 4 | F71: Gratificaciones y Bonificaciones | G71: =G72+G74 -> 0.00 | H71: 0.00 | I71: 0.00 | J71: 0.00 | K71: 0.00 | L71: 0.00 | M71: 0.00 | N71: 0.00 | O71: =O72+O74 -> 0.00
A72: 2 | B72: 1 | C72: 4 | D72: 1 | F72: Bonificaciones | G72: =G73 -> 0.00 | H72: 0.00 | I72: 0.00 | J72: 0.00 | K72: 0.00 | L72: 0.00 | M72: 0.00 | N72: 0.00 | O72: 0.00
A73: 2 | B73: 1 | C73: 4 | D73: 1 | E73: `01 | F73: Bonificaciones | N73: =SUBTOTAL(9,G73:M73) -> 0.00 | O73: =IFERROR(N73/$N$18*100,"0.00") -> 0.00
A74: 2 | B74: 1 | C74: 4 | D74: 2 | F74: Otras Gratificaciones y Bonificaciones | G74: =SUM(G75:G78) -> 0.00 | H74: 0.00 | I74: 0.00 | J74: 0.00 | K74: 0.00 | L74: 0.00 | M74: 0.00 | N74: 0.00 | O74: =SUM(O75:O78) -> 0.00
A75: 2 | B75: 1 | C75: 4 | D75: 2 | E75: `01 | F75: Bono escolar | N75: =SUBTOTAL(9,G75:M75) -> 0.00 | O75: =IFERROR(N75/$N$18*100,"0.00") -> 0.00
A76: 2 | B76: 1 | C76: 4 | D76: 2 | E76: `02 | F76: Gratificaciones por pasantías | N76: =SUBTOTAL(9,G76:M76) -> 0.00 | O76: =IFERROR(N76/$N$18*100,"0.00") -> 0.00
A77: 2 | B77: 1 | C77: 4 | D77: 2 | E77: `03 | F77: Gratificaciones por aniversario de institución | N77: =SUBTOTAL(9,G77:M77) -> 0.00 | O77: =IFERROR(N77/$N$18*100,"0.00") -> 0.00
A78: 2 | B78: 1 | C78: 4 | D78: 2 | E78: `04 | F78: Otras Gratificaciones | N78: =SUBTOTAL(9,G78:M78) -> 0.00 | O78: =IFERROR(N78/$N$18*100,"0.00") -> 0.00
A79: 2 | B79: 1 | C79: 5 | F79: Contribuciones a la Seguridad Social y Riesgo Laboral | G79: =G80+G82+G84+G86 -> 16,864,728.13 | H79: 4,871,375.08 | I79: 11,334,703.67 | J79: 2,524,232.44 | K79: 1,894,303.50 | L79: 426,654.26 | M79: =M80+M82+M84+M86 -> 26,993,110.62 | N79: 64,909,107.71 | O79: =O80+O82+O84+O86 -> 7.85
A80: 2 | B80: 1 | C80: 5 | D80: 1 | F80: Contribuciones al seguro de salud | G80: =G81 -> 7,787,425.61 | H80: 2,249,397.13 | I80: 5,233,891.76 | J80: 1,165,584.89 | K80: 874,710.07 | L80: 197,011.08 | M80: 12,464,288.74 | N80: 29,972,309.29 | O80: 3.62
A81: 2 | B81: 1 | C81: 5 | D81: 1 | E81: `01 | F81: Contribuciones al seguro de salud | G81: 7,787,425.61 | H81: 2,249,397.13 | I81: 5,233,891.76 | J81: 1,165,584.89 | K81: 874,710.07 | L81: 197,011.08 | M81: 12,464,288.74 | N81: =SUBTOTAL(9,G81:M81) -> 29,972,309.29 | O81: =IFERROR(N81/$N$18*100,"0.00") -> 3.62
A82: 2 | B82: 1 | C82: 5 | D82: 2 | F82: Contribuciones al seguro de pensiones | G82: =G83 -> 7,780,371.64 | H82: 2,247,359.59 | I82: 5,229,150.82 | J82: 1,164,529.09 | K82: 873,917.75 | L82: 196,832.63 | M82: 12,452,998.40 | N82: 29,945,159.92 | O82: 3.62
A83: 2 | B83: 1 | C83: 5 | D83: 2 | E83: `01 | F83: Contribuciones al seguro de pensiones | G83: 7,780,371.64 | H83: 2,247,359.59 | I83: 5,229,150.82 | J83: 1,164,529.09 | K83: 873,917.75 | L83: 196,832.63 | M83: 12,452,998.40 | N83: =SUBTOTAL(9,G83:M83) -> 29,945,159.92 | O83: =IFERROR(N83/$N$18*100,"0.00") -> 3.62
A84: 2 | B84: 1 | C84: 5 | D84: 3 | F84: Contribuciones al seguro de riesgo laboral | G84: =G85 -> 1,296,930.88 | H84: 374,618.36 | I84: 871,661.08 | J84: 194,118.46 | K84: 145,675.68 | L84: 32,810.55 | M84: 2,075,823.49 | N84: 4,991,638.50 | O84: 0.60
A85: 2 | B85: 1 | C85: 5 | D85: 3 | E85: `01 | F85: Contribuciones al seguro de riesgo laboral | G85: 1,296,930.88 | H85: 374,618.36 | I85: 871,661.08 | J85: 194,118.46 | K85: 145,675.68 | L85: 32,810.55 | M85: 2,075,823.49 | N85: =SUBTOTAL(9,G85:M85) -> 4,991,638.50 | O85: =IFERROR(N85/$N$18*100,"0.00") -> 0.60
A86: 2 | B86: 1 | C86: 5 | D86: 4 | F86: Contribuciones al plan de retiro complementario | G86: =G87 -> 0.00 | H86: 0.00 | I86: 0.00 | J86: 0.00 | K86: 0.00 | L86: 0.00 | M86: 0.00 | N86: 0.00 | O86: 0.00
A87: 2 | B87: 1 | C87: 5 | D87: 4 | E87: `01 | F87: Contribuciones al plan de retiro complementario | N87: =SUBTOTAL(9,G87:M87) -> 0.00 | O87: =IFERROR(N87/$N$18*100,"0.00") -> 0.00
A88: 2 | B88: 2 | F88: Contratacion de servicios | G88: =+G89+G107+G112+G117+G126+G147+G166+G188+G223 -> 8,945,573.59 | H88: =+H89+H107+H112+H117+H126+H147+H166+H188+H223 -> 3,007,062.37 | I88: 6,207,380.85 | J88: 1,844,874.21 | K88: 937,964.77 | L88: 221,257.95 | M88: 21,005,846.34 | N88: 42,169,960.08 | O88: =+O89+O107+O112+O117+O126+O147+O166+O188+O223 -> 4.30
A89: 2 | B89: 2 | C89: 1 | F89: Servicios Básicos | G89: =+G90+G92+G94+G96+G98+G100+G103+G105 -> 1,052,273.73 | H89: 303,949.16 | I89: 707,228.18 | J89: 157,499.34 | K89: 118,194.96 | L89: 26,621.07 | M89: 1,684,233.57 | N89: 4,050,000.00 | O89: =+O90+O92+O94+O96+O98+O100+O103+O105 -> 0.49
A90: 2 | B90: 2 | C90: 1 | D90: 1 | F90: Radiocomunicación | G90: =G91 -> 0.00 | H90: 0.00 | I90: 0.00 | J90: 0.00 | K90: 0.00 | L90: 0.00 | M90: 0.00 | N90: 0.00 | O90: 0.00
A91: 2 | B91: 2 | C91: 1 | D91: 1 | E91: `01 | F91: Radiocomunicación | N91: =SUBTOTAL(9,G91:M91) -> 0.00 | O91: =IFERROR(N91/$N$18*100,"0.00") -> 0.00
A92: 2 | B92: 2 | C92: 1 | D92: 2 | F92: Servicios telefónico de larga distancia | G92: =G93 -> 0.00 | H92: 0.00 | I92: 0.00 | J92: 0.00 | K92: 0.00 | L92: 0.00 | M92: 0.00 | N92: 0.00 | O92: 0.00
A93: 2 | B93: 2 | C93: 1 | D93: 2 | E93: `01 | F93: Servicios telefónico de larga distancia | N93: =SUBTOTAL(9,G93:M93) -> 0.00 | O93: =IFERROR(N93/$N$18*100,"0.00") -> 0.00
A94: 2 | B94: 2 | C94: 1 | D94: 3 | F94: Teléfono local | G94: =G95 -> 777,903.10 | H94: 224,697.23 | I94: 522,824.98 | J94: 116,432.84 | K94: 87,376.72 | L94: 19,679.87 | M94: 1,245,085.26 | N94: 2,994,000.00 | O94: 0.36
A95: 2 | B95: 2 | C95: 1 | D95: 3 | E95: `01 | F95: Teléfono local | G95: 777,903.10 | H95: 224,697.23 | I95: 522,824.98 | J95: 116,432.84 | K95: 87,376.72 | L95: 19,679.87 | M95: 1,245,085.26 | N95: =SUBTOTAL(9,G95:M95) -> 2,994,000.00 | O95: =IFERROR(N95/$N$18*100,"0.00") -> 0.36
A96: 2 | B96: 2 | C96: 1 | D96: 4 | F96: Telefax y correos | G96: =G97 -> 0.00 | H96: 0.00 | I96: 0.00 | J96: 0.00 | K96: 0.00 | L96: 0.00 | M96: 0.00 | N96: 0.00 | O96: 0.00
A97: 2 | B97: 2 | C97: 1 | D97: 4 | E97: `01 | F97: Telefax y correos | N97: =SUBTOTAL(9,G97:M97) -> 0.00 | O97: =IFERROR(N97/$N$18*100,"0.00") -> 0.00
A98: 2 | B98: 2 | C98: 1 | D98: 5 | F98: Servicio de internet y televisión por cable | G98: =G99 -> 149,656.71 | H98: 43,228.33 | I98: 100,583.56 | J98: 22,399.91 | K98: 16,809.95 | L98: 3,786.11 | M98: 239,535.44 | N98: 576,000.00 | O98: 0.07
A99: 2 | B99: 2 | C99: 1 | D99: 5 | E99: `01 | F99: Servicio de internet y televisión por cable | G99: 149,656.71 | H99: 43,228.33 | I99: 100,583.56 | J99: 22,399.91 | K99: 16,809.95 | L99: 3,786.11 | M99: 239,535.44 | N99: =SUBTOTAL(9,G99:M99) -> 576,000.00 | O99: =IFERROR(N99/$N$18*100,"0.00") -> 0.07
A100: 2 | B100: 2 | C100: 1 | D100: 6 | F100: Electricidad | G100: =G101+G102 -> 0.00 | H100: 0.00 | I100: 0.00 | J100: 0.00 | K100: 0.00 | L100: 0.00 | M100: 0.00 | N100: 0.00 | O100: =O101+O102 -> 0.00
A101: 2 | B101: 2 | C101: 1 | D101: 6 | E101: `01 | F101: Energía eléctrica | N101: =SUBTOTAL(9,G101:M101) -> 0.00 | O101: =IFERROR(N101/$N$18*100,"0.00") -> 0.00
A102: 2 | B102: 2 | C102: 1 | D102: 6 | E102: `02 | F102: Electricidad no cortable | N102: =SUBTOTAL(9,G102:M102) -> 0.00 | O102: =IFERROR(N102/$N$18*100,"0.00") -> 0.00
A103: 2 | B103: 2 | C103: 1 | D103: 7 | F103: Agua | G103: =G104 -> 0.00 | H103: 0.00 | I103: 0.00 | J103: 0.00 | K103: 0.00 | L103: 0.00 | M103: 0.00 | N103: 0.00 | O103: 0.00
A104: 2 | B104: 2 | C104: 1 | D104: 7 | E104: `01 | F104: Agua | N104: =SUBTOTAL(9,G104:M104) -> 0.00 | O104: =IFERROR(N104/$N$18*100,"0.00") -> 0.00
A105: 2 | B105: 2 | C105: 1 | D105: 8 | F105: Recolección de residuos sólidos | G105: =G106 -> 124,713.92 | H105: 36,023.60 | I105: 83,819.64 | J105: 18,666.59 | K105: 14,008.29 | L105: 3,155.09 | M105: 199,612.87 | N105: 480,000.00 | O105: 0.06
A106: 2 | B106: 2 | C106: 1 | D106: 8 | E106: `01 | F106: Recolección de residuos sólidos | G106: 124,713.92 | H106: 36,023.60 | I106: 83,819.64 | J106: 18,666.59 | K106: 14,008.29 | L106: 3,155.09 | M106: 199,612.87 | N106: =SUBTOTAL(9,G106:M106) -> 480,000.00 | O106: =IFERROR(N106/$N$18*100,"0.00") -> 0.06
A107: 2 | B107: 2 | C107: 2 | F107: Publicidad Impresión y Encuadernación | G107: =+G108+G110 -> 0.00 | H107: 0.00 | I107: 0.00 | J107: 0.00 | K107: 0.00 | L107: 0.00 | M107: 2,820,000.00 | N107: 2,820,000.00 | O107: =+O108+O110 -> 0.34
A108: 2 | B108: 2 | C108: 2 | D108: 1 | F108: Publicidad y propaganda | G108: =G109 -> 0.00 | H108: 0.00 | I108: 0.00 | J108: 0.00 | K108: 0.00 | L108: 0.00 | M108: 420,000.00 | N108: 420,000.00 | O108: 0.05
A109: 2 | B109: 2 | C109: 2 | D109: 1 | E109: `01 | F109: Publicidad y propaganda | M109: 420,000.00 | N109: =SUBTOTAL(9,G109:M109) -> 420,000.00 | O109: =IFERROR(N109/$N$18*100,"0.00") -> 0.05
A110: 2 | B110: 2 | C110: 2 | D110: 2 | F110: Impresión y encuadernación | G110: =G111 -> 0.00 | H110: 0.00 | I110: 0.00 | J110: 0.00 | K110: 0.00 | L110: 0.00 | M110: 2,400,000.00 | N110: 2,400,000.00 | O110: 0.29
A111: 2 | B111: 2 | C111: 2 | D111: 2 | E111: `01 | F111: Impresión y encuadernación | M111: 2,400,000.00 | N111: =SUBTOTAL(9,G111:M111) -> 2,400,000.00 | O111: =IFERROR(N111/$N$18*100,"0.00") -> 0.29
A112: 2 | B112: 2 | C112: 3 | F112: Viáticos | G112: =+G113+G115 -> 0.00 | H112: 0.00 | I112: 0.00 | J112: 0.00 | K112: 0.00 | L112: 0.00 | M112: 1,719,600.00 | N112: 1,719,600.00 | O112: =+O113+O115 -> 0.21
A113: 2 | B113: 2 | C113: 3 | D113: 1 | F113: Viáticos dentro del país | G113: =G114 -> 0.00 | H113: 0.00 | I113: 0.00 | J113: 0.00 | K113: 0.00 | L113: 0.00 | M113: 219,600.00 | N113: 219,600.00 | O113: 0.03
A114: 2 | B114: 2 | C114: 3 | D114: 1 | E114: `01 | F114: Viáticos dentro del país | M114: 219,600.00 | N114: =SUBTOTAL(9,G114:M114) -> 219,600.00 | O114: =IFERROR(N114/$N$18*100,"0.00") -> 0.03
A115: 2 | B115: 2 | C115: 3 | D115: 2 | F115: Viáticos fuera del país | G115: =G116 -> 0.00 | H115: 0.00 | I115: 0.00 | J115: 0.00 | K115: 0.00 | L115: 0.00 | M115: 1,500,000.00 | N115: 1,500,000.00 | O115: 0.18
A116: 2 | B116: 2 | C116: 3 | D116: 2 | E116: `01 | F116: Viáticos fuera del país | M116: 1,500,000.00 | N116: =SUBTOTAL(9,G116:M116) -> 1,500,000.00 | O116: =IFERROR(N116/$N$18*100,"0.00") -> 0.18
A117: 2 | B117: 2 | C117: 4 | F117: Transporte y Alamcenaje | G117: =+G118+G120+G122+G124 -> 109,124.68 | H117: 31,520.65 | I117: 73,342.18 | J117: 16,333.26 | K117: 12,257.25 | L117: 2,760.70 | M117: 499,663.34 | N117: 745,002.08 | O117: =+O118+O120+O122+O124 -> 0.09
A118: 2 | B118: 2 | C118: 4 | D118: 1 | F118: Pasajes | G118: =G119 -> 0.00 | H118: 0.00 | I118: 0.00 | J118: 0.00 | K118: 0.00 | L118: 0.00 | M118: 325,002.08 | N118: 325,002.08 | O118: 0.04
A119: 2 | B119: 2 | C119: 4 | D119: 1 | E119: `01 | F119: Pasajes | M119: 325,002.08 | N119: =SUBTOTAL(9,G119:M119) -> 325,002.08 | O119: =IFERROR(N119/$N$18*100,"0.00") -> 0.04
A120: 2 | B120: 2 | C120: 4 | D120: 2 | F120: Fletes | G120: =G121 -> 109,124.68 | H120: 31,520.65 | I120: 73,342.18 | J120: 16,333.26 | K120: 12,257.25 | L120: 2,760.70 | M120: 174,661.26 | N120: 420,000.00 | O120: 0.05
A121: 2 | B121: 2 | C121: 4 | D121: 2 | E121: `01 | F121: Fletes | G121: 109,124.68 | H121: 31,520.65 | I121: 73,342.18 | J121: 16,333.26 | K121: 12,257.25 | L121: 2,760.70 | M121: 174,661.26 | N121: =SUBTOTAL(9,G121:M121) -> 420,000.00 | O121: =IFERROR(N121/$N$18*100,"0.00") -> 0.05
A122: 2 | B122: 2 | C122: 4 | D122: 3 | F122: Almacenaje | G122: =G123 -> 0.00 | H122: 0.00 | I122: 0.00 | J122: 0.00 | K122: 0.00 | L122: 0.00 | M122: 0.00 | N122: 0.00 | O122: 0.00
A123: 2 | B123: 2 | C123: 4 | D123: 3 | E123: `01 | F123: Almacenaje | N123: =SUBTOTAL(9,G123:M123) -> 0.00 | O123: =IFERROR(N123/$N$18*100,"0.00") -> 0.00
A124: 2 | B124: 2 | C124: 4 | D124: 4 | F124: Peaje | G124: =G125 -> 0.00 | H124: 0.00 | I124: 0.00 | J124: 0.00 | K124: 0.00 | L124: 0.00 | M124: 0.00 | N124: 0.00 | O124: 0.00
A125: 2 | B125: 2 | C125: 4 | D125: 4 | E125: `01 | F125: Peaje | N125: =SUBTOTAL(9,G125:M125) -> 0.00 | O125: =IFERROR(N125/$N$18*100,"0.00") -> 0.00
A126: 2 | B126: 2 | C126: 5 | F126: Alquileres y Rentas | G126: =+G127+G129+G131+G137+G139+G141+G143+G145 -> 75,348.00 | H126: 21,764.26 | I126: 50,641.03 | J126: 11,277.73 | K126: 8,463.34 | L126: 1,906.20 | M126: 120,599.44 | N126: 290,000.00 | O126: =+O127+O129+O131+O137+O139+O141+O143+O145 -> 0.04
A127: 2 | B127: 2 | C127: 5 | D127: 1 | F127: Alquilleres y rentas de edificios y locales | G127: =G128 -> 0.00 | H127: 0.00 | I127: 0.00 | J127: 0.00 | K127: 0.00 | L127: 0.00 | M127: 0.00 | N127: 0.00 | O127: 0.00
A128: 2 | B128: 2 | C128: 5 | D128: 1 | E128: `01 | F128: Alquilleres y rentas de edificios y locales | N128: =SUBTOTAL(9,G128:M128) -> 0.00 | O128: =IFERROR(N128/$N$18*100,"0.00") -> 0.00
A129: 2 | B129: 2 | C129: 5 | D129: 2 | F129: Alquileres de equipos de producción | G129: =G130 -> 0.00 | H129: 0.00 | I129: 0.00 | J129: 0.00 | K129: 0.00 | L129: 0.00 | M129: 0.00 | N129: 0.00 | O129: 0.00
A130: 2 | B130: 2 | C130: 5 | D130: 2 | E130: `01 | F130: Alquileres de equipos de producción | N130: =SUBTOTAL(9,G130:M130) -> 0.00 | O130: =IFERROR(N130/$N$18*100,"0.00") -> 0.00
A131: 2 | B131: 2 | C131: 5 | D131: 3 | F131: Alquileres de maquinarias y equipos | G131: =SUM(G132:G136) -> 46,767.72 | H131: 13,508.85 | I131: 31,432.36 | J131: 6,999.97 | K131: 5,253.11 | L131: 1,183.16 | M131: 74,854.83 | N131: 180,000.00 | O131: =SUM(O132:O136) -> 0.02
A132: 2 | B132: 2 | C132: 5 | D132: 3 | E132: `01 | F132: Alquiler de equipo educacional | N132: =SUBTOTAL(9,G132:M132) -> 0.00 | O132: =IFERROR(N132/$N$18*100,"0.00") -> 0.00
A133: 2 | B133: 2 | C133: 5 | D133: 3 | E133: `02 | F133: Alquiler de equipo para computación | N133: =SUBTOTAL(9,G133:M133) -> 0.00 | O133: =IFERROR(N133/$N$18*100,"0.00") -> 0.00
A134: 2 | B134: 2 | C134: 5 | D134: 3 | E134: `03 | F134: Alquiler de equipo de comunicación | N134: =SUBTOTAL(9,G134:M134) -> 0.00 | O134: =IFERROR(N134/$N$18*100,"0.00") -> 0.00
A135: 2 | B135: 2 | C135: 5 | D135: 3 | E135: `04 | F135: Alquiler de equipo de oficina y muebles | N135: =SUBTOTAL(9,G135:M135) -> 0.00 | O135: =IFERROR(N135/$N$18*100,"0.00") -> 0.00
A136: 2 | B136: 2 | C136: 5 | D136: 3 | E136: `05 | F136: Alquiler de equipos sanitarios y de laboratorios | G136: 46,767.72 | H136: 13,508.85 | I136: 31,432.36 | J136: 6,999.97 | K136: 5,253.11 | L136: 1,183.16 | M136: 74,854.83 | N136: =SUBTOTAL(9,G136:M136) -> 180,000.00 | O136: =IFERROR(N136/$N$18*100,"0.00") -> 0.02
A137: 2 | B137: 2 | C137: 5 | D137: 4 | F137: Alquileres de equipos de transporte, tracción y elevación | G137: =G138 -> 15,589.24 | H137: 4,502.95 | I137: 10,477.45 | J137: 2,333.32 | K137: 1,751.04 | L137: 394.39 | M137: 24,951.61 | N137: 60,000.00 | O137: 0.01
A138: 2 | B138: 2 | C138: 5 | D138: 4 | E138: `01 | F138: Alquileres de equipos de transporte, tracción y elevación | G138: 15,589.24 | H138: 4,502.95 | I138: 10,477.45 | J138: 2,333.32 | K138: 1,751.04 | L138: 394.39 | M138: 24,951.61 | N138: =SUBTOTAL(9,G138:M138) -> 60,000.00 | O138: =IFERROR(N138/$N$18*100,"0.00") -> 0.01
A139: 2 | B139: 2 | C139: 5 | D139: 5 | F139: Alquiler de tierra | G139: =+G140 -> 0.00 | H139: 0.00 | I139: 0.00 | J139: 0.00 | K139: 0.00 | L139: 0.00 | M139: 0.00 | N139: 0.00 | O139: 0.00
A140: 2 | B140: 2 | C140: 5 | D140: 5 | E140: `01 | F140: Alquiler de tierra | N140: =SUBTOTAL(9,G140:M140) -> 0.00 | O140: =IFERROR(N140/$N$18*100,"0.00") -> 0.00
A141: 2 | B141: 2 | C141: 5 | D141: 6 | F141: Alquileres de Terrenos | G141: =G142 -> 0.00 | H141: 0.00 | I141: 0.00 | J141: 0.00 | K141: 0.00 | L141: 0.00 | M141: 0.00 | N141: 0.00 | O141: 0.00
A142: 2 | B142: 2 | C142: 5 | D142: 6 | E142: `01 | F142: Alquileres de Terrenos | N142: =SUBTOTAL(9,G142:M142) -> 0.00 | O142: =IFERROR(N142/$N$18*100,"0.00") -> 0.00
A143: 2 | B143: 2 | C143: 5 | D143: 7 | F143: Alquileres de equipos de construccion y movimiento de tierra | G143: =+G144 -> 0.00 | H143: 0.00 | I143: 0.00 | J143: 0.00 | K143: 0.00 | L143: 0.00 | M143: 0.00 | N143: 0.00 | O143: 0.00
A144: 2 | B144: 2 | C144: 5 | D144: 7 | E144: `01 | F144: Alquileres de equipos de construccion y movimiento de tierra | N144: =SUBTOTAL(9,G144:M144) -> 0.00 | O144: =IFERROR(N144/$N$18*100,"0.00") -> 0.00
A145: 2 | B145: 2 | C145: 5 | D145: 8 | F145: Otros alquileres | G145: =G146 -> 12,991.03 | H145: 3,752.46 | I145: 8,731.21 | J145: 1,944.44 | K145: 1,459.20 | L145: 328.66 | M145: 20,793.01 | N145: 50,000.00 | O145: 0.01
A146: 2 | B146: 2 | C146: 5 | D146: 8 | E146: `01 | F146: Otros alquileres | G146: 12,991.03 | H146: 3,752.46 | I146: 8,731.21 | J146: 1,944.44 | K146: 1,459.20 | L146: 328.66 | M146: 20,793.01 | N146: =SUBTOTAL(9,G146:M146) -> 50,000.00 | O146: =IFERROR(N146/$N$18*100,"0.00") -> 0.01
A147: 2 | B147: 2 | C147: 6 | F147: Seguros | G147: =+G148+G150+G152+G154+G156+G158+G160+G162+G164 -> 0.00 | H147: 0.00 | I147: 0.00 | J147: 0.00 | K147: 0.00 | L147: 0.00 | M147: 144,000.00 | N147: 144,000.00 | O147: =+O148+O150+O152+O154+O156+O158+O160+O162+O164 -> 0.02
A148: 2 | B148: 2 | C148: 6 | D148: 1 | F148: Seguro de bienes inmuebles e infraestructura | G148: =G149 -> 0.00 | H148: 0.00 | I148: 0.00 | J148: 0.00 | K148: 0.00 | L148: 0.00 | M148: 144,000.00 | N148: 144,000.00 | O148: 0.02
A149: 2 | B149: 2 | C149: 6 | D149: 1 | E149: `01 | F149: Seguro de bienes inmuebles e infraestructura | M149: 144,000.00 | N149: =SUBTOTAL(9,G149:M149) -> 144,000.00 | O149: =IFERROR(N149/$N$18*100,"0.00") -> 0.02
A150: 2 | B150: 2 | C150: 6 | D150: 2 | F150: Seguro de bienes muebles | G150: =G151 -> 0.00 | H150: 0.00 | I150: 0.00 | J150: 0.00 | K150: 0.00 | L150: 0.00 | M150: 0.00 | N150: 0.00 | O150: 0.00
A151: 2 | B151: 2 | C151: 6 | D151: 2 | E151: `01 | F151: Seguro de bienes muebles | N151: =SUBTOTAL(9,G151:M151) -> 0.00 | O151: =IFERROR(N151/$N$18*100,"0.00") -> 0.00
A152: 2 | B152: 2 | C152: 6 | D152: 3 | F152: Seguros de personas | G152: =G153 -> 0.00 | H152: 0.00 | I152: 0.00 | J152: 0.00 | K152: 0.00 | L152: 0.00 | M152: 0.00 | N152: 0.00 | O152: 0.00
A153: 2 | B153: 2 | C153: 6 | D153: 3 | E153: `01 | F153: Seguros de personas | N153: =SUBTOTAL(9,G153:M153) -> 0.00 | O153: =IFERROR(N153/$N$18*100,"0.00") -> 0.00
A154: 2 | B154: 2 | C154: 6 | D154: 4 | F154: Seguros de la producción agrícola | G154: =G155 -> 0.00 | H154: 0.00 | I154: 0.00 | J154: 0.00 | K154: 0.00 | L154: 0.00 | M154: 0.00 | N154: 0.00 | O154: 0.00
A155: 2 | B155: 2 | C155: 6 | D155: 4 | E155: `01 | F155: Seguros de la producción agrícola | N155: =SUBTOTAL(9,G155:M155) -> 0.00 | O155: =IFERROR(N155/$N$18*100,"0.00") -> 0.00
A156: 2 | B156: 2 | C156: 6 | D156: 5 | F156: Seguro sobre infraestructura | G156: =+G157 -> 0.00 | H156: 0.00 | I156: 0.00 | J156: 0.00 | K156: 0.00 | L156: 0.00 | M156: 0.00 | N156: 0.00 | O156: 0.00
A157: 2 | B157: 2 | C157: 6 | D157: 5 | E157: `01 | F157: Seguro sobre infraestructura | N157: =SUBTOTAL(9,G157:M157) -> 0.00 | O157: =IFERROR(N157/$N$18*100,"0.00") -> 0.00
A158: 2 | B158: 2 | C158: 6 | D158: 6 | F158: Seguros sobre bienes de dominio publico | G158: =+G159 -> 0.00 | H158: 0.00 | I158: 0.00 | J158: 0.00 | K158: 0.00 | L158: 0.00 | M158: 0.00 | N158: 0.00 | O158: 0.00
A159: 2 | B159: 2 | C159: 6 | D159: 6 | E159: `01 | F159: Seguros sobre bienes de dominio publico | N159: =SUBTOTAL(9,G159:M159) -> 0.00 | O159: =IFERROR(N159/$N$18*100,"0.00") -> 0.00
A160: 2 | B160: 2 | C160: 6 | D160: 7 | F160: Seguros sobre bienes historicos y culturales | G160: =+G161 -> 0.00 | H160: 0.00 | I160: 0.00 | J160: 0.00 | K160: 0.00 | L160: 0.00 | M160: 0.00 | N160: 0.00 | O160: 0.00
A161: 2 | B161: 2 | C161: 6 | D161: 7 | E161: `01 | F161: Seguros sobre bienes historicos y culturales | N161: =SUBTOTAL(9,G161:M161) -> 0.00 | O161: =IFERROR(N161/$N$18*100,"0.00") -> 0.00
A162: 2 | B162: 2 | C162: 6 | D162: 8 | F162: Seguros sobre inventarios de bienes de consumo | G162: =+G163 -> 0.00 | H162: 0.00 | I162: 0.00 | J162: 0.00 | K162: 0.00 | L162: 0.00 | M162: 0.00 | N162: 0.00 | O162: 0.00
A163: 2 | B163: 2 | C163: 6 | D163: 8 | E163: `01 | F163: Seguros sobre inventarios de bienes de consumo | N163: =SUBTOTAL(9,G163:M163) -> 0.00 | O163: =IFERROR(N163/$N$18*100,"0.00") -> 0.00
A164: 2 | B164: 2 | C164: 6 | D164: 9 | F164: Otros seguros | G164: =+G165 -> 0.00 | H164: 0.00 | I164: 0.00 | J164: 0.00 | K164: 0.00 | L164: 0.00 | M164: 0.00 | N164: 0.00 | O164: 0.00
A165: 2 | B165: 2 | C165: 6 | D165: 9 | E165: `01 | F165: Otros seguros | N165: =SUBTOTAL(9,G165:M165) -> 0.00 | O165: =IFERROR(N165/$N$18*100,"0.00") -> 0.00
A166: 2 | B166: 2 | C166: 7 | F166: Servicios de Conservación, Reparaciones Menores e Instalaciones Temporales | G166: =+G167+G176+G186 -> 3,418,783.05 | H166: 1,410,649.46 | I166: 2,492,851.18 | J166: 1,017,650.44 | K166: 317,176.90 | L166: 81,437.80 | M166: 7,091,251.17 | N166: 15,829,800.00 | O166: =+O167+O176+O186 -> 1.11
A167: 2 | B167: 2 | C167: 7 | D167: 1 | F167: Contrataciones de obras menores | G167: =SUM(G168:G175) -> 884,741.36 | H167: =SUM(H168:H175) -> 255,557.46 | I167: 594,630.47 | J167: 132,423.89 | K167: 99,377.15 | L167: 22,382.73 | M167: 1,416,086.95 | N167: =SUM(N168:N175) -> 3,405,200.00 | O167: =SUM(O168:O175) -> 0.41
A168: 2 | B168: 2 | C168: 7 | D168: 1 | E168: `01 | F168: Obras menores en edificaciones | G168: 155,892.40 | H168: 45,029.51 | I168: 104,774.54 | J168: 23,333.24 | K168: 17,510.36 | L168: 3,943.86 | M168: 249,516.08 | N168: =SUBTOTAL(9,G168:M168) -> 600,000.00 | O168: =IFERROR(N168/$N$18*100,"0.00") -> 0.07
A169: 2 | B169: 2 | C169: 7 | D169: 1 | E169: `02 | F169: Servicios especiales de mantenimiento y reparación | G169: 280,606.33 | H169: 81,053.11 | I169: 188,594.18 | J169: 41,999.82 | K169: 31,518.66 | L169: 7,098.95 | M169: 449,128.95 | N169: 1,080,000.00 | O169: 0.13
A170: 2 | B170: 2 | C170: 7 | D170: 1 | E170: `03 | F170: Limpieza, desmalezamiento de tierras y terrenos | G170: 0.00 | H170: 0.00 | I170: 0.00 | J170: 0.00 | K170: 0.00 | L170: 0.00 | M170: 0.00 | N170: 0.00 | O170: 0.00
A171: 2 | B171: 2 | C171: 7 | D171: 1 | E171: `04 | F171: Mantenimiento y reparación de obras civiles en instalaciones varias | G171: 311,784.81 | H171: 90,059.01 | I171: 209,549.09 | J171: 46,666.47 | K171: 35,020.73 | L171: 7,887.72 | M171: 499,032.17 | N171: 1,200,000.00 | O171: 0.15
A172: 2 | B172: 2 | C172: 7 | D172: 1 | E172: `05 | F172: Obras en bienes de dominio público | G172: 0.00 | H172: 0.00 | I172: 0.00 | J172: 0.00 | K172: 0.00 | L172: 0.00 | M172: 0.00 | N172: 0.00 | O172: 0.00
A173: 2 | B173: 2 | C173: 7 | D173: 1 | E173: `06 | F173: Instalaciones eléctricas | G173: 129,910.34 | H173: 37,524.59 | I173: 87,312.12 | J173: 19,444.36 | K173: 14,591.97 | L173: 3,286.55 | M173: 207,930.07 | N173: 500,000.00 | O173: 0.06
A174: 2 | B174: 2 | C174: 7 | D174: 1 | E174: `07 | F174: Servicios de pintura y derivados con fin de higiene y embellecimiento | G174: 0.00 | H174: 0.00 | I174: 0.00 | J174: 0.00 | K174: 0.00 | L174: 0.00 | M174: 0.00 | N174: 0.00 | O174: 0.00
A175: 2 | B175: 2 | C175: 7 | D175: 1 | E175: `99 | F175: Otros servicios de mantenimiento, reparación, desmonte e instalación | G175: 6,547.48 | H175: 1,891.24 | I175: 4,400.53 | J175: 980.00 | K175: 735.44 | L175: 165.64 | M175: 10,479.68 | N175: =SUBTOTAL(9,G175:M175) -> 25,200.00 | O175: =IFERROR(N175/$N$18*100,"0.00") -> 0.00
A176: 2 | B176: 2 | C176: 7 | D176: 2 | F176: Mantenimientos y reparacion de maquinarias y equipos | G176: =SUM(G177:G185) -> 2,534,041.69 | H176: =SUM(H177:H185) -> 1,155,092.00 | I176: 1,898,220.71 | J176: 885,226.56 | K176: 217,799.74 | L176: 59,055.07 | M176: 5,675,164.23 | N176: =SUM(N177:N185) -> 12,424,600.00 | O176: =SUM(O177:O182) -> 0.70
A177: 2 | B177: 2 | C177: 7 | D177: 2 | E177: `01 | F177: Mantenimiento y reparación de equipo de oficina y muebles | M177: 2,340,000.00 | N177: =SUBTOTAL(9,G177:M177) -> 2,340,000.00 | O177: =IFERROR(N177/$N$18*100,"0.00") -> 0.28
A178: 2 | B178: 2 | C178: 7 | D178: 2 | E178: `02 | F178: Mantenimiento y reparación de equipo para computación | G178: 62,356.96 | H178: 18,011.80 | I178: 41,909.82 | J178: 9,333.29 | K178: 7,004.15 | L178: 1,577.54 | M178: 99,806.43 | N178: 240,000.00 | O178: 0.03
A179: 2 | B179: 2 | C179: 7 | D179: 2 | E179: `03 | F179: Mantenimiento y reparación de equipo de educacional | L179: 10,000.00 | N179: 10,000.00 | O179: 0.00
A180: 2 | B180: 2 | C180: 7 | D180: 2 | E180: `04 | F180: Mantenimiento y reparación de equipos sanitarios y de laboratorio | G180: 595,000.00 | H180: 595,000.00 | I180: 595,000.00 | J180: 595,000.00 | N180: 2,380,000.00 | O180: 0.29
A181: 2 | B181: 2 | C181: 7 | D181: 2 | E181: `05 | F181: Mantenimiento y reparación de equipos de comunicación | G181: 155,892.40 | H181: 45,029.51 | I181: 104,774.54 | J181: 23,333.24 | K181: 17,510.36 | L181: 3,943.86 | M181: 249,516.08 | N181: 600,000.00 | O181: 0.07
A182: 2 | B182: 2 | C182: 7 | D182: 2 | E182: `06 | F182: Mantenimiento y reparación de equipos de transporte, tracción y elevación | M182: 228,000.00 | N182: 228,000.00 | O182: 0.03
A183: 2 | B183: 2 | C183: 7 | D183: 2 | E183: `07 | F183: Mantenimiento y reparación de equipos industriales y producción | G183: 935,354.43 | H183: 270,177.04 | I183: 628,647.27 | J183: 139,999.41 | K183: 105,062.18 | L183: 23,663.17 | M183: 1,497,096.50 | N183: =SUBTOTAL(9,G183:M183) -> 3,600,000.00 | O183: =IFERROR(N183/$N$18*100,"0.00") -> 0.44
A184: 2 | B184: 2 | C184: 7 | D184: 2 | E184: `08 | F184: Servicios de mantenimiento, reparación, desmonte e instalación | M184: 3,600.00 | N184: 3,600.00 | O184: 0.00
A185: 2 | B185: 2 | C185: 7 | D185: 2 | E185: `99 | F185: Otros servicios de mantenimiento, reparación, desmonte e instalación | G185: 785,437.90 | H185: 226,873.66 | I185: 527,889.08 | J185: 117,560.62 | K185: 88,223.05 | L185: 19,870.49 | M185: 1,257,145.20 | N185: 3,023,000.00 | O185: 0.37
A186: 2 | B186: 2 | C186: 7 | D186: 3 | F186: Instalaciones temporales | G186: =G187 -> 0.00 | H186: 0.00 | I186: 0.00 | J186: 0.00 | K186: 0.00 | L186: 0.00 | M186: 0.00 | N186: 0.00 | O186: 0.00
A187: 2 | B187: 2 | C187: 7 | D187: 3 | E187: `01 | F187: Instalaciones temporales | N187: =SUBTOTAL(9,G187:M187) -> 0.00 | O187: =IFERROR(N187/$N$18*100,"0.00") -> 0.00
A188: 2 | B188: 2 | C188: 8 | F188: Otros Servicios No Incluidos en conceptos anteriores | G188: =+G189+G191+G193+G195+G197+G201+G206+G213+G217 -> 3,978,259.32 | H188: 1,149,119.82 | I188: 2,673,769.19 | J188: 595,446.97 | K188: 446,851.59 | L188: 100,644.45 | M188: 6,427,466.65 | N188: 15,371,558.00 | O188: =+O189+O191+O193+O195+O197+O201+O206+O213+O217 -> 1.86
A189: 2 | B189: 2 | C189: 8 | D189: 1 | F189: Gastos judiciales | G189: =G190 -> 0.00 | H189: 0.00 | I189: 0.00 | J189: 0.00 | K189: 0.00 | L189: 0.00 | M189: 0.00 | N189: 0.00 | O189: 0.00
A190: 2 | B190: 2 | C190: 8 | D190: 1 | E190: `01 | F190: Gastos judiciales | N190: =SUBTOTAL(9,G190:M190) -> 0.00 | O190: =IFERROR(N190/$N$18*100,"0.00") -> 0.00
A191: 2 | B191: 2 | C191: 8 | D191: 2 | F191: Comisiones y gastos bancarios | G191: =G192 -> 62,356.96 | H191: 18,011.80 | I191: 41,909.82 | J191: 9,333.29 | K191: 7,004.15 | L191: 1,577.54 | M191: 99,806.43 | N191: 240,000.00 | O191: 0.03
A192: 2 | B192: 2 | C192: 8 | D192: 2 | E192: `01 | F192: Comisiones y gastos bancarios | G192: 62,356.96 | H192: 18,011.80 | I192: 41,909.82 | J192: 9,333.29 | K192: 7,004.15 | L192: 1,577.54 | M192: 99,806.43 | N192: =SUBTOTAL(9,G192:M192) -> 240,000.00 | O192: =IFERROR(N192/$N$18*100,"0.00") -> 0.03
A193: 2 | B193: 2 | C193: 8 | D193: 3 | F193: Servicios sanitarios médicos y veterinarios | G193: =G194 -> 0.00 | H193: 0.00 | I193: 0.00 | J193: 0.00 | K193: 0.00 | L193: 0.00 | M193: 0.00 | N193: 0.00 | O193: 0.00
A194: 2 | B194: 2 | C194: 8 | D194: 3 | E194: `01 | F194: Servicios sanitarios médicos y veterinarios | N194: =SUBTOTAL(9,G194:M194) -> 0.00 | O194: =IFERROR(N194/$N$18*100,"0.00") -> 0.00
A195: 2 | B195: 2 | C195: 8 | D195: 4 | F195: Servicios funerarios y gastos conexos | G195: =G196 -> 0.00 | H195: 0.00 | I195: 0.00 | J195: 0.00 | K195: 0.00 | L195: 0.00 | M195: 60,000.00 | N195: 60,000.00 | O195: 0.01
A196: 2 | B196: 2 | C196: 8 | D196: 4 | E196: `01 | F196: Servicios funerarios y gastos conexos | M196: 60,000.00 | N196: =SUBTOTAL(9,G196:M196) -> 60,000.00 | O196: =IFERROR(N196/$N$18*100,"0.00") -> 0.01
A197: 2 | B197: 2 | C197: 8 | D197: 5 | F197: Fumigación, lavandería, limpieza e higiene | G197: =SUM(G198:G200) -> 1,809,521.09 | H197: 522,679.99 | I197: 1,216,170.53 | J197: 270,840.53 | K197: 203,251.55 | L197: 45,778.38 | M197: 2,896,257.95 | N197: 6,964,500.00 | O197: =SUM(O198:O200) -> 0.84
A198: 2 | B198: 2 | C198: 8 | D198: 5 | E198: `01 | F198: Fumigación | G198: 718,274.25 | H198: 207,473.45 | I198: 482,748.71 | J198: 107,507.88 | K198: 80,679.00 | L198: 18,171.34 | M198: 1,149,645.36 | N198: =SUBTOTAL(9,G198:M198) -> 2,764,500.00 | O198: =IFERROR(N198/$N$18*100,"0.00") -> 0.33
A199: 2 | B199: 2 | C199: 8 | D199: 5 | E199: `02 | F199: Lavandería | G199: 0.00 | H199: 0.00 | I199: 0.00 | J199: 0.00 | K199: 0.00 | L199: 0.00 | M199: 0.00 | N199: =SUBTOTAL(9,G199:M199) -> 0.00 | O199: =IFERROR(N199/$N$18*100,"0.00") -> 0.00
A200: 2 | B200: 2 | C200: 8 | D200: 5 | E200: `03 | F200: Limpieza e higiene | G200: 1,091,246.83 | H200: 315,206.54 | I200: 733,421.81 | J200: 163,332.65 | K200: 122,572.55 | L200: 27,607.03 | M200: 1,746,612.59 | N200: =SUBTOTAL(9,G200:M200) -> 4,200,000.00 | O200: =IFERROR(N200/$N$18*100,"0.00") -> 0.51
... 326 more rows

Sheet PPNE5
A1: =+PPNE1!B1 -> 0
A2: Servicio Nacional de Salud
A3: Dirección de Planificación y Desarrollo
A4: Consolidado Presupuesto Estimado de Ingresos y Gastos Nivel Especializado por Fuente de Financiamiento
A5: =+PPNE1!C5 -> 2022
A6: Servicio Regional de Salud: | F6: =+PPNE1!B6 -> Metropolitano
A7: Establecimiento: | F7: =+PPNE1!B7 -> HOSPITAL PEDIÁTRICO DR. HUGO MENDOZA
A8: Estimación de Ingresos
A9: Anticipos Financieros | G9: =+PPNE3!F16 -> 0.00
A10: Venta de Servicios y Otros Ingresos | G10: =+PPNE3!F22 -> 396,799,836.03
A11: Aportes SNS Nómina | G11: =+PPNE3!F15 -> 430,303,037.19
A12: Otros Aportes | G12: =PPNE3!F11+PPNE3!F12+PPNE3!F17+PPNE3!F20+PPNE3!F21 -> 0.00
A13: Transferencias Corrientes | G13: =+PPNE3!F18 -> 0.00
A14: Total Ingresos RD$ | G14: =SUM(G9:G13) -> 827,102,873.22
A15: Estimación de Gastos
A16: Tipo | B16: Objeto | C16: Cuenta | D16: Sub-Cuenta | E16: Auxiliar | F16: Descripción Gasto por Cuenta | G16: Anticipos Financieros / Transferencias | H16: Venta de Servicios | I16: Nómina | J16: Total RD$ | K16: %
A18: 2 | F18: Egresos | G18: =+G19+G88+G226+G349+G407+G414+G497 -> 0.00 | H18: =+H19+H88+H226+H349+H407+H414+H497 -> 396,799,836.03 | I18: =+I19+I88+I226+I349+I407+I414+I497 -> 430,303,037.19 | J18: 827,102,873.22 | K18: =+K19+K88+K226+K349+K407+K414+K497 -> 98.77
A19: 2 | B19: 1 | F19: Servicios Personales | G19: =+G20+G48+G64+G71+G79 -> 0.00 | H19: =+H20+H48+H64+H71+H79 -> 173,998,944.30 | I19: =+I20+I48+I64+I71+I79 -> 430,303,037.19 | J19: 604,301,981.48 | K19: =+K20+K48+K64+K71+K79 -> 72.78
A20: 2 | B20: 1 | C20: 1 | F20: Remuneraciones | G20: =+G21+G28+G37+G39+G41+G46 -> 0.00 | H20: =+H21+H28+H37+H39+H41+H46 -> 123,646,445.55 | I20: =+I21+I28+I37+I39+I41+I46 -> 376,919,173.48 | J20: =+J21+J28+J37+J39+J41+J46 -> 500,565,619.03 | K20: =+K21+K28+K37+K39+K41+K46 -> 60.24
A21: 2 | B21: 1 | C21: 1 | D21: 1 | F21: Remuneraciones al personal fijo | G21: =SUM(G22:G27) -> 0.00 | H21: =SUM(H22:H27) -> 32,978,607.38 | I21: =SUM(I22:I27) -> 0.00 | J21: =SUM(J22:J27) -> 32,978,607.38 | K21: =SUM(K22:K27) -> 3.99
A22: 2 | B22: 1 | C22: 1 | D22: 1 | E22: `01 | F22: Sueldos fijos | J22: =SUBTOTAL(9,G22:I22) -> 0.00 | K22: =IFERROR(J22/$J$18*100,"0.00") -> 0.00
A23: 2 | B23: 1 | C23: 1 | D23: 1 | E23: `02 | F23: Sueldos a medicos | J23: 0.00 | K23: 0.00
A24: 2 | B24: 1 | C24: 1 | D24: 1 | E24: `03 | F24: Ascenso a militires | J24: 0.00 | K24: 0.00
A25: 2 | B25: 1 | C25: 1 | D25: 1 | E25: `04 | F25: Nuevas plazas maestros | J25: 0.00 | K25: 0.00
A26: 2 | B26: 1 | C26: 1 | D26: 1 | E26: `05 | F26: Incentivos y escalafón | H26: 32,978,607.38 | J26: 32,978,607.38 | K26: 3.99
A27: 2 | B27: 1 | C27: 1 | D27: 1 | E27: `06 | F27: Nuevas plazas a medicos | J27: 0.00 | K27: 0.00
A28: 2 | B28: 1 | C28: 1 | D28: 2 | F28: Remuneraciones al personal con carácter transitorio | G28: =SUM(G29:G35) -> 0.00 | H28: =SUM(H29:H36) -> 77,726,366.00 | I28: =SUM(I29:I36) -> 346,725,390.90 | J28: =SUM(J29:J36) -> 424,451,756.90 | K28: =SUM(K29:K35) -> 51.03
A29: 2 | B29: 1 | C29: 1 | D29: 2 | E29: `01 | F29: Sueldos al personal contratado y/o igualado | H29: 75,377,666.00 | I29: 346,725,390.90 | J29: =SUBTOTAL(9,G29:I29) -> 422,103,056.90 | K29: =IFERROR(J29/$J$18*100,"0.00") -> 51.03
A30: 2 | B30: 1 | C30: 1 | D30: 2 | E30: `02 | F30: Sueldos de personal nominal | J30: 0.00 | K30: 0.00
A31: 2 | B31: 1 | C31: 1 | D31: 2 | E31: `03 | F31: Suplencias | J31: 0.00 | K31: 0.00
A32: 2 | B32: 1 | C32: 1 | D32: 2 | E32: `04 | F32: Sueldos al personal por servicios especiales | J32: 0.00 | K32: 0.00
A33: 2 | B33: 1 | C33: 1 | D33: 2 | E33: `05 | F33: Sueldo al personal nominal en período probatorio | J33: 0.00 | K33: 0.00
A34: 2 | B34: 1 | C34: 1 | D34: 2 | E34: `06 | F34: Jornales | J34: 0.00 | K34: 0.00
A35: 2 | B35: 1 | C35: 1 | D35: 2 | E35: `07 | F35: Sobrejornales | J35: 0.00 | K35: 0.00
A36: 2 | B36: 1 | C36: 1 | D36: 2 | E36: `09 | F36: Personal de carácter eventual | G36: 0.00 | H36: 2,348,700.00 | J36: 2,348,700.00 | K36: 0.28
A37: 2 | B37: 1 | C37: 1 | D37: 3 | F37: Sueldos al personal fijo en trámite de pensiones | G37: =G38 -> 0.00 | H37: =H38 -> 0.00 | I37: =I38 -> 1,200,000.00 | J37: =J38 -> 1,200,000.00 | K37: =K38 -> 0.15
A38: 2 | B38: 1 | C38: 1 | D38: 3 | E38: `01 | F38: Sueldos al personal fijo en trámite de pensiones | I38: 1,200,000.00 | J38: =SUBTOTAL(9,G38:I38) -> 1,200,000.00 | K38: =IFERROR(J38/$J$18*100,"0.00") -> 0.15
A39: 2 | B39: 1 | C39: 1 | D39: 4 | F39: Sueldo anual No. 13 | G39: =G40 -> 0.00 | H39: =H40 -> 6,281,472.17 | I39: =I40 -> 28,993,782.58 | J39: =J40 -> 35,275,254.75 | K39: =K40 -> 4.26
A40: 2 | B40: 1 | C40: 1 | D40: 4 | E40: `01 | F40: Sueldo anual No. 13 | H40: 6,281,472.17 | I40: 28,993,782.58 | J40: =SUBTOTAL(9,G40:I40) -> 35,275,254.75 | K40: =IFERROR(J40/$J$18*100,"0.00") -> 4.26
A41: 2 | B41: 1 | C41: 1 | D41: 5 | F41: Prestacianes economicas | G41: =SUM(G42:G45) -> 0.00 | H41: =SUM(H42:H45) -> 6,660,000.00 | I41: =SUM(I42:I45) -> 0.00 | J41: =SUM(J42:J45) -> 6,660,000.00 | K41: =SUM(K42:K45) -> 0.81
A42: 2 | B42: 1 | C42: 1 | D42: 5 | E42: `01 | F42: Prestacianes economicas | H42: 2,400,000.00 | J42: =SUBTOTAL(9,G42:I42) -> 2,400,000.00 | K42: =IFERROR(J42/$J$18*100,"0.00") -> 0.29
A43: 2 | B43: 1 | C43: 1 | D43: 5 | E43: `02 | F43: Pago de porcentaje por desvinculación de cargo | J43: =SUBTOTAL(9,G43:I43) -> 0.00 | K43: =IFERROR(J43/$J$18*100,"0.00") -> 0.00
A44: 2 | B44: 1 | C44: 1 | D44: 5 | E44: `03 | F44: Prestacion laboral por desvinculación | H44: 1,000,000.00 | J44: =SUBTOTAL(9,G44:I44) -> 1,000,000.00 | K44: =IFERROR(J44/$J$18*100,"0.00") -> 0.12
A45: 2 | B45: 1 | C45: 1 | D45: 5 | E45: `04 | F45: Proporción de vacaciones no disfrutadas | H45: 3,260,000.00 | J45: =SUBTOTAL(9,G45:I45) -> 3,260,000.00 | K45: =IFERROR(J45/$J$18*100,"0.00") -> 0.39
A46: 2 | B46: 1 | C46: 1 | D46: 6 | F46: Vacaciones | G46: =G47 -> 0.00 | H46: =H47 -> 0.00 | I46: =I47 -> 0.00 | J46: =J47 -> 0.00 | K46: =K47 -> 0.00
A47: 2 | B47: 1 | C47: 1 | D47: 6 | E47: `01 | F47: Vacaciones | J47: =SUBTOTAL(9,G47:I47) -> 0.00 | K47: =IFERROR(J47/$J$18*100,"0.00") -> 0.00
A48: 2 | B48: 1 | C48: 2 | F48: Sobresueldos | G48: =+G49+G51+G62 -> 0.00 | H48: =+H49+H51+H62 -> 38,827,254.75 | I48: =+I49+I51+I62 -> 0.00 | J48: =+J49+J51+J62 -> 38,827,254.75 | K48: =+K49+K51+K62 -> 4.69
A49: 2 | B49: 1 | C49: 2 | D49: 1 | F49: Primas por antigüedad | G49: =G50 -> 0.00 | H49: =H50 -> 0.00 | I49: =I50 -> 0.00 | J49: =J50 -> 0.00 | K49: =K50 -> 0.00
A50: 2 | B50: 1 | C50: 2 | D50: 1 | E50: `01 | F50: Primas por antigüedad | J50: =SUBTOTAL(9,G50:I50) -> 0.00 | K50: =IFERROR(J50/$J$18*100,"0.00") -> 0.00
A51: 2 | B51: 1 | C51: 2 | D51: 2 | F51: Compensación | G51: =SUM(G52:G61) -> 0.00 | H51: =SUM(H52:H61) -> 38,827,254.75 | I51: =SUM(I52:I61) -> 0.00 | J51: =SUM(J52:J61) -> 38,827,254.75 | K51: =SUM(K52:K61) -> 4.69
A52: 2 | B52: 1 | C52: 2 | D52: 2 | E52: `01 | F52: Compensación por gastos de alimentación | J52: =SUBTOTAL(9,G52:I52) -> 0.00 | K52: =IFERROR(J52/$J$18*100,"0.00") -> 0.00
A53: 2 | B53: 1 | C53: 2 | D53: 2 | E53: `02 | F53: Compensación por horas extraordinarias | J53: 0.00 | K53: 0.00
A54: 2 | B54: 1 | C54: 2 | D54: 2 | E54: `03 | F54: Pago de horas extraordinarias, Horas extraordinarias fin de año (Reglamento 523-09) | J54: 0.00 | K54: 0.00
A55: 2 | B55: 1 | C55: 2 | D55: 2 | E55: `04 | F55: Prima de transporte | J55: 0.00 | K55: 0.00
A56: 2 | B56: 1 | C56: 2 | D56: 2 | E56: `05 | F56: Compensación servicios de Seguridad | H56: 3,552,000.00 | J56: 3,552,000.00 | K56: 0.43
A57: 2 | B57: 1 | C57: 2 | D57: 2 | E57: `06 | F57: Compensación por resultados | J57: 0.00 | K57: 0.00
A58: 2 | B58: 1 | C58: 2 | D58: 2 | E58: `07 | F58: Compensación por distancia | J58: 0.00 | K58: 0.00
A59: 2 | B59: 1 | C59: 2 | D59: 2 | E59: `08 | F59: Compensaciones especiales | J59: 0.00 | K59: 0.00
A60: 2 | B60: 1 | C60: 2 | D60: 2 | E60: `09 | F60: Bono por desempeño | H60: 35,275,254.75 | J60: 35,275,254.75 | K60: 4.26
A61: 2 | B61: 1 | C61: 2 | D61: 2 | E61: `10 | F61: Beneficio , Acuerdo de desempeños institucionales (Reglamento 423-12) | J61: 0.00 | K61: 0.00
A62: 2 | B62: 1 | C62: 2 | D62: 3 | F62: Especialismos | G62: =G63 -> 0.00 | H62: =H63 -> 0.00 | I62: =I63 -> 0.00 | J62: =J63 -> 0.00 | K62: =K63 -> 0.00
A63: 2 | B63: 1 | C63: 2 | D63: 3 | E63: `01 | F63: Especialismos | J63: =SUBTOTAL(9,G63:I63) -> 0.00 | K63: =IFERROR(J63/$J$18*100,"0.00") -> 0.00
A64: 2 | B64: 1 | C64: 3 | F64: Dietas y Gastos de Representación | G64: =G65+G68 -> 0.00 | H64: =H65+H68 -> 0.00 | I64: =I65+I68 -> 0.00 | J64: =J65+J68 -> 0.00 | K64: =K65+K68 -> 0.00
A65: 2 | B65: 1 | C65: 3 | D65: 1 | F65: Dietas | G65: =SUM(G66:G67) -> 0.00 | H65: =SUM(H66:H67) -> 0.00 | I65: =SUM(I66:I67) -> 0.00 | J65: =SUM(J66:J67) -> 0.00 | K65: =SUM(K66:K67) -> 0.00
A66: 2 | B66: 1 | C66: 3 | D66: 1 | E66: `01 | F66: Dietas en el país | J66: =SUBTOTAL(9,G66:I66) -> 0.00 | K66: =IFERROR(J66/$J$18*100,"0.00") -> 0.00
A67: 2 | B67: 1 | C67: 3 | D67: 1 | E67: `02 | F67: Dietas en el exterior | J67: =SUBTOTAL(9,G67:I67) -> 0.00 | K67: =IFERROR(J67/$J$18*100,"0.00") -> 0.00
A68: 2 | B68: 1 | C68: 3 | D68: 2 | F68: Gastos de representación | G68: =SUM(G69:G70) -> 0.00 | H68: =SUM(H69:H70) -> 0.00 | I68: =SUM(I69:I70) -> 0.00 | J68: =SUM(J69:J70) -> 0.00 | K68: =SUM(K69:K70) -> 0.00
A69: 2 | B69: 1 | C69: 3 | D69: 2 | E69: `01 | F69: Gastos de representación en el país | J69: =SUBTOTAL(9,G69:I69) -> 0.00 | K69: =IFERROR(J69/$J$18*100,"0.00") -> 0.00
A70: 2 | B70: 1 | C70: 3 | D70: 2 | E70: `02 | F70: Gastos de representación en el exterior | J70: =SUBTOTAL(9,G70:I70) -> 0.00 | K70: =IFERROR(J70/$J$18*100,"0.00") -> 0.00
A71: 2 | B71: 1 | C71: 4 | F71: Gratificaciones y Bonificaciones | G71: =G72+G74 -> 0.00 | H71: =H72+H74 -> 0.00 | I71: =I72+I74 -> 0.00 | J71: =J72+J74 -> 0.00 | K71: =K72+K74 -> 0.00
A72: 2 | B72: 1 | C72: 4 | D72: 1 | F72: Bonificaciones | G72: =G73 -> 0.00 | H72: =H73 -> 0.00 | I72: =I73 -> 0.00 | J72: =J73 -> 0.00 | K72: =K73 -> 0.00
A73: 2 | B73: 1 | C73: 4 | D73: 1 | E73: `01 | F73: Bonificaciones | J73: =SUBTOTAL(9,G73:I73) -> 0.00 | K73: =IFERROR(J73/$J$18*100,"0.00") -> 0.00
A74: 2 | B74: 1 | C74: 4 | D74: 2 | F74: Otras Gratificaciones y Bonificaciones | G74: =SUM(G75:G78) -> 0.00 | H74: =SUM(H75:H78) -> 0.00 | I74: =SUM(I75:I78) -> 0.00 | J74: =SUM(J75:J78) -> 0.00 | K74: =SUM(K75:K78) -> 0.00
A75: 2 | B75: 1 | C75: 4 | D75: 2 | E75: `01 | F75: Bono escolar | J75: =SUBTOTAL(9,G75:I75) -> 0.00 | K75: =IFERROR(J75/$J$18*100,"0.00") -> 0.00
A76: 2 | B76: 1 | C76: 4 | D76: 2 | E76: `02 | F76: Gratificaciones por pasantías | J76: =SUBTOTAL(9,G76:I76) -> 0.00 | K76: =IFERROR(J76/$J$18*100,"0.00") -> 0.00
A77: 2 | B77: 1 | C77: 4 | D77: 2 | E77: `03 | F77: Gratificaciones por aniversario de institución | J77: =SUBTOTAL(9,G77:I77) -> 0.00 | K77: =IFERROR(J77/$J$18*100,"0.00") -> 0.00
A78: 2 | B78: 1 | C78: 4 | D78: 2 | E78: `04 | F78: Otras Gratificaciones | J78: =SUBTOTAL(9,G78:I78) -> 0.00 | K78: =IFERROR(J78/$J$18*100,"0.00") -> 0.00
A79: 2 | B79: 1 | C79: 5 | F79: Contribuciones a la Seguridad Social y Riesgo Laboral | G79: =G80+G82+G84+G86 -> 0.00 | H79: =H80+H82+H84+H86 -> 11,525,244.00 | I79: =I80+I82+I84+I86 -> 53,383,863.71 | J79: =J80+J82+J84+J86 -> 64,909,107.71 | K79: =K80+K82+K84+K86 -> 7.85
A80: 2 | B80: 1 | C80: 5 | D80: 1 | F80: Contribuciones al seguro de salud | G80: =G81 -> 0.00 | H80: =H81 -> 5,344,276.00 | I80: =I81 -> 24,628,033.29 | J80: =J81 -> 29,972,309.29 | K80: =K81 -> 3.62
A81: 2 | B81: 1 | C81: 5 | D81: 1 | E81: `01 | F81: Contribuciones al seguro de salud | H81: 5,344,276.00 | I81: 24,628,033.29 | J81: =SUBTOTAL(9,G81:I81) -> 29,972,309.29 | K81: =IFERROR(J81/$J$18*100,"0.00") -> 3.62
A82: 2 | B82: 1 | C82: 5 | D82: 2 | F82: Contribuciones al seguro de pensiones | G82: =G83 -> 0.00 | H82: =H83 -> 5,351,814.00 | I82: =I83 -> 24,593,345.92 | J82: =J83 -> 29,945,159.92 | K82: =K83 -> 3.62
A83: 2 | B83: 1 | C83: 5 | D83: 2 | E83: `01 | F83: Contribuciones al seguro de pensiones | H83: 5,351,814.00 | I83: 24,593,345.92 | J83: =SUBTOTAL(9,G83:I83) -> 29,945,159.92 | K83: =IFERROR(J83/$J$18*100,"0.00") -> 3.62
A84: 2 | B84: 1 | C84: 5 | D84: 3 | F84: Contribuciones al seguro de riesgo laboral | G84: =G85 -> 0.00 | H84: =H85 -> 829,154.00 | I84: =I85 -> 4,162,484.50 | J84: =J85 -> 4,991,638.50 | K84: =K85 -> 0.60
A85: 2 | B85: 1 | C85: 5 | D85: 3 | E85: `01 | F85: Contribuciones al seguro de riesgo laboral | H85: 829,154.00 | I85: 4,162,484.50 | J85: =SUBTOTAL(9,G85:I85) -> 4,991,638.50 | K85: =IFERROR(J85/$J$18*100,"0.00") -> 0.60
A86: 2 | B86: 1 | C86: 5 | D86: 4 | F86: Contribuciones al plan de retiro complementario | G86: =G87 -> 0.00 | H86: =H87 -> 0.00 | I86: =I87 -> 0.00 | J86: =J87 -> 0.00 | K86: =K87 -> 0.00
A87: 2 | B87: 1 | C87: 5 | D87: 4 | E87: `01 | F87: Contribuciones al plan de retiro complementario | J87: =SUBTOTAL(9,G87:I87) -> 0.00 | K87: =IFERROR(J87/$J$18*100,"0.00") -> 0.00
A88: 2 | B88: 2 | F88: Contratacion de servicios | G88: =+G89+G107+G112+G117+G126+G147+G166+G188 -> 0.00 | H88: =+H89+H107+H112+H117+H126+H223+H147+H166+H188 -> 42,169,960.08 | I88: =+I89+I107+I112+I117+I126+I223+I147+I166+I188 -> 0.00 | J88: 42,169,960.08 | K88: =+K89+K107+K112+K117+K126+K147+K166+K188 -> 4.15
A89: 2 | B89: 2 | C89: 1 | F89: Servicios Básicos | G89: =+G90+G92+G94+G96+G98+G100+G103+G105 -> 0.00 | H89: =+H90+H92+H94+H96+H98+H100+H103+H105 -> 4,050,000.00 | I89: =+I90+I92+I94+I96+I98+I100+I103+I105 -> 0.00 | J89: =+J90+J92+J94+J96+J98+J100+J103+J105 -> 4,050,000.00 | K89: =+K90+K92+K94+K96+K98+K100+K103+K105 -> 0.49
A90: 2 | B90: 2 | C90: 1 | D90: 1 | F90: Radiocomunicación | G90: =G91 -> 0.00 | H90: =H91 -> 0.00 | I90: =I91 -> 0.00 | J90: =J91 -> 0.00 | K90: =K91 -> 0.00
A91: 2 | B91: 2 | C91: 1 | D91: 1 | E91: `01 | F91: Radiocomunicación | J91: =SUBTOTAL(9,G91:I91) -> 0.00 | K91: =IFERROR(J91/$J$18*100,"0.00") -> 0.00
A92: 2 | B92: 2 | C92: 1 | D92: 2 | F92: Servicios telefónico de larga distancia | G92: =G93 -> 0.00 | H92: =H93 -> 0.00 | I92: =I93 -> 0.00 | J92: =J93 -> 0.00 | K92: =K93 -> 0.00
A93: 2 | B93: 2 | C93: 1 | D93: 2 | E93: `01 | F93: Servicios telefónico de larga distancia | J93: =SUBTOTAL(9,G93:I93) -> 0.00 | K93: =IFERROR(J93/$J$18*100,"0.00") -> 0.00
A94: 2 | B94: 2 | C94: 1 | D94: 3 | F94: Teléfono local | G94: =G95 -> 0.00 | H94: =H95 -> 2,994,000.00 | I94: =I95 -> 0.00 | J94: =J95 -> 2,994,000.00 | K94: =K95 -> 0.36
A95: 2 | B95: 2 | C95: 1 | D95: 3 | E95: `01 | F95: Teléfono local | H95: 2,994,000.00 | J95: =SUBTOTAL(9,G95:I95) -> 2,994,000.00 | K95: =IFERROR(J95/$J$18*100,"0.00") -> 0.36
A96: 2 | B96: 2 | C96: 1 | D96: 4 | F96: Telefax y correos | G96: =G97 -> 0.00 | H96: =H97 -> 0.00 | I96: =I97 -> 0.00 | J96: =J97 -> 0.00 | K96: =K97 -> 0.00
A97: 2 | B97: 2 | C97: 1 | D97: 4 | E97: `01 | F97: Telefax y correos | J97: =SUBTOTAL(9,G97:I97) -> 0.00 | K97: =IFERROR(J97/$J$18*100,"0.00") -> 0.00
A98: 2 | B98: 2 | C98: 1 | D98: 5 | F98: Servicio de internet y televisión por cable | G98: =G99 -> 0.00 | H98: =H99 -> 576,000.00 | I98: =I99 -> 0.00 | J98: =J99 -> 576,000.00 | K98: =K99 -> 0.07
A99: 2 | B99: 2 | C99: 1 | D99: 5 | E99: `01 | F99: Servicio de internet y televisión por cable | H99: 576,000.00 | J99: =SUBTOTAL(9,G99:I99) -> 576,000.00 | K99: =IFERROR(J99/$J$18*100,"0.00") -> 0.07
A100: 2 | B100: 2 | C100: 1 | D100: 6 | F100: Electricidad | G100: =G101+G102 -> 0.00 | H100: =H101+H102 -> 0.00 | I100: =I101+I102 -> 0.00 | J100: =J101+J102 -> 0.00 | K100: =K101+K102 -> 0.00
A101: 2 | B101: 2 | C101: 1 | D101: 6 | E101: `01 | F101: Energía eléctrica | J101: =SUBTOTAL(9,G101:I101) -> 0.00 | K101: =IFERROR(J101/$J$18*100,"0.00") -> 0.00
A102: 2 | B102: 2 | C102: 1 | D102: 6 | E102: `02 | F102: Electricidad no cortable | J102: =SUBTOTAL(9,G102:I102) -> 0.00 | K102: =IFERROR(J102/$J$18*100,"0.00") -> 0.00
A103: 2 | B103: 2 | C103: 1 | D103: 7 | F103: Agua | G103: =G104 -> 0.00 | H103: =H104 -> 0.00 | I103: =I104 -> 0.00 | J103: =J104 -> 0.00 | K103: =K104 -> 0.00
A104: 2 | B104: 2 | C104: 1 | D104: 7 | E104: `01 | F104: Agua | J104: =SUBTOTAL(9,G104:I104) -> 0.00 | K104: =IFERROR(J104/$J$18*100,"0.00") -> 0.00
A105: 2 | B105: 2 | C105: 1 | D105: 8 | F105: Recolección de residuos sólidos | G105: =G106 -> 0.00 | H105: =H106 -> 480,000.00 | I105: =I106 -> 0.00 | J105: =J106 -> 480,000.00 | K105: =K106 -> 0.06
A106: 2 | B106: 2 | C106: 1 | D106: 8 | E106: `01 | F106: Recolección de residuos sólidos | H106: 480,000.00 | J106: =SUBTOTAL(9,G106:I106) -> 480,000.00 | K106: =IFERROR(J106/$J$18*100,"0.00") -> 0.06
A107: 2 | B107: 2 | C107: 2 | F107: Publicidad Impresión y Encuadernación | G107: =+G108+G110 -> 0.00 | H107: =+H108+H110 -> 2,820,000.00 | I107: =+I108+I110 -> 0.00 | J107: =+J108+J110 -> 2,820,000.00 | K107: =+K108+K110 -> 0.34
A108: 2 | B108: 2 | C108: 2 | D108: 1 | F108: Publicidad y propaganda | G108: =G109 -> 0.00 | H108: =H109 -> 420,000.00 | I108: =I109 -> 0.00 | J108: =J109 -> 420,000.00 | K108: =K109 -> 0.05
A109: 2 | B109: 2 | C109: 2 | D109: 1 | E109: `01 | F109: Publicidad y propaganda | H109: 420,000.00 | J109: =SUBTOTAL(9,G109:I109) -> 420,000.00 | K109: =IFERROR(J109/$J$18*100,"0.00") -> 0.05
A110: 2 | B110: 2 | C110: 2 | D110: 2 | F110: Impresión y encuadernación | G110: =G111 -> 0.00 | H110: =H111 -> 2,400,000.00 | I110: =I111 -> 0.00 | J110: =J111 -> 2,400,000.00 | K110: =K111 -> 0.29
A111: 2 | B111: 2 | C111: 2 | D111: 2 | E111: `01 | F111: Impresión y encuadernación | H111: 2,400,000.00 | J111: =SUBTOTAL(9,G111:I111) -> 2,400,000.00 | K111: =IFERROR(J111/$J$18*100,"0.00") -> 0.29
A112: 2 | B112: 2 | C112: 3 | F112: Viáticos | G112: =+G113+G115 -> 0.00 | H112: =+H113+H115 -> 1,719,600.00 | I112: =+I113+I115 -> 0.00 | J112: =+J113+J115 -> 1,719,600.00 | K112: =+K113+K115 -> 0.21
A113: 2 | B113: 2 | C113: 3 | D113: 1 | F113: Viáticos dentro del país | G113: =G114 -> 0.00 | H113: =H114 -> 219,600.00 | I113: =I114 -> 0.00 | J113: =J114 -> 219,600.00 | K113: =K114 -> 0.03
A114: 2 | B114: 2 | C114: 3 | D114: 1 | E114: `01 | F114: Viáticos dentro del país | H114: 219,600.00 | J114: =SUBTOTAL(9,G114:I114) -> 219,600.00 | K114: =IFERROR(J114/$J$18*100,"0.00") -> 0.03
A115: 2 | B115: 2 | C115: 3 | D115: 2 | F115: Viáticos fuera del país | G115: =G116 -> 0.00 | H115: =H116 -> 1,500,000.00 | I115: =I116 -> 0.00 | J115: =J116 -> 1,500,000.00 | K115: =K116 -> 0.18
A116: 2 | B116: 2 | C116: 3 | D116: 2 | E116: `01 | F116: Viáticos fuera del país | H116: 1,500,000.00 | J116: =SUBTOTAL(9,G116:I116) -> 1,500,000.00 | K116: =IFERROR(J116/$J$18*100,"0.00") -> 0.18
A117: 2 | B117: 2 | C117: 4 | F117: Transporte y Alamcenaje | G117: =+G118+G120+G122+G124 -> 0.00 | H117: =+H118+H120+H122+H124 -> 745,002.08 | I117: =+I118+I120+I122+I124 -> 0.00 | J117: =+J118+J120+J122+J124 -> 745,002.08 | K117: =+K118+K120+K122+K124 -> 0.09
A118: 2 | B118: 2 | C118: 4 | D118: 1 | F118: Pasajes | G118: =G119 -> 0.00 | H118: =H119 -> 325,002.08 | I118: =I119 -> 0.00 | J118: =J119 -> 325,002.08 | K118: =K119 -> 0.04
A119: 2 | B119: 2 | C119: 4 | D119: 1 | E119: `01 | F119: Pasajes | H119: 325,002.08 | J119: =SUBTOTAL(9,G119:I119) -> 325,002.08 | K119: =IFERROR(J119/$J$18*100,"0.00") -> 0.04
A120: 2 | B120: 2 | C120: 4 | D120: 2 | F120: Fletes | G120: =G121 -> 0.00 | H120: =H121 -> 420,000.00 | I120: =I121 -> 0.00 | J120: =J121 -> 420,000.00 | K120: =K121 -> 0.05
A121: 2 | B121: 2 | C121: 4 | D121: 2 | E121: `01 | F121: Fletes | H121: 420,000.00 | J121: =SUBTOTAL(9,G121:I121) -> 420,000.00 | K121: =IFERROR(J121/$J$18*100,"0.00") -> 0.05
A122: 2 | B122: 2 | C122: 4 | D122: 3 | F122: Almacenaje | G122: =G123 -> 0.00 | H122: =H123 -> 0.00 | I122: =I123 -> 0.00 | J122: =J123 -> 0.00 | K122: =K123 -> 0.00
A123: 2 | B123: 2 | C123: 4 | D123: 3 | E123: `01 | F123: Almacenaje | J123: =SUBTOTAL(9,G123:I123) -> 0.00 | K123: =IFERROR(J123/$J$18*100,"0.00") -> 0.00
A124: 2 | B124: 2 | C124: 4 | D124: 4 | F124: Peaje | G124: =G125 -> 0.00 | H124: =H125 -> 0.00 | I124: =I125 -> 0.00 | J124: =J125 -> 0.00 | K124: =K125 -> 0.00
A125: 2 | B125: 2 | C125: 4 | D125: 4 | E125: `01 | F125: Peaje | J125: =SUBTOTAL(9,G125:I125) -> 0.00 | K125: =IFERROR(J125/$J$18*100,"0.00") -> 0.00
A126: 2 | B126: 2 | C126: 5 | F126: Alquileres y Rentas | G126: =+G127+G129+G131+G137+G139+G141+G143+G145 -> 0.00 | H126: =+H127+H129+H131+H137+H139+H141+H143+H145 -> 290,000.00 | I126: =+I127+I129+I131+I137+I139+I141+I143+I145 -> 0.00 | J126: =+J127+J129+J131+J137+J139+J141+J143+J145 -> 290,000.00 | K126: =+K127+K129+K131+K137+K139+K141+K143+K145 -> 0.04
A127: 2 | B127: 2 | C127: 5 | D127: 1 | F127: Alquilleres y rentas de edificios y locales | G127: =G128 -> 0.00 | H127: =H128 -> 0.00 | I127: =I128 -> 0.00 | J127: =J128 -> 0.00 | K127: =K128 -> 0.00
A128: 2 | B128: 2 | C128: 5 | D128: 1 | E128: `01 | F128: Alquilleres y rentas de edificios y locales | J128: =SUBTOTAL(9,G128:I128) -> 0.00 | K128: =IFERROR(J128/$J$18*100,"0.00") -> 0.00
A129: 2 | B129: 2 | C129: 5 | D129: 2 | F129: Alquileres de equipos de producción | G129: =G130 -> 0.00 | H129: =H130 -> 0.00 | I129: =I130 -> 0.00 | J129: =J130 -> 0.00 | K129: =K130 -> 0.00
A130: 2 | B130: 2 | C130: 5 | D130: 2 | E130: `01 | F130: Alquileres de equipos de producción | J130: =SUBTOTAL(9,G130:I130) -> 0.00 | K130: =IFERROR(J130/$J$18*100,"0.00") -> 0.00
A131: 2 | B131: 2 | C131: 5 | D131: 3 | F131: Alquileres de maquinarias y equipos | G131: =SUM(G132:G136) -> 0.00 | H131: =SUM(H132:H136) -> 180,000.00 | I131: =SUM(I132:I136) -> 0.00 | J131: =SUM(J132:J136) -> 180,000.00 | K131: =SUM(K132:K136) -> 0.02
A132: 2 | B132: 2 | C132: 5 | D132: 3 | E132: `01 | F132: Alquiler de equipo educacional | J132: =SUBTOTAL(9,G132:I132) -> 0.00 | K132: =IFERROR(J132/$J$18*100,"0.00") -> 0.00
A133: 2 | B133: 2 | C133: 5 | D133: 3 | E133: `02 | F133: Alquiler de equipo para computación | J133: =SUBTOTAL(9,G133:I133) -> 0.00 | K133: =IFERROR(J133/$J$18*100,"0.00") -> 0.00
A134: 2 | B134: 2 | C134: 5 | D134: 3 | E134: `03 | F134: Alquiler de equipo de comunicación | J134: =SUBTOTAL(9,G134:I134) -> 0.00 | K134: =IFERROR(J134/$J$18*100,"0.00") -> 0.00
A135: 2 | B135: 2 | C135: 5 | D135: 3 | E135: `04 | F135: Alquiler de equipo de oficina y muebles | J135: =SUBTOTAL(9,G135:I135) -> 0.00 | K135: =IFERROR(J135/$J$18*100,"0.00") -> 0.00
A136: 2 | B136: 2 | C136: 5 | D136: 3 | E136: `05 | F136: Alquiler de equipos sanitarios y de laboratorios | H136: 180,000.00 | J136: =SUBTOTAL(9,G136:I136) -> 180,000.00 | K136: =IFERROR(J136/$J$18*100,"0.00") -> 0.02
A137: 2 | B137: 2 | C137: 5 | D137: 4 | F137: Alquileres de equipos de transporte, tracción y elevación | G137: =G138 -> 0.00 | H137: =H138 -> 60,000.00 | I137: =I138 -> 0.00 | J137: =J138 -> 60,000.00 | K137: =K138 -> 0.01
A138: 2 | B138: 2 | C138: 5 | D138: 4 | E138: `01 | F138: Alquileres de equipos de transporte, tracción y elevación | H138: 60,000.00 | J138: =SUBTOTAL(9,G138:I138) -> 60,000.00 | K138: =IFERROR(J138/$J$18*100,"0.00") -> 0.01
A139: 2 | B139: 2 | C139: 5 | D139: 5 | F139: Alquiler de tierra | G139: =+G140 -> 0.00 | H139: =+H140 -> 0.00 | I139: =+I140 -> 0.00 | J139: =+J140 -> 0.00 | K139: =+K140 -> 0.00
A140: 2 | B140: 2 | C140: 5 | D140: 5 | E140: `01 | F140: Alquiler de tierra | J140: =SUBTOTAL(9,G140:I140) -> 0.00 | K140: =IFERROR(J140/$J$18*100,"0.00") -> 0.00
A141: 2 | B141: 2 | C141: 5 | D141: 6 | F141: Alquileres de Terrenos | G141: =G142 -> 0.00 | H141: =H142 -> 0.00 | I141: =I142 -> 0.00 | J141: =J142 -> 0.00 | K141: =K142 -> 0.00
A142: 2 | B142: 2 | C142: 5 | D142: 6 | E142: `01 | F142: Alquileres de Terrenos | J142: =SUBTOTAL(9,G142:I142) -> 0.00 | K142: =IFERROR(J142/$J$18*100,"0.00") -> 0.00
A143: 2 | B143: 2 | C143: 5 | D143: 7 | F143: Alquileres de equipos de construccion y movimiento de tierra | G143: =+G144 -> 0.00 | H143: =+H144 -> 0.00 | I143: =+I144 -> 0.00 | J143: =+J144 -> 0.00 | K143: =+K144 -> 0.00
A144: 2 | B144: 2 | C144: 5 | D144: 7 | E144: `01 | F144: Alquileres de equipos de construccion y movimiento de tierra | J144: =SUBTOTAL(9,G144:I144) -> 0.00 | K144: =IFERROR(J144/$J$18*100,"0.00") -> 0.00
A145: 2 | B145: 2 | C145: 5 | D145: 8 | F145: Otros alquileres | G145: =G146 -> 0.00 | H145: =H146 -> 50,000.00 | I145: =I146 -> 0.00 | J145: =J146 -> 50,000.00 | K145: =K146 -> 0.01
A146: 2 | B146: 2 | C146: 5 | D146: 8 | E146: `01 | F146: Otros alquileres | H146: 50,000.00 | J146: =SUBTOTAL(9,G146:I146) -> 50,000.00 | K146: =IFERROR(J146/$J$18*100,"0.00") -> 0.01
A147: 2 | B147: 2 | C147: 6 | F147: Seguros | G147: =+G148+G150+G152+G154+G156+G158+G160+G162+G164 -> 0.00 | H147: =+H148+H150+H152+H154+H156+H158+H160+H162+H164 -> 144,000.00 | I147: =+I148+I150+I152+I154+I156+I158+I160+I162+I164 -> 0.00 | J147: =+J148+J150+J152+J154+J156+J158+J160+J162+J164 -> 144,000.00 | K147: =+K148+K150+K152+K154+K156+K158+K160+K162+K164 -> 0.02
A148: 2 | B148: 2 | C148: 6 | D148: 1 | F148: Seguro de bienes inmuebles e infraestructura | G148: =G149 -> 0.00 | H148: =H149 -> 0.00 | I148: =I149 -> 0.00 | J148: =J149 -> 0.00 | K148: =K149 -> 0.00
A149: 2 | B149: 2 | C149: 6 | D149: 1 | E149: `01 | F149: Seguro de bienes inmuebles e infraestructura | J149: =SUBTOTAL(9,G149:I149) -> 0.00 | K149: =IFERROR(J149/$J$18*100,"0.00") -> 0.00
A150: 2 | B150: 2 | C150: 6 | D150: 2 | F150: Seguro de bienes muebles | G150: =G151 -> 0.00 | H150: =H151 -> 144,000.00 | I150: =I151 -> 0.00 | J150: =J151 -> 144,000.00 | K150: =K151 -> 0.02
A151: 2 | B151: 2 | C151: 6 | D151: 2 | E151: `01 | F151: Seguro de bienes muebles | H151: 144,000.00 | J151: =SUBTOTAL(9,G151:I151) -> 144,000.00 | K151: =IFERROR(J151/$J$18*100,"0.00") -> 0.02
A152: 2 | B152: 2 | C152: 6 | D152: 3 | F152: Seguros de personas | G152: =G153 -> 0.00 | H152: =H153 -> 0.00 | I152: =I153 -> 0.00 | J152: =J153 -> 0.00 | K152: =K153 -> 0.00
A153: 2 | B153: 2 | C153: 6 | D153: 3 | E153: `01 | F153: Seguros de personas | J153: =SUBTOTAL(9,G153:I153) -> 0.00 | K153: =IFERROR(J153/$J$18*100,"0.00") -> 0.00
A154: 2 | B154: 2 | C154: 6 | D154: 4 | F154: Seguros de la producción agrícola | G154: =G155 -> 0.00 | H154: =H155 -> 0.00 | I154: =I155 -> 0.00 | J154: =J155 -> 0.00 | K154: =K155 -> 0.00
A155: 2 | B155: 2 | C155: 6 | D155: 4 | E155: `01 | F155: Seguros de la producción agrícola | J155: =SUBTOTAL(9,G155:I155) -> 0.00 | K155: =IFERROR(J155/$J$18*100,"0.00") -> 0.00
A156: 2 | B156: 2 | C156: 6 | D156: 5 | F156: Seguro sobre infraestructura | G156: =+G157 -> 0.00 | H156: =+H157 -> 0.00 | I156: =+I157 -> 0.00 | J156: =+J157 -> 0.00 | K156: =+K157 -> 0.00
A157: 2 | B157: 2 | C157: 6 | D157: 5 | E157: `01 | F157: Seguro sobre infraestructura | J157: =SUBTOTAL(9,G157:I157) -> 0.00 | K157: =IFERROR(J157/$J$18*100,"0.00") -> 0.00
A158: 2 | B158: 2 | C158: 6 | D158: 6 | F158: Seguros sobre bienes de dominio publico | G158: =+G159 -> 0.00 | H158: =+H159 -> 0.00 | I158: =+I159 -> 0.00 | J158: =+J159 -> 0.00 | K158: =+K159 -> 0.00
A159: 2 | B159: 2 | C159: 6 | D159: 6 | E159: `01 | F159: Seguros sobre bienes de dominio publico | J159: =SUBTOTAL(9,G159:I159) -> 0.00 | K159: =IFERROR(J159/$J$18*100,"0.00") -> 0.00
A160: 2 | B160: 2 | C160: 6 | D160: 7 | F160: Seguros sobre bienes historicos y culturales | G160: =+G161 -> 0.00 | H160: =+H161 -> 0.00 | I160: =+I161 -> 0.00 | J160: =+J161 -> 0.00 | K160: =+K161 -> 0.00
A161: 2 | B161: 2 | C161: 6 | D161: 7 | E161: `01 | F161: Seguros sobre bienes historicos y culturales | J161: =SUBTOTAL(9,G161:I161) -> 0.00 | K161: =IFERROR(J161/$J$18*100,"0.00") -> 0.00
A162: 2 | B162: 2 | C162: 6 | D162: 8 | F162: Seguros sobre inventarios de bienes de consumo | G162: =+G163 -> 0.00 | H162: =+H163 -> 0.00 | I162: =+I163 -> 0.00 | J162: =+J163 -> 0.00 | K162: =+K163 -> 0.00
A163: 2 | B163: 2 | C163: 6 | D163: 8 | E163: `01 | F163: Seguros sobre inventarios de bienes de consumo | J163: =SUBTOTAL(9,G163:I163) -> 0.00 | K163: =IFERROR(J163/$J$18*100,"0.00") -> 0.00
A164: 2 | B164: 2 | C164: 6 | D164: 9 | F164: Otros seguros | G164: =+G165 -> 0.00 | H164: =+H165 -> 0.00 | I164: =+I165 -> 0.00 | J164: =+J165 -> 0.00 | K164: =+K165 -> 0.00
A165: 2 | B165: 2 | C165: 6 | D165: 9 | E165: `01 | F165: Otros seguros | J165: =SUBTOTAL(9,G165:I165) -> 0.00 | K165: =IFERROR(J165/$J$18*100,"0.00") -> 0.00
A166: 2 | B166: 2 | C166: 7 | F166: Servicios de Conservación, Reparaciones Menores e Instalaciones Temporales | G166: =+G167+G176+G186 -> 0.00 | H166: =+H167+H176+H186 -> 15,829,800.00 | I166: =+I167+I176+I186 -> 0.00 | J166: =+J167+J176+J186 -> 15,829,800.00 | K166: =+K167+K176+K186 -> 1.11
A167: 2 | B167: 2 | C167: 7 | D167: 1 | F167: Contrataciones de obras menores | G167: =SUM(G168:G174) -> 0.00 | H167: =SUM(H168:H175) -> 3,405,200.00 | I167: =SUM(I168:I174) -> 0.00 | J167: =SUM(J168:J175) -> 3,405,200.00 | K167: =SUM(K168:K174) -> 0.41
A168: 2 | B168: 2 | C168: 7 | D168: 1 | E168: `01 | F168: Obras menores en edificaciones | H168: 600,000.00 | J168: =SUBTOTAL(9,G168:I168) -> 600,000.00 | K168: =IFERROR(J168/$J$18*100,"0.00") -> 0.07
A169: 2 | B169: 2 | C169: 7 | D169: 1 | E169: `02 | F169: Servicios especiales de mantenimiento y reparación | H169: 1,080,000.00 | J169: 1,080,000.00 | K169: 0.13
A170: 2 | B170: 2 | C170: 7 | D170: 1 | E170: `03 | F170: Limpieza, desmalezamiento de tierras y terrenos | J170: 0.00 | K170: 0.00
A171: 2 | B171: 2 | C171: 7 | D171: 1 | E171: `04 | F171: Mantenimiento y reparación de obras civiles en instalaciones varias | H171: 1,200,000.00 | J171: 1,200,000.00 | K171: 0.15
A172: 2 | B172: 2 | C172: 7 | D172: 1 | E172: `05 | F172: Obras en bienes de dominio público | J172: 0.00 | K172: 0.00
A173: 2 | B173: 2 | C173: 7 | D173: 1 | E173: `06 | F173: Instalaciones eléctricas | H173: 500,000.00 | J173: 500,000.00 | K173: 0.06
A174: 2 | B174: 2 | C174: 7 | D174: 1 | E174: `07 | F174: Servicios de pintura y derivados con fin de higiene y embellecimiento | J174: 0.00 | K174: 0.00
A175: 2 | B175: 2 | C175: 7 | D175: 1 | E175: `99 | F175: Otros mantenimientos, reparaciones y sus derivados, no identificados preced | H175: 25,200.00 | J175: 25,200.00
A176: 2 | B176: 2 | C176: 7 | D176: 2 | F176: Mantenimientos y reparacion de maquinarias y equipos | G176: =SUM(G177:G182) -> 0.00 | H176: =SUM(H177:H185) -> 12,424,600.00 | I176: =SUM(I177:I182) -> 0.00 | J176: =SUM(J177:J185) -> 12,424,600.00 | K176: =SUM(K177:K182) -> 0.70
A177: 2 | B177: 2 | C177: 7 | D177: 2 | E177: `01 | F177: Mantenimiento y reparación de equipo de oficina y muebles | H177: 2,340,000.00 | J177: =SUBTOTAL(9,G177:I177) -> 2,340,000.00 | K177: =IFERROR(J177/$J$18*100,"0.00") -> 0.28
A178: 2 | B178: 2 | C178: 7 | D178: 2 | E178: `02 | F178: Mantenimiento y reparación de equipo para computación | H178: 240,000.00 | J178: 240,000.00 | K178: 0.03
A179: 2 | B179: 2 | C179: 7 | D179: 2 | E179: `03 | F179: Mantenimiento y reparación de equipo de educacional | H179: 10,000.00 | J179: 10,000.00 | K179: 0.00
A180: 2 | B180: 2 | C180: 7 | D180: 2 | E180: `04 | F180: Mantenimiento y reparación de equipos sanitarios y de laboratorio | H180: 2,380,000.00 | J180: 2,380,000.00 | K180: 0.29
A181: 2 | B181: 2 | C181: 7 | D181: 2 | E181: `05 | F181: Mantenimiento y reparación de equipos de comunicación | H181: 600,000.00 | J181: 600,000.00 | K181: 0.07
A182: 2 | B182: 2 | C182: 7 | D182: 2 | E182: `06 | F182: Mantenimiento y reparación de equipos de transporte, tracción y elevación | H182: 228,000.00 | J182: 228,000.00 | K182: 0.03
A183: 2 | B183: 2 | C183: 7 | D183: 2 | E183: `07 | F183: Mantenimiento y reparación de equipos industriales y producción | H183: 3,600,000.00 | J183: 3,600,000.00
A184: 2 | B184: 2 | C184: 7 | D184: 2 | E184: `08 | F184: Servicios de mantenimiento, reparación, desmonte e instalación | H184: 3,600.00 | J184: 3,600.00
A185: 2 | B185: 2 | C185: 7 | D185: 2 | E185: `99 | F185: Otros servicios de mantenimiento, reparación, desmonte e instalación | H185: 3,023,000.00 | J185: 3,023,000.00
A186: 2 | B186: 2 | C186: 7 | D186: 3 | F186: Instalaciones temporales | G186: =G187 -> 0.00 | H186: =H187 -> 0.00 | I186: =I187 -> 0.00 | J186: =J187 -> 0.00 | K186: =K187 -> 0.00
A187: 2 | B187: 2 | C187: 7 | D187: 3 | E187: `01 | F187: Instalaciones temporales | J187: =SUBTOTAL(9,G187:I187) -> 0.00 | K187: =IFERROR(J187/$J$18*100,"0.00") -> 0.00
A188: 2 | B188: 2 | C188: 8 | F188: Otros Servicios No Incluidos en conceptos anteriores | G188: =+G189+G191+G193+G195+G197+G201+G206+G213+G217 -> 0.00 | H188: =+H189+H191+H193+H195+H197+H201+H206+H213+H217 -> 15,371,558.00 | I188: =+I189+I191+I193+I195+I197+I201+I206+I213+I217 -> 0.00 | J188: =+J189+J191+J193+J195+J197+J201+J206+J213+J217 -> 15,371,558.00 | K188: =+K189+K191+K193+K195+K197+K201+K206+K213+K217 -> 1.86
A189: 2 | B189: 2 | C189: 8 | D189: 1 | F189: Gastos judiciales | G189: =G190 -> 0.00 | H189: =H190 -> 0.00 | I189: =I190 -> 0.00 | J189: =J190 -> 0.00 | K189: =K190 -> 0.00
A190: 2 | B190: 2 | C190: 8 | D190: 1 | E190: `01 | F190: Gastos judiciales | J190: =SUBTOTAL(9,G190:I190) -> 0.00 | K190: =IFERROR(J190/$J$18*100,"0.00") -> 0.00
A191: 2 | B191: 2 | C191: 8 | D191: 2 | F191: Comisiones y gastos bancarios | G191: =G192 -> 0.00 | H191: =H192 -> 240,000.00 | I191: =I192 -> 0.00 | J191: =J192 -> 240,000.00 | K191: =K192 -> 0.03
A192: 2 | B192: 2 | C192: 8 | D192: 2 | E192: `01 | F192: Comisiones y gastos bancarios | H192: 240,000.00 | J192: =SUBTOTAL(9,G192:I192) -> 240,000.00 | K192: =IFERROR(J192/$J$18*100,"0.00") -> 0.03
A193: 2 | B193: 2 | C193: 8 | D193: 3 | F193: Servicios sanitarios médicos y veterinarios | G193: =G194 -> 0.00 | H193: =H194 -> 0.00 | I193: =I194 -> 0.00 | J193: =J194 -> 0.00 | K193: =K194 -> 0.00
A194: 2 | B194: 2 | C194: 8 | D194: 3 | E194: `01 | F194: Servicios sanitarios médicos y veterinarios | J194: =SUBTOTAL(9,G194:I194) -> 0.00 | K194: =IFERROR(J194/$J$18*100,"0.00") -> 0.00
A195: 2 | B195: 2 | C195: 8 | D195: 4 | F195: Servicios funerarios y gastos conexos | G195: =G196 -> 0.00 | H195: =H196 -> 60,000.00 | I195: =I196 -> 0.00 | J195: =J196 -> 60,000.00 | K195: =K196 -> 0.01
A196: 2 | B196: 2 | C196: 8 | D196: 4 | E196: `01 | F196: Servicios funerarios y gastos conexos | H196: 60,000.00 | J196: =SUBTOTAL(9,G196:I196) -> 60,000.00 | K196: =IFERROR(J196/$J$18*100,"0.00") -> 0.01
A197: 2 | B197: 2 | C197: 8 | D197: 5 | F197: Fumigación, lavandería, limpieza e higiene | G197: =SUM(G198:G200) -> 0.00 | H197: =SUM(H198:H200) -> 6,964,500.00 | I197: =SUM(I198:I200) -> 0.00 | J197: =SUM(J198:J200) -> 6,964,500.00 | K197: =SUM(K198:K200) -> 0.84
A198: 2 | B198: 2 | C198: 8 | D198: 5 | E198: `01 | F198: Fumigación | H198: 2,764,500.00 | J198: =SUBTOTAL(9,G198:I198) -> 2,764,500.00 | K198: =IFERROR(J198/$J$18*100,"0.00") -> 0.33
A199: 2 | B199: 2 | C199: 8 | D199: 5 | E199: `02 | F199: Lavandería | H199: 0.00 | J199: =SUBTOTAL(9,G199:I199) -> 0.00 | K199: =IFERROR(J199/$J$18*100,"0.00") -> 0.00
A200: 2 | B200: 2 | C200: 8 | D200: 5 | E200: `03 | F200: Limpieza e higiene | H200: 4,200,000.00 | J200: =SUBTOTAL(9,G200:I200) -> 4,200,000.00 | K200: =IFERROR(J200/$J$18*100,"0.00") -> 0.51
A201: 2 | B201: 2 | C201: 8 | D201: 6 | F201: Organización de eventos y festividades | G201: =SUM(G202:G205) -> 0.00 | H201: =SUM(H202:H205) -> 2,948,658.00 | I201: =SUM(I202:I205) -> 0.00 | J201: =SUM(J202:J205) -> 2,948,658.00 | K201: =SUM(K202:K205) -> 0.36
... 325 more rows

Sheet Insumos (hidden)
A1: Insumo | B1: InsumoAbrev | C1: Descripción | D1: Unidad de Medida | E1: Precio Unitario | F1: CODIGO PRESUPUESTARIO
A2: Acabados textiles | B2: lsAcabadosTextiles | C2: Manteles en encajes para bandejas grandes (rectangulares) | D2: unidad | E2: 944.00 | F2: 2.3.2.2.01
A3: Acabados textiles | B3: lsAcabadosTextiles | C3: Manteles en encajes para bandejas pequeñas (rectangulares) | D3: unidad | E3: 590.00 | F3: 2.3.2.2.01
A4: Alimentos y bebidas para personas | B4: lsAlimentosyBebidas | C4: Almuerzo tipo Buffet para 10 personas (Cristaleria, Cuberteria, Servilletas, Jugo) | D4: unidad | E4: 5,000.50 | F4: 2.3.1.1.01
A5: Alimentos y bebidas para personas | B5: lsAlimentosyBebidas | C5: Almuerzo tipo Buffet para 20 personas (Cristalería, Cubertería, Servilletas, Jugo, Café) | D5: unidad | E5: 10,133.50 | F5: 2.3.1.1.01
A6: Alimentos y bebidas para personas | B6: lsAlimentosyBebidas | C6: Almuerzo tipo Buffet para 30 personas (Cristaleria, Cuberteria, Servilletas, Jugo) | D6: unidad | E6: 25,488.00 | F6: 2.3.1.1.01
A7: Alimentos y bebidas para personas | B7: lsAlimentosyBebidas | C7: Almuerzo tipo Buffet para 40 personas (Cristalería, Cuberteria, Mesas, Sillas, Manteles, Servilletas) | D7: unidad | E7: 61,419.00 | F7: 2.3.1.1.01
A8: Alimentos y bebidas para personas | B8: lsAlimentosyBebidas | C8: Refrigerio Dulce tipo Buffet p/65 Personas (Arreglo Flores, Alquiler Cristalería, Sillas, Servilletas, Mesa, Bambalina, Tope) | D8: unidad | E8: 33,435.30 | F8: 2.3.1.1.01
A9: Alimentos y bebidas para personas | B9: lsAlimentosyBebidas | C9: Refrigerio tipo Buffet p/12 personas (4 Variedades, Desechables Transparentes, Jugo Natural, Servilletas, Hielo) | D9: unidad | E9: 9,410.50 | F9: 2.3.1.1.01
A10: Alimentos y bebidas para personas | B10: lsAlimentosyBebidas | C10: Refrigerio tipo Buffet p/15 personas (3 Variedades, Desechables Transparentes, Jugo Natural, Servilletas, Hielo) | D10: unidad | E10: 5,929.50 | F10: 2.3.1.1.01
A11: Alimentos y bebidas para personas | B11: lsAlimentosyBebidas | C11: Refrigerio tipo Buffet p/150 personas (Diferentes Variedades, Bambalinas, Manteles, Desechables, Hielo, Servilletas) | D11: unidad | E11: 65,844.00 | F11: 2.3.1.1.01
A12: Alimentos y bebidas para personas | B12: lsAlimentosyBebidas | C12: Refrigerio tipo Buffet p/40 personas (5 Variedades, Cristaleria, Mantel, Tope, Bambalina, Servilletas, Hielo) | D12: unidad | E12: 29,393.80 | F12: 2.3.1.1.01
A13: Alimentos y bebidas para personas | B13: lsAlimentosyBebidas | C13: Refrigerio tipo Buffet p/45 personas (5 Variedades, Desechable Transparentes, Servilletas, Hielo) | D13: unidad | E13: 27,193.10 | F13: 2.3.1.1.01
A14: Alimentos y bebidas para personas | B14: lsAlimentosyBebidas | C14: Refrigerio tipo preempacado p/100 personas (4 Variedades, Jugo, Desechables Transparentes, Hielo, Servilleta) | D14: unidad | E14: 50,380.10 | F14: 2.3.1.1.01
A15: Alimentos y bebidas para personas | B15: lsAlimentosyBebidas | C15: Refrigerio tipo preempacado p/110 personas (4 Variedades, Jugo, Desechables Transparentes,sillas plasticas, Servilletas) | D15: unidad | E15: 29,323.00 | F15: 2.3.1.1.01
A16: Alimentos y bebidas para personas | B16: lsAlimentosyBebidas | C16: Refrigerio tipo preempacado p/125 personas (4 Variedades, Jugo, Desechables Transparentes,sillas plasticas, Servilletas) | D16: unidad | E16: 32,833.50 | F16: 2.3.1.1.01
A17: Alimentos y bebidas para personas | B17: lsAlimentosyBebidas | C17: Refrigerio tipo preempacado p/20 personas (Variedades fuertes, Jugo, Desechables Transparentes, Servilletas, Hielo) | D17: unidad | E17: 12,537.50 | F17: 2.3.1.1.01
A18: Alimentos y bebidas para personas | B18: lsAlimentosyBebidas | C18: Refrigerio tipo preempacado p/25 personas (4 Variedades, Jugo, Desechables Transparentes, Jugo Natural) | D18: unidad | E18: 12,626.00 | F18: 2.3.1.1.01
A19: Alimentos y bebidas para personas | B19: lsAlimentosyBebidas | C19: Refrigerio tipo preempacado p/250 personas (4 Variedades, Jugo, Desechables Transparentes, Mesas, Manteles) | D19: unidad | E19: 95,892.70 | F19: 2.3.1.1.01
A20: Alimentos y bebidas para personas | B20: lsAlimentosyBebidas | C20: Refrigerio tipo preempacado p/50 personas (3 Variedades, Jugo, Desechables Transparentes, Hielo, Servilleta) | D20: unidad | E20: 19,706.00 | F20: 2.3.1.1.01
A21: Alimentos y bebidas para personas | B21: lsAlimentosyBebidas | C21: Refrigerio y Almuerzo tipo Buffet p/25 personas (Cristaleria, Mesas, Manteles, Bambalina, Hielo, Servilletas | D21: unidad | E21: 30,975.00 | F21: 2.3.1.1.01
A22: Alimentos y bebidas para personas | B22: lsAlimentosyBebidas | C22: Servicio de Almuerzo tipo buffet para 30 Personas | D22: unidad | E22: 15,251.50 | F22: 2.3.1.1.01
A23: Alimentos y bebidas para personas | B23: lsAlimentosyBebidas | C23: Servicio de Refrigerio tipo buffet 30 Personas | D23: unidad | E23: 24,225.40 | F23: 2.3.1.1.01
A24: Artículos de plástico | B24: lsArticulosdePlastico | C24: Cajas de Cucharas Plásticas | D24: Caja | E24: 1,003.00 | F24: 2.3.5.5.01
A25: Artículos de plástico | B25: lsArticulosdePlastico | C25: Cajas de Tenedores Plásticos | D25: Caja | E25: 1,003.00 | F25: 2.3.5.5.01
A26: Artículos de plástico | B26: lsArticulosdePlastico | C26: Cajas de Vasos No. 3 | D26: Caja | E26: 3,009.00 | F26: 2.3.5.5.01
A27: Artículos de plástico | B27: lsArticulosdePlastico | C27: Cajas de Vasos No. 7 | D27: Caja | E27: 1,882.10 | F27: 2.3.5.5.01
A28: Artículos de plástico | B28: lsArticulosdePlastico | C28: Fardos de Fundas Plásticas 17x22 | D28: unidad | E28: 83.78 | F28: 2.3.5.5.01
A29: Artículos de plástico | B29: lsArticulosdePlastico | C29: Fardos de Fundas Plásticas 24x30 | D29: unidad | E29: 192.34 | F29: 2.3.5.5.01
A30: Artículos de plástico | B30: lsArticulosdePlastico | C30: Fardos de Fundas Plásticas no. 55 | D30: unidad | E30: 421.26 | F30: 2.3.5.5.01
A31: Electrodomésticos | B31: lsElectrodomesticos | C31: Aspiradora | D31: unidad | E31: 6,500.00 | F31: 2.6.1.4.01
A32: Electrodomésticos | B32: lsElectrodomesticos | C32: Estufas de 20 pulgadas | D32: unidad | E32: 7,265.26 | F32: 2.6.1.4.01
A33: Electrodomésticos | B33: lsElectrodomesticos | C33: Microondas de 7 pies | D33: unidad | E33: 4,675.25 | F33: 2.6.1.4.01
A34: Electrodomésticos | B34: lsElectrodomesticos | C34: Refrigeradores de 8 pies | D34: unidad | E34: 16,785.50 | F34: 2.6.1.4.01
A35: Electrodomésticos | B35: lsElectrodomesticos | C35: Televisores de 32 pulgadas | D35: unidad | E35: 15,163.00 | F35: 2.6.1.4.01
A36: Equipo de comunicación, telecomunicaciones y señalamiento | B36: lsTelecomunicaciones | C36: Mapas de Evacuación | D36: unidad | E36: 2,330.50 | F36: 2.6.5.5.01
A37: Equipo de comunicación, telecomunicaciones y señalamiento | B37: lsTelecomunicaciones | C37: Otros Señales | E37: 1,150.00 | F37: 2.6.5.5.01
A38: Equipo de comunicación, telecomunicaciones y señalamiento | B38: lsTelecomunicaciones | C38: Punto de Reunion 2x2 pies, Metla colocado en pared | D38: unidad | E38: 2,330.50 | F38: 2.6.5.5.01
A39: Equipo de comunicación, telecomunicaciones y señalamiento | B39: lsTelecomunicaciones | C39: Señal de Ruta de Evacuacion Area, Doble Cara 6x12, para techo con cables de acero Fotoluminiscente | D39: unidad | E39: 3,009.00 | F39: 2.6.5.5.01
A40: Equipo de comunicación, telecomunicaciones y señalamiento | B40: lsTelecomunicaciones | C40: Señales de Ruta de Evacuacion Flecha Derecha 5x8 en vinil fotoluminiscente sobre PVC de 4mm | D40: unidad | E40: 1,150.50 | F40: 2.6.5.5.01
A41: Equipo de comunicación, telecomunicaciones y señalamiento | B41: lsTelecomunicaciones | C41: Señales de Ruta de Evacuacion Flecha Izquierda 5x8 en vinil fotoluminiscente sobre PVC de 4mm | D41: unidad | E41: 1,150.50 | F41: 2.6.5.5.01
A42: Equipo de comunicación, telecomunicaciones y señalamiento | B42: lsTelecomunicaciones | C42: Señales de Salida 12x25¨ en vinil fotoluminiscente sobre PVC de 4mm | D42: unidad | E42: 1,947.00 | F42: 2.6.5.5.01
A43: Equipo de comunicación, telecomunicaciones y señalamiento | B43: lsTelecomunicaciones | C43: Señalizaciones de Extintores y Modo de uso | D43: unidad | E43: 2,212.50 | F43: 2.6.5.5.01
A44: Equipo médico y de laboratorio | B44: lsEquiposMedicos | C44: Agitador rotador VDRL. | D44: unidad | E44: 11,210.00 | F44: 2.6.3.1.01
A45: Equipo médico y de laboratorio | B45: lsEquiposMedicos | C45: Aspirador de secreciones eléctrico rodable | D45: unidad | E45: 15,692.82 | F45: 2.6.3.1.01
A46: Equipo médico y de laboratorio | B46: lsEquiposMedicos | C46: Bandeja de Urología | D46: unidad | E46: 342,200.00 | F46: 2.6.3.1.01
A47: Equipo médico y de laboratorio | B47: lsEquiposMedicos | C47: Contador de células hematológicas. | D47: unidad | E47: 6,254.00 | F47: 2.6.3.1.01
A48: Equipo médico y de laboratorio | B48: lsEquiposMedicos | C48: Incubadora neonatal para UCI | D48: unidad | E48: 531,000.00 | F48: 2.6.3.1.01
A49: Equipo médico y de laboratorio | B49: lsEquiposMedicos | C49: Vitrina de acero inoxidable para material estéril 0.68x0.45x1.70m. | D49: unidad | E49: 49,794.53 | F49: 2.6.3.1.01
A50: Equipo médico y de laboratorio | B50: lsEquiposMedicos | C50: Aza Diatermica | D50: unidad | E50: 275,000.00 | F50: 2.6.3.1.01
A51: Equipo médico y de laboratorio | B51: lsEquiposMedicos | C51: Balanza con tallímetro de 160 kg - 320 lbs. | D51: unidad | E51: 8,407.50 | F51: 2.6.3.1.01
A52: Equipo médico y de laboratorio | B52: lsEquiposMedicos | C52: Balanza analítica de precisión | D52: unidad | E52: 96,885.15 | F52: 2.6.3.1.01
A53: Equipo médico y de laboratorio | B53: lsEquiposMedicos | C53: Bandeja cirugía general | D53: unidad | E53: 250,160.00 | F53: 2.6.3.1.01
A54: Equipo médico y de laboratorio | B54: lsEquiposMedicos | C54: Bandeja de acero inoxidable 30x20cms. | D54: unidad | E54: 2,950.00 | F54: 2.6.3.1.01
A55: Equipo médico y de laboratorio | B55: lsEquiposMedicos | C55: Bandeja de cesárea. | D55: unidad | E55: 226,560.00 | F55: 2.6.3.1.01
A56: Equipo médico y de laboratorio | B56: lsEquiposMedicos | C56: Bandeja de cirugía ortopédica | D56: unidad | E56: 501,500.00 | F56: 2.6.3.1.01
A57: Equipo médico y de laboratorio | B57: lsEquiposMedicos | C57: Bandeja de legrado | D57: unidad | E57: 41,300.00 | F57: 2.6.3.1.01
A58: Equipo médico y de laboratorio | B58: lsEquiposMedicos | C58: Bandeja de parto | D58: unidad | E58: 49,560.00 | F58: 2.6.3.1.01
A59: Equipo médico y de laboratorio | B59: lsEquiposMedicos | C59: Bandeja ginecológica | D59: unidad | E59: 188,800.00 | F59: 2.6.3.1.01
A60: Equipo médico y de laboratorio | B60: lsEquiposMedicos | C60: Baño maría 10 - 15 lts. | D60: unidad | E60: 27,140.00 | F60: 2.6.3.1.01
A61: Equipo médico y de laboratorio | B61: lsEquiposMedicos | C61: Cama tipo hospitalaria, de posición, con barandas, colchón | D61: unidad | E61: 49,219.18 | F61: 2.6.3.1.01
A62: Equipo médico y de laboratorio | B62: lsEquiposMedicos | C62: Cama cuna metálica rodable con barandas para niños 147 x 82.5 x 50 cms. | D62: unidad | E62: 26,137.07 | F62: 2.6.3.1.01
A63: Equipo médico y de laboratorio | B63: lsEquiposMedicos | C63: Cama eléctrica de cuidados intensivos con barandas y funciones de posicionamientos especiales | D63: unidad | E63: 105,563.74 | F63: 2.6.3.1.01
A64: Equipo médico y de laboratorio | B64: lsEquiposMedicos | C64: Cama unipersonal | D64: unidad | E64: 6,490.00 | F64: 2.6.3.1.01
A65: Equipo médico y de laboratorio | B65: lsEquiposMedicos | C65: Camilla de emergencia con barandas, ruedas y porta suero incluido | D65: unidad | E65: 30,335.33 | F65: 2.6.3.1.01
A66: Equipo médico y de laboratorio | B66: lsEquiposMedicos | C66: Camilla de transporte intrahospitalaria con barandas, ruedas y porta suero | D66: unidad | E66: 72,981.65 | F66: 2.6.3.1.01
A67: Equipo médico y de laboratorio | B67: lsEquiposMedicos | C67: Camilla de trauma shock | D67: unidad | E67: 172,048.60 | F67: 2.6.3.1.01
A68: Equipo médico y de laboratorio | B68: lsEquiposMedicos | C68: Camilla para examen ginecológico. | D68: unidad | E68: 104,465.40 | F68: 2.6.3.1.01
A69: Equipo médico y de laboratorio | B69: lsEquiposMedicos | C69: Carro de cura | D69: unidad | E69: 8,314.29 | F69: 2.6.3.1.01
A70: Equipo médico y de laboratorio | B70: lsEquiposMedicos | C70: Centrífuga de Mesa de 24 tubos | D70: unidad | E70: 198,806.40 | F70: 2.6.3.1.01
A71: Equipo médico y de laboratorio | B71: lsEquiposMedicos | C71: Chaleco plomado | D71: unidad | E71: 11,313.84 | F71: 2.6.3.1.01
A72: Equipo médico y de laboratorio | B72: lsEquiposMedicos | C72: Cipap Fisher | D72: unidad | E72: 469,017.41 | F72: 2.6.3.1.01
A73: Equipo médico y de laboratorio | B73: lsEquiposMedicos | C73: Colchones Hospitalarios 36' x 76' (Azul, Marron o Crema) | D73: unidad | E73: 4,501.70 | F73: 2.6.3.1.01
A74: Equipo médico y de laboratorio | B74: lsEquiposMedicos | C74: Cuna de calor radiante | D74: unidad | E74: 161,582.93 | F74: 2.6.3.1.01
A75: Equipo médico y de laboratorio | B75: lsEquiposMedicos | C75: Desfibrilador con monitor ECG, paleta externas y batería interna. | D75: unidad | E75: 344,224.69 | F75: 2.6.3.1.01
A76: Equipo médico y de laboratorio | B76: lsEquiposMedicos | C76: Doppler fetal fijo | D76: unidad | E76: 24,151.66 | F76: 2.6.3.1.01
A77: Equipo médico y de laboratorio | B77: lsEquiposMedicos | C77: Doppler fetal portátil | D77: unidad | E77: 12,836.04 | F77: 2.6.3.1.01
A78: Equipo médico y de laboratorio | B78: lsEquiposMedicos | C78: Electrocardiógrafo de 3 canales portátil con carro | D78: unidad | E78: 45,994.84 | F78: 2.6.3.1.01
A79: Equipo médico y de laboratorio | B79: lsEquiposMedicos | C79: Electrocauterio | D79: unidad | E79: 111,029.42 | F79: 2.6.3.1.01
A80: Equipo médico y de laboratorio | B80: lsEquiposMedicos | C80: Escalinata de 2 peldaño | D80: unidad | E80: 1,770.00 | F80: 2.6.3.1.01
A81: Equipo médico y de laboratorio | B81: lsEquiposMedicos | C81: Esfigmomanómetro De Pared Con Brazalete Adulto | D81: unidad | E81: 4,524.99 | F81: 2.6.3.1.01
A82: Equipo médico y de laboratorio | B82: lsEquiposMedicos | C82: Esfigmomanómetro de pared con set de brazaletes pediátrico. | D82: unidad | E82: 3,299.87 | F82: 2.6.3.1.01
A83: Equipo médico y de laboratorio | B83: lsEquiposMedicos | C83: Esfigmomanómetro de pedestal rodable adulto | D83: unidad | E83: 4,242.69 | F83: 2.6.3.1.01
A84: Equipo médico y de laboratorio | B84: lsEquiposMedicos | C84: Esfigmomanómetro de pedestal rodable adulto/pediátrico | D84: unidad | E84: 11,859.99 | F84: 2.6.3.1.01
A85: Equipo médico y de laboratorio | B85: lsEquiposMedicos | C85: Esfigmomanómetro portátil con brazalete para adulto | D85: unidad | E85: 1,479.99 | F85: 2.6.3.1.01
A86: Equipo médico y de laboratorio | B86: lsEquiposMedicos | C86: Esfigmomanómetro portátil con set de Brazaletes pediátricos | D86: unidad | E86: 1,999.99 | F86: 2.6.3.1.01
A87: Equipo médico y de laboratorio | B87: lsEquiposMedicos | C87: Estantería metalica de 4 niveles regulares | D87: unidad | E87: 6,938.40 | F87: 2.6.3.1.01
A88: Equipo médico y de laboratorio | B88: lsEquiposMedicos | C88: Estetoscopio doble campana | D88: unidad | E88: 938.18 | F88: 2.6.3.1.01
A89: Equipo médico y de laboratorio | B89: lsEquiposMedicos | C89: Estetoscopio pediátrico | D89: unidad | E89: 3,519.94 | F89: 2.6.3.1.01
A90: Equipo médico y de laboratorio | B90: lsEquiposMedicos | C90: Frasco Esteril para muestras | D90: unidad | E90: 9.00 | F90: 2.6.3.1.01
A91: Equipo médico y de laboratorio | B91: lsEquiposMedicos | C91: Horno eléctrico al seco cap. 28 litros. | D91: unidad | E91: 63,229.12 | F91: 2.6.3.1.01
A92: Equipo médico y de laboratorio | B92: lsEquiposMedicos | C92: Incubadora de transporte | D92: unidad | E92: 475,540.00 | F92: 2.6.3.1.01
A93: Equipo médico y de laboratorio | B93: lsEquiposMedicos | C93: Incubadora neonatal estándar | D93: unidad | E93: 490,481.16 | F93: 2.6.3.1.01
A94: Equipo médico y de laboratorio | B94: lsEquiposMedicos | C94: Instalación de Rayos X en el Hospital Municipal de Haina | D94: unidad | E94: 74,340.00 | F94: 2.6.3.1.01
A95: Equipo médico y de laboratorio | B95: lsEquiposMedicos | C95: Lámpara de fototerapia | D95: unidad | E95: 40,101.79 | F95: 2.6.3.1.01
A96: Equipo médico y de laboratorio | B96: lsEquiposMedicos | C96: Lámpara quirúrgica cialítica de potencia alta. | D96: unidad | E96: 386,697.03 | F96: 2.6.3.1.01
A97: Equipo médico y de laboratorio | B97: lsEquiposMedicos | C97: Lámpara quirúrgica de pie rodable . | D97: unidad | E97: 142,177.26 | F97: 2.6.3.1.01
A98: Equipo médico y de laboratorio | B98: lsEquiposMedicos | C98: Laringoscopio adulto | D98: unidad | E98: 26,868.60 | F98: 2.6.3.1.01
A99: Equipo médico y de laboratorio | B99: lsEquiposMedicos | C99: Máquina de anestesia 3 gases con monitoreo avanzado. | D99: unidad | E99: 1,897,493.10 | F99: 2.6.3.1.01
A100: Equipo médico y de laboratorio | B100: lsEquiposMedicos | C100: Mesa de parto | D100: unidad | E100: 232,041.10 | F100: 2.6.3.1.01
A101: Equipo médico y de laboratorio | B101: lsEquiposMedicos | C101: Mesa metálica angular rodable para instrumentos de acero inoxidable | D101: unidad | E101: 34,703.80 | F101: 2.6.3.1.01
A102: Equipo médico y de laboratorio | B102: lsEquiposMedicos | C102: Mesa metálica tipo mayo acero inoxidable | D102: unidad | E102: 8,903.10 | F102: 2.6.3.1.01
A103: Equipo médico y de laboratorio | B103: lsEquiposMedicos | C103: Mesa para operaciones mayores | D103: unidad | E103: 130,316.25 | F103: 2.6.3.1.01
A104: Equipo médico y de laboratorio | B104: lsEquiposMedicos | C104: Microscopio binocular Tipo Estándar | D104: unidad | E104: 22,139.75 | F104: 2.6.3.1.01
A105: Equipo médico y de laboratorio | B105: lsEquiposMedicos | C105: Monitor de actividad intrauterina y cardiofetal | D105: unidad | E105: 62,932.23 | F105: 2.6.3.1.01
A106: Equipo médico y de laboratorio | B106: lsEquiposMedicos | C106: Monitor de funciones vitales de transporte 5 pararametros | D106: unidad | E106: 62,932.23 | F106: 2.6.3.1.01
A107: Equipo médico y de laboratorio | B107: lsEquiposMedicos | C107: Monitores de signos vitales de pared de 5 parámetros . | D107: unidad | E107: 57,230.00 | F107: 2.6.3.1.01
A108: Equipo médico y de laboratorio | B108: lsEquiposMedicos | C108: Nebulizador | D108: unidad | E108: 2,549.99 | F108: 2.6.3.1.01
A109: Equipo médico y de laboratorio | B109: lsEquiposMedicos | C109: Negatoscopio metálico de 1 campo | D109: unidad | E109: 13,999.99 | F109: 2.6.3.1.01
A110: Equipo médico y de laboratorio | B110: lsEquiposMedicos | C110: Negatoscopio metálico de 2 campos. | D110: unidad | E110: 19,383.86 | F110: 2.6.3.1.01
A111: Equipo médico y de laboratorio | B111: lsEquiposMedicos | C111: Nevera para banco de sangre | D111: unidad | E111: 250,971.84 | F111: 2.6.3.1.01
A112: Equipo médico y de laboratorio | B112: lsEquiposMedicos | C112: Nevera para Reactivos | D112: unidad | E112: 257,712.00 | F112: 2.6.3.1.01
A113: Equipo médico y de laboratorio | B113: lsEquiposMedicos | C113: Orinal metálico | D113: unidad | E113: 3,613.16 | F113: 2.6.3.1.01
A114: Equipo médico y de laboratorio | B114: lsEquiposMedicos | C114: Pulsoxímetro adulto pediátrico portátil. | D114: unidad | E114: 34,202.30 | F114: 2.6.3.1.01
A115: Equipo médico y de laboratorio | B115: lsEquiposMedicos | C115: Pulsoxímetro con sensor neonatal. | D115: unidad | E115: 30,336.03 | F115: 2.6.3.1.01
A116: Equipo médico y de laboratorio | B116: lsEquiposMedicos | C116: Resucitador manual adulto | D116: unidad | E116: 1,250.80 | F116: 2.6.3.1.01
A117: Equipo médico y de laboratorio | B117: lsEquiposMedicos | C117: Resucitador manual neonatal | D117: unidad | E117: 1,250.80 | F117: 2.6.3.1.01
A118: Equipo médico y de laboratorio | B118: lsEquiposMedicos | C118: Resucitador manual pediátrico | D118: unidad | E118: 1,250.80 | F118: 2.6.3.1.01
A119: Equipo médico y de laboratorio | B119: lsEquiposMedicos | C119: Set de cirugía menor | D119: unidad | E119: 21,240.00 | F119: 2.6.3.1.01
A120: Equipo médico y de laboratorio | B120: lsEquiposMedicos | C120: Set de diagnóstico de pared | D120: unidad | E120: 43,960.90 | F120: 2.6.3.1.01
A121: Equipo médico y de laboratorio | B121: lsEquiposMedicos | C121: Set de diagnóstico portátil | D121: unidad | E121: 13,750.00 | F121: 2.6.3.1.01
A122: Equipo médico y de laboratorio | B122: lsEquiposMedicos | C122: Set instrumental de curaciones. | D122: unidad | E122: 13,570.00 | F122: 2.6.3.1.01
A123: Equipo médico y de laboratorio | B123: lsEquiposMedicos | C123: Silla de rueda aro No. 18 | D123: unidad | E123: 4,284.71 | F123: 2.6.3.1.01
A124: Equipo médico y de laboratorio | B124: lsEquiposMedicos | C124: Silla de rueda aro No. 24 | D124: unidad | E124: 5,726.64 | F124: 2.6.3.1.01
A125: Equipo médico y de laboratorio | B125: lsEquiposMedicos | C125: Sillón dental (de fabricación de local) | D125: unidad | E125: 20,650.00 | F125: 2.6.3.1.01
A126: Equipo médico y de laboratorio | B126: lsEquiposMedicos | C126: Unidad de Monitoreo de Cuidados Intensivos | D126: unidad | E126: 575,000.01 | F126: 2.6.3.1.01
A127: Equipo médico y de laboratorio | B127: lsEquiposMedicos | C127: Unidad de Rayos X portátil y con batería. | D127: unidad | E127: 2,542,900.00 | F127: 2.6.3.1.01
A128: Equipo médico y de laboratorio | B128: lsEquiposMedicos | C128: Unidad dental digital completa | D128: unidad | E128: 172,556.12 | F128: 2.6.3.1.01
A129: Equipo médico y de laboratorio | B129: lsEquiposMedicos | C129: Unidades dentales (de fabricación local) | D129: unidad | E129: 44,250.00 | F129: 2.6.3.1.01
A130: Equipo médico y de laboratorio | B130: lsEquiposMedicos | C130: Ventilador mecánico adulto/pediátrico | D130: unidad | E130: 719,492.56 | F130: 2.6.3.1.01
A131: Equipo médico y de laboratorio | B131: lsEquiposMedicos | C131: Ventilador mecánico neonatal | D131: unidad | E131: 816,192.43 | F131: 2.6.3.1.01
A132: Equipos de cómputo | B132: lsEquiposComputos | C132: Computadoras de escritorio | D132: unidad | E132: 36,954.32 | F132: 2.6.1.3.01
A133: Equipos de cómputo | B133: lsEquiposComputos | C133: Headsets | D133: unidad | E133: 3,776.00 | F133: 2.6.1.3.01
A134: Equipos de cómputo | B134: lsEquiposComputos | C134: Impresora Multifunción | D134: unidad | E134: 12,390.00 | F134: 2.6.1.3.01
A135: Equipos de cómputo | B135: lsEquiposComputos | C135: Impresoras Blanco y Negro | D135: unidad | E135: 6,293.71 | F135: 2.6.1.3.01
A136: Equipos de cómputo | B136: lsEquiposComputos | C136: Laptop de 14 pulgadas | D136: unidad | E136: 27,200.00 | F136: 2.6.1.3.01
A137: Equipos de seguridad | B137: lsEquiposSeguridad | C137: Arco Detector de Metales de 87' de alto x 35' de anho | D137: unidad | E137: 109,504.00 | F137: 2.6.6.2.01
A138: Equipos de seguridad | B138: lsEquiposSeguridad | C138: Detectores de Metal Portatil de 16,5' de longitud | D138: unidad | E138: 5,723.00 | F138: 2.6.6.2.01
A139: Eventos generales | B139: lsEventosGenerales | C139: Alojamiento por una Noche por persona | D139: unidad | E139: 6,200.00 | F139: 2.2.8.6.01
A140: Eventos generales | B140: lsEventosGenerales | C140: Audivisuales, Decoración, Montaje y Desmontaje de Evento por 50 personas | D140: unidad | E140: 86,568.53 | F140: 2.2.8.6.01
A141: Eventos generales | B141: lsEventosGenerales | C141: Audivisuales, Decoración, Montaje y Desmontaje de Evento por 80 personas | D141: unidad | E141: 100,917.38 | F141: 2.2.8.6.01
A142: Gasoil | B142: lsGasoil | C142: Tickets de Combustible de RD$1,000.00 | D142: unidad | E142: 1,000.00 | F142: 2.3.7.1.02
A143: Gasoil | B143: lsGasoil | C143: Tickets de Combustible de RD$200.00 | D143: unidad | E143: 200.00 | F143: 2.3.7.1.02
A144: Gasoil | B144: lsGasoil | C144: Tickets de Combustible de RD$500.00 | D144: unidad | E144: 500.00 | F144: 2.3.7.1.02
A145: Gasoil | B145: lsGasoil | C145: Galones de Gasoil Optimo | D145: galon | E145: 197.00 | F145: 2.3.7.1.02
A146: Gasoil | B146: lsGasoil | C146: Galones de Gasoil Regular | D146: galon | E146: 181.00 | F146: 2.3.7.1.02
A147: Gasoil | B147: lsGasoil | C147: Galones de Gasolina Premium | D147: galon | E147: 251.00 | F147: 2.3.7.1.02
A148: Gasoil | B148: lsGasoil | C148: Galones de Gasolina Regular | D148: galon | E148: 230.00 | F148: 2.3.7.1.02
A149: Gasoil | B149: lsGasoil | C149: Galones de GPL | D149: galon | E149: 110.00 | F149: 2.3.7.1.02
A150: Herramientas menores | B150: lsHerramientasMenores | C150: 60 pie de Alambre Vinyl #14/2 | D150: pie | E150: 28.32 | F150: 2.3.6.3.04
A151: Herramientas menores | B151: lsHerramientasMenores | C151: Bandeja metálica colectora de agua de 1.50 x 0.70 x 0.70mts | D151: unidad | E151: 8,500.00 | F151: 2.3.6.3.04
A152: Herramientas menores | B152: lsHerramientasMenores | C152: Cajas aéreas plásticas | D152: unidad | E152: 81.17 | F152: 2.3.6.3.04
A153: Herramientas menores | B153: lsHerramientasMenores | C153: Canaleta de 1 pulgada | D153: unidad | E153: 103.36 | F153: 2.3.6.3.04
A154: Herramientas menores | B154: lsHerramientasMenores | C154: Codos de 1' PVC | D154: unidad | E154: 20.06 | F154: 2.3.6.3.04
A155: Herramientas menores | B155: lsHerramientasMenores | C155: Destornillador de Estria | D155: unidad | E155: 208.86 | F155: 2.3.6.3.04
A156: Herramientas menores | B156: lsHerramientasMenores | C156: Destornillador Plano | D156: unidad | E156: 206.74 | F156: 2.3.6.3.04
A157: Herramientas menores | B157: lsHerramientasMenores | C157: Faceplate 1 salida | D157: unidad | E157: 43.29 | F157: 2.3.6.3.04
A158: Herramientas menores | B158: lsHerramientasMenores | C158: Grapas Plasticas para Alambre Vinyl #13 | D158: unidad | E158: 5.90 | F158: 2.3.6.3.04
A159: Herramientas menores | B159: lsHerramientasMenores | C159: Llave de Rueda tipo T | D159: unidad | E159: 944.00 | F159: 2.3.6.3.04
A160: Herramientas menores | B160: lsHerramientasMenores | C160: Llaves de paso de bola (1 pulgada) | D160: unidad | E160: 571.12 | F160: 2.3.6.3.04
A161: Herramientas menores | B161: lsHerramientasMenores | C161: Martillo | D161: unidad | E161: 619.50 | F161: 2.3.6.3.04
A162: Herramientas menores | B162: lsHerramientasMenores | C162: Mini Jack RJ45 | D162: unidad | E162: 100.30 | F162: 2.3.6.3.04
A163: Herramientas menores | B163: lsHerramientasMenores | C163: Niples 1' x 2' hg | D163: unidad | E163: 33.63 | F163: 2.3.6.3.04
A164: Herramientas menores | B164: lsHerramientasMenores | C164: Niples de 1' x 3' hg | D164: unidad | E164: 44.25 | F164: 2.3.6.3.04
A165: Herramientas menores | B165: lsHerramientasMenores | C165: Organizador horizontal plástico | D165: unidad | E165: 855.50 | F165: 2.3.6.3.04
A166: Herramientas menores | B166: lsHerramientasMenores | C166: Patch Cord UTP Cat.6 de 2 pies | D166: unidad | E166: 60.23 | F166: 2.3.6.3.04
A167: Herramientas menores | B167: lsHerramientasMenores | C167: Patch Cord UTP Cat.6 de 7 pies | D167: unidad | E167: 102.81 | F167: 2.3.6.3.04
A168: Herramientas menores | B168: lsHerramientasMenores | C168: Patch Panel 24 puertos Cat.6 | D168: unidad | E168: 3,030.43 | F168: 2.3.6.3.04
A169: Herramientas menores | B169: lsHerramientasMenores | C169: Pinzas para corte de tola | D169: unidad | E169: 858.45 | F169: 2.3.6.3.04
A170: Herramientas menores | B170: lsHerramientasMenores | C170: Punta de Tria para Taladro | D170: unidad | E170: 206.72 | F170: 2.3.6.3.04
A171: Herramientas menores | B171: lsHerramientasMenores | C171: PVC CR80/30 (kit de 500) | D171: unidad | E171: 4,425.00 | F171: 2.3.6.3.04
A172: Herramientas menores | B172: lsHerramientasMenores | C172: Rack (Palometas) de Pared para Monitor NK PVM-2701 | D172: unidad | E172: 13,500.00 | F172: 2.3.6.3.04
A173: Herramientas menores | B173: lsHerramientasMenores | C173: Rack de pared 7U con Bisagras | D173: unidad | E173: 1,416.00 | F173: 2.3.6.3.04
A174: Herramientas menores | B174: lsHerramientasMenores | C174: Tarugos Azules | D174: unidad | E174: 3.54 | F174: 2.3.6.3.04
A175: Herramientas menores | B175: lsHerramientasMenores | C175: tee de 1 pulgada hg | D175: unidad | E175: 73.16 | F175: 2.3.6.3.04
A176: Herramientas menores | B176: lsHerramientasMenores | C176: Tira de Lija 100/1 | D176: unidad | E176: 548.27 | F176: 2.3.6.3.04
A177: Herramientas menores | B177: lsHerramientasMenores | C177: Tira de Lija de Metal 12/1 | D177: unidad | E177: 526.33 | F177: 2.3.6.3.04
